Workbook

Sheet Cover
B12: DISCLAIMER
B27: INTRODUCTION
B48: MODEL SCOPE
B57: MODEL FRAMEWORK
B81: TEAM
B85: PROJECT PARTNERS

Sheet Data Explorer
B1: Data Explorer
B3: Sheet | D3: Link
B5: Scenarios & Results | D5: Go to
B6: Scenario Setting | C6: User definition of policy scenarios | D6: Go to
B7: Main Results | C7: Aggregated results for scenarios defined in Scenario Setting | D7: Go to
B9: Model Inputs | D9: Go to
B10: Socio-economic Input | C10: Assumptions on population and area growth, land use characteristics | D10: Go to
B11: Transport Indicators | C11: Transport supply attributes, year 2015 | D11: Go to
B12: Vehicle Technology | C12: Assumptions on vehicle attributes for each vehicle type between 2015 and 2050 | D12: Go to
B13: Sub-models Calibration | C13: Coefficients for calibrated sub-models | D13: Go to
B15: Intermediate Steps | D15: Go to
B16: Scenario Parameters | C16: Conversion of user scenario input into scenario parameters applied in the model | D16: Go to
B17: Socio-economic Projection | C17: Population and GDP projections between 2015 and 2050 | D17: Go to
B18: Urban Area Descriptors | C18: Projection of transport supply attributes and land use characteristics between 2015 and 2050 | D18: Go to
B19: Trip Rates & Distances | C19: Generation of trips by gender, age and distance ranges between 2015 and 2050 | D19: Go to
B20: Modal Attributes | C20: Generation of trip attributes for each mode and distance range between 2015 and 2050 | D20: Go to
B22: Model Outputs | D22: Go to
B23: Mode Share | C23: Average share of trips by mode, distance and gender between 2015 and 2050 | D23: Go to
B24: Trips | C24: Number of trips by mode, distance and gender between 2015 and 2050 | D24: Go to
B25: PKM | C25: Passenger kilometres by mode, distance and gender between 2015 and 2050 | D25: Go to
B26: VKM | C26: Vehicle kilometres by mode, distance and gender between 2015 and 2050 | D26: Go to
B27: WTT CO2 | C27: Well to Tank CO2 emissions by mode, engine type and gender between 2015 and 2050 | D27: Go to
B28: TTW CO2 | C28: Tank to Wheel CO2 emissions by mode, engine type and gender between 2015 and 2050 | D28: Go to
B29: NOx | C29: NOx emissions by mode, engine type and gender between 2015 and 2050 | D29: Go to
B30: PM2.5 | C30: PM2.5 emissions by mode, engine type and gender between 2015 and 2050 | D30: Go to
B31: SO4 | C31: SO4 emissions by mode, engine type and gender between 2015 and 2050 | D31: Go to

Sheet Scenarios & Results -->
B1: Scenarios & Results
B3: Sheet | C3: Link
B4: Scenario Setting | C4: Go to
B5: Main Results | C5: Go to
B8: Go to --> Data Explorer
B10: Go to --> Model Inputs
B11: Go to --> Intermediate Steps
B12: Go to --> Model Outputs

Sheet Scenario Setting-Baseline (hidden)
B2: Scenario Setting
B3: Please enter/correct manual values in the table below
B6: Return to Data Explorer
F7: Insert your values into these columns | I7: Suggested value range
B8: Measure code | C8: Measure name | D8: Description/Explanation of value to be provided | F8: Implementation year | G8: Anticipated values in implementation year | H8: Anticipated values in 2050 | I8: MIN | J8: MAX
B9: Infrastructure Expansion
B10: MN | C10: Metro network | D10: Total network length (km) | F10: 2015 | G10: 36.2 | I10: 35 | J10: 300
F11: 2020 | G11: 59.5 | I11: 35 | J11: 300
F12: 2025 | G12: 59.5 | I12: 35 | J12: 300
F13: 2030 | G13: 59.5 | I13: 35 | J13: 300
F14: 2035 | G14: 59.5 | I14: 35 | J14: 300
F15: 2040 | G15: 59.5 | I15: 35 | J15: 300
F16: 2045 | G16: 59.5 | I16: 35 | J16: 300
F17: 2050 | G17: 59.5 | I17: 35 | J17: 300
B18: BRTN | C18: BRT network | D18: Total network length (km) | F18: 2015 | G18: 0 | I18: 0 | J18: 300
F19: 2020 | G19: 0 | I19: 0 | J19: 300
F20: 2025 | G20: 0 | I20: 0 | J20: 300
F21: 2030 | G21: 0 | I21: 0 | J21: 300
F22: 2035 | G22: 0 | I22: 0 | J22: 300
F23: 2040 | G23: 0 | I23: 0 | J23: 300
F24: 2045 | G24: 0 | I24: 0 | J24: 300
F25: 2050 | G25: 0 | I25: 0 | J25: 300
B26: SRN | C26: Suburban rail network | D26: Total number of stops | F26: 2015 | G26: 8 | I26: 8 | J26: 30
F27: 2020 | G27: 8 | I27: 8 | J27: 30
F28: 2025 | G28: 8 | I28: 8 | J28: 30
F29: 2030 | G29: 8 | I29: 8 | J29: 30
F30: 2035 | G30: 8 | I30: 8 | J30: 30
F31: 2040 | G31: 8 | I31: 8 | J31: 30
F32: 2045 | G32: 8 | I32: 8 | J32: 30
F33: 2050 | G33: 8 | I33: 8 | J33: 30
B34: CBN | C34: Conventional bus network | D34: Total network length (km) | F34: 2015 | G34: 3800 | I34: 2500 | J34: 10000
F35: 2020 | G35: 3800 | I35: 2500 | J35: 10000
F36: 2025 | G36: 3800 | I36: 2500 | J36: 12000
F37: 2030 | G37: 3800 | I37: 2500 | J37: 12000
F38: 2035 | G38: 3800 | I38: 2500 | J38: 12000
F39: 2040 | G39: 3800 | I39: 2500 | J39: 12000
F40: 2045 | G40: 3800 | I40: 2500 | J40: 12000
F41: 2050 | G41: 3800 | I41: 2500 | J41: 12000
B42: BN | C42: Bike network | D42: Total network length (km) | F42: - | G42: 100 | H42: 100 | I42: 100 | J42: 1000
B43: PN | C43: Pedestrian network | D43: Total network length increase (%) | F43: - | G43: 0 | H43: 0 | I43: 0 | J43: 1
B44: Public Transport Promotion
B45: MTS | C45: Service improvement for mass transit | D45: Increase in operating speed from optimised stop positioning and service improvement, including ICT (%) | F45: 2030 | G45: 0 | H45: 0 | I45: 0 | J45: 1
B46: PTS | C46: Service improvement for conventional bus | D46: Increase in operating speed from optimised stop positioning and service improvement, including ICT (%) | F46: - | G46: 0 | H46: 0 | I46: 0 | J46: 1
B47: PTP | C47: Public transport priority | D47: Share of bus network that has priority over other road modes (%) | F47: 2030 | G47: 0 | H47: 0 | I47: 0 | J47: 1
B48: PTF | C48: Public transport fare integration | D48: Average cost reduction of a public transport trip (%) | F48: - | G48: 0 | H48: 0 | I48: 0 | J48: 0.8
B49: ODS | C49: Launch of on-demand services | D49: Total size of on-demand fleet (number of vehicles) | F49: - | G49: 0 | H49: 0 | I49: 0 | J49: 1000
B50: MAAS | C50: Mobility as a Service | D50: Share of population with a MaaS subscription (%) | F50: - | G50: 0 | H50: 0 | I50: 0 | J50: 0.6
B51: Shared Transport Promotion
B52: TI | C52: Incentives for taxi | D52: Total size of taxi fleet (number of vehicles) | F52: 2025 | G52: 8200 | H52: 11300 | I52: 0 | J52: 25000
B53: CSI | C53: Incentives for car sharing | D53: Total size of car sharing fleet (number of vehicles) | F53: 2030 | G53: 0 | H53: 0 | I53: 0 | J53: 5000
B54: RSI | C54: Incentives for ride sharing | D54: Total size of ride sharing fleet (number of vehicles) | F54: 2025 | G54: 16500 | H54: 22500 | I54: 0 | J54: 25000
B55: BSI | C55: Incentives for Bike and scooter sharing | D55: Total size of Bike and scooter sharing fleet (number of vehicles) | F55: - | G55: 0 | H55: 0 | I55: 0 | J55: 15000
B56: TMR | C56: Taxi market reform | D56: Share of legally operated vehicles in total taxi fleet (%) | F56: - | G56: 0.3 | H56: 0.3 | I56: 0 | J56: 1
B57: CPI | C57: Carpooling incentives | D57: Change in load factor for private vehicles | F57: - | G57: 0 | H57: 0 | I57: 0 | J57: 0.5
B58: Restrictive Measures
B59: PR | C59: Parking restrictions | D59: Share of the city core that is under (strong) parking restrictions | F59: - | G59: 0 | H59: 0 | I59: 0 | J59: 0.8
B60: VAR | C60: Vehicle access restrictions | D60: Share of cars that will be restricted from circulating within the city (%) | F60: 2030 | G60: 0 | H60: 0 | I60: 0 | J60: 0.8
B61: SL | C61: Speed limitations | D61: Speed limit reduction (km/h) | F61: 2030 | G61: 0 | H61: 0 | I61: 0 | J61: 0.5
B62: Pricing Measures
B63: RP | C63: Road pricing (congestion charging) | D63: Average fare for city entry (USD) | F63: - | G63: 0 | H63: 0 | I63: 0 | J63: 10
B64: PP | C64: Parking pricing | D64: Average parking fare (USD/h) | F64: - | G64: 0 | H64: 0 | I64: 0 | J64: 2
B65: FT | C65: Fuel tax | D65: Increase in vehicle usage costs (per km) due to increase of fossil fuel cost (%) | F65: - | G65: 0 | H65: 0 | I65: 0 | J65: 0.5
B66: VT | C66: Vehicle ownership and purchase tax | D66: Increase in vehicle ownership and purchase cost (%) | F66: - | G66: 0 | H66: 0 | I66: 0 | J66: 1
B67: Vehicle Technology Development
B68: TECH | C68: Vehicle fuel technology development and uptake - predefined scenarios | D68: Trigger of two possible technology and vehicle efficiency scenarios: 0 - IEA NPS, 1- IEA SDS. See the methodology note for information on these scenarios. | F68: 0 | I68: 0 (NPS scenario) | J68: 0 (NPS scenario)
B69: CTECH | C69: Technology stock targets for car fleet | D69: Shares of different vehicle technologies in private car fleet (%). Please note that if you specify the shares, they will substitute the default shares of the IEA scenario. Please make sure the sum of the shares is 100%, otherwise the default IEA shares will be used. | E69: Gasoline | F69: 2025 | G69: 0.67 | H69: 0.67 | I69: ='Transport Indicators'!C72 -> 0.67 | J69: 0.67
E70: Gasoline-hybrid | G70: 0 | H70: 0 | I70: ='Transport Indicators'!C73 -> 0 | J70: 0
E71: Diesel | G71: 0.01 | H71: 0.01 | I71: ='Transport Indicators'!C74 -> 0.01 | J71: 0.01
E72: Diesel-hybrid | G72: 0 | H72: 0 | I72: ='Transport Indicators'!C75 -> 0 | J72: 0
E73: LPG/CNG | G73: 0.32 | H73: 0.32 | I73: ='Transport Indicators'!C76 -> 0.32 | J73: 0.32
E74: Hydrogen | G74: 0 | H74: 0 | I74: ='Transport Indicators'!C77 -> 0 | J74: 0
E75: Hydrogen-hybrid | G75: 0 | H75: 0 | I75: ='Transport Indicators'!C78 -> 0 | J75: 0
E76: Electric | G76: 0 | H76: 0 | I76: ='Transport Indicators'!C79 -> 0 | J76: 0
E77: Total | G77: =SUM(G69:G76) -> 1 | H77: 1 | I77: =SUM(I69:I76) -> 1 | J77: =SUM(J69:J76) -> 1
B78: BTECH | C78: Technology stock targets for bus fleet | D78: Shares of different vehicle technologies in bus fleet (%). Please note that if you specify the shares, they will substitute the default shares of the IEA scenario. Please make sure the sum of the shares is 100%, otherwise the default IEA shares will be used. | E78: Gasoline | F78: 2025 | G78: 0 | H78: 0 | I78: ='Transport Indicators'!C80 -> 0 | J78: 0
E79: Gasoline-hybrid | G79: 0 | H79: 0 | I79: ='Transport Indicators'!C81 -> 0 | J79: 0
E80: Diesel | G80: 0.8 | H80: 0.8 | I80: ='Transport Indicators'!C82 -> 0.8 | J80: 0.8
E81: Diesel-hybrid | G81: 0 | H81: 0 | I81: ='Transport Indicators'!C83 -> 0 | J81: 0
E82: LPG/CNG | G82: 0.2 | H82: 0.2 | I82: ='Transport Indicators'!C84 -> 0.2 | J82: 0.2
E83: Hydrogen | G83: 0 | H83: 0 | I83: ='Transport Indicators'!C85 -> 0 | J83: 0
E84: Hydrogen-hybrid | G84: 0 | H84: 0 | I84: ='Transport Indicators'!C86 -> 0 | J84: 0
E85: Electric | G85: 0 | H85: 0 | I85: ='Transport Indicators'!C87 -> 0 | J85: 0
E86: Total | G86: =SUM(G78:G85) -> 1 | H86: =SUM(H78:H85) -> 1 | I86: =SUM(I78:I85) -> 1 | J86: =SUM(J78:J85) -> 1
B87: Other Measures
B88: TW | C88: Teleworking promotion | D88: Share of active population that regularly teleworks (%) | F88: - | G88: 0.01 | H88: 0.01 | I88: 0 | J88: 0.5
B89: TOD | C89: Transit Oriented Development and improved urban planning | D89: Increase in diversity of land-use functions and density around public transport network (%) | F89: - | G89: 0 | H89: 0 | I89: 0 | J89: 1

Sheet Scenario Setting-Current (hidden)
B2: Scenario Setting
B3: Please enter/correct manual values in the table below
B6: Return to Data Explorer
F7: Insert your values into these columns | I7: Suggested value range
B8: Measure code | C8: Measure name | D8: Description/Explanation of value to be provided | F8: Implementation year | G8: Anticipated values in implementation year | H8: Anticipated values in 2050 | I8: MIN | J8: MAX
B9: Infrastructure Expansion
B10: MN | C10: Metro network | D10: Total network length (km) | F10: 2015 | G10: 36.2 | I10: 35 | J10: 300
F11: 2020 | G11: 59.5 | I11: 35 | J11: 300
F12: 2025 | G12: 65.9 | I12: 35 | J12: 300
F13: 2030 | G13: 72.3 | I13: 35 | J13: 300
F14: 2035 | G14: 78.8 | I14: 35 | J14: 300
F15: 2040 | G15: 85.2 | I15: 35 | J15: 300
F16: 2045 | G16: 91.6 | I16: 35 | J16: 300
F17: 2050 | G17: 98 | I17: 35 | J17: 300
B18: BRTN | C18: BRT network | D18: Total network length (km) | F18: 2015 | G18: 0 | I18: 0 | J18: 300
F19: 2020 | G19: 0 | I19: 0 | J19: 300
F20: 2025 | G20: 15 | I20: 0 | J20: 300
F21: 2030 | G21: 30 | I21: 0 | J21: 300
F22: 2035 | G22: 47.5 | I22: 0 | J22: 300
F23: 2040 | G23: 65 | I23: 0 | J23: 300
F24: 2045 | G24: 82.5 | I24: 0 | J24: 300
F25: 2050 | G25: 100 | I25: 0 | J25: 300
B26: SRN | C26: Suburban rail network | D26: Total number of stops | F26: 2015 | G26: 8 | I26: 8 | J26: 30
F27: 2020 | G27: 8 | I27: 8 | J27: 30 | K27: Change to number of stops
F28: 2025 | G28: 8 | I28: 8 | J28: 30
F29: 2030 | G29: 8 | I29: 8 | J29: 30
F30: 2035 | G30: 8 | I30: 8 | J30: 30
F31: 2040 | G31: 8 | I31: 8 | J31: 30 | L31: 0 | M31: 1
F32: 2045 | G32: 8 | I32: 8 | J32: 30
F33: 2050 | G33: 8 | I33: 8 | J33: 30
B34: CBN | C34: Conventional bus network | D34: Total network length (km) | F34: 2015 | G34: 3800 | I34: 2500 | J34: 10000
F35: 2020 | G35: 3800 | I35: 2500 | J35: 10000 | K35: Because of restructuring, the total network length drops significantly between 2020 and 2025; might affect the PT performance
F36: 2025 | G36: 2500 | I36: 2500 | J36: 12000
F37: 2030 | G37: 2500 | I37: 2500 | J37: 12000
F38: 2035 | G38: 2500 | I38: 2500 | J38: 12000
F39: 2040 | G39: 2500 | I39: 2500 | J39: 12000
F40: 2045 | G40: 2500 | I40: 2500 | J40: 12000
F41: 2050 | G41: 2500 | I41: 2500 | J41: 12000
B42: BN | C42: Bike network | D42: Total network length (km) | F42: 2025 | G42: 220 | H42: 300 | I42: 100 | J42: 1000
B43: PN | C43: Pedestrian network | D43: Total network length increase (%) | F43: 2025 | G43: 0.1 | H43: 0.3 | I43: 0 | J43: 1
B44: Public Transport Promotion
B45: MTS | C45: Service improvement for mass transit | D45: Increase in operating speed from optimised stop positioning and service improvement, including ICT (%) | F45: 2025 | G45: 0.05 | H45: 0.1 | I45: 0 | J45: 1
B46: PTS | C46: Service improvement for conventional bus | D46: Increase in operating speed from optimised stop positioning and service improvement, including ICT (%) | F46: 2025 | G46: 0.05 | H46: 0.15 | I46: 0 | J46: 1
B47: PTP | C47: Public transport priority | D47: Share of bus network that has priority over other road modes (%) | F47: 2025 | G47: 0.15 | H47: 0.3 | I47: 0 | J47: 1
B48: PTF | C48: Public transport fare integration | D48: Average cost reduction of a public transport trip (%) | F48: 2025 | G48: 0.1 | H48: 0.3 | I48: 0 | J48: 0.8
B49: ODS | C49: Launch of on-demand services | D49: Total size of on-demand fleet (number of vehicles) | F49: - | G49: 0 | H49: 0 | I49: 0 | J49: 1000
B50: MAAS | C50: Mobility as a Service | D50: Share of population with a MaaS subscription (%) | F50: 2030 | G50: 0 | H50: 0 | I50: 0 | J50: 0.6 | K50: It is briefly mentioned in the presidential decree, but I doubt their commitment to the implementation. Maybe it is better to include it only in Climate Ambition
B51: Shared Transport Promotion
B52: TI | C52: Incentives for taxi | D52: Total size of taxi fleet (number of vehicles) | F52: - | G52: 7100 | H52: 7100 | I52: 0 | J52: 25000
B53: CSI | C53: Incentives for car sharing | D53: Total size of car sharing fleet (number of vehicles) | F53: - | G53: 0 | H53: 0 | I53: 0 | J53: 5000
B54: RSI | C54: Incentives for ride sharing | D54: Total size of ride sharing fleet (number of vehicles) | F54: 2025 | G54: 18000 | H54: 18000 | I54: 0 | J54: 25000
B55: BSI | C55: Incentives for Bike and scooter sharing | D55: Total size of Bike and scooter sharing fleet (number of vehicles) | F55: 2025 | G55: 1000 | H55: 1400 | I55: 0 | J55: 15000
B56: TMR | C56: Taxi market reform | D56: Share of legally operated vehicles in total taxi fleet (%) | F56: 2020 | G56: 0.4 | H56: 0.6 | I56: 0 | J56: 1
B57: CPI | C57: Carpooling incentives | D57: Change in load factor for private vehicles | F57: - | G57: 0 | H57: 0 | I57: 0 | J57: 0.5
B58: Restrictive Measures
B59: PR | C59: Parking restrictions | D59: Share of the city core that is under (strong) parking restrictions | F59: 2025 | G59: 0.1 | H59: 0.2 | I59: 0 | J59: 0.8
B60: VAR | C60: Vehicle access restrictions | D60: Share of cars that will be restricted from circulating within the city (%) | F60: - | G60: 0 | H60: 0 | I60: 0 | J60: 0.8
B61: SL | C61: Speed limitations | D61: Speed limit reduction (km/h) | F61: - | G61: 0 | H61: 0 | I61: 0 | J61: 0.5
B62: Pricing Measures
B63: RP | C63: Road pricing (congestion charging) | D63: Average fare for city entry (USD) | F63: - | G63: 0 | H63: 0 | I63: 0 | J63: 10
B64: PP | C64: Parking pricing | D64: Average parking fare (USD/h) | F64: 2025 | G64: 0.18 | H64: 0.25 | I64: 0 | J64: 2
B65: FT | C65: Fuel tax | D65: Increase in vehicle usage costs (per km) due to increase of fossil fuel cost (%) | F65: - | G65: 0 | H65: 0 | I65: 0 | J65: 0.5
B66: VT | C66: Vehicle ownership and purchase tax | D66: Increase in vehicle ownership and purchase cost (%) | F66: - | G66: 0 | H66: 0 | I66: 0 | J66: 1
B67: Vehicle Technology Development
B68: TECH | C68: Vehicle fuel technology development and uptake - predefined scenarios | D68: Trigger of two possible technology and vehicle efficiency scenarios: 0 - IEA NPS, 1- IEA SDS. See the methodology note for information on these scenarios. | F68: 0 | I68: 0 (NPS scenario) | J68: 0 (NPS scenario)
B69: CTECH | C69: Technology stock targets for car fleet | D69: Shares of different vehicle technologies in private car fleet (%). Please note that if you specify the shares, they will substitute the default shares of the IEA scenario. Please make sure the sum of the shares is 100%, otherwise the default IEA shares will be used. | E69: Gasoline | F69: 2025 | G69: 0.63 | H69: 0.4 | I69: ='Transport Indicators'!C72 -> 0.67 | J69: 0.67
E70: Gasoline-hybrid | G70: 0 | H70: 0 | I70: ='Transport Indicators'!C73 -> 0 | J70: 0
E71: Diesel | G71: 0.01 | H71: 0 | I71: ='Transport Indicators'!C74 -> 0.01 | J71: 0.01
E72: Diesel-hybrid | G72: 0 | H72: 0 | I72: ='Transport Indicators'!C75 -> 0 | J72: 0
E73: LPG/CNG | G73: 0.31 | H73: 0.25 | I73: ='Transport Indicators'!C76 -> 0.32 | J73: 0.32
E74: Hydrogen | G74: 0 | H74: 0 | I74: ='Transport Indicators'!C77 -> 0 | J74: 0
E75: Hydrogen-hybrid | G75: 0 | H75: 0 | I75: ='Transport Indicators'!C78 -> 0 | J75: 0
E76: Electric | G76: 0.05 | H76: 0.35 | I76: ='Transport Indicators'!C79 -> 0 | J76: 0
E77: Total | G77: =SUM(G69:G76) -> 1 | H77: =SUM(H69:H76) -> 1 | I77: =SUM(I69:I76) -> 1 | J77: =SUM(J69:J76) -> 1
B78: BTECH | C78: Technology stock targets for bus fleet | D78: Shares of different vehicle technologies in bus fleet (%). Please note that if you specify the shares, they will substitute the default shares of the IEA scenario. Please make sure the sum of the shares is 100%, otherwise the default IEA shares will be used. | E78: Gasoline | F78: 2025 | G78: 0 | H78: 0 | I78: ='Transport Indicators'!C80 -> 0 | J78: 0
E79: Gasoline-hybrid | G79: 0 | H79: 0 | I79: ='Transport Indicators'!C81 -> 0 | J79: 0
E80: Diesel | G80: 0.63 | H80: 0.2 | I80: ='Transport Indicators'!C82 -> 0.8 | J80: 0.8
E81: Diesel-hybrid | G81: 0 | H81: 0 | I81: ='Transport Indicators'!C83 -> 0 | J81: 0
E82: LPG/CNG | G82: 0.17 | H82: 0.1 | I82: ='Transport Indicators'!C84 -> 0.2 | J82: 0.2
E83: Hydrogen | G83: 0 | H83: 0 | I83: ='Transport Indicators'!C85 -> 0 | J83: 0
E84: Hydrogen-hybrid | G84: 0 | H84: 0 | I84: ='Transport Indicators'!C86 -> 0 | J84: 0
E85: Electric | G85: 0.2 | H85: 0.7 | I85: ='Transport Indicators'!C87 -> 0 | J85: 0
E86: Total | G86: =SUM(G78:G85) -> 1 | H86: =SUM(H78:H85) -> 1 | I86: =SUM(I78:I85) -> 1 | J86: =SUM(J78:J85) -> 1
B87: Other Measures
B88: TW | C88: Teleworking promotion | D88: Share of active population that regularly teleworks (%) | F88: - | G88: 0.01 | H88: 0.01 | I88: 0 | J88: 0.5
B89: TOD | C89: Transit Oriented Development and improved urban planning | D89: Increase in diversity of land-use functions and density around public transport network (%) | G89: 0 | H89: 0 | I89: 0 | J89: 1

Sheet Scenario Setting-Ambition (hidden)
B2: Scenario Setting
B3: Please enter/correct manual values in the table below
B6: Return to Data Explorer
F7: Insert your values into these columns | I7: Suggested value range
B8: Measure code | C8: Measure name | D8: Description/Explanation of value to be provided | F8: Implementation year | G8: Anticipated values in implementation year | H8: Anticipated values in 2050 | I8: MIN | J8: MAX
B9: Infrastructure Expansion
B10: MN | C10: Metro network | D10: Total network length (km) | F10: 2015 | G10: 36.2 | I10: 35 | J10: 300
F11: 2020 | G11: 59.5 | I11: 35 | J11: 300
F12: 2025 | G12: 70 | I12: 35 | J12: 300
F13: 2030 | G13: 80 | I13: 35 | J13: 300
F14: 2035 | G14: 90 | I14: 35 | J14: 300
F15: 2040 | G15: 100 | I15: 35 | J15: 300
F16: 2045 | G16: 110 | I16: 35 | J16: 300
F17: 2050 | G17: 120 | I17: 35 | J17: 300
B18: BRTN | C18: BRT network | D18: Total network length (km) | F18: 2015 | G18: 0 | I18: 0 | J18: 300
F19: 2020 | G19: 0 | I19: 0 | J19: 300
F20: 2025 | G20: 20 | I20: 0 | J20: 300
F21: 2030 | G21: 45 | I21: 0 | J21: 300
F22: 2035 | G22: 70 | I22: 0 | J22: 300
F23: 2040 | G23: 95 | I23: 0 | J23: 300
F24: 2045 | G24: 120 | I24: 0 | J24: 300
F25: 2050 | G25: 150 | I25: 0 | J25: 300
B26: SRN | C26: Suburban rail network | D26: Total number of stops | F26: 2015 | G26: 8 | I26: 8 | J26: 30
F27: 2020 | G27: 8 | I27: 8 | J27: 30 | K27: Change to number of stops
F28: 2025 | G28: 9 | I28: 8 | J28: 30
F29: 2030 | G29: 10 | I29: 8 | J29: 30
F30: 2035 | G30: 11 | I30: 8 | J30: 30
F31: 2040 | G31: 12 | I31: 8 | J31: 30 | L31: 0 | M31: 1
F32: 2045 | G32: 13 | I32: 8 | J32: 30
F33: 2050 | G33: 14 | I33: 8 | J33: 30
B34: CBN | C34: Conventional bus network | D34: Total network length (km) | F34: 2015 | G34: 3800 | I34: 2500 | J34: 10000
F35: 2020 | G35: 3800 | I35: 2500 | J35: 10000
F36: 2025 | G36: 2900 | I36: 2500 | J36: 12000
F37: 2030 | G37: 3000 | I37: 2500 | J37: 12000
F38: 2035 | G38: 3100 | I38: 2500 | J38: 12000
F39: 2040 | G39: 3200 | I39: 2500 | J39: 12000
F40: 2045 | G40: 3300 | I40: 2500 | J40: 12000
F41: 2050 | G41: 3400 | I41: 2500 | J41: 12000
B42: BN | C42: Bike network | D42: Total network length (km) | F42: 2025 | G42: 250 | H42: 500 | I42: 100 | J42: 1000
B43: PN | C43: Pedestrian network | D43: Total network length increase (%) | F43: 2025 | G43: 0.15 | H43: 0.4 | I43: 0 | J43: 1
B44: Public Transport Promotion
B45: MTS | C45: Service improvement for mass transit | D45: Increase in operating speed from optimised stop positioning and service improvement, including ICT (%) | F45: 2025 | G45: 0.1 | H45: 0.2 | I45: 0 | J45: 1
B46: PTS | C46: Service improvement for conventional bus | D46: Increase in operating speed from optimised stop positioning and service improvement, including ICT (%) | F46: 2025 | G46: 0.1 | H46: 0.2 | I46: 0 | J46: 1
B47: PTP | C47: Public transport priority | D47: Share of bus network that has priority over other road modes (%) | F47: 2025 | G47: 0.2 | H47: 0.4 | I47: 0 | J47: 1
B48: PTF | C48: Public transport fare integration | D48: Average cost reduction of a public transport trip (%) | F48: 2025 | G48: 0.1 | H48: 0.3 | I48: 0 | J48: 0.8
B49: ODS | C49: Launch of on-demand services | D49: Total size of on-demand fleet (number of vehicles) | F49: 2025 | G49: 150 | H49: 350 | I49: 0 | J49: 1000
B50: MAAS | C50: Mobility as a Service | D50: Share of population with a MaaS subscription (%) | F50: 2030 | G50: 0.1 | H50: 0.3 | I50: 0 | J50: 0.6
B51: Shared Transport Promotion
B52: TI | C52: Incentives for taxi | D52: Total size of taxi fleet (number of vehicles) | F52: 2025 | G52: 7113.81 | H52: 8200 | I52: 0 | J52: 25000
B53: CSI | C53: Incentives for car sharing | D53: Total size of car sharing fleet (number of vehicles) | F53: 2025 | G53: 800 | H53: 2000 | I53: 0 | J53: 5000
B54: RSI | C54: Incentives for ride sharing | D54: Total size of ride sharing fleet (number of vehicles) | F54: 2025 | G54: 15000 | H54: 17000 | I54: 0 | J54: 25000
B55: BSI | C55: Incentives for Bike and scooter sharing | D55: Total size of Bike and scooter sharing fleet (number of vehicles) | F55: 2025 | G55: 1000 | H55: 4000 | I55: 0 | J55: 15000
B56: TMR | C56: Taxi market reform | D56: Share of legally operated vehicles in total taxi fleet (%) | F56: 2025 | G56: 0.5 | H56: 1 | I56: 0 | J56: 1
B57: CPI | C57: Carpooling incentives | D57: Change in load factor for private vehicles | F57: 2030 | G57: 0.05 | H57: 0.2 | I57: 0 | J57: 0.5
B58: Restrictive Measures
B59: PR | C59: Parking restrictions | D59: Share of the city core that is under (strong) parking restrictions | F59: 2025 | G59: 0.15 | H59: 0.25 | I59: 0 | J59: 0.8
B60: VAR | C60: Vehicle access restrictions | D60: Share of cars that will be restricted from circulating within the city (%) | F60: 2030 | G60: 0.05 | H60: 0.1 | I60: 0 | J60: 0.8
B61: SL | C61: Speed limitations | D61: Speed limit reduction (km/h) | F61: 2025 | G61: 0.15 | H61: 0.15 | I61: 0 | J61: 0.5
B62: Pricing Measures
B63: RP | C63: Road pricing (congestion charging) | D63: Average fare for city entry (USD) | F63: 2030 | G63: 1 | H63: 3 | I63: 0 | J63: 10
B64: PP | C64: Parking pricing | D64: Average parking fare (USD/h) | F64: 2035 | G64: 0.18 | H64: 0.25 | I64: 0 | J64: 2
B65: FT | C65: Fuel tax | D65: Increase in vehicle usage costs (per km) due to increase of fossil fuel cost (%) | F65: 2030 | G65: 0.05 | H65: 0.1 | I65: 0 | J65: 0.5
B66: VT | C66: Vehicle ownership and purchase tax | D66: Increase in vehicle ownership and purchase cost (%) | F66: 2030 | G66: 0.02 | H66: 0.05 | I66: 0 | J66: 1
B67: Vehicle Technology Development
B68: TECH | C68: Vehicle fuel technology development and uptake - predefined scenarios | D68: Trigger of two possible technology and vehicle efficiency scenarios: 0 - IEA NPS, 1- IEA SDS. See the methodology note for information on these scenarios. | F68: 0 | I68: 0 (NPS scenario) | J68: 0 (NPS scenario)
B69: CTECH | C69: Technology stock targets for car fleet | D69: Shares of different vehicle technologies in private car fleet (%). Please note that if you specify the shares, they will substitute the default shares of the IEA scenario. Please make sure the sum of the shares is 100%, otherwise the default IEA shares will be used. | E69: Gasoline | F69: 2025 | G69: 0.6 | H69: 0.35 | I69: ='Transport Indicators'!C72 -> 0.67 | J69: 0.67
E70: Gasoline-hybrid | G70: 0 | H70: 0 | I70: ='Transport Indicators'!C73 -> 0 | J70: 0
E71: Diesel | G71: 0 | H71: 0 | I71: ='Transport Indicators'!C74 -> 0.01 | J71: 0.01
E72: Diesel-hybrid | G72: 0 | H72: 0 | I72: ='Transport Indicators'!C75 -> 0 | J72: 0
E73: LPG/CNG | G73: 0.3 | H73: 0.15 | I73: ='Transport Indicators'!C76 -> 0.32 | J73: 0.32
E74: Hydrogen | G74: 0 | H74: 0 | I74: ='Transport Indicators'!C77 -> 0 | J74: 0
E75: Hydrogen-hybrid | G75: 0 | H75: 0 | I75: ='Transport Indicators'!C78 -> 0 | J75: 0
E76: Electric | G76: 0.1 | H76: 0.5 | I76: ='Transport Indicators'!C79 -> 0 | J76: 0
E77: Total | G77: =SUM(G69:G76) -> 1 | H77: =SUM(H69:H76) -> 1 | I77: =SUM(I69:I76) -> 1 | J77: =SUM(J69:J76) -> 1
B78: BTECH | C78: Technology stock targets for bus fleet | D78: Shares of different vehicle technologies in bus fleet (%). Please note that if you specify the shares, they will substitute the default shares of the IEA scenario. Please make sure the sum of the shares is 100%, otherwise the default IEA shares will be used. | E78: Gasoline | F78: 2025 | G78: 0 | H78: 0 | I78: ='Transport Indicators'!C80 -> 0 | J78: 0
E79: Gasoline-hybrid | G79: 0 | H79: 0 | I79: ='Transport Indicators'!C81 -> 0 | J79: 0
E80: Diesel | G80: 0.6 | H80: 0 | I80: ='Transport Indicators'!C82 -> 0.8 | J80: 0.8
E81: Diesel-hybrid | G81: 0 | H81: 0 | I81: ='Transport Indicators'!C83 -> 0 | J81: 0
E82: LPG/CNG | G82: 0.15 | H82: 0 | I82: ='Transport Indicators'!C84 -> 0.2 | J82: 0.2
E83: Hydrogen | G83: 0 | H83: 0 | I83: ='Transport Indicators'!C85 -> 0 | J83: 0
E84: Hydrogen-hybrid | G84: 0 | H84: 0 | I84: ='Transport Indicators'!C86 -> 0 | J84: 0
E85: Electric | G85: 0.25 | H85: 1 | I85: ='Transport Indicators'!C87 -> 0 | J85: 0
E86: Total | G86: =SUM(G78:G85) -> 1 | H86: =SUM(H78:H85) -> 1 | I86: =SUM(I78:I85) -> 1 | J86: =SUM(J78:J85) -> 1
B87: Other Measures
B88: TW | C88: Teleworking promotion | D88: Share of active population that regularly teleworks (%) | F88: 2025 | G88: 0.05 | H88: 0.1 | I88: 0 | J88: 0.5
B89: TOD | C89: Transit Oriented Development and improved urban planning | D89: Increase in diversity of land-use functions and density around public transport network (%) | F89: 2030 | G89: 0.05 | H89: 0.15 | I89: 0 | J89: 1

Sheet Scenario Setting
B2: Scenario Setting
B3: Enter/correct values in the table below
B4: Return to Data Explorer
B7: Selected scenario | C7: Baseline | F7: Insert your values into these columns | I7: Suggested value range
B8: Measure code | C8: Measure name | D8: Description of value to be provided | F8: Implementation year | G8: Anticipated values in implementation year | H8: Anticipated values in 2050 | I8: MIN | J8: MAX
B9: Infrastructure Expansion
B10: MN | C10: Metro network | D10: Total network length (km) | F10: =INDIRECT("'Scenario Setting-"&$C$7&"'!F"&ROW()) -> 2015 | G10: =INDIRECT("'Scenario Setting-"&$C$7&"'!G"&ROW()) -> 36.2 | I10: 35 | J10: 300
F11: 2020 | G11: 59.5 | I11: 35 | J11: 300
F12: 2025 | G12: 59.5 | I12: 35 | J12: 300
F13: 2030 | G13: 59.5 | I13: 35 | J13: 300
F14: 2035 | G14: 59.5 | I14: 35 | J14: 300
F15: 2040 | G15: 59.5 | I15: 35 | J15: 300
F16: 2045 | G16: 59.5 | I16: 35 | J16: 300
F17: 2050 | G17: 59.5 | I17: 35 | J17: 300
B18: BRTN | C18: BRT network | D18: Total network length (km) | F18: 2015 | G18: 0 | I18: 0 | J18: 300
F19: 2020 | G19: 0 | I19: 0 | J19: 300
F20: 2025 | G20: 0 | I20: 0 | J20: 300
F21: 2030 | G21: 0 | I21: 0 | J21: 300
F22: 2035 | G22: 0 | I22: 0 | J22: 300
F23: 2040 | G23: 0 | I23: 0 | J23: 300
F24: 2045 | G24: 0 | I24: 0 | J24: 300
F25: 2050 | G25: 0 | I25: 0 | J25: 300
B26: SRN | C26: Suburban rail network | D26: Total number of stops | F26: 2015 | G26: 8 | I26: 8 | J26: 30
F27: 2020 | G27: 8 | I27: 8 | J27: 30
F28: 2025 | G28: 8 | I28: 8 | J28: 30
F29: 2030 | G29: 8 | I29: 8 | J29: 30
F30: 2035 | G30: 8 | I30: 8 | J30: 30
F31: 2040 | G31: 8 | I31: 8 | J31: 30
F32: 2045 | G32: 8 | I32: 8 | J32: 30
F33: 2050 | G33: 8 | I33: 8 | J33: 30
B34: CBN | C34: Conventional bus network | D34: Total network length (km) | F34: 2015 | G34: 3800 | I34: 2500 | J34: 10000
F35: 2020 | G35: 3800 | I35: 2500 | J35: 10000
F36: 2025 | G36: 3800 | I36: 2500 | J36: 10000
F37: 2030 | G37: 3800 | I37: 2500 | J37: 10000
F38: 2035 | G38: 3800 | I38: 2500 | J38: 10000
F39: 2040 | G39: 3800 | I39: 2500 | J39: 10000
F40: 2045 | G40: 3800 | I40: 2500 | J40: 10000
F41: 2050 | G41: 3800 | I41: 2500 | J41: 10000
B42: BN | C42: Bike network | D42: Total network length (km) | F42: =IF(LEN(INDIRECT("'Scenario Setting-"&$C$7&"'!F"&ROW()))<4,2030,INDIRECT("'Scenario Setting-"&$C$7&"'!F"&ROW())) -> 2030 | G42: 100 | H42: =INDIRECT("'Scenario Setting-"&$C$7&"'!H"&ROW()) -> 100 | I42: 100 | J42: 1000
B43: PN | C43: Pedestrian network | D43: Additional network length increase (%) | F43: =IF(LEN(INDIRECT("'Scenario Setting-"&$C$7&"'!F"&ROW()))<4,2030,INDIRECT("'Scenario Setting-"&$C$7&"'!F"&ROW())) -> 2030 | G43: 0 | H43: =INDIRECT("'Scenario Setting-"&$C$7&"'!H"&ROW()) -> 0 | I43: 0 | J43: 1
B44: Public Transport Promotion
B45: MTS | C45: Service improvement for mass transit | D45: Increase in operating speed from optimised stop positioning and service improvement, including ICT (%) | F45: =IF(LEN(INDIRECT("'Scenario Setting-"&$C$7&"'!F"&ROW()))<4,2030,INDIRECT("'Scenario Setting-"&$C$7&"'!F"&ROW())) -> 2030 | G45: =INDIRECT("'Scenario Setting-"&$C$7&"'!G"&ROW()) -> 0 | H45: =INDIRECT("'Scenario Setting-"&$C$7&"'!H"&ROW()) -> 0 | I45: 0 | J45: 1
B46: PTS | C46: Service improvement for conventional bus | D46: Increase in operating speed from optimised stop positioning and service improvement, including ICT (%) | F46: 2030 | G46: 0 | H46: 0 | I46: 0 | J46: 1
B47: PTP | C47: Public transport priority | D47: Share of bus network that has priority over other road modes (%) | F47: 2030 | G47: 0 | H47: 0 | I47: 0 | J47: 1
B48: PTF | C48: Public transport fare integration | D48: Average cost reduction of a public transport trip (%) | F48: 2030 | G48: 0 | H48: 0 | I48: 0 | J48: 0.8
B49: ODS | C49: Launch of on-demand services | D49: Total size of on-demand fleet (number of vehicles) | F49: 2030 | G49: =INDIRECT("'Scenario Setting-"&$C$7&"'!G"&ROW()) -> 0 | H49: =INDIRECT("'Scenario Setting-"&$C$7&"'!H"&ROW()) -> 0 | I49: 0 | J49: 1000
B50: MAAS | C50: Mobility as a Service | D50: Share of population with a MaaS subscription (%) | F50: 2030 | G50: 0 | H50: 0 | I50: 0 | J50: 0.6
B51: Shared Transport Promotion
B52: TI | C52: Incentives for taxi | D52: Total size of taxi fleet (number of vehicles) | F52: =IF(LEN(INDIRECT("'Scenario Setting-"&$C$7&"'!F"&ROW()))<4,2030,INDIRECT("'Scenario Setting-"&$C$7&"'!F"&ROW())) -> 2025 | G52: =INDIRECT("'Scenario Setting-"&$C$7&"'!G"&ROW()) -> 8200 | H52: =INDIRECT("'Scenario Setting-"&$C$7&"'!H"&ROW()) -> 11300 | I52: 0 | J52: 25000
B53: CSI | C53: Incentives for car sharing | D53: Total size of car sharing fleet (number of vehicles) | F53: =IF(LEN(INDIRECT("'Scenario Setting-"&$C$7&"'!F"&ROW()))<4,2030,INDIRECT("'Scenario Setting-"&$C$7&"'!F"&ROW())) -> 2030 | G53: 0 | H53: =INDIRECT("'Scenario Setting-"&$C$7&"'!H"&ROW()) -> 0 | I53: 0 | J53: 5000
B54: RSI | C54: Incentives for ride sharing | D54: Total size of ride sharing fleet (number of vehicles) | F54: =IF(LEN(INDIRECT("'Scenario Setting-"&$C$7&"'!F"&ROW()))<4,2030,INDIRECT("'Scenario Setting-"&$C$7&"'!F"&ROW())) -> 2025 | G54: 16500 | H54: 22500 | I54: 0 | J54: 25000
B55: BSI | C55: Incentives for Bike and scooter sharing | D55: Total size of Bike and scooter sharing fleet (number of vehicles) | F55: =IF(LEN(INDIRECT("'Scenario Setting-"&$C$7&"'!F"&ROW()))<4,2030,INDIRECT("'Scenario Setting-"&$C$7&"'!F"&ROW())) -> 2030 | G55: 0 | H55: =INDIRECT("'Scenario Setting-"&$C$7&"'!H"&ROW()) -> 0 | I55: 0 | J55: 15000
B56: TMR | C56: Taxi market reform | D56: Share of legally operated vehicles in total taxi fleet (%) | F56: 2025 | G56: 0.3 | H56: 0.3 | I56: 0 | J56: 1
B57: CPI | C57: Carpooling incentives | D57: Change in load factor for private vehicles (%) | F57: =IF(LEN(INDIRECT("'Scenario Setting-"&$C$7&"'!F"&ROW()))<4,2030,INDIRECT("'Scenario Setting-"&$C$7&"'!F"&ROW())) -> 2030 | G57: 0 | H57: 0 | I57: 0 | J57: 0.5
B58: Restrictive Measures
B59: PR | C59: Parking restrictions | D59: Share of the city core that is under (strong) parking restrictions | F59: =IF(LEN(INDIRECT("'Scenario Setting-"&$C$7&"'!F"&ROW()))<4,2030,INDIRECT("'Scenario Setting-"&$C$7&"'!F"&ROW())) -> 2030 | G59: =INDIRECT("'Scenario Setting-"&$C$7&"'!G"&ROW()) -> 0 | H59: =INDIRECT("'Scenario Setting-"&$C$7&"'!H"&ROW()) -> 0 | I59: 0 | J59: 0.8
B60: VAR | C60: Vehicle access restrictions | D60: Share of cars that will be restricted from circulating within the city (%) | F60: =IF(LEN(INDIRECT("'Scenario Setting-"&$C$7&"'!F"&ROW()))<4,2030,INDIRECT("'Scenario Setting-"&$C$7&"'!F"&ROW())) -> 2030 | G60: =INDIRECT("'Scenario Setting-"&$C$7&"'!G"&ROW()) -> 0 | H60: =INDIRECT("'Scenario Setting-"&$C$7&"'!H"&ROW()) -> 0 | I60: 0 | J60: 0.8
B61: SL | C61: Speed limitations | D61: Speed limit reduction (%) | F61: =IF(LEN(INDIRECT("'Scenario Setting-"&$C$7&"'!F"&ROW()))<4,2030,INDIRECT("'Scenario Setting-"&$C$7&"'!F"&ROW())) -> 2030 | G61: =INDIRECT("'Scenario Setting-"&$C$7&"'!G"&ROW()) -> 0 | H61: =INDIRECT("'Scenario Setting-"&$C$7&"'!H"&ROW()) -> 0 | I61: 0 | J61: 0.5
B62: Pricing Measures
B63: RP | C63: Road pricing (congestion charging) | D63: Average fare for city entry (USD) | F63: =IF(LEN(INDIRECT("'Scenario Setting-"&$C$7&"'!F"&ROW()))<4,2030,INDIRECT("'Scenario Setting-"&$C$7&"'!F"&ROW())) -> 2030 | G63: =INDIRECT("'Scenario Setting-"&$C$7&"'!G"&ROW()) -> 0 | H63: =INDIRECT("'Scenario Setting-"&$C$7&"'!H"&ROW()) -> 0 | I63: 0 | J63: 10
B64: PP | C64: Parking pricing | D64: Average parking fare (USD/h) | F64: =IF(LEN(INDIRECT("'Scenario Setting-"&$C$7&"'!F"&ROW()))<4,2030,INDIRECT("'Scenario Setting-"&$C$7&"'!F"&ROW())) -> 2030 | G64: =INDIRECT("'Scenario Setting-"&$C$7&"'!G"&ROW()) -> 0 | H64: =INDIRECT("'Scenario Setting-"&$C$7&"'!H"&ROW()) -> 0 | I64: 0 | J64: 2
B65: FT | C65: Fuel tax | D65: Increase in vehicle usage costs (per km) due to increase of fossil fuel cost (%) | F65: =IF(LEN(INDIRECT("'Scenario Setting-"&$C$7&"'!F"&ROW()))<4,2030,INDIRECT("'Scenario Setting-"&$C$7&"'!F"&ROW())) -> 2030 | G65: =INDIRECT("'Scenario Setting-"&$C$7&"'!G"&ROW()) -> 0 | H65: =INDIRECT("'Scenario Setting-"&$C$7&"'!H"&ROW()) -> 0 | I65: 0 | J65: 0.5
B66: VT | C66: Vehicle ownership and purchase tax | D66: Increase in vehicle ownership and purchase cost (%) | F66: =IF(LEN(INDIRECT("'Scenario Setting-"&$C$7&"'!F"&ROW()))<4,2030,INDIRECT("'Scenario Setting-"&$C$7&"'!F"&ROW())) -> 2030 | G66: =INDIRECT("'Scenario Setting-"&$C$7&"'!G"&ROW()) -> 0 | H66: =INDIRECT("'Scenario Setting-"&$C$7&"'!H"&ROW()) -> 0 | I66: 0 | J66: 1
B67: Vehicle Technology Development
B68: TECH | C68: Vehicle fuel technology development and uptake - predefined scenarios | D68: Trigger of two possible technology and vehicle efficiency scenarios: 0 - IEA NPS 1 - IEA SDS See the methodology note for information on these scenarios. | F68: =INDIRECT("'Scenario Setting-"&$C$7&"'!F"&ROW()) -> 0 | I68: =INDIRECT("'Scenario Setting-"&$C$7&"'!G"&ROW()) -> 0 | J68: 1 (IEA SDS)
B69: CTECH | C69: Technology stock targets for car fleet | D69: Shares of different vehicle technologies in private car fleet (%). Please note that if you specify the shares, they will substitute the default shares of the IEA scenario. Please make sure the sum of the shares is 100%, otherwise the default IEA shares will be used. | E69: =INDIRECT("'Scenario Setting-"&$C$7&"'!E"&ROW()) -> Gasoline | F69: =IF(LEN(INDIRECT("'Scenario Setting-"&$C$7&"'!F"&ROW()))<4,2030,INDIRECT("'Scenario Setting-"&$C$7&"'!F"&ROW())) -> 2025 | G69: =INDIRECT("'Scenario Setting-"&$C$7&"'!G"&ROW()) -> 0.67 | H69: =INDIRECT("'Scenario Setting-"&$C$7&"'!H"&ROW()) -> 0.67 | I69: ='Transport Indicators'!C72 -> 0.67 | J69: 0
E70: Gasoline-hybrid | G70: 0 | H70: 0 | I70: ='Transport Indicators'!C73 -> 0 | J70: 0
E71: Diesel | G71: 0.01 | H71: 0.01 | I71: ='Transport Indicators'!C74 -> 0.01 | J71: 0
E72: Diesel-hybrid | G72: 0 | H72: 0 | I72: ='Transport Indicators'!C75 -> 0 | J72: 0
E73: LPG/CNG | G73: 0.32 | H73: 0.32 | I73: ='Transport Indicators'!C76 -> 0.32 | J73: 0
E74: Hydrogen | G74: 0 | H74: 0 | I74: ='Transport Indicators'!C77 -> 0 | J74: 0
E75: Hydrogen-hybrid | G75: 0 | H75: 0 | I75: ='Transport Indicators'!C78 -> 0 | J75: 0
E76: Electric | G76: 0 | H76: 0 | I76: ='Transport Indicators'!C79 -> 0 | J76: 1
E77: Total | G77: 1 | H77: 1 | I77: =SUM(I69:I76) -> 1 | J77: =SUM(J69:J76) -> 1
B78: BTECH | C78: Technology stock targets for bus fleet | D78: Shares of different vehicle technologies in bus fleet (%). Please note that if you specify the shares, they will substitute the default shares of the IEA scenario. Please make sure the sum of the shares is 100%, otherwise the default IEA shares will be used. | E78: Gasoline | F78: =IF(LEN(INDIRECT("'Scenario Setting-"&$C$7&"'!F"&ROW()))<4,2030,INDIRECT("'Scenario Setting-"&$C$7&"'!F"&ROW())) -> 2025 | G78: 0 | H78: 0 | I78: ='Transport Indicators'!C80 -> 0 | J78: 0
E79: Gasoline-hybrid | G79: 0 | H79: 0 | I79: ='Transport Indicators'!C81 -> 0 | J79: 0
E80: Diesel | G80: 0.8 | H80: 0.8 | I80: ='Transport Indicators'!C82 -> 0.8 | J80: 0
E81: Diesel-hybrid | G81: 0 | H81: 0 | I81: ='Transport Indicators'!C83 -> 0 | J81: 0
E82: LPG/CNG | G82: 0.2 | H82: 0.2 | I82: ='Transport Indicators'!C84 -> 0.2 | J82: 0
E83: Hydrogen | G83: 0 | H83: 0 | I83: ='Transport Indicators'!C85 -> 0 | J83: 0
E84: Hydrogen-hybrid | G84: 0 | H84: 0 | I84: ='Transport Indicators'!C86 -> 0 | J84: 0
E85: Electric | G85: 0 | H85: 0 | I85: ='Transport Indicators'!C87 -> 0 | J85: 1
E86: Total | G86: 1 | H86: 1 | I86: =SUM(I78:I85) -> 1 | J86: =SUM(J78:J85) -> 1
B87: Other Measures
B88: TW | C88: Teleworking promotion | D88: Share of active population that regularly teleworks (%) | F88: =IF(LEN(INDIRECT("'Scenario Setting-"&$C$7&"'!F"&ROW()))<4,2030,INDIRECT("'Scenario Setting-"&$C$7&"'!F"&ROW())) -> 2030 | G88: =INDIRECT("'Scenario Setting-"&$C$7&"'!G"&ROW()) -> 0.01 | H88: =INDIRECT("'Scenario Setting-"&$C$7&"'!H"&ROW()) -> 0.01 | I88: 0 | J88: 0.5
B89: TOD | C89: Transit Oriented Development and improved urban planning | D89: Increase in diversity of land-use functions and density around public transport network (%) | F89: =IF(LEN(INDIRECT("'Scenario Setting-"&$C$7&"'!F"&ROW()))<4,2030,INDIRECT("'Scenario Setting-"&$C$7&"'!F"&ROW())) -> 2030 | G89: =INDIRECT("'Scenario Setting-"&$C$7&"'!G"&ROW()) -> 0 | H89: =INDIRECT("'Scenario Setting-"&$C$7&"'!H"&ROW()) -> 0 | I89: 0 | J89: 1

Sheet Main Results
B2: Main Results | L2: Visual Summary
B3: Select scenario to display results and generate additional reports
B4: Return to Data Explorer
B6: Results for scenario:
B7: Baseline
B11: Mode share of trips
C12: Year | D12: Walk | E12: Bicycle | F12: Private vehicles | G12: Public transport | H12: Shared mobility | I12: Total
C13: 2015 | D13: ='Mode Share'!D8 -> 0.08342528661 | E13: ='Mode Share'!E8+'Mode Share'!N8 -> 0.01354747655 | F13: ='Mode Share'!F8+'Mode Share'!G8 -> 0.3521475232 | G13: =SUM('Mode Share'!I8:M8,'Mode Share'!Q8) -> 0.1635899756 | H13: =SUM('Mode Share'!H8,'Mode Share'!O8:P8) -> 0.3872897381 | I13: =SUM(D13:H13) -> 1
C14: 2020 | D14: ='Mode Share'!D9 -> 0.09441485132 | E14: ='Mode Share'!E9+'Mode Share'!N9 -> 0.01536837181 | F14: ='Mode Share'!F9+'Mode Share'!G9 -> 0.3837870369 | G14: =SUM('Mode Share'!I9:M9,'Mode Share'!Q9) -> 0.1908679666 | H14: =SUM('Mode Share'!H9,'Mode Share'!O9:P9) -> 0.3155617733 | I14: 1
C15: 2025 | D15: ='Mode Share'!D10 -> 0.09375012886 | E15: ='Mode Share'!E10+'Mode Share'!N10 -> 0.01433166572 | F15: ='Mode Share'!F10+'Mode Share'!G10 -> 0.4099880382 | G15: =SUM('Mode Share'!I10:M10,'Mode Share'!Q10) -> 0.1731694699 | H15: =SUM('Mode Share'!H10,'Mode Share'!O10:P10) -> 0.3087606973 | I15: 1
C16: 2030 | D16: ='Mode Share'!D11 -> 0.0887226722 | E16: ='Mode Share'!E11+'Mode Share'!N11 -> 0.01332362813 | F16: ='Mode Share'!F11+'Mode Share'!G11 -> 0.4329054808 | G16: =SUM('Mode Share'!I11:M11,'Mode Share'!Q11) -> 0.1665485776 | H16: =SUM('Mode Share'!H11,'Mode Share'!O11:P11) -> 0.2984996413 | I16: 1
C17: 2035 | D17: ='Mode Share'!D12 -> 0.08292650631 | E17: ='Mode Share'!E12+'Mode Share'!N12 -> 0.01226814906 | F17: ='Mode Share'!F12+'Mode Share'!G12 -> 0.4677759857 | G17: =SUM('Mode Share'!I12:M12,'Mode Share'!Q12) -> 0.1585844859 | H17: =SUM('Mode Share'!H12,'Mode Share'!O12:P12) -> 0.278444873 | I17: 1
C18: 2040 | D18: ='Mode Share'!D13 -> 0.08412801238 | E18: ='Mode Share'!E13+'Mode Share'!N13 -> 0.01207179937 | F18: ='Mode Share'!F13+'Mode Share'!G13 -> 0.4925936305 | G18: =SUM('Mode Share'!I13:M13,'Mode Share'!Q13) -> 0.1514060383 | H18: =SUM('Mode Share'!H13,'Mode Share'!O13:P13) -> 0.2598005195 | I18: 1
C19: 2045 | D19: ='Mode Share'!D14 -> 0.08498318091 | E19: ='Mode Share'!E14+'Mode Share'!N14 -> 0.01183899373 | F19: ='Mode Share'!F14+'Mode Share'!G14 -> 0.5164229004 | G19: =SUM('Mode Share'!I14:M14,'Mode Share'!Q14) -> 0.1441108721 | H19: =SUM('Mode Share'!H14,'Mode Share'!O14:P14) -> 0.2426440529 | I19: 1
C20: 2050 | D20: ='Mode Share'!D15 -> 0.08572080088 | E20: ='Mode Share'!E15+'Mode Share'!N15 -> 0.01160945419 | F20: ='Mode Share'!F15+'Mode Share'!G15 -> 0.5387210645 | G20: =SUM('Mode Share'!I15:M15,'Mode Share'!Q15) -> 0.1373724452 | H20: =SUM('Mode Share'!H15,'Mode Share'!O15:P15) -> 0.2265762353 | I20: 1
B23: Trips (million per year)
C24: Year | D24: Walk | E24: Bicycle | F24: Private vehicles | G24: Public transport | H24: Shared mobility | I24: Total
C25: 2015 | D25: =Trips!D50 -> 173.8960923 | E25: =Trips!E50+Trips!N50 -> 28.23907868 | F25: =Trips!F50+Trips!G50 -> 734.0349751 | G25: =SUM(Trips!I50:'Trips'!M50,Trips!Q50) -> 340.9956218 | H25: =SUM(Trips!H50,Trips!O50:'Trips'!P50) -> 807.2872718 | I25: =SUM(D25:H25) -> 2084.45304
C26: 2020 | D26: =Trips!D51 -> 222.4016574 | E26: =Trips!E51+Trips!N51 -> 36.20141657 | F26: =Trips!F51+Trips!G51 -> 904.0407512 | G26: =SUM(Trips!I51:'Trips'!M51,Trips!Q51) -> 449.6046071 | H26: =SUM(Trips!H51,Trips!O51:'Trips'!P51) -> 743.3307412 | I26: 2355.579173
C27: 2025 | D27: =Trips!D52 -> 259.3477178 | E27: =Trips!E52+Trips!N52 -> 39.64671668 | F27: =Trips!F52+Trips!G52 -> 1134.17937 | G27: =SUM(Trips!I52:'Trips'!M52,Trips!Q52) -> 479.0511476 | H27: =SUM(Trips!H52,Trips!O52:'Trips'!P52) -> 854.1469028 | I27: 2766.371855
C28: 2030 | D28: =Trips!D53 -> 269.1889643 | E28: =Trips!E53+Trips!N53 -> 40.42454502 | F28: =Trips!F53+Trips!G53 -> 1313.456585 | G28: =SUM(Trips!I53:'Trips'!M53,Trips!Q53) -> 505.3166005 | H28: =SUM(Trips!H53,Trips!O53:'Trips'!P53) -> 905.6626372 | I28: 3034.049332
C29: 2035 | D29: =Trips!D54 -> 277.5922671 | E29: =Trips!E54+Trips!N54 -> 41.06700573 | F29: =Trips!F54+Trips!G54 -> 1565.856349 | G29: =SUM(Trips!I54:'Trips'!M54,Trips!Q54) -> 530.8535103 | H29: =SUM(Trips!H54,Trips!O54:'Trips'!P54) -> 932.0800672 | I29: 3347.449199
C30: 2040 | D30: =Trips!D55 -> 307.9933401 | E30: =Trips!E55+Trips!N55 -> 44.19495603 | F30: =Trips!F55+Trips!G55 -> 1803.389302 | G30: =SUM(Trips!I55:'Trips'!M55,Trips!Q55) -> 554.2987421 | H30: =SUM(Trips!H55,Trips!O55:'Trips'!P55) -> 951.1318229 | I30: 3661.008164
C31: 2045 | D31: =Trips!D56 -> 337.8358127 | E31: =Trips!E56+Trips!N56 -> 47.06385458 | F31: =Trips!F56+Trips!G56 -> 2052.949165 | G31: =SUM(Trips!I56:'Trips'!M56,Trips!Q56) -> 572.8876359 | H31: =SUM(Trips!H56,Trips!O56:'Trips'!P56) -> 964.5891096 | I31: 3975.325578
C32: 2050 | D32: =Trips!D57 -> 367.8079447 | E32: =Trips!E57+Trips!N57 -> 49.81345767 | F32: =Trips!F57+Trips!G57 -> 2311.526321 | G32: =SUM(Trips!I57:'Trips'!M57,Trips!Q57) -> 589.433092 | H32: =SUM(Trips!H57,Trips!O57:'Trips'!P57) -> 972.1857304 | I32: 4290.766546
B35: PKM (million per year)
C36: Year | D36: Walk | E36: Bicycle | F36: Private vehicles | G36: Public transport | H36: Shared mobility | I36: Total
C37: 2015 | D37: =PKM!D50 -> 295.540952 | E37: =PKM!E50+PKM!N50 -> 85.10204601 | F37: =PKM!F50+PKM!G50 -> 5055.149065 | G37: =SUM(PKM!I50:'PKM'!M50,PKM!Q50) -> 2359.408364 | H37: =SUM(PKM!H50,PKM!O50:'PKM'!P50) -> 4886.520377 | I37: =SUM(D37:H37) -> 12681.7208
C38: 2020 | D38: =PKM!D51 -> 375.0506101 | E38: =PKM!E51+PKM!N51 -> 110.5343955 | F38: =PKM!F51+PKM!G51 -> 5838.617664 | G38: =SUM(PKM!I51:'PKM'!M51,PKM!Q51) -> 3024.422815 | H38: =SUM(PKM!H51,PKM!O51:'PKM'!P51) -> 4262.768802 | I38: 13611.39429
C39: 2025 | D39: =PKM!D52 -> 436.1264786 | E39: =PKM!E52+PKM!N52 -> 120.0972363 | F39: =PKM!F52+PKM!G52 -> 7086.213295 | G39: =SUM(PKM!I52:'PKM'!M52,PKM!Q52) -> 3117.584137 | H39: =SUM(PKM!H52,PKM!O52:'PKM'!P52) -> 4507.150789 | I39: 15267.17194
C40: 2030 | D40: =PKM!D53 -> 461.0814627 | E40: =PKM!E53+PKM!N53 -> 127.2720657 | F40: =PKM!F53+PKM!G53 -> 8825.973154 | G40: =SUM(PKM!I53:'PKM'!M53,PKM!Q53) -> 3506.576669 | H40: =SUM(PKM!H53,PKM!O53:'PKM'!P53) -> 5044.478247 | I40: 17965.3816
C41: 2035 | D41: =PKM!D54 -> 483.9425389 | E41: =PKM!E54+PKM!N54 -> 134.2206791 | F41: =PKM!F54+PKM!G54 -> 11232.97391 | G41: =SUM(PKM!I54:'PKM'!M54,PKM!Q54) -> 3907.817655 | H41: =SUM(PKM!H54,PKM!O54:'PKM'!P54) -> 5392.749788 | I41: 21151.70457
C42: 2040 | D42: =PKM!D55 -> 534.3496884 | E42: =PKM!E55+PKM!N55 -> 142.7676747 | F42: =PKM!F55+PKM!G55 -> 12433.18816 | G42: =SUM(PKM!I55:'PKM'!M55,PKM!Q55) -> 3928.10373 | H42: =SUM(PKM!H55,PKM!O55:'PKM'!P55) -> 5171.661924 | I42: 22210.07118
C43: 2045 | D43: =PKM!D56 -> 583.0760536 | E43: =PKM!E56+PKM!N56 -> 150.1463411 | F43: =PKM!F56+PKM!G56 -> 13598.78514 | G43: =SUM(PKM!I56:'PKM'!M56,PKM!Q56) -> 3902.04156 | H43: =SUM(PKM!H56,PKM!O56:'PKM'!P56) -> 4936.352945 | I43: 23170.40204
C44: 2050 | D44: =PKM!D57 -> 631.4919237 | E44: =PKM!E57+PKM!N57 -> 156.9508738 | F44: =PKM!F57+PKM!G57 -> 14707.98321 | G44: =SUM(PKM!I57:'PKM'!M57,PKM!Q57) -> 3861.329437 | H44: =SUM(PKM!H57,PKM!O57:'PKM'!P57) -> 4687.975996 | I44: 24045.73144
B47: VKM (million per year)
C48: Year | D48: Walk | E48: Bicycle | F48: Private vehicles | G48: Public transport | H48: Shared mobility | I48: Total
C49: 2015 | D49: =VKM!D50 -> 0 | E49: =VKM!E50+VKM!N50 -> 0 | F49: =VKM!F50+VKM!G50 -> 3449.2766 | G49: =SUM(VKM!I50:'VKM'!M50,VKM!Q50) -> 99.16333299 | H49: =SUM(VKM!H50,VKM!O50:'VKM'!P50) -> 2330.120045 | I49: =SUM(D49:H49) -> 5878.559978
C50: 2020 | D50: =VKM!D51 -> 0 | E50: =VKM!E51+VKM!N51 -> 0 | F50: =VKM!F51+VKM!G51 -> 3980.303375 | G50: =SUM(VKM!I51:'VKM'!M51,VKM!Q51) -> 118.8634214 | H50: =SUM(VKM!H51,VKM!O51:'VKM'!P51) -> 2138.121099 | I50: 6237.287895
C51: 2025 | D51: =VKM!D52 -> 0 | E51: =VKM!E52+VKM!N52 -> 0 | F51: =VKM!F52+VKM!G52 -> 4817.249798 | G51: =SUM(VKM!I52:'VKM'!M52,VKM!Q52) -> 122.1022511 | H51: =SUM(VKM!H52,VKM!O52:'VKM'!P52) -> 2149.218992 | I51: 7088.571041
C52: 2030 | D52: =VKM!D53 -> 0 | E52: =VKM!E53+VKM!N53 -> 0 | F52: =VKM!F53+VKM!G53 -> 5994.54786 | G52: =SUM(VKM!I53:'VKM'!M53,VKM!Q53) -> 136.7833928 | H52: =SUM(VKM!H53,VKM!O53:'VKM'!P53) -> 2379.631384 | I52: 8510.962636
C53: 2035 | D53: =VKM!D54 -> 0 | E53: =VKM!E54+VKM!N54 -> 0 | F53: =VKM!F54+VKM!G54 -> 7619.441508 | G53: =SUM(VKM!I54:'VKM'!M54,VKM!Q54) -> 151.0910711 | H53: =SUM(VKM!H54,VKM!O54:'VKM'!P54) -> 2513.547024 | I53: 10284.0796
C54: 2040 | D54: =VKM!D55 -> 0 | E54: =VKM!E55+VKM!N55 -> 0 | F54: =VKM!F55+VKM!G55 -> 8423.303183 | G54: =SUM(VKM!I55:'VKM'!M55,VKM!Q55) -> 151.8394195 | H54: =SUM(VKM!H55,VKM!O55:'VKM'!P55) -> 2379.215159 | I54: 10954.35776
C55: 2045 | D55: =VKM!D56 -> 0 | E55: =VKM!E56+VKM!N56 -> 0 | F55: =VKM!F56+VKM!G56 -> 9203.091482 | G55: =SUM(VKM!I56:'VKM'!M56,VKM!Q56) -> 150.8312017 | H55: =SUM(VKM!H56,VKM!O56:'VKM'!P56) -> 2241.750686 | I55: 11595.67337
C56: 2050 | D56: =VKM!D57 -> 0 | E56: =VKM!E57+VKM!N57 -> 0 | F56: =VKM!F57+VKM!G57 -> 9945.09495 | G56: =SUM(VKM!I57:'VKM'!M57,VKM!Q57) -> 149.2207594 | H56: =SUM(VKM!H57,VKM!O57:'VKM'!P57) -> 2118.77302 | I56: 12213.08873
B59: CO2 emissions (thousand tonnes per year)
C60: Total CO2 emissions
C61: Year | D61: Walk | E61: Bicycle | F61: Private vehicles | G61: Public transport | H61: Shared mobility | I61: Total
C62: 2015 | D62: =D73+D84 -> 0 | E62: 0 | F62: 785.3969625 | G62: 141.1779143 | H62: 527.694589 | I62: =SUM(D62:H62) -> 1454.269466
C63: 2020 | D63: 0 | E63: 0 | F63: 888.0148588 | G63: 175.6478892 | H63: 477.1587382 | I63: 1540.821486
C64: 2025 | D64: 0 | E64: 0 | F64: 1032.296503 | G64: 149.0373875 | H64: 454.4979023 | I64: 1635.831793
C65: 2030 | D65: 0 | E65: 0 | F65: 1175.267551 | G65: 145.4008962 | H65: 456.3748166 | I65: 1777.043264
C66: 2035 | D66: 0 | E66: 0 | F66: 1425.231945 | G66: 143.990433 | H66: 456.7433433 | I66: 2025.965722
C67: 2040 | D67: 0 | E67: 0 | F67: 1528.493084 | G67: 153.2876699 | H67: 417.8370805 | I67: 2099.617835
C68: 2045 | D68: 0 | E68: 0 | F68: 1626.543588 | G68: 126.1439067 | H68: 380.3602104 | I68: 2133.047705
C69: 2050 | D69: 0 | E69: 0 | F69: 1717.389428 | G69: 116.5433928 | H69: 349.0524693 | I69: 2182.98529
C71: Well-to-tank
C72: Year | D72: Walk | E72: Bicycle | F72: Private vehicles | G72: Public transport | H72: Shared mobility | I72: Total
C73: 2015 | D73: ='WTT CO2'!D50 -> 0 | E73: ='WTT CO2'!E50+'WTT CO2'!N50 -> 0 | F73: ='WTT CO2'!F50+'WTT CO2'!G50 -> 145.6942904 | G73: =SUM('WTT CO2'!I50:'WTT CO2'!M50,'WTT CO2'!Q50) -> 87.16724803 | H73: =SUM('WTT CO2'!H50,'WTT CO2'!O50:'WTT CO2'!P50) -> 117.6155678 | I73: =SUM(D73:H73) -> 350.4771062
C74: 2020 | D74: ='WTT CO2'!D51 -> 0 | E74: ='WTT CO2'!E51+'WTT CO2'!N51 -> 0 | F74: ='WTT CO2'!F51+'WTT CO2'!G51 -> 158.6742633 | G74: =SUM('WTT CO2'!I51:'WTT CO2'!M51,'WTT CO2'!Q51) -> 124.3425199 | H74: =SUM('WTT CO2'!H51,'WTT CO2'!O51:'WTT CO2'!P51) -> 103.754241 | I74: 386.7710242
C75: 2025 | D75: ='WTT CO2'!D52 -> 0 | E75: ='WTT CO2'!E52+'WTT CO2'!N52 -> 0 | F75: ='WTT CO2'!F52+'WTT CO2'!G52 -> 185.1756159 | G75: =SUM('WTT CO2'!I52:'WTT CO2'!M52,'WTT CO2'!Q52) -> 80.06983752 | H75: =SUM('WTT CO2'!H52,'WTT CO2'!O52:'WTT CO2'!P52) -> 98.46004063 | I75: 363.705494
C76: 2030 | D76: ='WTT CO2'!D53 -> 0 | E76: ='WTT CO2'!E53+'WTT CO2'!N53 -> 0 | F76: ='WTT CO2'!F53+'WTT CO2'!G53 -> 211.4036309 | G76: =SUM('WTT CO2'!I53:'WTT CO2'!M53,'WTT CO2'!Q53) -> 70.67773686 | H76: =SUM('WTT CO2'!H53,'WTT CO2'!O53:'WTT CO2'!P53) -> 98.45498379 | I76: 380.5363516
C77: 2035 | D77: ='WTT CO2'!D54 -> 0 | E77: ='WTT CO2'!E54+'WTT CO2'!N54 -> 0 | F77: ='WTT CO2'!F54+'WTT CO2'!G54 -> 267.9635123 | G77: =SUM('WTT CO2'!I54:'WTT CO2'!M54,'WTT CO2'!Q54) -> 64.20090626 | H77: =SUM('WTT CO2'!H54,'WTT CO2'!O54:'WTT CO2'!P54) -> 102.4727105 | I77: 434.637129
C78: 2040 | D78: ='WTT CO2'!D55 -> 0 | E78: ='WTT CO2'!E55+'WTT CO2'!N55 -> 0 | F78: ='WTT CO2'!F55+'WTT CO2'!G55 -> 288.0759436 | G78: =SUM('WTT CO2'!I55:'WTT CO2'!M55,'WTT CO2'!Q55) -> 75.01462662 | H78: =SUM('WTT CO2'!H55,'WTT CO2'!O55:'WTT CO2'!P55) -> 93.75666968 | I78: 456.8472399
C79: 2045 | D79: ='WTT CO2'!D56 -> 0 | E79: ='WTT CO2'!E56+'WTT CO2'!N56 -> 0 | F79: ='WTT CO2'!F56+'WTT CO2'!G56 -> 325.1130387 | G79: =SUM('WTT CO2'!I56:'WTT CO2'!M56,'WTT CO2'!Q56) -> 50.73364283 | H79: =SUM('WTT CO2'!H56,'WTT CO2'!O56:'WTT CO2'!P56) -> 88.03022374 | I79: 463.8769052
C80: 2050 | D80: ='WTT CO2'!D57 -> 0 | E80: ='WTT CO2'!E57+'WTT CO2'!N57 -> 0 | F80: ='WTT CO2'!F57+'WTT CO2'!G57 -> 371.797979 | G80: =SUM('WTT CO2'!I57:'WTT CO2'!M57,'WTT CO2'!Q57) -> 44.190359 | H80: =SUM('WTT CO2'!H57,'WTT CO2'!O57:'WTT CO2'!P57) -> 85.31910392 | I80: 501.307442
C82: Tank-to-Wheel
C83: Year | D83: Walk | E83: Bicycle | F83: Private vehicles | G83: Public transport | H83: Shared mobility | I83: Total
C84: 2015 | D84: ='TTW CO2'!D50 -> 0 | E84: ='TTW CO2'!E50+'TTW CO2'!N50 -> 0 | F84: ='TTW CO2'!F50+'TTW CO2'!G50 -> 639.7026721 | G84: =SUM('TTW CO2'!I50:'TTW CO2'!M50,'TTW CO2'!Q50) -> 54.01066624 | H84: =SUM('TTW CO2'!H50,'TTW CO2'!O50:'TTW CO2'!P50) -> 410.0790212 | I84: =SUM(D84:H84) -> 1103.79236
C85: 2020 | D85: ='TTW CO2'!D51 -> 0 | E85: ='TTW CO2'!E51+'TTW CO2'!N51 -> 0 | F85: ='TTW CO2'!F51+'TTW CO2'!G51 -> 729.3405954 | G85: =SUM('TTW CO2'!I51:'TTW CO2'!M51,'TTW CO2'!Q51) -> 51.3053693 | H85: =SUM('TTW CO2'!H51,'TTW CO2'!O51:'TTW CO2'!P51) -> 373.4044972 | I85: 1154.050462
C86: 2025 | D86: ='TTW CO2'!D52 -> 0 | E86: ='TTW CO2'!E52+'TTW CO2'!N52 -> 0 | F86: ='TTW CO2'!F52+'TTW CO2'!G52 -> 847.1208874 | G86: =SUM('TTW CO2'!I52:'TTW CO2'!M52,'TTW CO2'!Q52) -> 68.96754999 | H86: =SUM('TTW CO2'!H52,'TTW CO2'!O52:'TTW CO2'!P52) -> 356.0378617 | I86: 1272.126299
C87: 2030 | D87: ='TTW CO2'!D53 -> 0 | E87: ='TTW CO2'!E53+'TTW CO2'!N53 -> 0 | F87: ='TTW CO2'!F53+'TTW CO2'!G53 -> 963.8639201 | G87: =SUM('TTW CO2'!I53:'TTW CO2'!M53,'TTW CO2'!Q53) -> 74.72315937 | H87: =SUM('TTW CO2'!H53,'TTW CO2'!O53:'TTW CO2'!P53) -> 357.9198328 | I87: 1396.506912
C88: 2035 | D88: ='TTW CO2'!D54 -> 0 | E88: ='TTW CO2'!E54+'TTW CO2'!N54 -> 0 | F88: ='TTW CO2'!F54+'TTW CO2'!G54 -> 1157.268433 | G88: =SUM('TTW CO2'!I54:'TTW CO2'!M54,'TTW CO2'!Q54) -> 79.78952679 | H88: =SUM('TTW CO2'!H54,'TTW CO2'!O54:'TTW CO2'!P54) -> 354.2706328 | I88: 1591.328593
C89: 2040 | D89: ='TTW CO2'!D55 -> 0 | E89: ='TTW CO2'!E55+'TTW CO2'!N55 -> 0 | F89: ='TTW CO2'!F55+'TTW CO2'!G55 -> 1240.417141 | G89: =SUM('TTW CO2'!I55:'TTW CO2'!M55,'TTW CO2'!Q55) -> 78.27304328 | H89: =SUM('TTW CO2'!H55,'TTW CO2'!O55:'TTW CO2'!P55) -> 324.0804108 | I89: 1642.770595
C90: 2045 | D90: ='TTW CO2'!D56 -> 0 | E90: ='TTW CO2'!E56+'TTW CO2'!N56 -> 0 | F90: ='TTW CO2'!F56+'TTW CO2'!G56 -> 1301.43055 | G90: =SUM('TTW CO2'!I56:'TTW CO2'!M56,'TTW CO2'!Q56) -> 75.41026384 | H90: =SUM('TTW CO2'!H56,'TTW CO2'!O56:'TTW CO2'!P56) -> 292.3299866 | I90: 1669.1708
C91: 2050 | D91: ='TTW CO2'!D57 -> 0 | E91: ='TTW CO2'!E57+'TTW CO2'!N57 -> 0 | F91: ='TTW CO2'!F57+'TTW CO2'!G57 -> 1345.591449 | G91: =SUM('TTW CO2'!I57:'TTW CO2'!M57,'TTW CO2'!Q57) -> 72.35303377 | H91: =SUM('TTW CO2'!H57,'TTW CO2'!O57:'TTW CO2'!P57) -> 263.7333654 | I91: 1681.677848

Sheet Model Inputs -->
B1: Model Inputs
B3: Sheet | C3: Link
B4: Socio-economic Input | C4: Go to
B5: Transport Indicators | C5: Go to
B6: Vehicle Technology | C6: Go to
B7: Sub-models Calibration | C7: Go to
B10: Go to --> Data Explorer
B12: Go to --> Scenario & Results
B13: Go to --> Intermediate Steps
B14: Go to --> Model Outputs

Sheet Socio-economic Input
B2: Socio-economic Input
B3: Control and modify input
B4: Return to Data Explorer
B6: Based on the official UZB statistics and on a linear regression approach to extend the estimations between 2020 and 2050.
B8: Data from UZB statistics
B9: Years not modelled (used for regression only)
B10: Assumptions (based on stakeholder consultation)
B12: GDP per capita (USD)
B13: Based on the official IMF statistics: GDP per capita, current prices (purchasing power parity; international dollars per capita).
B15: Year | C15: Tashkent Region | E15: Year | F15: USD per 1 UZS
B16: 2010 | C16: 5580 | E16: 2010 | F16: 0.00064
B17: 2011 | C17: 5890 | E17: 2011 | F17: 0.00059
B18: 2012 | C18: 6110 | E18: 2012 | F18: 0.00053
B19: 2013 | C19: 6360 | E19: 2013 | F19: 0.00048
B20: 2014 | C20: 6550 | E20: 2014 | F20: 0.00043
B21: 2015 | C21: 6740 | E21: 2015 | F21: 0.00039
B22: 2016 | C22: 6860 | E22: 2016 | F22: 0.00034
B23: 2017 | C23: 6900 | E23: 2017 | F23: 0.00022
B24: 2018 | C24: 7320 | E24: 2018 | F24: 0.00013
B25: 2019 | C25: 7730 | E25: 2019 | F25: 0.00011
B26: 2020 | C26: 7820 | E26: 2020 | F26: 0.0001
B27: 2021 | C27: 8590
B28: 2022 | C28: 9480
B29: 2023 | C29: 10070
B30: 2024 | C30: 10580
B31: 2025 | C31: 11090
B32: 2030 | C32: =_xlfn.FORECAST.LINEAR($B32,C$16:C$31,$B$16:$B$31) -> 12103.82353
B33: 2035 | C33: =_xlfn.FORECAST.LINEAR($B33,C$16:C$31,$B$16:$B$31) -> 13853.60294
B34: 2040 | C34: =_xlfn.FORECAST.LINEAR($B34,C$16:C$31,$B$16:$B$31) -> 15603.38235
B35: 2045 | C35: =_xlfn.FORECAST.LINEAR($B35,C$16:C$31,$B$16:$B$31) -> 17353.16176
B36: 2050 | C36: =_xlfn.FORECAST.LINEAR($B36,C$16:C$31,$B$16:$B$31) -> 19102.94118
B39: Area (sq. km) | E39: Land use mixture
B40: Year | C40: Tashkent | E40: Year | F40: Tashkent
B41: 2015 | C41: 334.8 | E41: 2015 | F41: 0.35
B42: 2020 | C42: 334.8
B43: 2025 | C43: 334.8
B44: 2030 | C44: 373.2095
B45: 2035 | C45: 411.619
B46: 2040 | C46: 411.619
B47: 2045 | C47: 411.619
B48: 2050 | C48: 411.619
B51: Population ('000 persons) | E51: Teleworking population
B52: Year | C52: Tashkent | E52: Year | F52: Tashkent
B53: 2015 | C53: 2371.27 | E53: 2015 | F53: 0.01
B54: 2016 | C54: 2393.176
B55: 2017 | C55: 2424.146
B56: 2018 | C56: 2464.933
B57: 2019 | C57: 2509.969
B58: 2020 | C58: 2571.67
B59: 2025 | C59: =_xlfn.FORECAST.LINEAR($B59,C$53:C$58,$B$53:$B$58) -> 2754.396238
B60: 2030 | C60: 2953.419952
B61: 2035 | C61: 3152.443667
B62: 2040 | C62: 3351.467381
B63: 2045 | C63: 3550.491095
B64: 2050 | C64: 3749.51481
B67: Total population by age in Uzbekistan ('000 persons)
B68: Year | C68: 0-4 | D68: 5-9 | E68: 10-14 | F68: 15-19 | G68: 20-24 | H68: 25-29 | I68: 30-34 | J68: 35-39 | K68: 40-44 | L68: 45-49 | M68: 50-54 | N68: 55-59 | O68: 60-64 | P68: 65-69 | Q68: 70-74 | R68: 75-79 | S68: 80-84 | T68: 85+ | U68: TOTAL
B69: 2009 | C69: 2832.935 | D69: 2539.279 | E69: 2978.795 | F69: 3221.3 | G69: 3009.378 | H69: 2403.624 | I69: 2035.529 | J69: 1822.804 | K69: 1611.342 | L69: 1543.995 | M69: 1158.343 | N69: 789.151 | O69: 401.39 | P69: 400.379 | Q69: 335.516 | R69: 224.738 | S69: 133.47 | T69: 91.414 | U69: 27533.382
B70: 2010 | C70: 2944.772 | D70: 2539.443 | E70: 2880.82 | F70: 3222.142 | G70: 3052.698 | H70: 2498.406 | I70: 2095.799 | J70: 1872.174 | K70: 1610.263 | L70: 1569.036 | M70: 1242.984 | N70: 848.151 | O70: 465.667 | P70: 345.01 | Q70: 360.463 | R70: 208.723 | S70: 141.831 | T70: 103.061 | U70: 28001.443
B71: 2011 | C71: 3073.905 | D71: 2585.002 | E71: 2790.269 | F71: 3271.192 | G71: 3145.691 | H71: 2681.187 | I71: 2212.732 | J71: 1977.385 | K71: 1699.602 | L71: 1639.851 | M71: 1379.49 | N71: 928.96 | O71: 573.801 | P71: 321.971 | Q71: 384.342 | R71: 221.893 | S71: 132.139 | T71: 103.955 | U71: 29123.367
B72: 2012 | C72: 3135.704 | D72: 2626.44 | E72: 2672.491 | F72: 3204.233 | G72: 3188.874 | H72: 2807.769 | I72: 2263.754 | J72: 2014.137 | K72: 1748.445 | L72: 1636.978 | M72: 1457.101 | N72: 995.07 | O72: 634.992 | P72: 313.839 | Q72: 378.885 | R72: 232.519 | S72: 134.107 | T72: 110.027 | U72: 29555.365
B73: 2013 | C73: 3148.28 | D73: 2701.138 | E73: 2603.789 | F73: 3122.701 | G73: 3215.407 | H73: 2927.502 | I73: 2342.118 | J73: 2030.24 | K73: 1811.758 | L73: 1627.919 | M73: 1518.458 | N73: 1054.983 | O73: 698.156 | P73: 328.805 | Q73: 371.971 | R73: 236.089 | S73: 135.066 | T73: 119.151 | U73: 29993.531
B74: 2014 | C74: 3172.564 | D74: 2843.042 | E74: 2565.524 | F74: 3007.202 | G74: 3231.985 | H74: 3019.69 | I74: 2425.354 | J74: 2065.501 | K74: 1854.584 | L74: 1637.928 | M74: 1552.848 | N74: 1147.731 | O74: 756.031 | P74: 370.468 | Q74: 335.62 | R74: 249.578 | S74: 138.483 | T74: 118.679 | U74: 30492.812
B75: 2015 | C75: 3227.604 | D75: 2959.584 | E75: 2565.043 | F75: 2909.182 | G75: 3237.347 | H75: 3065.601 | I75: 2519.521 | J75: 2126.244 | K75: 1904.46 | L75: 1637.504 | M75: 1579.011 | N75: 1231.175 | O75: 814.101 | P75: 428.067 | Q75: 290.08 | R75: 270.106 | S75: 126.568 | T75: 131.327 | U75: 31022.525
B76: 2016 | C76: 3310.742 | D76: 3070.935 | E76: 2574.079 | F76: 2773.828 | G76: 3238.978 | H76: 3105.138 | I76: 2642.704 | J76: 2177.943 | K76: 1943.398 | L76: 1663.777 | M76: 1590.865 | N76: 1315.437 | O76: 857.157 | P76: 504.598 | Q76: 265.712 | R76: 280.489 | S76: 130.457 | T76: 129.095 | U76: 31575.332
B77: 2017 | C77: 3401.124 | D77: 3144.439 | E77: 2619.921 | F77: 2658.517 | G77: 3175.795 | H77: 3151.95 | I77: 2770.689 | J77: 2230.535 | K77: 1980.949 | L77: 1712.866 | M77: 1589.436 | N77: 1391.283 | O77: 920.564 | P77: 559.278 | Q77: 260.289 | R77: 279.181 | S77: 142.685 | T77: 130.962 | U77: 32120.463
B78: 2018 | C78: 3464.843 | D78: 3178.295 | E78: 2700.965 | F78: 2593.034 | G78: 3097.952 | H78: 3182.833 | I78: 2892.77 | J78: 2310.372 | K78: 1997.532 | L78: 1776.544 | M78: 1581.98 | N78: 1451.398 | O78: 978.738 | P78: 617.471 | Q78: 274.774 | R78: 274.046 | S78: 148.55 | T78: 134.563 | U78: 32656.66
B79: 2019 | C79: 3551.727 | D79: 3202.432 | E79: 2845.758 | F79: 2557.146 | G79: 2985.366 | H79: 3203.107 | I79: 2987.338 | J79: 2395.355 | K79: 2034.563 | L79: 1820.234 | M79: 1593.966 | N79: 1486.62 | O79: 1067.433 | P79: 670.718 | Q79: 310.63 | R79: 249.254 | S79: 156.913 | T79: 136.978 | U79: 33255.538
B80: 2020 | C80: 3646.961 | D80: 3257.918 | E80: 2965.397 | F80: 2558.977 | G80: 2890.718 | H80: 3212.525 | I80: 3037.479 | J80: 2492.19 | K80: 2097.705 | L80: 1871.234 | M80: 1595.991 | N80: 1515.65 | O80: 1148.734 | P80: 726.291 | Q80: 359.506 | R80: 216.23 | S80: 172.456 | T80: 139.28 | U80: 33905.242
B81: 2025 | C81: =_xlfn.FORECAST.LINEAR($B81,C$69:C$80,$B$69:$B$80) -> 3940.992612 | D81: 3689.180471 | E81: 2677.351176 | F81: 2121.269741 | G81: 3040.471063 | H81: 3711.146174 | I81: 3522.41612 | J81: 2713.23501 | K81: 2330.072051 | L81: 1946.303913 | M81: =_xlfn.FORECAST.LINEAR($B81,M$69:M$80,$B$69:$B$80) -> 1864.686075 | N81: 1922.73476 | O81: 1453.175969 | P81: 847.2854522 | Q81: 257.2344079 | R81: 282.805873 | S81: 166.6352226 | T81: 164.5135932 | U81: 36651.50968
B82: 2030 | C82: 4273.56207 | D82: 4071.014544 | E82: 2652.167172 | F82: 1738.562713 | G82: 3001.402164 | H82: 4079.178796 | I82: 4000.321138 | J82: 2992.756444 | K82: 2554.923782 | L82: 2073.993633 | M82: 2044.676547 | N82: 2276.592225 | O82: 1775.451668 | P82: 1029.052533 | Q82: 223.86238 | R82: 300.6957331 | S82: 178.8137016 | T82: 185.3735583 | U82: 39452.4008
B83: 2035 | C83: 4606.131528 | D83: 4452.848618 | E83: 2626.983169 | F83: 1355.855685 | G83: 2962.333266 | H83: 4447.211418 | I83: 4478.226155 | J83: 3272.277878 | K83: 2779.775513 | L83: 2201.683353 | M83: 2224.667019 | N83: 2630.44969 | O83: 2097.727367 | P83: 1210.819613 | Q83: 190.490352 | R83: 318.5855932 | S83: 190.9921807 | T83: 206.2335233 | U83: 42253.29192
B84: 2040 | C84: 4938.700986 | D84: 4834.682691 | E84: 2601.799166 | F84: 973.1486573 | G84: 2923.264367 | H84: 4815.244041 | I84: 4956.131172 | J84: 3551.799311 | K84: 3004.627244 | L84: 2329.373073 | M84: 2404.657491 | N84: 2984.307155 | O84: 2420.003066 | P84: 1392.586693 | Q84: 157.118324 | R84: 336.4754534 | S84: 203.1706597 | T84: 227.0934883 | U84: 45054.18304
B85: 2045 | C85: 5271.270444 | D85: 5216.516765 | E85: 2576.615162 | F85: 590.4416294 | G85: 2884.195469 | H85: 5183.276663 | I85: 5434.03619 | J85: 3831.320745 | K85: 3229.478974 | L85: 2457.062794 | M85: 2584.647963 | N85: 3338.16462 | O85: 2742.278766 | P85: 1574.353774 | Q85: 123.746296 | R85: 354.3653135 | S85: 215.3491387 | T85: 247.9534534 | U85: 47855.07416
B86: 2050 | C86: 5603.839902 | D86: 5598.350838 | E86: 2551.431159 | F86: 207.7346014 | G86: 2845.12657 | H86: 5551.309286 | I86: 5911.941207 | J86: 4110.842178 | K86: 3454.330705 | L86: 2584.752514 | M86: 2764.638435 | N86: 3692.022085 | O86: 3064.554465 | P86: 1756.120854 | Q86: 90.37426807 | R86: 372.2551737 | S86: 227.5276177 | T86: 268.8134184 | U86: 50655.96528
B89: Female population by age in Uzbekistan ('000 persons) | W89: Male population by age in Uzbekistan ('000 persons)
B90: Year | C90: 0-4 | D90: 5-9 | E90: 10-14 | F90: 15-19 | G90: 20-24 | H90: 25-29 | I90: 30-34 | J90: 35-39 | K90: 40-44 | L90: 45-49 | M90: 50-54 | N90: 55-59 | O90: 60-64 | P90: 65-69 | Q90: 70-74 | R90: 75-79 | S90: 80-84 | T90: 85+ | U90: TOTAL | W90: Year | X90: 0-4 | Y90: 5-9 | Z90: 10-14 | AA90: 15-19 | AB90: 20-24 | AC90: 25-29 | AD90: 30-34 | AE90: 35-39 | AF90: 40-44 | AG90: 45-49 | AH90: 50-54 | AI90: 55-59 | AJ90: 60-64 | AK90: 65-69 | AL90: 70-74 | AM90: 75-79 | AN90: 80-84 | AO90: 85+ | AP90: TOTAL
B91: 2009 | C91: 1375.414 | D91: 1235.382 | E91: 1453.41 | F91: 1580.715 | G91: 1490.337 | H91: 1195.44 | I91: 1016.022 | J91: 914.03 | K91: 829.729 | L91: 791.048 | M91: 592.782 | N91: 409.549 | O91: 209.026 | P91: 208.444 | Q91: 182.954 | R91: 131.726 | S91: 80.927 | T91: 63.81 | U91: 13760.745 | W91: 2009 | X91: =C69-C91 -> 1457.521 | Y91: =D69-D91 -> 1303.897 | Z91: =E69-E91 -> 1525.385 | AA91: =F69-F91 -> 1640.585 | AB91: =G69-G91 -> 1519.041 | AC91: =H69-H91 -> 1208.184 | AD91: =I69-I91 -> 1019.507 | AE91: =J69-J91 -> 908.774 | AF91: =K69-K91 -> 781.613 | AG91: =L69-L91 -> 752.947 | AH91: =M69-M91 -> 565.561 | AI91: =N69-N91 -> 379.602 | AJ91: =O69-O91 -> 192.364 | AK91: =P69-P91 -> 191.935 | AL91: =Q69-Q91 -> 152.562 | AM91: =R69-R91 -> 93.012 | AN91: =S69-S91 -> 52.543 | AO91: =T69-T91 -> 27.604 | AP91: =U69-U91 -> 13772.637
B92: 2010 | C92: 1428.094 | D92: 1234.428 | E92: 1405.183 | F92: 1580.191 | G92: 1508.527 | H92: 1241.621 | I92: 1045.12 | J92: 938.383 | K92: 825.995 | L92: 805.603 | M92: 636.614 | N92: 440.189 | O92: 244.013 | P92: 178.353 | Q92: 197.133 | R92: 122.673 | S92: 83.606 | T92: 70.702 | U92: 13986.428 | W92: 2010 | X92: 1516.678 | Y92: 1305.015 | Z92: 1475.637 | AA92: 1641.951 | AB92: 1544.171 | AC92: 1256.785 | AD92: 1050.679 | AE92: 933.791 | AF92: 784.268 | AG92: 763.433 | AH92: 606.37 | AI92: 407.962 | AJ92: 221.654 | AK92: 166.657 | AL92: 163.33 | AM92: 86.05 | AN92: 58.225 | AO92: 32.359 | AP92: 14015.015
B93: 2011 | C93: 1490.283 | D93: 1257.015 | E93: 1361.662 | F93: 1605.875 | G93: 1550.955 | H93: 1335.465 | I93: 1104.072 | J93: 988.542 | K93: 870.421 | L93: 844.851 | M93: 707.903 | N93: 481.248 | O93: 301.576 | P93: 166.534 | Q93: 210.519 | R93: 128.816 | S93: 78.568 | T93: 70.66 | U93: 14554.965 | W93: 2011 | X93: 1583.622 | Y93: 1327.987 | Z93: 1428.607 | AA93: 1665.317 | AB93: 1594.736 | AC93: 1345.722 | AD93: 1108.66 | AE93: 988.843 | AF93: 829.181 | AG93: 795 | AH93: 671.587 | AI93: 447.712 | AJ93: 272.225 | AK93: 155.437 | AL93: 173.823 | AM93: 93.077 | AN93: 53.571 | AO93: 33.295 | AP93: 14568.402
B94: 2012 | C94: 1517.702 | D94: 1276.334 | E94: 1304.872 | F94: 1568.413 | G94: 1572.187 | H94: 1396.47 | I94: 1128.734 | J94: 1005.257 | K94: 891.801 | L94: 846.237 | M94: 748.036 | N94: 515.335 | O94: 333.852 | P94: 163.366 | Q94: 207.333 | R94: 132.882 | S94: 81.129 | T94: 72.981 | U94: 14762.921 | W94: 2012 | X94: 1618.002 | Y94: 1350.106 | Z94: 1367.619 | AA94: 1635.82 | AB94: 1616.687 | AC94: 1411.299 | AD94: 1135.02 | AE94: 1008.88 | AF94: 856.644 | AG94: 790.741 | AH94: 709.065 | AI94: 479.735 | AJ94: 301.14 | AK94: 150.473 | AL94: 171.552 | AM94: 99.637 | AN94: 52.978 | AO94: 37.046 | AP94: 14792.444
B95: 2013 | C95: 1521.029 | D95: 1312.626 | E95: 1270.554 | F95: 1526.903 | G95: 1582.244 | H95: 1454.205 | I95: 1167.846 | J95: 1015.745 | K95: 918.674 | L95: 840.921 | M95: 781.037 | N95: 545.881 | O95: 367.542 | P95: 173.203 | Q95: 201.652 | R95: 134.234 | S95: 83.095 | T95: 77.377 | U95: 14974.768 | W95: 2013 | X95: 1627.251 | Y95: 1388.512 | Z95: 1333.235 | AA95: 1595.798 | AB95: 1633.163 | AC95: 1473.297 | AD95: 1174.272 | AE95: 1014.495 | AF95: 893.084 | AG95: 786.998 | AH95: 737.421 | AI95: 509.102 | AJ95: 330.614 | AK95: 155.602 | AL95: 170.319 | AM95: 101.855 | AN95: 51.971 | AO95: 41.774 | AP95: 15018.763
B96: 2014 | C96: 1529.89 | D96: 1381.99 | E96: 1250.26 | F96: 1469.385 | G96: 1588.194 | H96: 1496.854 | I96: 1209.602 | J96: 1034.689 | K96: 934.132 | L96: 846.765 | M96: 800.799 | N96: 593.357 | O96: 397.973 | P96: 197.452 | Q96: 180.083 | R96: 141.516 | S96: 85.797 | T96: 76.606 | U96: 15215.344 | W96: 2014 | X96: 1642.674 | Y96: 1461.052 | Z96: 1315.264 | AA96: 1537.817 | AB96: 1643.791 | AC96: 1522.836 | AD96: 1215.752 | AE96: 1030.812 | AF96: 920.452 | AG96: 791.163 | AH96: 752.049 | AI96: 554.374 | AJ96: 358.058 | AK96: 173.016 | AL96: 155.537 | AM96: 108.062 | AN96: 52.686 | AO96: 42.073 | AP96: 15277.468
B97: 2015 | C97: 1554.179 | D97: 1436.992 | E97: 1248.994 | F97: 1421.23 | G97: 1589.644 | H97: 1516.943 | I97: 1255.47 | J97: 1064.176 | K97: 958.49 | L97: 843.379 | M97: 815.935 | N97: 636.782 | O97: 428.779 | P97: 229.23 | Q97: 154.673 | R97: 153.306 | S97: 78.385 | T97: 83.715 | U97: 15470.302 | W97: 2015 | X97: 1673.425 | Y97: 1522.592 | Z97: 1316.049 | AA97: 1487.952 | AB97: 1647.703 | AC97: 1548.658 | AD97: 1264.051 | AE97: 1062.068 | AF97: 945.97 | AG97: 794.125 | AH97: 763.076 | AI97: 594.393 | AJ97: 385.322 | AK97: 198.837 | AL97: 135.407 | AM97: 116.8 | AN97: 48.183 | AO97: 47.612 | AP97: 15552.223
B98: 2016 | C98: 1591.639 | D98: 1489.677 | E98: 1252.197 | F98: 1354.058 | G98: 1589.705 | H98: 1531.721 | I98: 1318.201 | J98: 1088.891 | K98: 974.069 | L98: 855.247 | M98: 824.759 | N98: 681.587 | O98: 450.459 | P98: 270.912 | Q98: 141.416 | R98: 159.265 | S98: 80.29 | T98: 82.327 | U98: 15736.42 | W98: 2016 | X98: 1719.103 | Y98: 1581.258 | Z98: 1321.882 | AA98: 1419.77 | AB98: 1649.273 | AC98: 1573.417 | AD98: 1324.503 | AE98: 1089.052 | AF98: 969.329 | AG98: 808.53 | AH98: 766.106 | AI98: 633.85 | AJ98: 406.698 | AK98: 233.686 | AL98: 124.296 | AM98: 121.224 | AN98: 50.167 | AO98: 46.768 | AP98: 15838.912
B99: 2017 | C99: 1634.269 | D99: 1522.867 | E99: 1273.693 | F99: 1298.37 | G99: 1554.154 | H99: 1554.709 | I99: 1379.917 | J99: 1114.142 | K99: 991.18 | L99: 876.786 | M99: 826.824 | N99: 721.023 | O99: 483.878 | P99: 300.22 | Q99: 139.275 | R99: 158.125 | S99: 86.008 | T99: 84.066 | U99: 15999.506 | W99: 2017 | X99: 1766.855 | Y99: 1621.572 | Z99: 1346.228 | AA99: 1360.147 | AB99: 1621.641 | AC99: 1597.241 | AD99: 1390.772 | AE99: 1116.393 | AF99: 989.769 | AG99: 836.08 | AH99: 762.612 | AI99: 670.26 | AJ99: 436.686 | AK99: 259.058 | AL99: 121.014 | AM99: 121.056 | AN99: 56.677 | AO99: 46.896 | AP99: 16120.957
B100: 2018 | C100: 1663.98 | D100: 1536.557 | E100: 1313.105 | F100: 1265.622 | G100: 1514.506 | H100: 1566.694 | I100: 1438.836 | J100: 1153.921 | K100: 1001.9 | L100: 904.012 | M100: 822.188 | N100: 753.718 | O100: 514.018 | P100: 331.551 | Q100: 148.672 | R100: 153.774 | S100: 88.597 | T100: 87.119 | U100: 16258.77 | W100: 2018 | X100: 1800.863 | Y100: 1641.738 | Z100: 1387.86 | AA100: 1327.412 | AB100: 1583.446 | AC100: 1616.139 | AD100: 1453.934 | AE100: 1156.451 | AF100: 995.632 | AG100: 872.532 | AH100: 759.792 | AI100: 697.68 | AJ100: 464.72 | AK100: 285.92 | AL100: 126.102 | AM100: 120.272 | AN100: 59.953 | AO100: 47.444 | AP100: 16397.89
B101: 2019 | C101: 1701.328 | D101: 1545.373 | E101: 1384.034 | F101: 1246.55 | G101: 1458.301 | H101: 1574.43 | I101: 1482.564 | J101: 1196.682 | K101: 1021.883 | L101: 920.069 | M101: 828.886 | N101: 773.94 | O101: 560.088 | P101: 360.199 | Q101: 169.808 | R101: 138.293 | S101: 93.1 | T101: 89.433 | U101: 16544.961 | W101: 2019 | X101: 1850.399 | Y101: 1657.059 | Z101: 1461.724 | AA101: 1310.596 | AB101: 1527.065 | AC101: 1628.677 | AD101: 1504.774 | AE101: 1198.673 | AF101: 1012.68 | AG101: 900.165 | AH101: 765.08 | AI101: 712.68 | AJ101: 507.345 | AK101: 310.519 | AL101: 140.822 | AM101: 110.961 | AN101: 63.813 | AO101: 47.545 | AP101: 16710.577
B102: 2020 | C102: 1747.535 | D102: 1569.738 | E102: 1440.533 | F102: 1246.436 | G102: 1411.642 | H102: 1577.807 | I102: 1504.692 | J102: 1243.874 | K102: 1052.571 | L102: 945.26 | M102: 826.815 | N102: 790.524 | O102: 602.817 | P102: 390.359 | Q102: 197.128 | R102: 119.434 | S102: 102.07 | T102: 90.719 | U102: 16859.954 | W102: 2020 | X102: 1899.426 | Y102: 1688.18 | Z102: 1524.864 | AA102: 1312.541 | AB102: 1479.076 | AC102: 1634.718 | AD102: 1532.787 | AE102: 1248.316 | AF102: 1045.134 | AG102: 925.974 | AH102: 769.176 | AI102: 725.126 | AJ102: 545.917 | AK102: 335.932 | AL102: 162.378 | AM102: 96.796 | AN102: 70.386 | AO102: 48.561 | AP102: 17045.288
B103: 2025 | C103: =_xlfn.FORECAST.LINEAR($B103,C$91:C$102,$B$91:$B$102) -> 1878.212072 | D103: 1776.300817 | E103: 1297.415836 | F103: 1027.255001 | G103: 1474.020936 | H103: 1815.660709 | I103: 1746.528714 | J103: 1353.375344 | K103: 1152.983491 | L103: 982.3798508 | M103: =_xlfn.FORECAST.LINEAR($B103,M$91:M$102,$B$91:$B$102) -> 974.9630991 | N103: 1000.382115 | O103: 763.7027354 | P103: =_xlfn.FORECAST.LINEAR($B103,P$91:P$102,$B$91:$B$102) -> 460.4947483 | Q103: 138.2945536 | R103: 153.938303 | S103: 99.69846503 | T103: 103.2533042 | U103: 18198.86009 | W103: 2025 | X103: 2062.78054 | Y103: 1912.879654 | Z103: 1379.93534 | AA103: 1094.01474 | AB103: 1566.450127 | AC103: 1895.485465 | AD103: 1775.887406 | AE103: 1359.859667 | AF103: 1177.088561 | AG103: 963.9240618 | AH103: 889.7229755 | AI103: 922.3526445 | AJ103: 689.4732331 | AK103: 386.790704 | AL103: 118.9398543 | AM103: 128.8675699 | AN103: 66.93675758 | AO103: 61.26028904 | AP103: 18452.64959
B104: 2030 | C104: 2028.33917 | D104: 1955.532198 | E104: 1281.95921 | F104: 835.3229382 | G104: 1445.364397 | H104: 1988.103943 | I104: 1980.944134 | J104: 1491.556777 | K104: 1254.767494 | L104: 1040.648907 | M104: 1073.652749 | N104: 1185.360385 | O104: 933.1635221 | P104: 561.9278427 | Q104: 119.5996585 | R104: 160.8119394 | S104: 106.6353531 | T104: 114.7423776 | U104: 19558.433 | W104: 2030 | X104: 2245.2229 | Y104: 2115.482346 | Z104: 1370.207963 | AA104: 903.2397751 | AB104: 1556.037767 | AC104: 2091.074853 | AD104: 2019.377003 | AE104: 1501.199667 | AF104: 1300.156288 | AG104: 1033.344726 | AH104: 971.0237972 | AI104: 1091.23184 | AJ104: 842.2881457 | AK104: 467.12469 | AL104: 104.2627214 | AM104: 139.8837937 | AN104: 72.17834848 | AO104: 70.63118065 | AP104: 19893.96781
B105: 2035 | C105: 2178.466268 | D105: 2134.763579 | E105: 1266.502584 | F105: 643.3908753 | G105: 1416.707859 | H105: 2160.547177 | I105: 2215.359554 | J105: 1629.738211 | K105: 1356.551498 | L105: 1098.917963 | M105: 1172.3424 | N105: 1370.338654 | O105: 1102.624309 | P105: 663.3609371 | Q105: 100.9047634 | R105: 167.6855758 | S105: 113.5722413 | T105: 126.231451 | U105: 20918.0059 | W105: 2035 | X105: 2427.66526 | Y105: 2318.085038 | Z105: 1360.480585 | AA105: 712.46481 | AB105: 1545.625407 | AC105: 2286.664241 | AD105: 2262.866601 | AE105: 1642.539667 | AF105: 1423.224015 | AG105: 1102.76539 | AH105: 1052.324619 | AI105: 1260.111036 | AJ105: 995.1030583 | AK105: 547.458676 | AL105: 89.58558858 | AM105: 150.9000175 | AN105: 77.41993939 | AO105: 80.00207226 | AP105: 21335.28602
B106: 2040 | C106: 2328.593366 | D106: 2313.99496 | E106: 1251.045958 | F106: 451.4588124 | G106: 1388.051321 | H106: 2332.990411 | I106: 2449.774973 | J106: 1767.919645 | K106: 1458.335501 | L106: 1157.187019 | M106: 1271.03205 | N106: 1555.316923 | O106: 1272.085096 | P106: 764.7940315 | Q106: 82.2098683 | R106: 174.5592121 | S106: 120.5091294 | T106: 137.7205245 | U106: 22277.5788 | W106: 2040 | X106: 2610.10762 | Y106: 2520.687731 | Z106: 1350.753207 | AA106: 521.689845 | AB106: 1535.213047 | AC106: 2482.253629 | AD106: 2506.356199 | AE106: 1783.879667 | AF106: 1546.291742 | AG106: 1172.186055 | AH106: 1133.625441 | AI106: 1428.990232 | AJ106: 1147.917971 | AK106: 627.792662 | AL106: 74.90845571 | AM106: 161.9162413 | AN106: 82.6615303 | AO106: 89.37296387 | AP106: 22776.60424
B107: 2045 | C107: 2478.720464 | D107: 2493.226341 | E107: 1235.589332 | F107: 259.5267494 | G107: 1359.394782 | H107: 2505.433646 | I107: 2684.190393 | J107: 1906.101078 | K107: 1560.119505 | L107: 1215.456075 | M107: 1369.7217 | N107: 1740.295192 | O107: 1441.545882 | P107: 866.2271259 | Q107: 63.51497319 | R107: 181.4328485 | S107: 127.4460175 | T107: 149.2095979 | U107: 23637.1517 | W107: 2045 | X107: 2792.54998 | Y107: 2723.290423 | Z107: 1341.02583 | AA107: 330.91488 | AB107: 1524.800686 | AC107: 2677.843017 | AD107: 2749.845797 | AE107: 1925.219667 | AF107: 1669.35947 | AG107: 1241.606719 | AH107: 1214.926262 | AI107: 1597.869428 | AJ107: 1300.732883 | AK107: 708.126648 | AL107: 60.23132284 | AM107: 172.932465 | AN107: 87.90312121 | AO107: 98.74385548 | AP107: 24217.92246
B108: 2050 | C108: 2628.847562 | D108: 2672.457723 | E108: 1220.132706 | F108: 67.59468648 | G108: 1330.738244 | H108: 2677.87688 | I108: 2918.605812 | J108: 2044.282512 | K108: 1661.903508 | L108: 1273.725131 | M108: 1468.411351 | N108: 1925.273462 | O108: 1611.006669 | P108: 967.6602203 | Q108: 44.82007809 | R108: 188.3064848 | S108: 134.3829056 | T108: 160.6986713 | U108: 24996.7246 | W108: 2050 | X108: 2974.99234 | Y108: 2925.893115 | Z108: 1331.298452 | AA108: 140.1399149 | AB108: 1514.388326 | AC108: 2873.432406 | AD108: 2993.335395 | AE108: 2066.559667 | AF108: 1792.427197 | AG108: 1311.027383 | AH108: 1296.227084 | AI108: 1766.748624 | AJ108: 1453.547796 | AK108: 788.460634 | AL108: 45.55418998 | AM108: 183.9486888 | AN108: 93.14471212 | AO108: 108.1147471 | AP108: 25659.24067
B111: Share of female population by age in Uzbekistan | W111: Share of male population by age in Uzbekistan
B112: Year | C112: 0-4 | D112: 5-9 | E112: 10-14 | F112: 15-19 | G112: 20-24 | H112: 25-29 | I112: 30-34 | J112: 35-39 | K112: 40-44 | L112: 45-49 | M112: 50-54 | N112: 55-59 | O112: 60-64 | P112: 65-69 | Q112: 70-74 | R112: 75-79 | S112: 80-84 | T112: 85+ | U112: TOTAL | W112: Year | X112: 0-4 | Y112: 5-9 | Z112: 10-14 | AA112: 15-19 | AB112: 20-24 | AC112: 25-29 | AD112: 30-34 | AE112: 35-39 | AF112: 40-44 | AG112: 45-49 | AH112: 50-54 | AI112: 55-59 | AJ112: 60-64 | AK112: 65-69 | AL112: 70-74 | AM112: 75-79 | AN112: 80-84 | AO112: 85+ | AP112: TOTAL
B113: 2009 | C113: =C91/$U69 -> 0.04995441533 | D113: 0.04486851633 | E113: 0.05278719483 | F113: 0.05741085494 | G113: 0.05412836679 | H113: 0.04341784093 | I113: 0.0369014602 | J113: 0.03319715682 | K113: 0.03013538257 | L113: 0.02873050612 | M113: 0.02152957454 | N113: 0.01487463473 | O113: 0.007591729923 | P113: 0.007570591945 | Q113: 0.006644806657 | R113: 0.004784228832 | S113: 0.002939232093 | T113: 0.002317550383 | U113: 0.499784044 | W113: 2009 | X113: =X91/$U69 -> 0.05293650449 | Y113: 0.04735695019 | Z113: 0.05540129433 | AA113: 0.0595853063 | AB113: 0.05517088311 | AC113: 0.04388069726 | AD113: 0.03702803382 | AE113: 0.03300626127 | AF113: 0.02838783118 | AG113: 0.027346695 | AH113: 0.02054092011 | AI113: 0.01378697321 | AJ113: 0.006986573607 | AK113: 0.006970992521 | AL113: 0.005540982942 | AM113: 0.003378153835 | AN113: 0.001908338031 | AO113: 0.001002564814 | AP113: 0.500215956
B114: 2010 | C114: =C92/$U70 -> 0.05100072878 | D114: 0.04408444236 | E114: 0.05018252095 | F114: 0.05643248457 | G114: 0.05387318789 | H114: 0.04434132198 | I114: 0.03732379078 | J114: 0.03351195151 | K114: 0.02949830121 | L114: 0.02877005303 | M114: 0.02273504262 | N114: 0.01572022556 | O114: 0.008714300902 | P114: 0.006369421747 | Q114: 0.007040101469 | R114: 0.004380952796 | S114: 0.002985774697 | T114: 0.002524941304 | U114: 0.4994895442 | W114: 2010 | X114: =X92/$U70 -> 0.05416428003 | Y114: 0.04660527674 | Z114: 0.05269860557 | AA114: 0.05863808519 | AB114: 0.05514612229 | AC114: 0.0448828655 | AD114: 0.03752231626 | AE114: 0.03334795996 | AF114: 0.02800812801 | AG114: 0.02726405921 | AH114: 0.02165495542 | AI114: 0.01456932059 | AJ114: 0.007915806339 | AK114: 0.005951728988 | AL114: 0.005832913682 | AM114: 0.003073055914 | AN114: 0.002079357125 | AO114: 0.001155619016 | AP114: 0.5005104558
B115: 2011 | C115: =C93/$U71 -> 0.05117138413 | D115: 0.04316173333 | E115: 0.04675496484 | F115: 0.05514043071 | G115: 0.05325465974 | H115: 0.04585544659 | I115: 0.03791017708 | J115: 0.03394325938 | K115: 0.02988737532 | L115: 0.02900938617 | M115: 0.02430704527 | N115: 0.01652446299 | O115: 0.01035512137 | P115: 0.005718226193 | Q115: 0.007228525465 | R115: 0.004423114951 | S115: 0.002697764994 | T115: 0.002426230456 | U115: 0.499769309 | W115: 2011 | X115: =X93/$U71 -> 0.05437633636 | Y115: 0.04559867683 | Z115: 0.04905363449 | AA115: 0.05718147218 | AB115: 0.05475795433 | AC115: 0.04620763801 | AD115: 0.03806771381 | AE115: 0.03395359472 | AF115: 0.02847133026 | AG115: 0.02729766788 | AH115: 0.02306007406 | AI115: 0.01537294778 | AJ115: 0.009347305207 | AK115: 0.005337191953 | AL115: 0.00596850632 | AM115: 0.003195956017 | AN115: 0.001839450775 | AO115: 0.001143240066 | AP115: 0.500230691
B116: 2012 | C116: =C94/$U72 -> 0.05135115063 | D116: 0.04318451151 | E116: 0.04415008916 | F116: 0.05306694741 | G116: 0.05319463996 | H116: 0.0472492896 | I116: 0.03819049435 | J116: 0.03401267418 | K116: 0.03017391259 | L116: 0.02863226355 | M116: 0.0253096519 | N116: 0.01743625903 | O116: 0.01129581719 | P116: 0.00552745669 | Q116: 0.007015071545 | R116: 0.004496036506 | S116: 0.002744983863 | T116: 0.002469297875 | U116: 0.4995005475 | W116: 2012 | X116: =X94/$U72 -> 0.05474478153 | Y116: 0.04568057271 | Z116: 0.04627312165 | AA116: 0.05534765008 | AB116: 0.05470028876 | AC116: 0.04775102591 | AD116: 0.03840317993 | AE116: 0.03413525768 | AF116: 0.02898438236 | AG116: 0.02675456723 | AH116: 0.02399107573 | AI116: 0.01623173999 | AJ116: 0.01018901306 | AK116: 0.005091224554 | AL116: 0.005804428401 | AM116: 0.003371198427 | AN116: 0.001792500279 | AO116: 0.001253444172 | AP116: 0.5004994525
B117: 2013 | C117: =C95/$U73 -> 0.05071190184 | D117: 0.0437636369 | E117: 0.04236093443 | F117: 0.05090774407 | G117: 0.05275284194 | H117: 0.04848395476 | I117: 0.03893659603 | J117: 0.03386546919 | K117: 0.03062907132 | L117: 0.02803674566 | M117: 0.0260401818 | N117: 0.01819995785 | O117: 0.01225404238 | P117: 0.005774678547 | Q117: 0.006723183076 | R117: 0.004475431719 | S117: 0.002770430731 | T117: 0.002579789622 | U117: 0.4992665919 | W117: 2013 | X117: =X95/$U73 -> 0.05425339884 | Y117: 0.0462937158 | Z117: 0.04445075173 | AA117: 0.05320473938 | AB117: 0.05445050801 | AC117: 0.04912049202 | AD117: 0.03915084223 | AE117: 0.03382379354 | AF117: 0.02977588734 | AG117: 0.02623892465 | AH117: 0.02458600156 | AI117: 0.01697372677 | AJ117: 0.01102284356 | AK117: 0.005187852007 | AL117: 0.005678524479 | AM117: 0.003395898936 | AN117: 0.001732740303 | AO117: 0.001392766994 | AP117: 0.5007334081
B118: 2014 | C118: =C96/$U74 -> 0.05017215205 | D118: 0.04532182863 | E118: 0.04100179413 | F118: 0.04818791393 | G118: 0.05208420922 | H118: 0.04908874918 | I118: 0.03966843071 | J118: 0.03393222639 | K118: 0.03063449839 | L118: 0.02776933134 | M118: 0.02626189411 | N118: 0.01945891379 | O118: 0.01305137093 | P118: 0.006475362128 | Q118: 0.005905752477 | R118: 0.004640962598 | S118: 0.002813679499 | T118: 0.002512264202 | U118: 0.4989813337 | W118: 2014 | X118: =X96/$U74 -> 0.05387085979 | Y118: 0.04791463641 | Z118: 0.04313357522 | AA118: 0.05043211495 | AB118: 0.05390749138 | AC118: 0.04994081884 | AD118: 0.03987011759 | AE118: 0.03380508167 | AF118: 0.03018586807 | AG118: 0.02594588521 | AH118: 0.02466315668 | AI118: 0.01818048135 | AJ118: 0.01174237391 | AK118: 0.00567399294 | AL118: 0.005100775881 | AM118: 0.00354385158 | AN118: 0.001727817034 | AO118: 0.001379767796 | AP118: 0.5010186663
B119: 2015 | C119: =C97/$U75 -> 0.0500984043 | D119: 0.04632092326 | E119: 0.04026087496 | F119: 0.04581284083 | G119: 0.0512416059 | H119: 0.04889811516 | I119: 0.04046962651 | J119: 0.03430333282 | K119: 0.0308965824 | L119: 0.02718602048 | M119: 0.02630137295 | N119: 0.02052644006 | O119: 0.01382153774 | P119: 0.007389147079 | Q119: 0.004985828845 | R119: 0.004941764089 | S119: 0.002526712445 | T119: 0.002698523089 | U119: 0.4986796529 | W119: 2015 | X119: =X97/$U75 -> 0.05394225647 | Y119: 0.04908020865 | Z119: 0.04242236891 | AA119: 0.04796360064 | AB119: 0.053113117 | AC119: 0.04992043684 | AD119: 0.04074623197 | AE119: 0.03423538219 | AF119: 0.03049300468 | AG119: 0.0255983354 | AH119: 0.02459748199 | AI119: 0.01916004581 | AJ119: 0.01242071688 | AK119: 0.006409439593 | AL119: 0.004364796225 | AM119: 0.003765006233 | AN119: 0.001553161775 | AO119: 0.001534755794 | AP119: 0.5013203471
B120: 2016 | C120: =C98/$U76 -> 0.05040767267 | D120: 0.04717850631 | E120: 0.03965744525 | F120: 0.04288341291 | G120: 0.05034642233 | H120: 0.04851005209 | I120: 0.04174781123 | J120: 0.03448549646 | K120: 0.03084905014 | L120: 0.02708592264 | M120: 0.02612035877 | N120: 0.02158605965 | O120: 0.01426616829 | P120: 0.00857986228 | Q120: 0.004478686083 | R120: 0.005043969134 | S120: 0.002542807784 | T120: 0.00260732017 | U120: 0.4983770242 | W120: 2016 | X120: =X98/$U76 -> 0.05444449484 | Y120: 0.05007890337 | Z120: 0.04186438958 | AA120: 0.04496453117 | AB120: 0.05223295831 | AC120: 0.0498305766 | AD120: 0.04194739742 | AE120: 0.03449059538 | AF120: 0.03069893295 | AG120: 0.02560638159 | AH120: 0.0242628011 | AI120: 0.0200742149 | AJ120: 0.01288024462 | AK120: 0.007400903971 | AL120: 0.003936490676 | AM120: 0.003839199537 | AN120: 0.001588803563 | AO120: 0.001481156239 | AP120: 0.5016229758
B121: 2017 | C121: =C99/$U77 -> 0.05087937244 | D121: 0.04741111609 | E121: 0.03965363139 | F121: 0.04042189554 | G121: 0.04838516805 | H121: 0.04840244675 | I121: 0.0429606821 | J121: 0.03468636178 | K121: 0.03085821023 | L121: 0.02729680453 | M121: 0.0257413475 | N121: 0.02244746597 | O121: 0.01506447774 | P121: 0.009346689679 | Q121: 0.004336020935 | R121: 0.004922874244 | S121: 0.002677669995 | T121: 0.002617210094 | U121: 0.4981094451 | W121: 2017 | X121: =X99/$U77 -> 0.05500714607 | Y121: 0.05048407926 | Z121: 0.04191184915 | AA121: 0.04234518662 | AB121: 0.05048622742 | AC121: 0.04972658707 | AD121: 0.04329862867 | AE121: 0.03475644171 | AF121: 0.03081428185 | AG121: 0.02602951271 | AH121: 0.02374224805 | AI121: 0.02086707156 | AJ121: 0.01359525857 | AK121: 0.008065201302 | AL121: 0.003767504846 | AM121: 0.003768812423 | AN121: 0.001764513793 | AO121: 0.001460003861 | AP121: 0.5018905549
B122: 2018 | C122: =C100/$U78 -> 0.05095377176 | D122: 0.04705187242 | E122: 0.04020940905 | F122: 0.03875540242 | G122: 0.04637663497 | H122: 0.04797471634 | I122: 0.04405949659 | J122: 0.03533493627 | K122: 0.0306798062 | L122: 0.02768231656 | M122: 0.02517673271 | N122: 0.02308007004 | O122: 0.0157400665 | P122: 0.01015263043 | Q122: 0.004552578249 | R122: 0.00470880978 | S122: 0.00271298412 | T122: 0.002667725358 | U122: 0.4978699598 | W122: 2018 | X122: =X100/$U78 -> 0.05514535167 | Y122: 0.05027268557 | Z122: 0.04249852863 | AA122: 0.04064751264 | AB122: 0.0484876898 | AC122: 0.04948880259 | AD122: 0.04452182189 | AE122: 0.03541240898 | AF122: 0.03048786986 | AG122: 0.0267183478 | AH122: 0.02326606579 | AI122: 0.02136409541 | AJ122: 0.01423048162 | AK122: 0.008755335053 | AL122: 0.00386144817 | AM122: 0.003682924096 | AN122: 0.00183585829 | AO122: 0.001452812382 | AP122: 0.5021300402
B123: 2019 | C123: =C101/$U79 -> 0.0511592385 | D123: 0.04646964364 | E123: 0.04161815094 | F123: 0.03748398237 | G123: 0.04385137297 | H123: 0.04734339285 | I123: 0.04458096573 | J123: 0.03598444265 | K123: 0.03072820533 | L123: 0.02766664006 | M123: 0.02492475088 | N123: 0.02327251479 | O123: 0.01684194675 | P123: 0.01083124862 | Q123: 0.005106157056 | R123: 0.004158495346 | S123: 0.00279953372 | T123: 0.002689266371 | U123: 0.4975099486 | W123: 2019 | X123: =X101/$U79 -> 0.05564183024 | Y123: 0.04982806172 | Z123: 0.04395430319 | AA123: 0.03940985709 | AB123: 0.04591911879 | AC123: 0.04897460988 | AD123: 0.04524882442 | AE123: 0.03604431238 | AF123: 0.03045146947 | AG123: 0.02706812321 | AH123: 0.023006093 | AI123: 0.02143041559 | AJ123: 0.01525595526 | AK123: 0.009337362096 | AL123: 0.00423454283 | AM123: 0.003336617197 | AN123: 0.00191886837 | AO123: 0.001429686689 | AP123: 0.5024900514
B124: 2020 | C124: =C102/$U80 -> 0.05154173505 | D124: 0.04629779667 | E124: 0.042487029 | F124: 0.03676233899 | G124: 0.04163491887 | H124: 0.04653578346 | I124: 0.04437933226 | J124: 0.03668677545 | K124: 0.03104449159 | L124: 0.02787946477 | M124: 0.02438605216 | N124: 0.0233156867 | O124: 0.01777946313 | P124: 0.01151323444 | Q124: 0.005814086211 | R124: 0.003522582142 | S124: 0.003010448945 | T124: 0.002675662955 | U124: 0.4972668828 | W124: 2020 | X124: =X102/$U80 -> 0.0560216028 | Y124: 0.04979112079 | Z124: 0.04497428451 | AA124: 0.03871203751 | AB124: 0.04362381487 | AC124: 0.04821431447 | AD124: 0.04520796519 | AE124: 0.03681778764 | AF124: 0.03082514497 | AG124: 0.02731064418 | AH124: 0.02268604955 | AI124: 0.02138684042 | AJ124: 0.01610125655 | AK124: 0.009907966444 | AL124: 0.004789170949 | AM124: 0.002854897777 | AN124: 0.002075962177 | AO124: 0.001432256404 | AP124: 0.5027331172
B125: 2025 | C125: =C103/$U81 -> 0.05124514893 | D125: 0.04846460166 | E125: 0.03539870109 | F125: 0.02802763133 | G125: 0.04021719565 | H125: 0.04953849717 | I125: 0.04765229944 | J125: 0.03692550063 | K125: 0.03145800816 | L125: 0.02680325747 | M125: 0.02660089878 | N125: 0.02729443136 | O125: 0.02083686981 | P125: 0.01256414135 | Q125: 0.003773229392 | R125: 0.004200053541 | S125: 0.002720173491 | T125: 0.002817163743 | U125: 0.496537803 | W125: 2025 | X125: =X103/$U81 -> 0.05628091605 | Y125: 0.05219101943 | Z125: 0.03765016372 | AA125: 0.02984910443 | AB125: 0.04273903423 | AC125: 0.05171643628 | AD125: 0.04845332214 | AE125: 0.03710241893 | AF125: 0.03211569103 | AG125: 0.02629970962 | AH125: 0.02427520676 | AI125: 0.02516547483 | AJ125: 0.01881159164 | AK125: 0.01055319978 | AL125: 0.003245155666 | AM125: 0.003516023516 | AN125: 0.001826302877 | AO125: 0.001671426077 | AP125: 0.503462197
B126: 2030 | C126: =C104/$U82 -> 0.05141231279 | D126: 0.04956687447 | E126: 0.03249381999 | F126: 0.02117293045 | G126: 0.03663565127 | H126: 0.05039247048 | I126: 0.05021099081 | J126: 0.03780648952 | K126: 0.03180459158 | L126: 0.02637732776 | M126: 0.02721387615 | N126: 0.03004532957 | O126: 0.02365289572 | P126: 0.01424318498 | Q126: 0.003031492535 | R126: 0.004076100215 | S126: 0.002702886288 | T126: 0.002908375037 | U126: 0.4957475996 | W126: 2030 | X126: =X104/$U82 -> 0.05690966466 | Y126: 0.05362113086 | Z126: 0.03473066112 | AA126: 0.02289441851 | AB126: 0.03944088915 | AC126: 0.05300247414 | AD126: 0.05118514875 | AE126: 0.03805090783 | AF126: 0.03295506133 | AG126: 0.02619218869 | AH126: 0.02461254011 | AI126: 0.02765945337 | AJ126: 0.02134947756 | AK126: 0.01184020948 | AL126: 0.002642747192 | AM126: 0.003545634508 | AN126: 0.001829504593 | AO126: 0.00179028853 | AP126: 0.5042524004
B127: 2035 | C127: =C105/$U83 -> 0.05155731469 | D127: 0.05052301211 | E127: 0.02997405708 | F127: 0.01522699998 | G127: 0.03352893454 | H127: 0.05113322723 | I127: 0.05243046051 | J127: 0.03857068022 | K127: 0.03210522627 | L127: 0.0260078662 | M127: 0.0277455873 | N127: 0.03243152407 | O127: 0.02609558353 | P127: 0.01569962734 | Q127: 0.002388092355 | R127: 0.003968580154 | S127: 0.002687890957 | T127: 0.002987493881 | U127: 0.4950621584 | W127: 2035 | X127: =X105/$U83 -> 0.05745505615 | Y127: 0.05486164351 | Z127: 0.03219821517 | AA127: 0.01686175864 | AB127: 0.03657999972 | AC127: 0.05411801394 | AD127: 0.05355480008 | AE127: 0.03887364965 | AF127: 0.03368315107 | AG127: 0.02609892248 | AH127: 0.02490515108 | AI127: 0.02982278963 | AJ127: 0.02355090013 | AK127: 0.01295659228 | AL127: 0.002120203764 | AM127: 0.003571319787 | AN127: 0.001832281838 | AO127: 0.001893392648 | AP127: 0.5049378416
B128: 2040 | C128: =C106/$U84 -> 0.05168428787 | D128: 0.051360269 | E128: 0.02776758724 | F128: 0.01002035287 | G128: 0.0308084894 | H128: 0.05178188248 | I128: 0.05437397391 | J128: 0.03923985577 | K128: 0.03236848174 | L128: 0.0256843414 | M128: 0.02821118849 | N128: 0.03452103264 | O128: 0.02823456136 | P128: 0.01697498389 | Q128: 0.001824688913 | R128: 0.003874428529 | S128: 0.002674760061 | T128: 0.003056775535 | U128: 0.4944619411 | W128: 2040 | X128: =X106/$U84 -> 0.05793263675 | Y128: 0.05594791783 | Z128: 0.02998063923 | AA128: 0.01157916557 | AB128: 0.0340748171 | AC128: 0.05509485384 | AD128: 0.05562982237 | AE128: 0.0395940964 | AF128: 0.03432071426 | AG128: 0.02601725247 | AH128: 0.02516138046 | AI128: 0.0317171489 | AJ128: 0.02547861027 | AK128: 0.01393417036 | AL128: 0.00166263043 | AM128: 0.003593811503 | AN128: 0.001834713776 | AO128: 0.001983677382 | AP128: 0.5055380589
B129: 2045 | C129: =C107/$U85 -> 0.05179639793 | D129: 0.05209951892 | E129: 0.02581940064 | F129: 0.005423181428 | G129: 0.02840649202 | H129: 0.05235460794 | I129: 0.05608998502 | J129: 0.03983069949 | K129: 0.03260092126 | L129: 0.02539868752 | M129: 0.0286222877 | N129: 0.03636594913 | O129: 0.03012315638 | P129: 0.01810105075 | Q129: 0.001327235916 | R129: 0.003791298032 | S129: 0.002663166231 | T129: 0.003117947272 | U129: 0.4939319836 | W129: 2045 | X129: =X107/$U85 -> 0.05835431309 | Y129: 0.0569070359 | Z129: 0.02802264657 | AA129: 0.006914938191 | AB129: 0.0318628842 | AC129: 0.05595734757 | AD129: 0.0574619483 | AE129: 0.04023020966 | AF129: 0.03488364607 | AG129: 0.02594514252 | AH129: 0.02538761633 | AI129: 0.03338975972 | AJ129: 0.02718066801 | AK129: 0.01479731586 | AL129: 0.001258619361 | AM129: 0.003613670401 | AN129: 0.001836861038 | AO129: 0.002063393636 | AP129: 0.5060680164
B130: 2050 | C130: =C108/$U86 -> 0.05189611031 | D130: 0.052757019 | E130: 0.02408665395 | F130: 0.001334387492 | G130: 0.02627011915 | H130: 0.05286399865 | I130: 0.0576162313 | J130: 0.04035620485 | K130: 0.03280765649 | L130: 0.02514462262 | M130: 0.02898792556 | N130: 0.03800684581 | O130: 0.0318029014 | P130: 0.01910259167 | Q130: 0.0008847936831 | R130: 0.003717360509 | S130: 0.002652854503 | T130: 0.003172354341 | U130: 0.4934606313 | W130: 2050 | X130: =X108/$U86 -> 0.05872935841 | Y130: 0.05776009004 | Z130: 0.02628117824 | AA130: 0.002766503691 | AB130: 0.02989555757 | AC130: 0.05672446256 | AD130: 0.05909146887 | AE130: 0.04079597843 | AF130: 0.03538432615 | AG130: 0.02588100683 | AH130: 0.02558883395 | AI130: 0.03487740514 | AJ130: 0.02869450396 | AK130: 0.01556501055 | AL130: 0.0008992857944 | AM130: 0.003631333206 | AN130: 0.001838770846 | AO130: 0.00213429448 | AP130: 0.5065393687

Sheet Transport Indicators
B2: Transport Indicators 2015
B3: Control and modify input
B4: Return to Data Explorer
B6: Average waiting time (min)
B7: Walk wait | C7: 0
B8: Bike wait | C8: 0
B9: Motorcycle wait | C9: 0
B10: Car wait | C10: 0
B11: Taxi wait | C11: 5
B12: Rail wait | C12: 20
B13: Metro wait | C13: 7
B14: Bus wait | C14: 15
B15: Minubus wait | C15: 10
B16: Ride sharing wait | C16: 3
B17: Public transport fare (USD)
B18: Ticket bus/metro | C18: =1000*'Socio-economic Input'!F21 -> 0.39
B19: Ticket minubus | C19: =2250*'Socio-economic Input'!F21 -> 0.8775
B20: Monthly subscription bus/metro | C20: =118600*'Socio-economic Input'!F21/30/5 -> 0.30836
B21: Official taxi fare (USD)
B22: Fixed start cost | C22: =3000*'Socio-economic Input'!F21 -> 1.17
B23: Variable per kilometre cost (ride) | C23: =850*'Socio-economic Input'!F21 -> 0.3315
B24: Variable per hour cost (idle) | C24: =500*60*'Socio-economic Input'!F21 -> 11.7
B25: Unofficial taxi fare (USD)
B26: Fixed start cost | C26: =C22*0.5 -> 0.585
B27: Variable per kilometre cost (ride) | C27: =C23*0.5 -> 0.16575
B28: Variable per hour cost (idle) | C28: =C24*0.5 -> 5.85
B29: Parking cost (USD)
B30: Parking cost (per hour) | C30: 0
B31: Vehicle fleets
B32: Car ownership per 1000 inhabitants | C32: 197
B33: Motorcycle ownership per 1000 inhabitants | C33: 15
B34: Taxi fleet per 1000 inhabitants | C34: 3
B35: Ride sharing fleet per 1000 inhabitants | C35: 6
B36: Share of legally operated vehicles in total ride sharing fleet (%) | C36: 0.3
B37: Share of trips by distance "as the crow flies" category
B38: Trips under 1 km | C38: 0.17
B39: Trips between 1 and 2.5 km | C39: 0.21
B40: Trips between 2.5 and 5 km | C40: 0.25
B41: Trips between 5 and 10 km | C41: 0.19
B42: Trips between 10 and 20 km | C42: 0.11
B43: Trips over 20 km | C43: 0.07
B44: Road length (km)
B45: Road type 1 (trunk) | C45: 462
B46: Road type 2 (primary) | C46: 445
B47: Road type 3 (secondary) | C47: 464
B48: Road type 4 (tertiary) | C48: 1481
B49: Road type 5 (residential) | C49: 3041
B50: Dedicated bike network | C50: 100
B51: Speed (km/h)
B52: Walk speed | C52: 4.5
B53: Bike speed | C53: 11
B54: Rail speed | C54: 40
B55: Metro speed | C55: 35
B56: Bus speed | C56: 20
B57: Minubus speed | C57: =C56*1.2 -> 24
B58: Access time (min)
B59: Walk access | C59: 0
B60: Bike access | C60: 2
B61: Motorcycle access | C61: 6
B62: Car access | C62: 6
B63: Taxi access | C63: 2
B64: Ride sharing access | C64: 2
B65: Metro access | C65: 15
B66: Suburban rail access | C66: 25
B67: Conventional bus access | C67: 10
B68: Minibus access | C68: 10
B69: Average load factor
B70: Car load factor | C70: 1.5
B71: Vehicle Technology
B72: Car fleet - Gasoline | C72: 0.67
B73: Car fleet - Gasoline-hybrid | C73: 0
B74: Car fleet - Diesel | C74: 0.01
B75: Car fleet - Diesel-hybrid | C75: 0
B76: Car fleet - LPG/CNG | C76: 0.32
B77: Car fleet - Hydrogen | C77: 0
B78: Car fleet - Hydrogen-hybrid | C78: 0
B79: Car fleet - Electric | C79: 0
B80: Bus fleet - Gasoline | C80: 0
B81: Bus fleet - Gasoline-hybrid | C81: 0
B82: Bus fleet - Diesel | C82: 0.8
B83: Bus fleet - Diesel-hybrid | C83: 0
B84: Bus fleet - LPG/CNG | C84: 0.2
B85: Bus fleet - Hydrogen | C85: 0
B86: Bus fleet - Hydrogen-hybrid | C86: 0
B87: Bus fleet - Electric | C87: 0

Sheet Vehicle Technology
B2: Vehicle Performance and Technology Inputs
B3: Modify table "Aggregated model input" if better data are available | H3: Table Navigation | K3: Link
B4: Return to Data Explorer | H4: Scenario-specific extraction | K4: Go to
H5: IEA NPS scenario (original) | K5: Go to
H6: IEA SDS scenario (original) | K6: Go to
B7: Aggregated model input
B9: Year | C9: Mode ID | D9: Mode | E9: Load Factor | F9: Share of Electric VKM, % | G9: Average TTW per VKM emissions, g/VKM | H9: Average TTW per PKM emissions, g/PKM | I9: Average cost per VKM, USD/VKM
B10: 2015 | C10: M_3 | D10: Motorcycle | E10: =SUMPRODUCT(P111:P112,R111:R112)*(1+INDEX('Scenario Parameters'!$B$9:$L$56,MATCH("CPI",'Scenario Parameters'!$B$9:$B$56,0),MATCH(B10,'Scenario Parameters'!$B$9:$L$9,0))) -> 1.1 | F10: =SUMIFS($T$111:$T$586,$B$111:$B$586,B10,$C$111:$C$586,"2Ws") -> 0 | G10: =SUMPRODUCT(R111:R112,X111:X112) -> 42.96834927 | H10: =G10/E10 -> 39.0621357 | I10: =SUMPRODUCT(L111:L112,R111:R112) -> 0.01082518426
B11: 2020 | C11: M_3 | D11: Motorcycle | E11: =SUMPRODUCT(P113:P114,R113:R114)*(1+INDEX('Scenario Parameters'!$B$9:$L$56,MATCH("CPI",'Scenario Parameters'!$B$9:$B$56,0),MATCH(B11,'Scenario Parameters'!$B$9:$L$9,0))) -> 1.1 | F11: 0 | G11: =SUMPRODUCT(R113:R114,X113:X114) -> 41.94808002 | H11: =G11/E11 -> 38.1346182 | I11: =SUMPRODUCT(L113:L114,R113:R114) -> 0.01243962747
B12: 2025 | C12: M_3 | D12: Motorcycle | E12: =SUMPRODUCT(P115:P116,R115:R116)*(1+INDEX('Scenario Parameters'!$B$9:$L$56,MATCH("CPI",'Scenario Parameters'!$B$9:$B$56,0),MATCH(B12,'Scenario Parameters'!$B$9:$L$9,0))) -> 1.1 | F12: 0 | G12: =SUMPRODUCT(R115:R116,X115:X116) -> 41.47666677 | H12: 37.7060607 | I12: =SUMPRODUCT(L115:L116,R115:R116) -> 0.01376653064
B13: 2030 | C13: M_3 | D13: Motorcycle | E13: =SUMPRODUCT(P117:P118,R117:R118)*(1+INDEX('Scenario Parameters'!$B$9:$L$56,MATCH("CPI",'Scenario Parameters'!$B$9:$B$56,0),MATCH(B13,'Scenario Parameters'!$B$9:$L$9,0))) -> 1.1 | F13: 0 | G13: =SUMPRODUCT(R117:R118,X117:X118) -> 40.85291133 | H13: 37.1390103 | I13: =SUMPRODUCT(L117:L118,R117:R118) -> 0.01449689434
B14: 2035 | C14: M_3 | D14: Motorcycle | E14: =SUMPRODUCT(P119:P120,R119:R120)*(1+INDEX('Scenario Parameters'!$B$9:$L$56,MATCH("CPI",'Scenario Parameters'!$B$9:$B$56,0),MATCH(B14,'Scenario Parameters'!$B$9:$L$9,0))) -> 1.1 | F14: 0.01 | G14: =SUMPRODUCT(R119:R120,X119:X120) -> 38.66690819 | H14: 35.15173472 | I14: =SUMPRODUCT(L119:L120,R119:R120) -> 0.01486582846
B15: 2040 | C15: M_3 | D15: Motorcycle | E15: =SUMPRODUCT(P121:P122,R121:R122)*(1+INDEX('Scenario Parameters'!$B$9:$L$56,MATCH("CPI",'Scenario Parameters'!$B$9:$B$56,0),MATCH(B15,'Scenario Parameters'!$B$9:$L$9,0))) -> 1.1 | F15: 0.01 | G15: =SUMPRODUCT(R121:R122,X121:X122) -> 37.62494871 | H15: 34.20449882 | I15: =SUMPRODUCT(L121:L122,R121:R122) -> 0.01525122717
B16: 2045 | C16: M_3 | D16: Motorcycle | E16: =SUMPRODUCT(P123:P124,R123:R124)*(1+INDEX('Scenario Parameters'!$B$9:$L$56,MATCH("CPI",'Scenario Parameters'!$B$9:$B$56,0),MATCH(B16,'Scenario Parameters'!$B$9:$L$9,0))) -> 1.1 | F16: 0.01 | G16: =SUMPRODUCT(R123:R124,X123:X124) -> 36.48773796 | H16: 33.17067087 | I16: =SUMPRODUCT(L123:L124,R123:R124) -> 0.01507088763
B17: 2050 | C17: M_3 | D17: Motorcycle | E17: =SUMPRODUCT(P125:P126,R125:R126)*(1+INDEX('Scenario Parameters'!$B$9:$L$56,MATCH("CPI",'Scenario Parameters'!$B$9:$B$56,0),MATCH(B17,'Scenario Parameters'!$B$9:$L$9,0))) -> 1.1 | F17: 0.02 | G17: =SUMPRODUCT(R125:R126,X125:X126) -> 34.92286011 | H17: 31.74805465 | I17: =SUMPRODUCT(L125:L126,R125:R126) -> 0.01504207448
B18: 2015 | C18: M_4 | D18: Car | E18: =SUMPRODUCT(P143:P152,R143:R152)*(1+INDEX('Scenario Parameters'!$B$9:$L$56,MATCH("CPI",'Scenario Parameters'!$B$9:$B$56,0),MATCH(B18,'Scenario Parameters'!$B$9:$L$9,0))) -> 1.5 | F18: =SUMIFS($T$111:$T$586,$B$111:$B$586,B18,$C$111:$C$586,"Pcall urban") -> 0 | G18: =SUMPRODUCT(R143:R152,X143:X152) -> 198.8809471 | H18: 132.5872981 | I18: =SUMPRODUCT(L143:L152,R143:R152) -> 0.05473489224
B19: 2020 | C19: M_4 | D19: Car | E19: =SUMPRODUCT(P153:P164,R153:R164)*(1+INDEX('Scenario Parameters'!$B$9:$L$56,MATCH("CPI",'Scenario Parameters'!$B$9:$B$56,0),MATCH(B19,'Scenario Parameters'!$B$9:$L$9,0))) -> 1.5 | F19: 0 | G19: =SUMPRODUCT(R153:R164,X153:X164) -> 195.9933287 | H19: 130.6622191 | I19: =SUMPRODUCT(L153:L164,R153:R164) -> 0.06140651256
B20: 2025 | C20: M_4 | D20: Car | E20: =SUMPRODUCT(P165:P178,R165:R178)*(1+INDEX('Scenario Parameters'!$B$9:$L$56,MATCH("CPI",'Scenario Parameters'!$B$9:$B$56,0),MATCH(B20,'Scenario Parameters'!$B$9:$L$9,0))) -> 1.5 | F20: 0 | G20: =SUMPRODUCT(R165:R178,X165:X178) -> 186.3521082 | H20: 124.2347388 | I20: =SUMPRODUCT(L165:L178,R165:R178) -> 0.06403603187
B21: 2030 | C21: M_4 | D21: Car | E21: =SUMPRODUCT(P179:P192,R179:R192)*(1+INDEX('Scenario Parameters'!$B$9:$L$56,MATCH("CPI",'Scenario Parameters'!$B$9:$B$56,0),MATCH(B21,'Scenario Parameters'!$B$9:$L$9,0))) -> 1.5 | F21: 0 | G21: =SUMPRODUCT(R179:R192,X179:X192) -> 169.7021385 | H21: 113.134759 | I21: =SUMPRODUCT(L179:L192,R179:R192) -> 0.06167292341
B22: 2035 | C22: M_4 | D22: Car | E22: =SUMPRODUCT(P193:P206,R193:R206)*(1+INDEX('Scenario Parameters'!$B$9:$L$56,MATCH("CPI",'Scenario Parameters'!$B$9:$B$56,0),MATCH(B22,'Scenario Parameters'!$B$9:$L$9,0))) -> 1.5 | F22: 0.0099 | G22: =SUMPRODUCT(R193:R206,X193:X206) -> 159.6729038 | H22: 106.4486025 | I22: =SUMPRODUCT(L193:L206,R193:R206) -> 0.0621721917
B23: 2040 | C23: M_4 | D23: Car | E23: =SUMPRODUCT(P207:P220,R207:R220)*(1+INDEX('Scenario Parameters'!$B$9:$L$56,MATCH("CPI",'Scenario Parameters'!$B$9:$B$56,0),MATCH(B23,'Scenario Parameters'!$B$9:$L$9,0))) -> 1.5 | F23: 0.0099 | G23: =SUMPRODUCT(R207:R220,X207:X220) -> 154.2437149 | H23: 102.8291433 | I23: =SUMPRODUCT(L207:L220,R207:R220) -> 0.06282213846
B24: 2045 | C24: M_4 | D24: Car | E24: =SUMPRODUCT(P221:P234,R221:R234)*(1+INDEX('Scenario Parameters'!$B$9:$L$56,MATCH("CPI",'Scenario Parameters'!$B$9:$B$56,0),MATCH(B24,'Scenario Parameters'!$B$9:$L$9,0))) -> 1.5 | F24: 0.01629999968 | G24: =SUMPRODUCT(R221:R234,X221:X234) -> 147.6271594 | H24: 98.4181063 | I24: =SUMPRODUCT(L221:L234,R221:R234) -> 0.06159630479
B25: 2050 | C25: M_4 | D25: Car | E25: =SUMPRODUCT(P235:P248,R235:R248)*(1+INDEX('Scenario Parameters'!$B$9:$L$56,MATCH("CPI",'Scenario Parameters'!$B$9:$B$56,0),MATCH(B25,'Scenario Parameters'!$B$9:$L$9,0))) -> 1.5 | F25: 0.02940000032 | G25: =SUMPRODUCT(R235:R248,X235:X248) -> 140.8867616 | H25: 93.92450771 | I25: =SUMPRODUCT(L235:L248,R235:R248) -> 0.06132458879
B26: 2015 | C26: M_5 | D26: Taxi | E26: =SUMPRODUCT(P249:P258,R249:R258) -> 2.097111 | F26: =SUMIFS($T$111:$T$586,$B$111:$B$586,B26,$C$111:$C$586,"PLDVall urban") -> 0 | G26: =SUMPRODUCT(R249:R258,X249:X258) -> 198.8809471 | H26: 94.83567972 | I26: =SUMPRODUCT(L249:L258,R249:R258) -> 0.05473489224
B27: 2020 | C27: M_5 | D27: Taxi | E27: =SUMPRODUCT(P259:P270,R259:R270) -> 1.993698488 | F27: 0 | G27: =SUMPRODUCT(R259:R270,X259:X270) -> 195.9933287 | H27: 98.30640383 | I27: =SUMPRODUCT(L259:L270,R259:R270) -> 0.06140651256
B28: 2025 | C28: M_5 | D28: Taxi | E28: =SUMPRODUCT(P271:P284,R271:R284) -> 2.097111 | F28: 0 | G28: =SUMPRODUCT(R271:R284,X271:X284) -> 186.3521082 | H28: 88.86134696 | I28: =SUMPRODUCT(L271:L284,R271:R284) -> 0.06403603187
B29: 2030 | C29: M_5 | D29: Taxi | E29: =SUMPRODUCT(P285:P298,R285:R298) -> 2.119857 | F29: 0 | G29: =SUMPRODUCT(R285:R298,X285:X298) -> 169.7021385 | H29: 80.05357838 | I29: =SUMPRODUCT(L285:L298,R285:R298) -> 0.06167292341
B30: 2035 | C30: M_5 | D30: Taxi | E30: =SUMPRODUCT(P299:P312,R299:R312) -> 2.145474 | F30: 0.0099 | G30: =SUMPRODUCT(R299:R312,X299:X312) -> 159.6729038 | H30: 74.42313625 | I30: =SUMPRODUCT(L299:L312,R299:R312) -> 0.0621721917
B31: 2040 | C31: M_5 | D31: Taxi | E31: =SUMPRODUCT(P313:P326,R313:R326) -> 2.173684 | F31: 0.0099 | G31: =SUMPRODUCT(R313:R326,X313:X326) -> 154.2437149 | H31: 70.95958516 | I31: =SUMPRODUCT(L313:L326,R313:R326) -> 0.06282213846
B32: 2045 | C32: M_5 | D32: Taxi | E32: =SUMPRODUCT(P327:P340,R327:R340) -> 2.202008 | F32: 0.01629999968 | G32: =SUMPRODUCT(R327:R340,X327:X340) -> 147.6271594 | H32: 67.04206317 | I32: =SUMPRODUCT(L327:L340,R327:R340) -> 0.06159630479
B33: 2050 | C33: M_5 | D33: Taxi | E33: =SUMPRODUCT(P341:P354,R341:R354) -> 2.21259 | F33: 0.02940000032 | G33: =SUMPRODUCT(R341:R354,X341:X354) -> 140.8867616 | H33: 63.67504218 | I33: =SUMPRODUCT(L341:L354,R341:R354) -> 0.06132458879
B34: 2015 | C34: M_6 | D34: PT-Rail | E34: =P579 -> 205.0812 | F34: =SUMIFS($T$111:$T$586,$B$111:$B$586,B34,$C$111:$C$586,"UrbanRail") -> 1 | G34: =X579 -> 0 | H34: 0 | I34: =L579 -> 2.868215675
B35: 2020 | C35: M_6 | D35: PT-Rail | E35: 205.0812 | F35: 1 | G35: 0 | H35: 0 | I35: 1.118183509
B36: 2025 | C36: M_6 | D36: PT-Rail | E36: 205.0812 | F36: 1 | G36: 0 | H36: 0 | I36: 0.9224857743
B37: 2030 | C37: M_6 | D37: PT-Rail | E37: 205.0812 | F37: 1 | G37: 0 | H37: 0 | I37: 0.7865469092
B38: 2035 | C38: M_6 | D38: PT-Rail | E38: 205.0812 | F38: 1 | G38: 0 | H38: 0 | I38: 0.7081979578
B39: 2040 | C39: M_6 | D39: PT-Rail | E39: 205.0812 | F39: 1 | G39: 0 | H39: 0 | I39: 0.5888818666
B40: 2045 | C40: M_6 | D40: PT-Rail | E40: 205.0812 | F40: 1 | G40: 0 | H40: 0 | I40: 0.5271383598
B41: 2050 | C41: M_6 | D41: PT-Rail | E41: 205.0812 | F41: 1 | G41: 0 | H41: 0 | I41: 0.4369820471
B42: 2015 | C42: M_7 | D42: PT-Metro | E42: =P135 -> 205.0812 | F42: =SUMIFS($T$111:$T$586,$B$111:$B$586,B42,$C$111:$C$586,"MetroRail") -> 1 | G42: =X135 -> 0 | H42: =G42/E42 -> 0 | I42: =L135 -> 2.868215675
B43: 2020 | C43: M_7 | D43: PT-Metro | E43: 205.0812 | F43: 1 | G43: 0 | H43: 0 | I43: 1.118183509
B44: 2025 | C44: M_7 | D44: PT-Metro | E44: 205.0812 | F44: 1 | G44: 0 | H44: 0 | I44: 0.9224857743
B45: 2030 | C45: M_7 | D45: PT-Metro | E45: 205.0812 | F45: 1 | G45: 0 | H45: 0 | I45: 0.7865469092
B46: 2035 | C46: M_7 | D46: PT-Metro | E46: 205.0812 | F46: 1 | G46: 0 | H46: 0 | I46: 0.7081979578
B47: 2040 | C47: M_7 | D47: PT-Metro | E47: 205.0812 | F47: 1 | G47: 0 | H47: 0 | I47: 0.5888818666
B48: 2045 | C48: M_7 | D48: PT-Metro | E48: 205.0812 | F48: 1 | G48: 0 | H48: 0 | I48: 0.5271383598
B49: 2050 | C49: M_7 | D49: PT-Metro | E49: 205.0812 | F49: 1 | G49: 0 | H49: 0 | I49: 0.4369820471
B50: 2015 | C50: M_8 | D50: PT-Bus | E50: =SUMPRODUCT(P363:P372,R363:R372) -> 23.57248 | F50: =SUMIFS($T$111:$T$586,$B$111:$B$586,B50,$C$111:$C$586,"Urban bus") -> 0 | G50: =SUMPRODUCT(R363:R372,X363:X372) -> 797.9500266 | H50: 33.85091541 | I50: =SUMPRODUCT(L363:L372,R363:R372) -> 0.2029168067
B51: 2020 | C51: M_8 | D51: PT-Bus | E51: =SUMPRODUCT(P373:P382,R373:R382) -> 23.24957 | F51: 0 | G51: =SUMPRODUCT(R373:R382,X373:X382) -> 697.9467251 | H51: 30.01976919 | I51: =SUMPRODUCT(L373:L382,R373:R382) -> 0.2055655794
B52: 2025 | C52: M_8 | D52: PT-Bus | E52: =SUMPRODUCT(P383:P396,R383:R396) -> 23.89539 | F52: 0 | G52: =SUMPRODUCT(R383:R396,X383:X396) -> 795.2882342 | H52: 33.28207802 | I52: =SUMPRODUCT(L383:L396,R383:R396) -> 0.2642359596
B53: 2030 | C53: M_8 | D53: PT-Bus | E53: =SUMPRODUCT(P397:P410,R397:R410) -> 24.2183 | F53: 0 | G53: =SUMPRODUCT(R397:R410,X397:X410) -> 775.4059583 | H53: 32.01735705 | I53: =SUMPRODUCT(L397:L410,R397:R410) -> 0.2773484121
B54: 2035 | C54: M_8 | D54: PT-Bus | E54: =SUMPRODUCT(P411:P424,R411:R424) -> 24.54121 | F54: 0.002 | G54: =SUMPRODUCT(R411:R424,X411:X424) -> 754.5743892 | H54: 30.74723655 | I54: =SUMPRODUCT(L411:L424,R411:R424) -> 0.2874566446
B55: 2040 | C55: M_8 | D55: PT-Bus | E55: =SUMPRODUCT(P425:P438,R425:R438) -> 24.86412 | F55: 0.002 | G55: =SUMPRODUCT(R425:R438,X425:X438) -> 737.1205617 | H55: 29.64595416 | I55: =SUMPRODUCT(L425:L438,R425:R438) -> 0.2935081306
B56: 2045 | C56: M_8 | D56: PT-Bus | E56: =SUMPRODUCT(P439:P452,R439:R452) -> 25.18703 | F56: 0.0059999998 | G56: =SUMPRODUCT(R439:R452,X439:X452) -> 709.0663675 | H56: 28.15204363 | I56: =SUMPRODUCT(L439:L452,R439:R452) -> 0.2912235534
B57: 2050 | C57: M_8 | D57: PT-Bus | E57: =SUMPRODUCT(P453:P466,R453:R466) -> 25.50994 | F57: 0.0100000002 | G57: =SUMPRODUCT(R453:R466,X453:X466) -> 681.9303634 | H57: 26.73194697 | I57: =SUMPRODUCT(L453:L466,R453:R466) -> 0.2923043238
B58: 2015 | C58: M_9 | D58: PT-BRT | E58: =E50*2 -> 47.14496 | F58: =SUMIFS($AE$111:$AE$586,$B$111:$B$586,B58,$C$111:$C$586,"Urban bus") -> 0 | G58: =SUMPRODUCT(AH363:AH372,X363:X372) -> 797.9500266 | H58: 16.92545771 | I58: =SUMPRODUCT(AH363:AH372,L363:L372) -> 0.2029168067
B59: 2020 | C59: M_9 | D59: PT-BRT | E59: 46.49914 | F59: 0 | G59: =SUMPRODUCT(AH373:AH382,X373:X382) -> 697.9467251 | H59: 15.00988459 | I59: =SUMPRODUCT(AH373:AH382,L373:L382) -> 0.2055655794
B60: 2025 | C60: M_9 | D60: PT-BRT | E60: 47.79078 | F60: 0 | G60: =SUMPRODUCT(AH383:AH396,X383:X396) -> 795.2882342 | H60: 16.64103901 | I60: =SUMPRODUCT(AH383:AH396,L383:L396) -> 0.2642359596
B61: 2030 | C61: M_9 | D61: PT-BRT | E61: 48.4366 | F61: 0 | G61: =SUMPRODUCT(AH397:AH410,X397:X410) -> 775.4059583 | H61: 16.00867853 | I61: =SUMPRODUCT(AH397:AH410,L397:L410) -> 0.2773484121
B62: 2035 | C62: M_9 | D62: PT-BRT | E62: 49.08242 | F62: 0.002 | G62: =SUMPRODUCT(AH411:AH424,X411:X424) -> 754.5743892 | H62: 15.37361828 | I62: =SUMPRODUCT(AH411:AH424,L411:L424) -> 0.2874566446
B63: 2040 | C63: M_9 | D63: PT-BRT | E63: 49.72824 | F63: 0.002 | G63: =SUMPRODUCT(AH425:AH438,X425:X438) -> 737.1205617 | H63: 14.82297708 | I63: =SUMPRODUCT(AH425:AH438,L425:L438) -> 0.2935081306
B64: 2045 | C64: M_9 | D64: PT-BRT | E64: 50.37406 | F64: 0.0059999998 | G64: =SUMPRODUCT(AH439:AH452,X439:X452) -> 709.0663675 | H64: 14.07602182 | I64: =SUMPRODUCT(AH439:AH452,L439:L452) -> 0.2912235534
B65: 2050 | C65: M_9 | D65: PT-BRT | E65: 51.01988 | F65: 0.0100000002 | G65: =SUMPRODUCT(AH453:AH466,X453:X466) -> 681.9303634 | H65: 13.36597349 | I65: =SUMPRODUCT(AH453:AH466,L453:L466) -> 0.2923043238
B66: 2015 | C66: M_10 | D66: PT-Minibus | E66: =SUMPRODUCT(P467:P480,R467:R480) -> 6.321404 | F66: =SUMIFS($T$111:$T$586,$B$111:$B$586,B66,$C$111:$C$586,"Urban minibus") -> 0 | G66: =SUMPRODUCT(R467:R480,X467:X480) -> 526.2265689 | H66: 83.24520452 | I66: =SUMPRODUCT(L467:L480,R467:R480) -> 0.1345034488
B67: 2020 | C67: M_10 | D67: PT-Minibus | E67: =SUMPRODUCT(P481:P494,R481:R494) -> 6.23481 | F67: 0 | G67: =SUMPRODUCT(R481:R494,X481:X494) -> 405.4845472 | H67: 65.03559005 | I67: =SUMPRODUCT(L481:L494,R481:R494) -> 0.1237119896
B68: 2025 | C68: M_10 | D68: PT-Minibus | E68: =SUMPRODUCT(P495:P508,R495:R508) -> 6.407999 | F68: 0 | G68: =SUMPRODUCT(R495:R508,X495:X508) -> 563.9361719 | H68: 88.00503431 | I68: =SUMPRODUCT(L495:L508,R495:R508) -> 0.1852359074
B69: 2030 | C69: M_10 | D69: PT-Minibus | E69: =SUMPRODUCT(P509:P522,R509:R522) -> 6.494594 | F69: 0 | G69: =SUMPRODUCT(R509:R522,X509:X522) -> 549.8377793 | H69: 84.66083935 | I69: =SUMPRODUCT(L509:L522,R509:R522) -> 0.1944280772
B70: 2035 | C70: M_10 | D70: PT-Minibus | E70: =SUMPRODUCT(P523:P536,R523:R536) -> 6.581188 | F70: 0.002 | G70: =SUMPRODUCT(R523:R536,X523:X536) -> 535.0777686 | H70: 81.30413059 | I70: =SUMPRODUCT(L523:L536,R523:R536) -> 0.201514167
B71: 2040 | C71: M_10 | D71: PT-Minibus | E71: =SUMPRODUCT(P537:P550,R537:R550) -> 6.667783 | F71: 0.002 | G71: =SUMPRODUCT(R537:R550,X537:X550) -> 521.7007982 | H71: 78.2420181 | I71: =SUMPRODUCT(L537:L550,R537:R550) -> 0.2057563604
B72: 2045 | C72: M_10 | D72: PT-Minibus | E72: =SUMPRODUCT(P551:P564,R551:R564) -> 6.754377 | F72: 0.0059999998 | G72: =SUMPRODUCT(R551:R564,X551:X564) -> 506.7302985 | H72: 75.0225074 | I72: =SUMPRODUCT(L551:L564,R551:R564) -> 0.2041548811
B73: 2050 | C73: M_10 | D73: PT-Minibus | E73: =SUMPRODUCT(P565:P578,R565:R578) -> 6.840972 | F73: 0.0100000002 | G73: =SUMPRODUCT(R565:R578,X565:X578) -> 492.1822165 | H73: 71.94624046 | I73: =SUMPRODUCT(L565:L578,R565:R578) -> 0.2049125353
B74: 2015 | C74: M_11 | D74: Bike and scooter sharing | E74: =P127 -> 1 | F74: =SUMIFS($T$111:$T$586,$B$111:$B$586,B74,$C$111:$C$586,"3Ws") -> 0 | G74: =X127 -> 0 | H74: =G74/E74 -> 0 | I74: =L127 -> 0.0026907184
B75: 2020 | C75: M_11 | D75: Bike and scooter sharing | E75: 1 | F75: 0 | G75: 0 | H75: 0 | I75: 0.001727932
B76: 2025 | C76: M_11 | D76: Bike and scooter sharing | E76: 1 | F76: 0 | G76: 0 | H76: 0 | I76: 0.0018045552
B77: 2030 | C77: M_11 | D77: Bike and scooter sharing | E77: 1 | F77: 0 | G77: =X130 -> 0 | H77: 0 | I77: 0.0017825856
B78: 2035 | C78: M_11 | D78: Bike and scooter sharing | E78: 1 | F78: 0 | G78: 0 | H78: 0 | I78: 0.0019899144
B79: 2040 | C79: M_11 | D79: Bike and scooter sharing | E79: 1 | F79: 0 | G79: 0 | H79: 0 | I79: 0.0020934768
B80: 2045 | C80: M_11 | D80: Bike and scooter sharing | E80: 1 | F80: 0 | G80: 0 | H80: 0 | I80: 0.0022353
B81: 2050 | C81: M_11 | D81: Bike and scooter sharing | E81: 1 | F81: 0 | G81: 0 | H81: 0 | I81: 0.0022322808
B82: 2015 | C82: M_12 | D82: Ride-sharing | E82: =E26 -> 2.097111 | F82: =SUMIFS($AD$111:$AD$586,$B$111:$B$586,B82,$C$111:$C$586,"Pcall urban") -> 0 | G82: =SUMPRODUCT(AG143:AG152,X143:X152) -> 198.8809471 | H82: 94.83567972 | I82: =SUMPRODUCT(AG143:AG152,L143:L152) -> 0.05473489224
B83: 2020 | C83: M_12 | D83: Ride-sharing | E83: 1.993698488 | F83: 0 | G83: =SUMPRODUCT(AG153:AG164,X153:X164) -> 195.9933287 | H83: 98.30640383 | I83: =SUMPRODUCT(AG153:AG164,L153:L164) -> 0.06140651256
B84: 2025 | C84: M_12 | D84: Ride-sharing | E84: 2.097111 | F84: 0 | G84: =SUMPRODUCT(AG165:AG178,X165:X178) -> 186.3521082 | H84: 88.86134696 | I84: =SUMPRODUCT(AG165:AG178,L165:L178) -> 0.06403603187
B85: 2030 | C85: M_12 | D85: Ride-sharing | E85: 2.119857 | F85: 0 | G85: =SUMPRODUCT(AG179:AG192,X179:X192) -> 169.7021385 | H85: 80.05357838 | I85: =SUMPRODUCT(AG179:AG192,L179:L192) -> 0.06167292341
B86: 2035 | C86: M_12 | D86: Ride-sharing | E86: 2.145474 | F86: 0.0099 | G86: =SUMPRODUCT(AG193:AG206,X193:X206) -> 159.6729038 | H86: 74.42313625 | I86: =SUMPRODUCT(AG193:AG206,L193:L206) -> 0.0621721917
B87: 2040 | C87: M_12 | D87: Ride-sharing | E87: 2.173684 | F87: 0.0099 | G87: =SUMPRODUCT(AG207:AG220,X207:X220) -> 154.2437149 | H87: 70.95958516 | I87: =SUMPRODUCT(AG207:AG220,L207:L220) -> 0.06282213846
B88: 2045 | C88: M_12 | D88: Ride-sharing | E88: 2.202008 | F88: 0.01629999968 | G88: =SUMPRODUCT(AG221:AG234,X221:X234) -> 147.6271594 | H88: 67.04206317 | I88: =SUMPRODUCT(AG221:AG234,L221:L234) -> 0.06159630479
B89: 2050 | C89: M_12 | D89: Ride-sharing | E89: 2.21259 | F89: 0.02940000032 | G89: =SUMPRODUCT(AG235:AG248,X235:X248) -> 140.8867616 | H89: 63.67504218 | I89: =SUMPRODUCT(AG235:AG248,L235:L248) -> 0.06132458879
B90: 2015 | C90: M_13 | D90: Car-Sharing | E90: =E18*1.3 -> 1.95 | F90: =SUMIFS($AC$111:$AC$586,$B$111:$B$586,B90,$C$111:$C$586,"Pcall urban") -> 0 | G90: =SUMPRODUCT(AF143:AF152,X143:X152) -> 198.8809471 | H90: 101.9902293 | I90: =SUMPRODUCT(AF143:AF152,L143:L152) -> 0.05473489224
B91: 2020 | C91: M_13 | D91: Car-Sharing | E91: 1.95 | F91: 0 | G91: =SUMPRODUCT(AF153:AF164,X153:X164) -> 195.9933287 | H91: 100.5093993 | I91: =SUMPRODUCT(AF153:AF164,L153:L164) -> 0.06140651256
B92: 2025 | C92: M_13 | D92: Car-Sharing | E92: 1.95 | F92: 0 | G92: =SUMPRODUCT(AF165:AF178,X165:X178) -> 186.3521082 | H92: 95.56518368 | I92: =SUMPRODUCT(AF165:AF178,L165:L178) -> 0.06403603187
B93: 2030 | C93: M_13 | D93: Car-Sharing | E93: 1.95 | F93: 0 | G93: =SUMPRODUCT(AF179:AF192,X179:X192) -> 169.7021385 | H93: 87.0267377 | I93: =SUMPRODUCT(AF179:AF192,L179:L192) -> 0.06167292341
B94: 2035 | C94: M_13 | D94: Car-Sharing | E94: 1.95 | F94: 0.0099 | G94: =SUMPRODUCT(AF193:AF206,X193:X206) -> 159.6729038 | H94: 81.88354042 | I94: =SUMPRODUCT(AF193:AF206,L193:L206) -> 0.0621721917
B95: 2040 | C95: M_13 | D95: Car-Sharing | E95: 1.95 | F95: 0.0099 | G95: =SUMPRODUCT(AF207:AF220,X207:X220) -> 154.2437149 | H95: 79.09934098 | I95: =SUMPRODUCT(AF207:AF220,L207:L220) -> 0.06282213846
B96: 2045 | C96: M_13 | D96: Car-Sharing | E96: 1.95 | F96: 0.01629999968 | G96: =SUMPRODUCT(AF221:AF234,X221:X234) -> 147.6271594 | H96: 75.70623561 | I96: =SUMPRODUCT(AF221:AF234,L221:L234) -> 0.06159630479
B97: 2050 | C97: M_13 | D97: Car-Sharing | E97: 1.95 | F97: 0.02940000032 | G97: =SUMPRODUCT(AF235:AF248,X235:X248) -> 140.8867616 | H97: 72.24962132 | I97: =SUMPRODUCT(AF235:AF248,L235:L248) -> 0.06132458879
B98: 2015 | C98: M_14 | D98: PT-On-demand Transport | E98: =E66 -> 6.321404 | F98: =F66 -> 0 | G98: =+OFFSET('TTW CO2'!$S$61,COUNTIF(D98:D$98,D98)-1,MATCH(D98,'Sub-models Calibration'!$B$14:$B$25,0)-1+15*0)*OFFSET('TTW CO2'!$S$74,COUNTIF(D98:D$98,D98)-1,MATCH(D98,'Sub-models Calibration'!$B$14:$B$25,0)-1+15*0)+OFFSET('TTW CO2'!$S$61,COUNTIF(D98:D$98,D98)-1,MATCH(D98,'Sub-models Calibration'!$B$14:$B$25,0)-1+15*1)*OFFSET('TTW CO2'!$S$74,COUNTIF(D98:D$98,D98)-1,MATCH(D98,'Sub-models Calibration'!$B$14:$B$25,0)-1+15*1)+OFFSET('TTW CO2'!$S$61,COUNTIF(D98:D$98,D98)-1,MATCH(D98,'Sub-models Calibration'!$B$14:$B$25,0)-1+15*2)*OFFSET('TTW CO2'!$S$74,COUNTIF(D98:D$98,D98)-1,MATCH(D98,'Sub-models Calibration'!$B$14:$B$25,0)-1+15*2)+OFFSET('TTW CO2'!$S$61,COUNTIF(D98:D$98,D98)-1,MATCH(D98,'Sub-models Calibration'!$B$14:$B$25,0)-1+15*3)*OFFSET('TTW CO2'!$S$74,COUNTIF(D98:D$98,D98)-1,MATCH(D98,'Sub-models Calibration'!$B$14:$B$25,0)-1+15*3)+OFFSET('TTW CO2'!$S$61,COUNTIF(D98:D$98,D98)-1,MATCH(D98,'Sub-models Calibration'!$B$14:$B$25,0)-1+15*4)*OFFSET('TTW CO2'!$S$74,COUNTIF(D98:D$98,D98)-1,MATCH(D98,'Sub-models Calibration'!$B$14:$B$25,0)-1+15*4) -> 198.8809471 | H98: 31.46151506 | I98: =I66 -> 0.1345034488
B99: 2020 | C99: M_14 | D99: PT-On-demand Transport | E99: =E67 -> 6.23481 | F99: =F67 -> 0 | G99: =+OFFSET('TTW CO2'!$S$61,COUNTIF(D$98:D99,D99)-1,MATCH(D99,'Sub-models Calibration'!$B$14:$B$25,0)-1+15*0)*OFFSET('TTW CO2'!$S$74,COUNTIF(D$98:D99,D99)-1,MATCH(D99,'Sub-models Calibration'!$B$14:$B$25,0)-1+15*0)+OFFSET('TTW CO2'!$S$61,COUNTIF(D$98:D99,D99)-1,MATCH(D99,'Sub-models Calibration'!$B$14:$B$25,0)-1+15*1)*OFFSET('TTW CO2'!$S$74,COUNTIF(D$98:D99,D99)-1,MATCH(D99,'Sub-models Calibration'!$B$14:$B$25,0)-1+15*1)+OFFSET('TTW CO2'!$S$61,COUNTIF(D$98:D99,D99)-1,MATCH(D99,'Sub-models Calibration'!$B$14:$B$25,0)-1+15*2)*OFFSET('TTW CO2'!$S$74,COUNTIF(D$98:D99,D99)-1,MATCH(D99,'Sub-models Calibration'!$B$14:$B$25,0)-1+15*2)+OFFSET('TTW CO2'!$S$61,COUNTIF(D$98:D99,D99)-1,MATCH(D99,'Sub-models Calibration'!$B$14:$B$25,0)-1+15*3)*OFFSET('TTW CO2'!$S$74,COUNTIF(D$98:D99,D99)-1,MATCH(D99,'Sub-models Calibration'!$B$14:$B$25,0)-1+15*3)+OFFSET('TTW CO2'!$S$61,COUNTIF(D$98:D99,D99)-1,MATCH(D99,'Sub-models Calibration'!$B$14:$B$25,0)-1+15*4)*OFFSET('TTW CO2'!$S$74,COUNTIF(D$98:D99,D99)-1,MATCH(D99,'Sub-models Calibration'!$B$14:$B$25,0)-1+15*4) -> 195.9933287 | H99: 31.43533302 | I99: =I67 -> 0.1237119896
B100: 2025 | C100: M_14 | D100: PT-On-demand Transport | E100: =E67 -> 6.23481 | F100: =F68 -> 0 | G100: =+OFFSET('TTW CO2'!$S$61,COUNTIF(D$98:D100,D100)-1,MATCH(D100,'Sub-models Calibration'!$B$14:$B$25,0)-1+15*0)*OFFSET('TTW CO2'!$S$74,COUNTIF(D$98:D100,D100)-1,MATCH(D100,'Sub-models Calibration'!$B$14:$B$25,0)-1+15*0)+OFFSET('TTW CO2'!$S$61,COUNTIF(D$98:D100,D100)-1,MATCH(D100,'Sub-models Calibration'!$B$14:$B$25,0)-1+15*1)*OFFSET('TTW CO2'!$S$74,COUNTIF(D$98:D100,D100)-1,MATCH(D100,'Sub-models Calibration'!$B$14:$B$25,0)-1+15*1)+OFFSET('TTW CO2'!$S$61,COUNTIF(D$98:D100,D100)-1,MATCH(D100,'Sub-models Calibration'!$B$14:$B$25,0)-1+15*2)*OFFSET('TTW CO2'!$S$74,COUNTIF(D$98:D100,D100)-1,MATCH(D100,'Sub-models Calibration'!$B$14:$B$25,0)-1+15*2)+OFFSET('TTW CO2'!$S$61,COUNTIF(D$98:D100,D100)-1,MATCH(D100,'Sub-models Calibration'!$B$14:$B$25,0)-1+15*3)*OFFSET('TTW CO2'!$S$74,COUNTIF(D$98:D100,D100)-1,MATCH(D100,'Sub-models Calibration'!$B$14:$B$25,0)-1+15*3)+OFFSET('TTW CO2'!$S$61,COUNTIF(D$98:D100,D100)-1,MATCH(D100,'Sub-models Calibration'!$B$14:$B$25,0)-1+15*4)*OFFSET('TTW CO2'!$S$74,COUNTIF(D$98:D100,D100)-1,MATCH(D100,'Sub-models Calibration'!$B$14:$B$25,0)-1+15*4) -> 186.3521082 | H100: 29.88897948 | I100: =I67 -> 0.1237119896
B101: 2030 | C101: M_14 | D101: PT-On-demand Transport | E101: 6.407999 | F101: 0 | G101: =+OFFSET('TTW CO2'!$S$61,COUNTIF(D$98:D101,D101)-1,MATCH(D101,'Sub-models Calibration'!$B$14:$B$25,0)-1+15*0)*OFFSET('TTW CO2'!$S$74,COUNTIF(D$98:D101,D101)-1,MATCH(D101,'Sub-models Calibration'!$B$14:$B$25,0)-1+15*0)+OFFSET('TTW CO2'!$S$61,COUNTIF(D$98:D101,D101)-1,MATCH(D101,'Sub-models Calibration'!$B$14:$B$25,0)-1+15*1)*OFFSET('TTW CO2'!$S$74,COUNTIF(D$98:D101,D101)-1,MATCH(D101,'Sub-models Calibration'!$B$14:$B$25,0)-1+15*1)+OFFSET('TTW CO2'!$S$61,COUNTIF(D$98:D101,D101)-1,MATCH(D101,'Sub-models Calibration'!$B$14:$B$25,0)-1+15*2)*OFFSET('TTW CO2'!$S$74,COUNTIF(D$98:D101,D101)-1,MATCH(D101,'Sub-models Calibration'!$B$14:$B$25,0)-1+15*2)+OFFSET('TTW CO2'!$S$61,COUNTIF(D$98:D101,D101)-1,MATCH(D101,'Sub-models Calibration'!$B$14:$B$25,0)-1+15*3)*OFFSET('TTW CO2'!$S$74,COUNTIF(D$98:D101,D101)-1,MATCH(D101,'Sub-models Calibration'!$B$14:$B$25,0)-1+15*3)+OFFSET('TTW CO2'!$S$61,COUNTIF(D$98:D101,D101)-1,MATCH(D101,'Sub-models Calibration'!$B$14:$B$25,0)-1+15*4)*OFFSET('TTW CO2'!$S$74,COUNTIF(D$98:D101,D101)-1,MATCH(D101,'Sub-models Calibration'!$B$14:$B$25,0)-1+15*4) -> 169.7021385 | H101: 26.48285971 | I101: 0.1852359074
B102: 2035 | C102: M_14 | D102: PT-On-demand Transport | E102: 6.494594 | F102: 0.002 | G102: =+OFFSET('TTW CO2'!$S$61,COUNTIF(D$98:D102,D102)-1,MATCH(D102,'Sub-models Calibration'!$B$14:$B$25,0)-1+15*0)*OFFSET('TTW CO2'!$S$74,COUNTIF(D$98:D102,D102)-1,MATCH(D102,'Sub-models Calibration'!$B$14:$B$25,0)-1+15*0)+OFFSET('TTW CO2'!$S$61,COUNTIF(D$98:D102,D102)-1,MATCH(D102,'Sub-models Calibration'!$B$14:$B$25,0)-1+15*1)*OFFSET('TTW CO2'!$S$74,COUNTIF(D$98:D102,D102)-1,MATCH(D102,'Sub-models Calibration'!$B$14:$B$25,0)-1+15*1)+OFFSET('TTW CO2'!$S$61,COUNTIF(D$98:D102,D102)-1,MATCH(D102,'Sub-models Calibration'!$B$14:$B$25,0)-1+15*2)*OFFSET('TTW CO2'!$S$74,COUNTIF(D$98:D102,D102)-1,MATCH(D102,'Sub-models Calibration'!$B$14:$B$25,0)-1+15*2)+OFFSET('TTW CO2'!$S$61,COUNTIF(D$98:D102,D102)-1,MATCH(D102,'Sub-models Calibration'!$B$14:$B$25,0)-1+15*3)*OFFSET('TTW CO2'!$S$74,COUNTIF(D$98:D102,D102)-1,MATCH(D102,'Sub-models Calibration'!$B$14:$B$25,0)-1+15*3)+OFFSET('TTW CO2'!$S$61,COUNTIF(D$98:D102,D102)-1,MATCH(D102,'Sub-models Calibration'!$B$14:$B$25,0)-1+15*4)*OFFSET('TTW CO2'!$S$74,COUNTIF(D$98:D102,D102)-1,MATCH(D102,'Sub-models Calibration'!$B$14:$B$25,0)-1+15*4) -> 159.6729038 | H102: 24.58550971 | I102: 0.1944280772
B103: 2040 | C103: M_14 | D103: PT-On-demand Transport | E103: 6.581188 | F103: 0.002 | G103: =+OFFSET('TTW CO2'!$S$61,COUNTIF(D$98:D103,D103)-1,MATCH(D103,'Sub-models Calibration'!$B$14:$B$25,0)-1+15*0)*OFFSET('TTW CO2'!$S$74,COUNTIF(D$98:D103,D103)-1,MATCH(D103,'Sub-models Calibration'!$B$14:$B$25,0)-1+15*0)+OFFSET('TTW CO2'!$S$61,COUNTIF(D$98:D103,D103)-1,MATCH(D103,'Sub-models Calibration'!$B$14:$B$25,0)-1+15*1)*OFFSET('TTW CO2'!$S$74,COUNTIF(D$98:D103,D103)-1,MATCH(D103,'Sub-models Calibration'!$B$14:$B$25,0)-1+15*1)+OFFSET('TTW CO2'!$S$61,COUNTIF(D$98:D103,D103)-1,MATCH(D103,'Sub-models Calibration'!$B$14:$B$25,0)-1+15*2)*OFFSET('TTW CO2'!$S$74,COUNTIF(D$98:D103,D103)-1,MATCH(D103,'Sub-models Calibration'!$B$14:$B$25,0)-1+15*2)+OFFSET('TTW CO2'!$S$61,COUNTIF(D$98:D103,D103)-1,MATCH(D103,'Sub-models Calibration'!$B$14:$B$25,0)-1+15*3)*OFFSET('TTW CO2'!$S$74,COUNTIF(D$98:D103,D103)-1,MATCH(D103,'Sub-models Calibration'!$B$14:$B$25,0)-1+15*3)+OFFSET('TTW CO2'!$S$61,COUNTIF(D$98:D103,D103)-1,MATCH(D103,'Sub-models Calibration'!$B$14:$B$25,0)-1+15*4)*OFFSET('TTW CO2'!$S$74,COUNTIF(D$98:D103,D103)-1,MATCH(D103,'Sub-models Calibration'!$B$14:$B$25,0)-1+15*4) -> 154.2437149 | H103: 23.43706257 | I103: 0.201514167
B104: 2045 | C104: M_14 | D104: PT-On-demand Transport | E104: 6.667783 | F104: 0.0059999998 | G104: =+OFFSET('TTW CO2'!$S$61,COUNTIF(D$98:D104,D104)-1,MATCH(D104,'Sub-models Calibration'!$B$14:$B$25,0)-1+15*0)*OFFSET('TTW CO2'!$S$74,COUNTIF(D$98:D104,D104)-1,MATCH(D104,'Sub-models Calibration'!$B$14:$B$25,0)-1+15*0)+OFFSET('TTW CO2'!$S$61,COUNTIF(D$98:D104,D104)-1,MATCH(D104,'Sub-models Calibration'!$B$14:$B$25,0)-1+15*1)*OFFSET('TTW CO2'!$S$74,COUNTIF(D$98:D104,D104)-1,MATCH(D104,'Sub-models Calibration'!$B$14:$B$25,0)-1+15*1)+OFFSET('TTW CO2'!$S$61,COUNTIF(D$98:D104,D104)-1,MATCH(D104,'Sub-models Calibration'!$B$14:$B$25,0)-1+15*2)*OFFSET('TTW CO2'!$S$74,COUNTIF(D$98:D104,D104)-1,MATCH(D104,'Sub-models Calibration'!$B$14:$B$25,0)-1+15*2)+OFFSET('TTW CO2'!$S$61,COUNTIF(D$98:D104,D104)-1,MATCH(D104,'Sub-models Calibration'!$B$14:$B$25,0)-1+15*3)*OFFSET('TTW CO2'!$S$74,COUNTIF(D$98:D104,D104)-1,MATCH(D104,'Sub-models Calibration'!$B$14:$B$25,0)-1+15*3)+OFFSET('TTW CO2'!$S$61,COUNTIF(D$98:D104,D104)-1,MATCH(D104,'Sub-models Calibration'!$B$14:$B$25,0)-1+15*4)*OFFSET('TTW CO2'!$S$74,COUNTIF(D$98:D104,D104)-1,MATCH(D104,'Sub-models Calibration'!$B$14:$B$25,0)-1+15*4) -> 147.6271594 | H104: 22.14036651 | I104: 0.2057563604
B105: 2050 | C105: M_14 | D105: PT-On-demand Transport | E105: 6.754377 | F105: 0.0100000002 | G105: =+OFFSET('TTW CO2'!$S$61,COUNTIF(D$98:D105,D105)-1,MATCH(D105,'Sub-models Calibration'!$B$14:$B$25,0)-1+15*0)*OFFSET('TTW CO2'!$S$74,COUNTIF(D$98:D105,D105)-1,MATCH(D105,'Sub-models Calibration'!$B$14:$B$25,0)-1+15*0)+OFFSET('TTW CO2'!$S$61,COUNTIF(D$98:D105,D105)-1,MATCH(D105,'Sub-models Calibration'!$B$14:$B$25,0)-1+15*1)*OFFSET('TTW CO2'!$S$74,COUNTIF(D$98:D105,D105)-1,MATCH(D105,'Sub-models Calibration'!$B$14:$B$25,0)-1+15*1)+OFFSET('TTW CO2'!$S$61,COUNTIF(D$98:D105,D105)-1,MATCH(D105,'Sub-models Calibration'!$B$14:$B$25,0)-1+15*2)*OFFSET('TTW CO2'!$S$74,COUNTIF(D$98:D105,D105)-1,MATCH(D105,'Sub-models Calibration'!$B$14:$B$25,0)-1+15*2)+OFFSET('TTW CO2'!$S$61,COUNTIF(D$98:D105,D105)-1,MATCH(D105,'Sub-models Calibration'!$B$14:$B$25,0)-1+15*3)*OFFSET('TTW CO2'!$S$74,COUNTIF(D$98:D105,D105)-1,MATCH(D105,'Sub-models Calibration'!$B$14:$B$25,0)-1+15*3)+OFFSET('TTW CO2'!$S$61,COUNTIF(D$98:D105,D105)-1,MATCH(D105,'Sub-models Calibration'!$B$14:$B$25,0)-1+15*4)*OFFSET('TTW CO2'!$S$74,COUNTIF(D$98:D105,D105)-1,MATCH(D105,'Sub-models Calibration'!$B$14:$B$25,0)-1+15*4) -> 140.8867616 | H105: 20.85858719 | I105: 0.2041548811
B108: Scenario-specific extraction of the original IEA data | G108: Return
B110: Year | C110: Vehicle ID | D110: Vehicle Type | E110: Power Train | F110: Energy Vector | G110: Energy Intensity (from combustion), MJ/VKM | H110: Energy Intensity (from Electric), MJ/VKM | I110: Well To Tank CO2 Intensity, g/MJ | J110: Tank To Wheel CO2 Intensity, g/MJ | K110: Energy Cost, USD/MJ | L110: Vehicle Kilometre Cost, USD/VKM | M110: NOx Intensity, g/VKM | N110: PM2.5 Intensity, g/VKM | O110: SO4 Intensity, g/VKM | P110: Load Factor | Q110: Share of Clean Vehicles | R110: Share of VKM from Vehicle Stock (if available) | S110: Cost per Capita, USD/PKM | T110: Share of Clean VKM | U110: TTW CO2 Intensity (base), g/MJ | V110: Energy Intensity (from any source), MJ/VKM | W110: Calculated WTT CO2, g/VKM | X110: Calculated TTW CO2, g/VKM | Y110: Calculated total WTW CO2, g/VKM | Z110: Share of VKM (original) | AA110: Share of VKM (by Scenario Parameters Group) | AB110: Scenario Parameters Group | AC110: Share of VKM-CarSharing | AD110: Share of VKM-RideSharing | AE110: Share of VKM-BRT | AF110: CarSharing | AG110: RideSharing | AH110: BRT | AI110: Share of VKM from Vehicle Stock (if available)
B111: 2015 | C111: 2Ws | D111: Motorcycle/Motorcycle-sharing | E111: BEV | F111: Electric | G111: =IF(SUM('Scenario Setting'!$F$68:$H$68)=0,G594,G1076) -> 0 | H111: =IF(SUM('Scenario Setting'!$F$68:$H$68)=0,H594,H1076) -> 0.1210623 | I111: =IF(SUM('Scenario Setting'!$F$68:$H$68)=0,I594,I1076) -> 129.0164 | J111: =U111 -> 0 | K111: =IF(SUM('Scenario Setting'!$F$68:$H$68)=0,K594,K1076) -> 0.03363398 | L111: =IF(G111=0,H111*K111,G111*K111) -> 0.004071806977 | M111: =IF(SUM('Scenario Setting'!$F$68:$H$68)=0,L594,L1076) -> 0 | N111: =IF(SUM('Scenario Setting'!$F$68:$H$68)=0,M594,M1076) -> 0 | O111: =IF(SUM('Scenario Setting'!$F$68:$H$68)=0,N594,N1076) -> 0 | P111: =IF(SUM('Scenario Setting'!$F$68:$H$68)=0,O594,O1076) -> 1.1 | Q111: =IF(SUM('Scenario Setting'!$F$68:$H$68)=0,P594,P1076) -> 1 | R111: =IF('Scenario Setting'!$H$77=1,INDEX('Scenario Parameters'!$E$36:$L$43,MATCH(AB111,'Scenario Parameters'!$D$36:$D$43,0),MATCH(B111,'Scenario Parameters'!$E$9:$L$9,0))*AA111/SUMIFS($AI$111:$AI$126,$B$111:$B$126,B111),IF(SUM('Scenario Setting'!$F$68:$H$68)=0,Q594,Q1076)) -> 0 | S111: =L111/P111 -> 0.003701642706 | T111: =Q111*R111 -> 0 | U111: =IF(SUM('Scenario Setting'!$F$68:$H$68)=0,J594,J1076) -> 0 | V111: =G111+H111 -> 0.1210623 | W111: =$V111*I111 -> 15.61902212 | X111: =$V111*J111 -> 0 | Y111: =(W111+X111)/P111 -> 14.19911102 | Z111: =IF(SUM('Scenario Setting'!$F$68:$H$68)=0,Q594,Q1076) -> 9.98e-13 | AA111: 1 | AB111: Electric | AI111: =INDEX('Scenario Parameters'!$E$36:$L$43,MATCH(AB111,'Scenario Parameters'!$D$36:$D$43,0),MATCH(B111,'Scenario Parameters'!$E$9:$L$9,0))*AA111 -> 0
B112: 2015 | C112: 2Ws | D112: Motorcycle/Motorcycle-sharing | E112: ICE SI | F112: Gasoline | G112: =IF(SUM('Scenario Setting'!$F$68:$H$68)=0,G595,G1077) -> 0.6200339 | H112: =IF(SUM('Scenario Setting'!$F$68:$H$68)=0,H595,H1077) -> 0 | I112: =IF(SUM('Scenario Setting'!$F$68:$H$68)=0,I595,I1077) -> 13.25 | J112: 69.3 | K112: =IF(SUM('Scenario Setting'!$F$68:$H$68)=0,K595,K1077) -> 0.01745902 | L112: 0.01082518426 | M112: =IF(SUM('Scenario Setting'!$F$68:$H$68)=0,L595,L1077) -> 0.287 | N112: =IF(SUM('Scenario Setting'!$F$68:$H$68)=0,M595,M1077) -> 0.012 | O112: =IF(SUM('Scenario Setting'!$F$68:$H$68)=0,N595,N1077) -> 0 | P112: =IF(SUM('Scenario Setting'!$F$68:$H$68)=0,O595,O1077) -> 1.1 | Q112: =IF(SUM('Scenario Setting'!$F$68:$H$68)=0,P595,P1077) -> 0 | R112: =IF('Scenario Setting'!$H$77=1,INDEX('Scenario Parameters'!$E$36:$L$43,MATCH(AB112,'Scenario Parameters'!$D$36:$D$43,0),MATCH(B112,'Scenario Parameters'!$E$9:$L$9,0))*AA112/SUMIFS($AI$111:$AI$126,$B$111:$B$126,B112),IF(SUM('Scenario Setting'!$F$68:$H$68)=0,Q595,Q1077)) -> 1 | S112: 0.009841076601 | T112: 0 | U112: =IF(SUM('Scenario Setting'!$F$68:$H$68)=0,J595,J1077) -> 69.3 | V112: 0.6200339 | W112: 8.215449175 | X112: 42.96834927 | Y112: 46.53072586 | Z112: =IF(SUM('Scenario Setting'!$F$68:$H$68)=0,Q595,Q1077) -> 1 | AA112: 1 | AB112: Gasoline | AI112: =INDEX('Scenario Parameters'!$E$36:$L$43,MATCH(AB112,'Scenario Parameters'!$D$36:$D$43,0),MATCH(B112,'Scenario Parameters'!$E$9:$L$9,0))*AA112 -> 0.67
B113: 2020 | C113: 2Ws | D113: Motorcycle/Motorcycle-sharing | E113: BEV | F113: Electric | G113: =IF(SUM('Scenario Setting'!$F$68:$H$68)=0,G596,G1078) -> 0 | H113: =IF(SUM('Scenario Setting'!$F$68:$H$68)=0,H596,H1078) -> 0.1240068 | I113: =IF(SUM('Scenario Setting'!$F$68:$H$68)=0,I596,I1078) -> 143.8438 | J113: 0 | K113: =IF(SUM('Scenario Setting'!$F$68:$H$68)=0,K596,K1078) -> 0.01311232 | L113: 0.001626016844 | M113: =IF(SUM('Scenario Setting'!$F$68:$H$68)=0,L596,L1078) -> 0 | N113: =IF(SUM('Scenario Setting'!$F$68:$H$68)=0,M596,M1078) -> 0 | O113: =IF(SUM('Scenario Setting'!$F$68:$H$68)=0,N596,N1078) -> 0 | P113: =IF(SUM('Scenario Setting'!$F$68:$H$68)=0,O596,O1078) -> 1.1 | Q113: =IF(SUM('Scenario Setting'!$F$68:$H$68)=0,P596,P1078) -> 1 | R113: =IF('Scenario Setting'!$H$77=1,INDEX('Scenario Parameters'!$E$36:$L$43,MATCH(AB113,'Scenario Parameters'!$D$36:$D$43,0),MATCH(B113,'Scenario Parameters'!$E$9:$L$9,0))*AA113/SUMIFS($AI$111:$AI$126,$B$111:$B$126,B113),IF(SUM('Scenario Setting'!$F$68:$H$68)=0,Q596,Q1078)) -> 0 | S113: 0.001478197131 | T113: 0 | U113: =IF(SUM('Scenario Setting'!$F$68:$H$68)=0,J596,J1078) -> 0 | V113: 0.1240068 | W113: 17.83760934 | X113: 0 | Y113: 16.21600849 | Z113: =IF(SUM('Scenario Setting'!$F$68:$H$68)=0,Q596,Q1078) -> 9.98e-13 | AA113: 1 | AB113: Electric | AI113: =INDEX('Scenario Parameters'!$E$36:$L$43,MATCH(AB113,'Scenario Parameters'!$D$36:$D$43,0),MATCH(B113,'Scenario Parameters'!$E$9:$L$9,0))*AA113 -> 0
B114: 2020 | C114: 2Ws | D114: Motorcycle/Motorcycle-sharing | E114: ICE SI | F114: Gasoline | G114: =IF(SUM('Scenario Setting'!$F$68:$H$68)=0,G597,G1079) -> 0.6053114 | H114: =IF(SUM('Scenario Setting'!$F$68:$H$68)=0,H597,H1079) -> 0 | I114: =IF(SUM('Scenario Setting'!$F$68:$H$68)=0,I597,I1079) -> 13.23 | J114: 69.3 | K114: =IF(SUM('Scenario Setting'!$F$68:$H$68)=0,K597,K1079) -> 0.02055079 | L114: 0.01243962747 | M114: =IF(SUM('Scenario Setting'!$F$68:$H$68)=0,L597,L1079) -> 0.274 | N114: =IF(SUM('Scenario Setting'!$F$68:$H$68)=0,M597,M1079) -> 0.008 | O114: =IF(SUM('Scenario Setting'!$F$68:$H$68)=0,N597,N1079) -> 0 | P114: =IF(SUM('Scenario Setting'!$F$68:$H$68)=0,O597,O1079) -> 1.1 | Q114: =IF(SUM('Scenario Setting'!$F$68:$H$68)=0,P597,P1079) -> 0 | R114: =IF('Scenario Setting'!$H$77=1,INDEX('Scenario Parameters'!$E$36:$L$43,MATCH(AB114,'Scenario Parameters'!$D$36:$D$43,0),MATCH(B114,'Scenario Parameters'!$E$9:$L$9,0))*AA114/SUMIFS($AI$111:$AI$126,$B$111:$B$126,B114),IF(SUM('Scenario Setting'!$F$68:$H$68)=0,Q597,Q1079)) -> 1 | S114: 0.01130875224 | T114: 0 | U114: =IF(SUM('Scenario Setting'!$F$68:$H$68)=0,J597,J1079) -> 69.3 | V114: 0.6053114 | W114: 8.008269822 | X114: 41.94808002 | Y114: 45.41486349 | Z114: =IF(SUM('Scenario Setting'!$F$68:$H$68)=0,Q597,Q1079) -> 1 | AA114: 1 | AB114: Gasoline | AI114: =INDEX('Scenario Parameters'!$E$36:$L$43,MATCH(AB114,'Scenario Parameters'!$D$36:$D$43,0),MATCH(B114,'Scenario Parameters'!$E$9:$L$9,0))*AA114 -> 0.67
B115: 2025 | C115: 2Ws | D115: Motorcycle/Motorcycle-sharing | E115: BEV | F115: Electric | G115: =IF(SUM('Scenario Setting'!$F$68:$H$68)=0,G598,G1080) -> 0 | H115: =IF(SUM('Scenario Setting'!$F$68:$H$68)=0,H598,H1080) -> 0.1237784 | I115: =IF(SUM('Scenario Setting'!$F$68:$H$68)=0,I598,I1080) -> 127.6957 | J115: 0 | K115: =IF(SUM('Scenario Setting'!$F$68:$H$68)=0,K598,K1080) -> 0.01355745 | L115: 0.001678119469 | M115: =IF(SUM('Scenario Setting'!$F$68:$H$68)=0,L598,L1080) -> 0 | N115: =IF(SUM('Scenario Setting'!$F$68:$H$68)=0,M598,M1080) -> 0 | O115: =IF(SUM('Scenario Setting'!$F$68:$H$68)=0,N598,N1080) -> 0 | P115: =IF(SUM('Scenario Setting'!$F$68:$H$68)=0,O598,O1080) -> 1.1 | Q115: =IF(SUM('Scenario Setting'!$F$68:$H$68)=0,P598,P1080) -> 1 | R115: =IF('Scenario Setting'!$H$77=1,INDEX('Scenario Parameters'!$E$36:$L$43,MATCH(AB115,'Scenario Parameters'!$D$36:$D$43,0),MATCH(B115,'Scenario Parameters'!$E$9:$L$9,0))*AA115/SUMIFS($AI$111:$AI$126,$B$111:$B$126,B115),IF(SUM('Scenario Setting'!$F$68:$H$68)=0,Q598,Q1080)) -> 0 | S115: 0.001525563154 | T115: 0 | U115: =IF(SUM('Scenario Setting'!$F$68:$H$68)=0,J598,J1080) -> 0 | V115: 0.1237784 | W115: 15.80596943 | X115: 0 | Y115: 14.36906312 | Z115: =IF(SUM('Scenario Setting'!$F$68:$H$68)=0,Q598,Q1080) -> 0.053187477 | AA115: 1 | AB115: Electric | AI115: =INDEX('Scenario Parameters'!$E$36:$L$43,MATCH(AB115,'Scenario Parameters'!$D$36:$D$43,0),MATCH(B115,'Scenario Parameters'!$E$9:$L$9,0))*AA115 -> 0
B116: 2025 | C116: 2Ws | D116: Motorcycle/Motorcycle-sharing | E116: ICE SI | F116: Gasoline | G116: =IF(SUM('Scenario Setting'!$F$68:$H$68)=0,G599,G1081) -> 0.5985089 | H116: =IF(SUM('Scenario Setting'!$F$68:$H$68)=0,H599,H1081) -> 0 | I116: =IF(SUM('Scenario Setting'!$F$68:$H$68)=0,I599,I1081) -> 13.19 | J116: 69.3 | K116: =IF(SUM('Scenario Setting'!$F$68:$H$68)=0,K599,K1081) -> 0.02300138 | L116: 0.01376653064 | M116: =IF(SUM('Scenario Setting'!$F$68:$H$68)=0,L599,L1081) -> 0.268 | N116: =IF(SUM('Scenario Setting'!$F$68:$H$68)=0,M599,M1081) -> 0.006 | O116: =IF(SUM('Scenario Setting'!$F$68:$H$68)=0,N599,N1081) -> 0 | P116: =IF(SUM('Scenario Setting'!$F$68:$H$68)=0,O599,O1081) -> 1.1 | Q116: =IF(SUM('Scenario Setting'!$F$68:$H$68)=0,P599,P1081) -> 0 | R116: =IF('Scenario Setting'!$H$77=1,INDEX('Scenario Parameters'!$E$36:$L$43,MATCH(AB116,'Scenario Parameters'!$D$36:$D$43,0),MATCH(B116,'Scenario Parameters'!$E$9:$L$9,0))*AA116/SUMIFS($AI$111:$AI$126,$B$111:$B$126,B116),IF(SUM('Scenario Setting'!$F$68:$H$68)=0,Q599,Q1081)) -> 1 | S116: 0.01251502786 | T116: 0 | U116: =IF(SUM('Scenario Setting'!$F$68:$H$68)=0,J599,J1081) -> 69.3 | V116: 0.5985089 | W116: 7.894332391 | X116: 41.47666677 | Y116: 44.88272651 | Z116: =IF(SUM('Scenario Setting'!$F$68:$H$68)=0,Q599,Q1081) -> 0.946812523 | AA116: 1 | AB116: Gasoline | AI116: =INDEX('Scenario Parameters'!$E$36:$L$43,MATCH(AB116,'Scenario Parameters'!$D$36:$D$43,0),MATCH(B116,'Scenario Parameters'!$E$9:$L$9,0))*AA116 -> 0.67
B117: 2030 | C117: 2Ws | D117: Motorcycle/Motorcycle-sharing | E117: BEV | F117: Electric | G117: =IF(SUM('Scenario Setting'!$F$68:$H$68)=0,G600,G1082) -> 0 | H117: =IF(SUM('Scenario Setting'!$F$68:$H$68)=0,H600,H1082) -> 0.1232192 | I117: =IF(SUM('Scenario Setting'!$F$68:$H$68)=0,I600,I1082) -> 121.4757 | J117: 0 | K117: =IF(SUM('Scenario Setting'!$F$68:$H$68)=0,K600,K1082) -> 0.01448755 | L117: 0.001785144321 | M117: =IF(SUM('Scenario Setting'!$F$68:$H$68)=0,L600,L1082) -> 0 | N117: =IF(SUM('Scenario Setting'!$F$68:$H$68)=0,M600,M1082) -> 0 | O117: =IF(SUM('Scenario Setting'!$F$68:$H$68)=0,N600,N1082) -> 0 | P117: =IF(SUM('Scenario Setting'!$F$68:$H$68)=0,O600,O1082) -> 1.1 | Q117: =IF(SUM('Scenario Setting'!$F$68:$H$68)=0,P600,P1082) -> 1 | R117: =IF('Scenario Setting'!$H$77=1,INDEX('Scenario Parameters'!$E$36:$L$43,MATCH(AB117,'Scenario Parameters'!$D$36:$D$43,0),MATCH(B117,'Scenario Parameters'!$E$9:$L$9,0))*AA117/SUMIFS($AI$111:$AI$126,$B$111:$B$126,B117),IF(SUM('Scenario Setting'!$F$68:$H$68)=0,Q600,Q1082)) -> 0 | S117: 0.001622858474 | T117: 0 | U117: =IF(SUM('Scenario Setting'!$F$68:$H$68)=0,J600,J1082) -> 0 | V117: 0.1232192 | W117: 14.96813857 | X117: 0 | Y117: 13.6073987 | Z117: =IF(SUM('Scenario Setting'!$F$68:$H$68)=0,Q600,Q1082) -> 0.121405752 | AA117: 1 | AB117: Electric | AI117: =INDEX('Scenario Parameters'!$E$36:$L$43,MATCH(AB117,'Scenario Parameters'!$D$36:$D$43,0),MATCH(B117,'Scenario Parameters'!$E$9:$L$9,0))*AA117 -> 0
B118: 2030 | C118: 2Ws | D118: Motorcycle/Motorcycle-sharing | E118: ICE SI | F118: Gasoline | G118: =IF(SUM('Scenario Setting'!$F$68:$H$68)=0,G601,G1083) -> 0.5895081 | H118: =IF(SUM('Scenario Setting'!$F$68:$H$68)=0,H601,H1083) -> 0 | I118: =IF(SUM('Scenario Setting'!$F$68:$H$68)=0,I601,I1083) -> 13.28 | J118: 69.3 | K118: =IF(SUM('Scenario Setting'!$F$68:$H$68)=0,K601,K1083) -> 0.02459151 | L118: 0.01449689434 | M118: =IF(SUM('Scenario Setting'!$F$68:$H$68)=0,L601,L1083) -> 0.266 | N118: =IF(SUM('Scenario Setting'!$F$68:$H$68)=0,M601,M1083) -> 0.005 | O118: =IF(SUM('Scenario Setting'!$F$68:$H$68)=0,N601,N1083) -> 0 | P118: =IF(SUM('Scenario Setting'!$F$68:$H$68)=0,O601,O1083) -> 1.1 | Q118: =IF(SUM('Scenario Setting'!$F$68:$H$68)=0,P601,P1083) -> 0 | R118: =IF('Scenario Setting'!$H$77=1,INDEX('Scenario Parameters'!$E$36:$L$43,MATCH(AB118,'Scenario Parameters'!$D$36:$D$43,0),MATCH(B118,'Scenario Parameters'!$E$9:$L$9,0))*AA118/SUMIFS($AI$111:$AI$126,$B$111:$B$126,B118),IF(SUM('Scenario Setting'!$F$68:$H$68)=0,Q601,Q1083)) -> 1 | S118: 0.01317899485 | T118: 0 | U118: =IF(SUM('Scenario Setting'!$F$68:$H$68)=0,J601,J1083) -> 69.3 | V118: 0.5895081 | W118: 7.828667568 | X118: 40.85291133 | Y118: 44.25598082 | Z118: =IF(SUM('Scenario Setting'!$F$68:$H$68)=0,Q601,Q1083) -> 0.878594248 | AA118: 1 | AB118: Gasoline | AI118: =INDEX('Scenario Parameters'!$E$36:$L$43,MATCH(AB118,'Scenario Parameters'!$D$36:$D$43,0),MATCH(B118,'Scenario Parameters'!$E$9:$L$9,0))*AA118 -> 0.67
B119: 2035 | C119: 2Ws | D119: Motorcycle/Motorcycle-sharing | E119: BEV | F119: Electric | G119: =IF(SUM('Scenario Setting'!$F$68:$H$68)=0,G602,G1084) -> 0 | H119: =IF(SUM('Scenario Setting'!$F$68:$H$68)=0,H602,H1084) -> 0.1206765 | I119: =IF(SUM('Scenario Setting'!$F$68:$H$68)=0,I602,I1084) -> 119.4755 | J119: 0 | K119: =IF(SUM('Scenario Setting'!$F$68:$H$68)=0,K602,K1084) -> 0.01634846 | L119: 0.001972874933 | M119: =IF(SUM('Scenario Setting'!$F$68:$H$68)=0,L602,L1084) -> 0 | N119: =IF(SUM('Scenario Setting'!$F$68:$H$68)=0,M602,M1084) -> 0 | O119: =IF(SUM('Scenario Setting'!$F$68:$H$68)=0,N602,N1084) -> 0 | P119: =IF(SUM('Scenario Setting'!$F$68:$H$68)=0,O602,O1084) -> 1.1 | Q119: =IF(SUM('Scenario Setting'!$F$68:$H$68)=0,P602,P1084) -> 1 | R119: =IF('Scenario Setting'!$H$77=1,INDEX('Scenario Parameters'!$E$36:$L$43,MATCH(AB119,'Scenario Parameters'!$D$36:$D$43,0),MATCH(B119,'Scenario Parameters'!$E$9:$L$9,0))*AA119/SUMIFS($AI$111:$AI$126,$B$111:$B$126,B119),IF(SUM('Scenario Setting'!$F$68:$H$68)=0,Q602,Q1084)) -> 0 | S119: 0.001793522667 | T119: 0 | U119: =IF(SUM('Scenario Setting'!$F$68:$H$68)=0,J602,J1084) -> 0 | V119: 0.1206765 | W119: 14.41788518 | X119: 0 | Y119: 13.10716834 | Z119: =IF(SUM('Scenario Setting'!$F$68:$H$68)=0,Q602,Q1084) -> 0.253171868 | AA119: 1 | AB119: Electric | AI119: =INDEX('Scenario Parameters'!$E$36:$L$43,MATCH(AB119,'Scenario Parameters'!$D$36:$D$43,0),MATCH(B119,'Scenario Parameters'!$E$9:$L$9,0))*AA119 -> 0
B120: 2035 | C120: 2Ws | D120: Motorcycle/Motorcycle-sharing | E120: ICE SI | F120: Gasoline | G120: =IF(SUM('Scenario Setting'!$F$68:$H$68)=0,G603,G1085) -> 0.5635754 | H120: =IF(SUM('Scenario Setting'!$F$68:$H$68)=0,H603,H1085) -> 0 | I120: =IF(SUM('Scenario Setting'!$F$68:$H$68)=0,I603,I1085) -> 14.07 | J120: 68.61 | K120: =IF(SUM('Scenario Setting'!$F$68:$H$68)=0,K603,K1085) -> 0.02637771 | L120: 0.01486582846 | M120: =IF(SUM('Scenario Setting'!$F$68:$H$68)=0,L603,L1085) -> 0.265 | N120: =IF(SUM('Scenario Setting'!$F$68:$H$68)=0,M603,M1085) -> 0.005 | O120: =IF(SUM('Scenario Setting'!$F$68:$H$68)=0,N603,N1085) -> 0 | P120: =IF(SUM('Scenario Setting'!$F$68:$H$68)=0,O603,O1085) -> 1.1 | Q120: =IF(SUM('Scenario Setting'!$F$68:$H$68)=0,P603,P1085) -> 0.01 | R120: =IF('Scenario Setting'!$H$77=1,INDEX('Scenario Parameters'!$E$36:$L$43,MATCH(AB120,'Scenario Parameters'!$D$36:$D$43,0),MATCH(B120,'Scenario Parameters'!$E$9:$L$9,0))*AA120/SUMIFS($AI$111:$AI$126,$B$111:$B$126,B120),IF(SUM('Scenario Setting'!$F$68:$H$68)=0,Q603,Q1085)) -> 1 | S120: 0.01351438951 | T120: 0.01 | U120: =IF(SUM('Scenario Setting'!$F$68:$H$68)=0,J603,J1085) -> 68.61 | V120: 0.5635754 | W120: 7.929505878 | X120: 38.66690819 | Y120: 42.36037643 | Z120: =IF(SUM('Scenario Setting'!$F$68:$H$68)=0,Q603,Q1085) -> 0.746828132 | AA120: 1 | AB120: Gasoline | AI120: =INDEX('Scenario Parameters'!$E$36:$L$43,MATCH(AB120,'Scenario Parameters'!$D$36:$D$43,0),MATCH(B120,'Scenario Parameters'!$E$9:$L$9,0))*AA120 -> 0.67
B121: 2040 | C121: 2Ws | D121: Motorcycle/Motorcycle-sharing | E121: BEV | F121: Electric | G121: =IF(SUM('Scenario Setting'!$F$68:$H$68)=0,G604,G1086) -> 0 | H121: =IF(SUM('Scenario Setting'!$F$68:$H$68)=0,H604,H1086) -> 0.1191541 | I121: =IF(SUM('Scenario Setting'!$F$68:$H$68)=0,I604,I1086) -> 116.5431 | J121: 0 | K121: =IF(SUM('Scenario Setting'!$F$68:$H$68)=0,K604,K1086) -> 0.01703736 | L121: 0.002030071297 | M121: =IF(SUM('Scenario Setting'!$F$68:$H$68)=0,L604,L1086) -> 0 | N121: =IF(SUM('Scenario Setting'!$F$68:$H$68)=0,M604,M1086) -> 0 | O121: =IF(SUM('Scenario Setting'!$F$68:$H$68)=0,N604,N1086) -> 0 | P121: =IF(SUM('Scenario Setting'!$F$68:$H$68)=0,O604,O1086) -> 1.1 | Q121: =IF(SUM('Scenario Setting'!$F$68:$H$68)=0,P604,P1086) -> 1 | R121: =IF('Scenario Setting'!$H$77=1,INDEX('Scenario Parameters'!$E$36:$L$43,MATCH(AB121,'Scenario Parameters'!$D$36:$D$43,0),MATCH(B121,'Scenario Parameters'!$E$9:$L$9,0))*AA121/SUMIFS($AI$111:$AI$126,$B$111:$B$126,B121),IF(SUM('Scenario Setting'!$F$68:$H$68)=0,Q604,Q1086)) -> 0 | S121: 0.001845519361 | T121: 0 | U121: =IF(SUM('Scenario Setting'!$F$68:$H$68)=0,J604,J1086) -> 0 | V121: 0.1191541 | W121: 13.88658819 | X121: 0 | Y121: 12.62417108 | Z121: =IF(SUM('Scenario Setting'!$F$68:$H$68)=0,Q604,Q1086) -> 0.455407967 | AA121: 1 | AB121: Electric | AI121: =INDEX('Scenario Parameters'!$E$36:$L$43,MATCH(AB121,'Scenario Parameters'!$D$36:$D$43,0),MATCH(B121,'Scenario Parameters'!$E$9:$L$9,0))*AA121 -> 0
B122: 2040 | C122: 2Ws | D122: Motorcycle/Motorcycle-sharing | E122: ICE SI | F122: Gasoline | G122: =IF(SUM('Scenario Setting'!$F$68:$H$68)=0,G605,G1087) -> 0.5483887 | H122: =IF(SUM('Scenario Setting'!$F$68:$H$68)=0,H605,H1087) -> 0 | I122: =IF(SUM('Scenario Setting'!$F$68:$H$68)=0,I605,I1087) -> 14.21 | J122: 68.61 | K122: =IF(SUM('Scenario Setting'!$F$68:$H$68)=0,K605,K1087) -> 0.02781098 | L122: 0.01525122717 | M122: =IF(SUM('Scenario Setting'!$F$68:$H$68)=0,L605,L1087) -> 0.265 | N122: =IF(SUM('Scenario Setting'!$F$68:$H$68)=0,M605,M1087) -> 0.005 | O122: =IF(SUM('Scenario Setting'!$F$68:$H$68)=0,N605,N1087) -> 0 | P122: =IF(SUM('Scenario Setting'!$F$68:$H$68)=0,O605,O1087) -> 1.1 | Q122: =IF(SUM('Scenario Setting'!$F$68:$H$68)=0,P605,P1087) -> 0.01 | R122: =IF('Scenario Setting'!$H$77=1,INDEX('Scenario Parameters'!$E$36:$L$43,MATCH(AB122,'Scenario Parameters'!$D$36:$D$43,0),MATCH(B122,'Scenario Parameters'!$E$9:$L$9,0))*AA122/SUMIFS($AI$111:$AI$126,$B$111:$B$126,B122),IF(SUM('Scenario Setting'!$F$68:$H$68)=0,Q605,Q1087)) -> 1 | S122: 0.01386475197 | T122: 0.01 | U122: =IF(SUM('Scenario Setting'!$F$68:$H$68)=0,J605,J1087) -> 68.61 | V122: 0.5483887 | W122: 7.792603427 | X122: 37.62494871 | Y122: 41.28868376 | Z122: =IF(SUM('Scenario Setting'!$F$68:$H$68)=0,Q605,Q1087) -> 0.544592033 | AA122: 1 | AB122: Gasoline | AI122: =INDEX('Scenario Parameters'!$E$36:$L$43,MATCH(AB122,'Scenario Parameters'!$D$36:$D$43,0),MATCH(B122,'Scenario Parameters'!$E$9:$L$9,0))*AA122 -> 0.67
B123: 2045 | C123: 2Ws | D123: Motorcycle/Motorcycle-sharing | E123: BEV | F123: Electric | G123: =IF(SUM('Scenario Setting'!$F$68:$H$68)=0,G606,G1088) -> 0 | H123: =IF(SUM('Scenario Setting'!$F$68:$H$68)=0,H606,H1088) -> 0.1173872 | I123: =IF(SUM('Scenario Setting'!$F$68:$H$68)=0,I606,I1088) -> 114.4513 | J123: 0 | K123: =IF(SUM('Scenario Setting'!$F$68:$H$68)=0,K606,K1088) -> 0.01911396 | L123: 0.002243734245 | M123: =IF(SUM('Scenario Setting'!$F$68:$H$68)=0,L606,L1088) -> 0 | N123: =IF(SUM('Scenario Setting'!$F$68:$H$68)=0,M606,M1088) -> 0 | O123: =IF(SUM('Scenario Setting'!$F$68:$H$68)=0,N606,N1088) -> 0 | P123: =IF(SUM('Scenario Setting'!$F$68:$H$68)=0,O606,O1088) -> 1.1 | Q123: =IF(SUM('Scenario Setting'!$F$68:$H$68)=0,P606,P1088) -> 1 | R123: =IF('Scenario Setting'!$H$77=1,INDEX('Scenario Parameters'!$E$36:$L$43,MATCH(AB123,'Scenario Parameters'!$D$36:$D$43,0),MATCH(B123,'Scenario Parameters'!$E$9:$L$9,0))*AA123/SUMIFS($AI$111:$AI$126,$B$111:$B$126,B123),IF(SUM('Scenario Setting'!$F$68:$H$68)=0,Q606,Q1088)) -> 0 | S123: 0.002039758405 | T123: 0 | U123: =IF(SUM('Scenario Setting'!$F$68:$H$68)=0,J606,J1088) -> 0 | V123: 0.1173872 | W123: 13.43511764 | X123: 0 | Y123: 12.21374331 | Z123: =IF(SUM('Scenario Setting'!$F$68:$H$68)=0,Q606,Q1088) -> 0.672463773 | AA123: 1 | AB123: Electric | AI123: =INDEX('Scenario Parameters'!$E$36:$L$43,MATCH(AB123,'Scenario Parameters'!$D$36:$D$43,0),MATCH(B123,'Scenario Parameters'!$E$9:$L$9,0))*AA123 -> 0
B124: 2045 | C124: 2Ws | D124: Motorcycle/Motorcycle-sharing | E124: ICE SI | F124: Gasoline | G124: =IF(SUM('Scenario Setting'!$F$68:$H$68)=0,G607,G1089) -> 0.5318137 | H124: =IF(SUM('Scenario Setting'!$F$68:$H$68)=0,H607,H1089) -> 0 | I124: =IF(SUM('Scenario Setting'!$F$68:$H$68)=0,I607,I1089) -> 14.37 | J124: 68.61 | K124: =IF(SUM('Scenario Setting'!$F$68:$H$68)=0,K607,K1089) -> 0.02833866 | L124: 0.01507088763 | M124: =IF(SUM('Scenario Setting'!$F$68:$H$68)=0,L607,L1089) -> 0.265 | N124: =IF(SUM('Scenario Setting'!$F$68:$H$68)=0,M607,M1089) -> 0.005 | O124: =IF(SUM('Scenario Setting'!$F$68:$H$68)=0,N607,N1089) -> 0 | P124: =IF(SUM('Scenario Setting'!$F$68:$H$68)=0,O607,O1089) -> 1.1 | Q124: =IF(SUM('Scenario Setting'!$F$68:$H$68)=0,P607,P1089) -> 0.01 | R124: =IF('Scenario Setting'!$H$77=1,INDEX('Scenario Parameters'!$E$36:$L$43,MATCH(AB124,'Scenario Parameters'!$D$36:$D$43,0),MATCH(B124,'Scenario Parameters'!$E$9:$L$9,0))*AA124/SUMIFS($AI$111:$AI$126,$B$111:$B$126,B124),IF(SUM('Scenario Setting'!$F$68:$H$68)=0,Q607,Q1089)) -> 1 | S124: 0.01370080693 | T124: 0.01 | U124: =IF(SUM('Scenario Setting'!$F$68:$H$68)=0,J607,J1089) -> 68.61 | V124: 0.5318137 | W124: 7.642162869 | X124: 36.48773796 | Y124: 40.11809166 | Z124: =IF(SUM('Scenario Setting'!$F$68:$H$68)=0,Q607,Q1089) -> 0.327536227 | AA124: 1 | AB124: Gasoline | AI124: =INDEX('Scenario Parameters'!$E$36:$L$43,MATCH(AB124,'Scenario Parameters'!$D$36:$D$43,0),MATCH(B124,'Scenario Parameters'!$E$9:$L$9,0))*AA124 -> 0.67
B125: 2050 | C125: 2Ws | D125: Motorcycle/Motorcycle-sharing | E125: BEV | F125: Electric | G125: =IF(SUM('Scenario Setting'!$F$68:$H$68)=0,G608,G1090) -> 0 | H125: =IF(SUM('Scenario Setting'!$F$68:$H$68)=0,H608,H1090) -> 0.115412 | I125: =IF(SUM('Scenario Setting'!$F$68:$H$68)=0,I608,I1090) -> 110.251 | J125: 0 | K125: =IF(SUM('Scenario Setting'!$F$68:$H$68)=0,K608,K1090) -> 0.01985828 | L125: 0.002291883811 | M125: =IF(SUM('Scenario Setting'!$F$68:$H$68)=0,L608,L1090) -> 0 | N125: =IF(SUM('Scenario Setting'!$F$68:$H$68)=0,M608,M1090) -> 0 | O125: =IF(SUM('Scenario Setting'!$F$68:$H$68)=0,N608,N1090) -> 0 | P125: =IF(SUM('Scenario Setting'!$F$68:$H$68)=0,O608,O1090) -> 1.1 | Q125: =IF(SUM('Scenario Setting'!$F$68:$H$68)=0,P608,P1090) -> 1 | R125: =IF('Scenario Setting'!$H$77=1,INDEX('Scenario Parameters'!$E$36:$L$43,MATCH(AB125,'Scenario Parameters'!$D$36:$D$43,0),MATCH(B125,'Scenario Parameters'!$E$9:$L$9,0))*AA125/SUMIFS($AI$111:$AI$126,$B$111:$B$126,B125),IF(SUM('Scenario Setting'!$F$68:$H$68)=0,Q608,Q1090)) -> 0 | S125: 0.002083530738 | T125: 0 | U125: =IF(SUM('Scenario Setting'!$F$68:$H$68)=0,J608,J1090) -> 0 | V125: 0.115412 | W125: 12.72428841 | X125: 0 | Y125: 11.56753492 | Z125: =IF(SUM('Scenario Setting'!$F$68:$H$68)=0,Q608,Q1090) -> 0.834348357 | AA125: 1 | AB125: Electric | AI125: =INDEX('Scenario Parameters'!$E$36:$L$43,MATCH(AB125,'Scenario Parameters'!$D$36:$D$43,0),MATCH(B125,'Scenario Parameters'!$E$9:$L$9,0))*AA125 -> 0
B126: 2050 | C126: 2Ws | D126: Motorcycle/Motorcycle-sharing | E126: ICE SI | F126: Gasoline | G126: =IF(SUM('Scenario Setting'!$F$68:$H$68)=0,G609,G1091) -> 0.5142521 | H126: =IF(SUM('Scenario Setting'!$F$68:$H$68)=0,H609,H1091) -> 0 | I126: =IF(SUM('Scenario Setting'!$F$68:$H$68)=0,I609,I1091) -> 15.28 | J126: 67.91 | K126: =IF(SUM('Scenario Setting'!$F$68:$H$68)=0,K609,K1091) -> 0.02925039 | L126: 0.01504207448 | M126: =IF(SUM('Scenario Setting'!$F$68:$H$68)=0,L609,L1091) -> 0.265 | N126: =IF(SUM('Scenario Setting'!$F$68:$H$68)=0,M609,M1091) -> 0.005 | O126: =IF(SUM('Scenario Setting'!$F$68:$H$68)=0,N609,N1091) -> 0 | P126: =IF(SUM('Scenario Setting'!$F$68:$H$68)=0,O609,O1091) -> 1.1 | Q126: =IF(SUM('Scenario Setting'!$F$68:$H$68)=0,P609,P1091) -> 0.02 | R126: =IF('Scenario Setting'!$H$77=1,INDEX('Scenario Parameters'!$E$36:$L$43,MATCH(AB126,'Scenario Parameters'!$D$36:$D$43,0),MATCH(B126,'Scenario Parameters'!$E$9:$L$9,0))*AA126/SUMIFS($AI$111:$AI$126,$B$111:$B$126,B126),IF(SUM('Scenario Setting'!$F$68:$H$68)=0,Q609,Q1091)) -> 1 | S126: 0.01367461317 | T126: 0.02 | U126: =IF(SUM('Scenario Setting'!$F$68:$H$68)=0,J609,J1091) -> 67.91 | V126: 0.5142521 | W126: 7.857772088 | X126: 34.92286011 | Y126: 38.89148382 | Z126: =IF(SUM('Scenario Setting'!$F$68:$H$68)=0,Q609,Q1091) -> 0.165651643 | AA126: 1 | AB126: Gasoline | AI126: =INDEX('Scenario Parameters'!$E$36:$L$43,MATCH(AB126,'Scenario Parameters'!$D$36:$D$43,0),MATCH(B126,'Scenario Parameters'!$E$9:$L$9,0))*AA126 -> 0.67
B127: 2015 | C127: Bike and scooter sharing | D127: Bike and scooter sharing | E127: BEV | F127: Electric | G127: =IF(SUM('Scenario Setting'!$F$68:$H$68)=0,G610,G1092) -> 0 | H127: =IF(SUM('Scenario Setting'!$F$68:$H$68)=0,H610,H1092) -> 0.08 | I127: =IF(SUM('Scenario Setting'!$F$68:$H$68)=0,I610,I1092) -> 129.0164 | J127: 0 | K127: =IF(SUM('Scenario Setting'!$F$68:$H$68)=0,K610,K1092) -> 0.03363398 | L127: 0.0026907184 | M127: =IF(SUM('Scenario Setting'!$F$68:$H$68)=0,L610,L1092) -> 0 | N127: =IF(SUM('Scenario Setting'!$F$68:$H$68)=0,M610,M1092) -> 0 | O127: =IF(SUM('Scenario Setting'!$F$68:$H$68)=0,N610,N1092) -> 0 | P127: =IF(SUM('Scenario Setting'!$F$68:$H$68)=0,O610,O1092) -> 1 | Q127: =IF(SUM('Scenario Setting'!$F$68:$H$68)=0,P610,P1092) -> 1 | R127: =IF(SUM('Scenario Setting'!$F$68:$H$68)=0,Q610,Q1092) -> 0.01 | S127: 0.0026907184 | T127: 0.01 | U127: =IF(SUM('Scenario Setting'!$F$68:$H$68)=0,J610,J1092) -> 0 | V127: 0.08 | W127: 10.321312 | X127: 0 | Y127: 10.321312 | Z127: =IF(SUM('Scenario Setting'!$F$68:$H$68)=0,Q610,Q1092) -> 0.01
B128: 2020 | C128: Bike and scooter sharing | D128: Bike and scooter sharing | E128: BEV | F128: Electric | G128: =IF(SUM('Scenario Setting'!$F$68:$H$68)=0,G611,G1093) -> 0 | H128: =IF(SUM('Scenario Setting'!$F$68:$H$68)=0,H611,H1093) -> 0.08 | I128: =IF(SUM('Scenario Setting'!$F$68:$H$68)=0,I611,I1093) -> 143.8438 | J128: 0 | K128: =IF(SUM('Scenario Setting'!$F$68:$H$68)=0,K611,K1093) -> 0.02159915 | L128: 0.001727932 | M128: =IF(SUM('Scenario Setting'!$F$68:$H$68)=0,L611,L1093) -> 0 | N128: =IF(SUM('Scenario Setting'!$F$68:$H$68)=0,M611,M1093) -> 0 | O128: =IF(SUM('Scenario Setting'!$F$68:$H$68)=0,N611,N1093) -> 0 | P128: =IF(SUM('Scenario Setting'!$F$68:$H$68)=0,O611,O1093) -> 1 | Q128: =IF(SUM('Scenario Setting'!$F$68:$H$68)=0,P611,P1093) -> 1 | R128: =IF(SUM('Scenario Setting'!$F$68:$H$68)=0,Q611,Q1093) -> 1 | S128: 0.001727932 | T128: 1 | U128: =IF(SUM('Scenario Setting'!$F$68:$H$68)=0,J611,J1093) -> 0 | V128: 0.08 | W128: 11.507504 | X128: 0 | Y128: 11.507504 | Z128: =IF(SUM('Scenario Setting'!$F$68:$H$68)=0,Q611,Q1093) -> 1
B129: 2025 | C129: Bike and scooter sharing | D129: Bike and scooter sharing | E129: BEV | F129: Electric | G129: =IF(SUM('Scenario Setting'!$F$68:$H$68)=0,G612,G1094) -> 0 | H129: =IF(SUM('Scenario Setting'!$F$68:$H$68)=0,H612,H1094) -> 0.08 | I129: =IF(SUM('Scenario Setting'!$F$68:$H$68)=0,I612,I1094) -> 124.9004 | J129: 0 | K129: =IF(SUM('Scenario Setting'!$F$68:$H$68)=0,K612,K1094) -> 0.02255694 | L129: 0.0018045552 | M129: =IF(SUM('Scenario Setting'!$F$68:$H$68)=0,L612,L1094) -> 0 | N129: =IF(SUM('Scenario Setting'!$F$68:$H$68)=0,M612,M1094) -> 0 | O129: =IF(SUM('Scenario Setting'!$F$68:$H$68)=0,N612,N1094) -> 0 | P129: =IF(SUM('Scenario Setting'!$F$68:$H$68)=0,O612,O1094) -> 1 | Q129: =IF(SUM('Scenario Setting'!$F$68:$H$68)=0,P612,P1094) -> 1 | R129: =IF(SUM('Scenario Setting'!$F$68:$H$68)=0,Q612,Q1094) -> 1 | S129: 0.0018045552 | T129: 1 | U129: =IF(SUM('Scenario Setting'!$F$68:$H$68)=0,J612,J1094) -> 0 | V129: 0.08 | W129: 9.992032 | X129: 0 | Y129: 9.992032 | Z129: =IF(SUM('Scenario Setting'!$F$68:$H$68)=0,Q612,Q1094) -> 1
B130: 2030 | C130: Bike and scooter sharing | D130: Bike and scooter sharing | E130: BEV | F130: Electric | G130: =IF(SUM('Scenario Setting'!$F$68:$H$68)=0,G613,G1095) -> 0 | H130: =IF(SUM('Scenario Setting'!$F$68:$H$68)=0,H613,H1095) -> 0.08 | I130: =IF(SUM('Scenario Setting'!$F$68:$H$68)=0,I613,I1095) -> 118.2525 | J130: 0 | K130: =IF(SUM('Scenario Setting'!$F$68:$H$68)=0,K613,K1095) -> 0.02228232 | L130: 0.0017825856 | M130: =IF(SUM('Scenario Setting'!$F$68:$H$68)=0,L613,L1095) -> 0 | N130: =IF(SUM('Scenario Setting'!$F$68:$H$68)=0,M613,M1095) -> 0 | O130: =IF(SUM('Scenario Setting'!$F$68:$H$68)=0,N613,N1095) -> 0 | P130: =IF(SUM('Scenario Setting'!$F$68:$H$68)=0,O613,O1095) -> 1 | Q130: =IF(SUM('Scenario Setting'!$F$68:$H$68)=0,P613,P1095) -> 1 | R130: =IF(SUM('Scenario Setting'!$F$68:$H$68)=0,Q613,Q1095) -> 1 | S130: 0.0017825856 | T130: 1 | U130: =IF(SUM('Scenario Setting'!$F$68:$H$68)=0,J613,J1095) -> 0 | V130: 0.08 | W130: 9.4602 | X130: 0 | Y130: 9.4602 | Z130: =IF(SUM('Scenario Setting'!$F$68:$H$68)=0,Q613,Q1095) -> 1
B131: 2035 | C131: Bike and scooter sharing | D131: Bike and scooter sharing | E131: BEV | F131: Electric | G131: =IF(SUM('Scenario Setting'!$F$68:$H$68)=0,G614,G1096) -> 0 | H131: =IF(SUM('Scenario Setting'!$F$68:$H$68)=0,H614,H1096) -> 0.08 | I131: =IF(SUM('Scenario Setting'!$F$68:$H$68)=0,I614,I1096) -> 115.597 | J131: 0 | K131: =IF(SUM('Scenario Setting'!$F$68:$H$68)=0,K614,K1096) -> 0.02487393 | L131: 0.0019899144 | M131: =IF(SUM('Scenario Setting'!$F$68:$H$68)=0,L614,L1096) -> 0 | N131: =IF(SUM('Scenario Setting'!$F$68:$H$68)=0,M614,M1096) -> 0 | O131: =IF(SUM('Scenario Setting'!$F$68:$H$68)=0,N614,N1096) -> 0 | P131: =IF(SUM('Scenario Setting'!$F$68:$H$68)=0,O614,O1096) -> 1 | Q131: =IF(SUM('Scenario Setting'!$F$68:$H$68)=0,P614,P1096) -> 1 | R131: =IF(SUM('Scenario Setting'!$F$68:$H$68)=0,Q614,Q1096) -> 1 | S131: 0.0019899144 | T131: 1 | U131: =IF(SUM('Scenario Setting'!$F$68:$H$68)=0,J614,J1096) -> 0 | V131: 0.08 | W131: 9.24776 | X131: 0 | Y131: 9.24776 | Z131: =IF(SUM('Scenario Setting'!$F$68:$H$68)=0,Q614,Q1096) -> 1
B132: 2040 | C132: Bike and scooter sharing | D132: Bike and scooter sharing | E132: BEV | F132: Electric | G132: =IF(SUM('Scenario Setting'!$F$68:$H$68)=0,G615,G1097) -> 0 | H132: =IF(SUM('Scenario Setting'!$F$68:$H$68)=0,H615,H1097) -> 0.08 | I132: =IF(SUM('Scenario Setting'!$F$68:$H$68)=0,I615,I1097) -> 112.2342 | J132: 0 | K132: =IF(SUM('Scenario Setting'!$F$68:$H$68)=0,K615,K1097) -> 0.02616846 | L132: 0.0020934768 | M132: =IF(SUM('Scenario Setting'!$F$68:$H$68)=0,L615,L1097) -> 0 | N132: =IF(SUM('Scenario Setting'!$F$68:$H$68)=0,M615,M1097) -> 0 | O132: =IF(SUM('Scenario Setting'!$F$68:$H$68)=0,N615,N1097) -> 0 | P132: =IF(SUM('Scenario Setting'!$F$68:$H$68)=0,O615,O1097) -> 1 | Q132: =IF(SUM('Scenario Setting'!$F$68:$H$68)=0,P615,P1097) -> 1 | R132: =IF(SUM('Scenario Setting'!$F$68:$H$68)=0,Q615,Q1097) -> 1 | S132: 0.0020934768 | T132: 1 | U132: =IF(SUM('Scenario Setting'!$F$68:$H$68)=0,J615,J1097) -> 0 | V132: 0.08 | W132: 8.978736 | X132: 0 | Y132: 8.978736 | Z132: =IF(SUM('Scenario Setting'!$F$68:$H$68)=0,Q615,Q1097) -> 1
B133: 2045 | C133: Bike and scooter sharing | D133: Bike and scooter sharing | E133: BEV | F133: Electric | G133: =IF(SUM('Scenario Setting'!$F$68:$H$68)=0,G616,G1098) -> 0 | H133: =IF(SUM('Scenario Setting'!$F$68:$H$68)=0,H616,H1098) -> 0.08 | I133: =IF(SUM('Scenario Setting'!$F$68:$H$68)=0,I616,I1098) -> 111.0517 | J133: 0 | K133: =IF(SUM('Scenario Setting'!$F$68:$H$68)=0,K616,K1098) -> 0.02794125 | L133: 0.0022353 | M133: =IF(SUM('Scenario Setting'!$F$68:$H$68)=0,L616,L1098) -> 0 | N133: =IF(SUM('Scenario Setting'!$F$68:$H$68)=0,M616,M1098) -> 0 | O133: =IF(SUM('Scenario Setting'!$F$68:$H$68)=0,N616,N1098) -> 0 | P133: =IF(SUM('Scenario Setting'!$F$68:$H$68)=0,O616,O1098) -> 1 | Q133: =IF(SUM('Scenario Setting'!$F$68:$H$68)=0,P616,P1098) -> 1 | R133: =IF(SUM('Scenario Setting'!$F$68:$H$68)=0,Q616,Q1098) -> 1 | S133: 0.0022353 | T133: 1 | U133: =IF(SUM('Scenario Setting'!$F$68:$H$68)=0,J616,J1098) -> 0 | V133: 0.08 | W133: 8.884136 | X133: 0 | Y133: 8.884136 | Z133: =IF(SUM('Scenario Setting'!$F$68:$H$68)=0,Q616,Q1098) -> 1
B134: 2050 | C134: Bike and scooter sharing | D134: Bike and scooter sharing | E134: BEV | F134: Electric | G134: =IF(SUM('Scenario Setting'!$F$68:$H$68)=0,G617,G1099) -> 0 | H134: =IF(SUM('Scenario Setting'!$F$68:$H$68)=0,H617,H1099) -> 0.08 | I134: =IF(SUM('Scenario Setting'!$F$68:$H$68)=0,I617,I1099) -> 109.1055 | J134: 0 | K134: =IF(SUM('Scenario Setting'!$F$68:$H$68)=0,K617,K1099) -> 0.02790351 | L134: 0.0022322808 | M134: =IF(SUM('Scenario Setting'!$F$68:$H$68)=0,L617,L1099) -> 0 | N134: =IF(SUM('Scenario Setting'!$F$68:$H$68)=0,M617,M1099) -> 0 | O134: =IF(SUM('Scenario Setting'!$F$68:$H$68)=0,N617,N1099) -> 0 | P134: =IF(SUM('Scenario Setting'!$F$68:$H$68)=0,O617,O1099) -> 1 | Q134: =IF(SUM('Scenario Setting'!$F$68:$H$68)=0,P617,P1099) -> 1 | R134: =IF(SUM('Scenario Setting'!$F$68:$H$68)=0,Q617,Q1099) -> 1 | S134: 0.0022322808 | T134: 1 | U134: =IF(SUM('Scenario Setting'!$F$68:$H$68)=0,J617,J1099) -> 0 | V134: 0.08 | W134: 8.72844 | X134: 0 | Y134: 8.72844 | Z134: =IF(SUM('Scenario Setting'!$F$68:$H$68)=0,Q617,Q1099) -> 1
B135: 2015 | C135: MetroRail | D135: PT-Metro | E135: BEV | F135: Electric | G135: =IF(SUM('Scenario Setting'!$F$68:$H$68)=0,G618,G1100) -> 0 | H135: =IF(SUM('Scenario Setting'!$F$68:$H$68)=0,H618,H1100) -> 85.27732 | I135: =IF(SUM('Scenario Setting'!$F$68:$H$68)=0,I618,I1100) -> 129.0164 | J135: 0 | K135: =IF(SUM('Scenario Setting'!$F$68:$H$68)=0,K618,K1100) -> 0.03363398 | L135: 2.868215675 | M135: =IF(SUM('Scenario Setting'!$F$68:$H$68)=0,L618,L1100) -> 0 | N135: =IF(SUM('Scenario Setting'!$F$68:$H$68)=0,M618,M1100) -> 0 | O135: =IF(SUM('Scenario Setting'!$F$68:$H$68)=0,N618,N1100) -> 0 | P135: =IF(SUM('Scenario Setting'!$F$68:$H$68)=0,O618,O1100) -> 205.0812 | Q135: =IF(SUM('Scenario Setting'!$F$68:$H$68)=0,P618,P1100) -> 1 | R135: =IF(SUM('Scenario Setting'!$F$68:$H$68)=0,Q618,Q1100) -> 1 | S135: 0.01398575625 | T135: 1 | U135: =IF(SUM('Scenario Setting'!$F$68:$H$68)=0,J618,J1100) -> 0 | V135: 85.27732 | W135: 11002.17283 | X135: 0 | Y135: 53.64788595 | Z135: =IF(SUM('Scenario Setting'!$F$68:$H$68)=0,Q618,Q1100) -> 1
B136: 2020 | C136: MetroRail | D136: PT-Metro | E136: BEV | F136: Electric | G136: =IF(SUM('Scenario Setting'!$F$68:$H$68)=0,G619,G1101) -> 0 | H136: =IF(SUM('Scenario Setting'!$F$68:$H$68)=0,H619,H1101) -> 85.27732 | I136: =IF(SUM('Scenario Setting'!$F$68:$H$68)=0,I619,I1101) -> 141.4426 | J136: 0 | K136: =IF(SUM('Scenario Setting'!$F$68:$H$68)=0,K619,K1101) -> 0.01311232 | L136: 1.118183509 | M136: =IF(SUM('Scenario Setting'!$F$68:$H$68)=0,L619,L1101) -> 0 | N136: =IF(SUM('Scenario Setting'!$F$68:$H$68)=0,M619,M1101) -> 0 | O136: =IF(SUM('Scenario Setting'!$F$68:$H$68)=0,N619,N1101) -> 0 | P136: =IF(SUM('Scenario Setting'!$F$68:$H$68)=0,O619,O1101) -> 205.0812 | Q136: =IF(SUM('Scenario Setting'!$F$68:$H$68)=0,P619,P1101) -> 1 | R136: =IF(SUM('Scenario Setting'!$F$68:$H$68)=0,Q619,Q1101) -> 1 | S136: 0.00545239402 | T136: 1 | U136: =IF(SUM('Scenario Setting'!$F$68:$H$68)=0,J619,J1101) -> 0 | V136: 85.27732 | W136: 12061.84586 | X136: 0 | Y136: 58.81497603 | Z136: =IF(SUM('Scenario Setting'!$F$68:$H$68)=0,Q619,Q1101) -> 1
B137: 2025 | C137: MetroRail | D137: PT-Metro | E137: BEV | F137: Electric | G137: =IF(SUM('Scenario Setting'!$F$68:$H$68)=0,G620,G1102) -> 0 | H137: =IF(SUM('Scenario Setting'!$F$68:$H$68)=0,H620,H1102) -> 68.04272 | I137: =IF(SUM('Scenario Setting'!$F$68:$H$68)=0,I620,I1102) -> 103.2808 | J137: 0 | K137: =IF(SUM('Scenario Setting'!$F$68:$H$68)=0,K620,K1102) -> 0.01355745 | L137: 0.9224857743 | M137: =IF(SUM('Scenario Setting'!$F$68:$H$68)=0,L620,L1102) -> 0 | N137: =IF(SUM('Scenario Setting'!$F$68:$H$68)=0,M620,M1102) -> 0 | O137: =IF(SUM('Scenario Setting'!$F$68:$H$68)=0,N620,N1102) -> 0 | P137: =IF(SUM('Scenario Setting'!$F$68:$H$68)=0,O620,O1102) -> 205.0812 | Q137: =IF(SUM('Scenario Setting'!$F$68:$H$68)=0,P620,P1102) -> 1 | R137: =IF(SUM('Scenario Setting'!$F$68:$H$68)=0,Q620,Q1102) -> 1 | S137: 0.0044981489 | T137: 1 | U137: =IF(SUM('Scenario Setting'!$F$68:$H$68)=0,J620,J1102) -> 0 | V137: 68.04272 | W137: 7027.506556 | X137: 0 | Y137: 34.26694673 | Z137: =IF(SUM('Scenario Setting'!$F$68:$H$68)=0,Q620,Q1102) -> 1
B138: 2030 | C138: MetroRail | D138: PT-Metro | E138: BEV | F138: Electric | G138: =IF(SUM('Scenario Setting'!$F$68:$H$68)=0,G621,G1103) -> 0 | H138: =IF(SUM('Scenario Setting'!$F$68:$H$68)=0,H621,H1103) -> 54.29123 | I138: =IF(SUM('Scenario Setting'!$F$68:$H$68)=0,I621,I1103) -> 96.06062 | J138: 0 | K138: =IF(SUM('Scenario Setting'!$F$68:$H$68)=0,K621,K1103) -> 0.01448755 | L138: 0.7865469092 | M138: =IF(SUM('Scenario Setting'!$F$68:$H$68)=0,L621,L1103) -> 0 | N138: =IF(SUM('Scenario Setting'!$F$68:$H$68)=0,M621,M1103) -> 0 | O138: =IF(SUM('Scenario Setting'!$F$68:$H$68)=0,N621,N1103) -> 0 | P138: =IF(SUM('Scenario Setting'!$F$68:$H$68)=0,O621,O1103) -> 205.0812 | Q138: =IF(SUM('Scenario Setting'!$F$68:$H$68)=0,P621,P1103) -> 1 | R138: =IF(SUM('Scenario Setting'!$F$68:$H$68)=0,Q621,Q1103) -> 1 | S138: 0.00383529504 | T138: 1 | U138: =IF(SUM('Scenario Setting'!$F$68:$H$68)=0,J621,J1103) -> 0 | V138: 54.29123 | W138: 5215.249214 | X138: 0 | Y138: 25.43016724 | Z138: =IF(SUM('Scenario Setting'!$F$68:$H$68)=0,Q621,Q1103) -> 1
B139: 2035 | C139: MetroRail | D139: PT-Metro | E139: BEV | F139: Electric | G139: =IF(SUM('Scenario Setting'!$F$68:$H$68)=0,G622,G1104) -> 0 | H139: =IF(SUM('Scenario Setting'!$F$68:$H$68)=0,H622,H1104) -> 43.31894 | I139: =IF(SUM('Scenario Setting'!$F$68:$H$68)=0,I622,I1104) -> 92.16247 | J139: 0 | K139: =IF(SUM('Scenario Setting'!$F$68:$H$68)=0,K622,K1104) -> 0.01634846 | L139: 0.7081979578 | M139: =IF(SUM('Scenario Setting'!$F$68:$H$68)=0,L622,L1104) -> 0 | N139: =IF(SUM('Scenario Setting'!$F$68:$H$68)=0,M622,M1104) -> 0 | O139: =IF(SUM('Scenario Setting'!$F$68:$H$68)=0,N622,N1104) -> 0 | P139: =IF(SUM('Scenario Setting'!$F$68:$H$68)=0,O622,O1104) -> 205.0812 | Q139: =IF(SUM('Scenario Setting'!$F$68:$H$68)=0,P622,P1104) -> 1 | R139: =IF(SUM('Scenario Setting'!$F$68:$H$68)=0,Q622,Q1104) -> 1 | S139: 0.003453256358 | T139: 1 | U139: =IF(SUM('Scenario Setting'!$F$68:$H$68)=0,J622,J1104) -> 0 | V139: 43.31894 | W139: 3992.380508 | X139: 0 | Y139: 19.46731591 | Z139: =IF(SUM('Scenario Setting'!$F$68:$H$68)=0,Q622,Q1104) -> 1
B140: 2040 | C140: MetroRail | D140: PT-Metro | E140: BEV | F140: Electric | G140: =IF(SUM('Scenario Setting'!$F$68:$H$68)=0,G623,G1105) -> 0 | H140: =IF(SUM('Scenario Setting'!$F$68:$H$68)=0,H623,H1105) -> 34.56415 | I140: =IF(SUM('Scenario Setting'!$F$68:$H$68)=0,I623,I1105) -> 85.98598 | J140: 0 | K140: =IF(SUM('Scenario Setting'!$F$68:$H$68)=0,K623,K1105) -> 0.01703736 | L140: 0.5888818666 | M140: =IF(SUM('Scenario Setting'!$F$68:$H$68)=0,L623,L1105) -> 0 | N140: =IF(SUM('Scenario Setting'!$F$68:$H$68)=0,M623,M1105) -> 0 | O140: =IF(SUM('Scenario Setting'!$F$68:$H$68)=0,N623,N1105) -> 0 | P140: =IF(SUM('Scenario Setting'!$F$68:$H$68)=0,O623,O1105) -> 205.0812 | Q140: =IF(SUM('Scenario Setting'!$F$68:$H$68)=0,P623,P1105) -> 1 | R140: =IF(SUM('Scenario Setting'!$F$68:$H$68)=0,Q623,Q1105) -> 1 | S140: 0.002871457094 | T140: 1 | U140: =IF(SUM('Scenario Setting'!$F$68:$H$68)=0,J623,J1105) -> 0 | V140: 34.56415 | W140: 2972.032311 | X140: 0 | Y140: 14.49197835 | Z140: =IF(SUM('Scenario Setting'!$F$68:$H$68)=0,Q623,Q1105) -> 1
B141: 2045 | C141: MetroRail | D141: PT-Metro | E141: BEV | F141: Electric | G141: =IF(SUM('Scenario Setting'!$F$68:$H$68)=0,G624,G1106) -> 0 | H141: =IF(SUM('Scenario Setting'!$F$68:$H$68)=0,H624,H1106) -> 27.57871 | I141: =IF(SUM('Scenario Setting'!$F$68:$H$68)=0,I624,I1106) -> 90.05293 | J141: 0 | K141: =IF(SUM('Scenario Setting'!$F$68:$H$68)=0,K624,K1106) -> 0.01911396 | L141: 0.5271383598 | M141: =IF(SUM('Scenario Setting'!$F$68:$H$68)=0,L624,L1106) -> 0 | N141: =IF(SUM('Scenario Setting'!$F$68:$H$68)=0,M624,M1106) -> 0 | O141: =IF(SUM('Scenario Setting'!$F$68:$H$68)=0,N624,N1106) -> 0 | P141: =IF(SUM('Scenario Setting'!$F$68:$H$68)=0,O624,O1106) -> 205.0812 | Q141: =IF(SUM('Scenario Setting'!$F$68:$H$68)=0,P624,P1106) -> 1 | R141: =IF(SUM('Scenario Setting'!$F$68:$H$68)=0,Q624,Q1106) -> 1 | S141: 0.002570388509 | T141: 1 | U141: =IF(SUM('Scenario Setting'!$F$68:$H$68)=0,J624,J1106) -> 0 | V141: 27.57871 | W141: 2483.543641 | X141: 0 | Y141: 12.11005027 | Z141: =IF(SUM('Scenario Setting'!$F$68:$H$68)=0,Q624,Q1106) -> 1
B142: 2050 | C142: MetroRail | D142: PT-Metro | E142: BEV | F142: Electric | G142: =IF(SUM('Scenario Setting'!$F$68:$H$68)=0,G625,G1107) -> 0 | H142: =IF(SUM('Scenario Setting'!$F$68:$H$68)=0,H625,H1107) -> 22.00503 | I142: =IF(SUM('Scenario Setting'!$F$68:$H$68)=0,I625,I1107) -> 106.7593 | J142: 0 | K142: =IF(SUM('Scenario Setting'!$F$68:$H$68)=0,K625,K1107) -> 0.01985828 | L142: 0.4369820471 | M142: =IF(SUM('Scenario Setting'!$F$68:$H$68)=0,L625,L1107) -> 0 | N142: =IF(SUM('Scenario Setting'!$F$68:$H$68)=0,M625,M1107) -> 0 | O142: =IF(SUM('Scenario Setting'!$F$68:$H$68)=0,N625,N1107) -> 0 | P142: =IF(SUM('Scenario Setting'!$F$68:$H$68)=0,O625,O1107) -> 205.0812 | Q142: =IF(SUM('Scenario Setting'!$F$68:$H$68)=0,P625,P1107) -> 1 | R142: =IF(SUM('Scenario Setting'!$F$68:$H$68)=0,Q625,Q1107) -> 1 | S142: 0.002130775747 | T142: 1 | U142: =IF(SUM('Scenario Setting'!$F$68:$H$68)=0,J625,J1107) -> 0 | V142: 22.00503 | W142: 2349.241599 | X142: 0 | Y142: 11.45517775 | Z142: =IF(SUM('Scenario Setting'!$F$68:$H$68)=0,Q625,Q1107) -> 1
B143: 2015 | C143: PCall urban | D143: PrivateCar/Ride-sharing/Car-Sharing | E143: BEV | F143: Electric | G143: =IF(SUM('Scenario Setting'!$F$68:$H$68)=0,G626,G1108) -> 0 | H143: =IF(SUM('Scenario Setting'!$F$68:$H$68)=0,H626,H1108) -> 0.7680498 | I143: =IF(SUM('Scenario Setting'!$F$68:$H$68)=0,I626,I1108) -> 129.0164 | J143: 0 | K143: =IF(SUM('Scenario Setting'!$F$68:$H$68)=0,K626,K1108) -> 0.03363398 | L143: 0.02583257161 | M143: =IF(SUM('Scenario Setting'!$F$68:$H$68)=0,L626,L1108) -> 0 | N143: =IF(SUM('Scenario Setting'!$F$68:$H$68)=0,M626,M1108) -> 0 | O143: =IF(SUM('Scenario Setting'!$F$68:$H$68)=0,N626,N1108) -> 0 | P143: =IF(SUM('Scenario Setting'!$F$68:$H$68)=0,O626,O1108) -> 1.5 | Q143: =IF(SUM('Scenario Setting'!$F$68:$H$68)=0,P626,P1108) -> 1 | R143: =IF('Scenario Setting'!$H$77=1,INDEX('Scenario Parameters'!$E$36:$L$43,MATCH(AB143,'Scenario Parameters'!$D$36:$D$43,0),MATCH(B143,'Scenario Parameters'!$E$9:$L$9,0))*AA143,IF(SUM('Scenario Setting'!$F$68:$H$68)=0,Q626,Q1108)) -> 0 | S143: 0.01722171441 | T143: 0 | U143: =IF(SUM('Scenario Setting'!$F$68:$H$68)=0,J626,J1108) -> 0 | V143: 0.7680498 | W143: 99.09102022 | X143: 0 | Y143: 66.06068014 | Z143: =IF(SUM('Scenario Setting'!$F$68:$H$68)=0,Q626,Q1108) -> 1.37e-13 | AA143: =Z143/(Z143+Z151) -> 0.5229007634 | AB143: Electric | AC143: =Q143*IF('Scenario Setting'!$H$86=1,INDEX('Scenario Parameters'!$W$36:$AD$43,MATCH(AB143,'Scenario Parameters'!$D$36:$D$43,0),MATCH(B143,'Scenario Parameters'!$W$35:$AD$35,0))*AA143,IF('Scenario Setting'!$F$68=0,Q626,Q1108)) -> 0 | AD143: =Q143*IF('Scenario Setting'!$H$86=1,INDEX('Scenario Parameters'!$AF$36:$AM$43,MATCH(AB143,'Scenario Parameters'!$D$36:$D$43,0),MATCH(B143,'Scenario Parameters'!$AF$35:$AM$35,0))*AA143,IF('Scenario Setting'!$F$68=0,Q626,Q1108)) -> 0 | AF143: =IF('Scenario Setting'!$H$86=1,INDEX('Scenario Parameters'!$W$36:$AD$43,MATCH(AB143,'Scenario Parameters'!$D$36:$D$43,0),MATCH(B143,'Scenario Parameters'!$W$35:$AD$35,0))*AA143,IF('Scenario Setting'!$F$68=0,Q626,Q1108)) -> 0 | AG143: =IF('Scenario Setting'!$H$86=1,INDEX('Scenario Parameters'!$AF$36:$AM$43,MATCH(AB143,'Scenario Parameters'!$D$36:$D$43,0),MATCH(B143,'Scenario Parameters'!$AF$35:$AM$35,0))*AA143,IF('Scenario Setting'!$F$68=0,Q626,Q1108)) -> 0
B144: 2015 | C144: PCall urban | D144: PrivateCar/Ride-sharing/Car-Sharing | E144: H2 fuel cell | F144: Hydrogen | G144: =IF(SUM('Scenario Setting'!$F$68:$H$68)=0,G627,G1109) -> 1.65573 | H144: =IF(SUM('Scenario Setting'!$F$68:$H$68)=0,H627,H1109) -> 0 | I144: =IF(SUM('Scenario Setting'!$F$68:$H$68)=0,I627,I1109) -> 116 | J144: 0 | K144: =IF(SUM('Scenario Setting'!$F$68:$H$68)=0,K627,K1109) -> 0.05045097 | L144: 0.08353318456 | M144: =IF(SUM('Scenario Setting'!$F$68:$H$68)=0,L627,L1109) -> 0 | N144: =IF(SUM('Scenario Setting'!$F$68:$H$68)=0,M627,M1109) -> 0 | O144: =IF(SUM('Scenario Setting'!$F$68:$H$68)=0,N627,N1109) -> 0 | P144: =IF(SUM('Scenario Setting'!$F$68:$H$68)=0,O627,O1109) -> 1.5 | Q144: =IF(SUM('Scenario Setting'!$F$68:$H$68)=0,P627,P1109) -> 1 | R144: =IF('Scenario Setting'!$H$77=1,INDEX('Scenario Parameters'!$E$36:$L$43,MATCH(AB144,'Scenario Parameters'!$D$36:$D$43,0),MATCH(B144,'Scenario Parameters'!$E$9:$L$9,0))*AA144,IF(SUM('Scenario Setting'!$F$68:$H$68)=0,Q627,Q1109)) -> 0 | S144: 0.05568878971 | T144: 0 | U144: =IF(SUM('Scenario Setting'!$F$68:$H$68)=0,J627,J1109) -> 0 | V144: 1.65573 | W144: 192.06468 | X144: 0 | Y144: 128.04312 | Z144: =IF(SUM('Scenario Setting'!$F$68:$H$68)=0,Q627,Q1109) -> 1.14e-06 | AA144: 1 | AB144: Hydrogen | AC144: =Q144*IF('Scenario Setting'!$H$86=1,INDEX('Scenario Parameters'!$W$36:$AD$43,MATCH(AB144,'Scenario Parameters'!$D$36:$D$43,0),MATCH(B144,'Scenario Parameters'!$W$35:$AD$35,0))*AA144,IF('Scenario Setting'!$F$68=0,Q627,Q1109)) -> 0 | AD144: =Q144*IF('Scenario Setting'!$H$86=1,INDEX('Scenario Parameters'!$AF$36:$AM$43,MATCH(AB144,'Scenario Parameters'!$D$36:$D$43,0),MATCH(B144,'Scenario Parameters'!$AF$35:$AM$35,0))*AA144,IF('Scenario Setting'!$F$68=0,Q627,Q1109)) -> 0 | AF144: =IF('Scenario Setting'!$H$86=1,INDEX('Scenario Parameters'!$W$36:$AD$43,MATCH(AB144,'Scenario Parameters'!$D$36:$D$43,0),MATCH(B144,'Scenario Parameters'!$W$35:$AD$35,0))*AA144,IF('Scenario Setting'!$F$68=0,Q627,Q1109)) -> 0 | AG144: =IF('Scenario Setting'!$H$86=1,INDEX('Scenario Parameters'!$AF$36:$AM$43,MATCH(AB144,'Scenario Parameters'!$D$36:$D$43,0),MATCH(B144,'Scenario Parameters'!$AF$35:$AM$35,0))*AA144,IF('Scenario Setting'!$F$68=0,Q627,Q1109)) -> 0
B145: 2015 | C145: PCall urban | D145: PrivateCar/Ride-sharing/Car-Sharing | E145: H2 HEV | F145: Hydrogen | G145: =IF(SUM('Scenario Setting'!$F$68:$H$68)=0,G628,G1110) -> 1.789508 | H145: =IF(SUM('Scenario Setting'!$F$68:$H$68)=0,H628,H1110) -> 0 | I145: =IF(SUM('Scenario Setting'!$F$68:$H$68)=0,I628,I1110) -> 116 | J145: 0 | K145: =IF(SUM('Scenario Setting'!$F$68:$H$68)=0,K628,K1110) -> 0.05045097 | L145: 0.09028241442 | M145: =IF(SUM('Scenario Setting'!$F$68:$H$68)=0,L628,L1110) -> 0 | N145: =IF(SUM('Scenario Setting'!$F$68:$H$68)=0,M628,M1110) -> 0 | O145: =IF(SUM('Scenario Setting'!$F$68:$H$68)=0,N628,N1110) -> 0 | P145: =IF(SUM('Scenario Setting'!$F$68:$H$68)=0,O628,O1110) -> 1.5 | Q145: =IF(SUM('Scenario Setting'!$F$68:$H$68)=0,P628,P1110) -> 1 | R145: =IF('Scenario Setting'!$H$77=1,INDEX('Scenario Parameters'!$E$36:$L$43,MATCH(AB145,'Scenario Parameters'!$D$36:$D$43,0),MATCH(B145,'Scenario Parameters'!$E$9:$L$9,0))*AA145,IF(SUM('Scenario Setting'!$F$68:$H$68)=0,Q628,Q1110)) -> 0 | S145: 0.06018827628 | T145: 0 | U145: =IF(SUM('Scenario Setting'!$F$68:$H$68)=0,J628,J1110) -> 0 | V145: 1.789508 | W145: 207.582928 | X145: 0 | Y145: 138.3886187 | Z145: =IF(SUM('Scenario Setting'!$F$68:$H$68)=0,Q628,Q1110) -> 2.28e-13 | AA145: 1 | AB145: Hydrogen-hybrid | AC145: =Q145*IF('Scenario Setting'!$H$86=1,INDEX('Scenario Parameters'!$W$36:$AD$43,MATCH(AB145,'Scenario Parameters'!$D$36:$D$43,0),MATCH(B145,'Scenario Parameters'!$W$35:$AD$35,0))*AA145,IF('Scenario Setting'!$F$68=0,Q628,Q1110)) -> 0 | AD145: =Q145*IF('Scenario Setting'!$H$86=1,INDEX('Scenario Parameters'!$AF$36:$AM$43,MATCH(AB145,'Scenario Parameters'!$D$36:$D$43,0),MATCH(B145,'Scenario Parameters'!$AF$35:$AM$35,0))*AA145,IF('Scenario Setting'!$F$68=0,Q628,Q1110)) -> 0 | AF145: =IF('Scenario Setting'!$H$86=1,INDEX('Scenario Parameters'!$W$36:$AD$43,MATCH(AB145,'Scenario Parameters'!$D$36:$D$43,0),MATCH(B145,'Scenario Parameters'!$W$35:$AD$35,0))*AA145,IF('Scenario Setting'!$F$68=0,Q628,Q1110)) -> 0 | AG145: =IF('Scenario Setting'!$H$86=1,INDEX('Scenario Parameters'!$AF$36:$AM$43,MATCH(AB145,'Scenario Parameters'!$D$36:$D$43,0),MATCH(B145,'Scenario Parameters'!$AF$35:$AM$35,0))*AA145,IF('Scenario Setting'!$F$68=0,Q628,Q1110)) -> 0
B146: 2015 | C146: PCall urban | D146: PrivateCar/Ride-sharing/Car-Sharing | E146: HEV CI or TUR | F146: Diesel | G146: =IF(SUM('Scenario Setting'!$F$68:$H$68)=0,G629,G1111) -> 1.641332 | H146: =IF(SUM('Scenario Setting'!$F$68:$H$68)=0,H629,H1111) -> 0 | I146: =IF(SUM('Scenario Setting'!$F$68:$H$68)=0,I629,I1111) -> 22.90167 | J146: 74.1 | K146: =IF(SUM('Scenario Setting'!$F$68:$H$68)=0,K629,K1111) -> 0.01747297 | L146: 0.0286789448 | M146: =IF(SUM('Scenario Setting'!$F$68:$H$68)=0,L629,L1111) -> 0.864 | N146: =IF(SUM('Scenario Setting'!$F$68:$H$68)=0,M629,M1111) -> 0.096 | O146: =IF(SUM('Scenario Setting'!$F$68:$H$68)=0,N629,N1111) -> 0.019 | P146: =IF(SUM('Scenario Setting'!$F$68:$H$68)=0,O629,O1111) -> 1.5 | Q146: =IF(SUM('Scenario Setting'!$F$68:$H$68)=0,P629,P1111) -> 0 | R146: =IF('Scenario Setting'!$H$77=1,INDEX('Scenario Parameters'!$E$36:$L$43,MATCH(AB146,'Scenario Parameters'!$D$36:$D$43,0),MATCH(B146,'Scenario Parameters'!$E$9:$L$9,0))*AA146,IF(SUM('Scenario Setting'!$F$68:$H$68)=0,Q629,Q1111)) -> 0 | S146: 0.01911929653 | T146: 0 | U146: =IF(SUM('Scenario Setting'!$F$68:$H$68)=0,J629,J1111) -> 74.1 | V146: 1.641332 | W146: 37.58924382 | X146: 121.6227012 | Y146: 106.1412967 | Z146: =IF(SUM('Scenario Setting'!$F$68:$H$68)=0,Q629,Q1111) -> 2.28e-13 | AA146: 1 | AB146: Diesel-hybrid | AC146: =Q146*IF('Scenario Setting'!$H$86=1,INDEX('Scenario Parameters'!$W$36:$AD$43,MATCH(AB146,'Scenario Parameters'!$D$36:$D$43,0),MATCH(B146,'Scenario Parameters'!$W$35:$AD$35,0))*AA146,IF('Scenario Setting'!$F$68=0,Q629,Q1111)) -> 0 | AD146: =Q146*IF('Scenario Setting'!$H$86=1,INDEX('Scenario Parameters'!$AF$36:$AM$43,MATCH(AB146,'Scenario Parameters'!$D$36:$D$43,0),MATCH(B146,'Scenario Parameters'!$AF$35:$AM$35,0))*AA146,IF('Scenario Setting'!$F$68=0,Q629,Q1111)) -> 0 | AF146: =IF('Scenario Setting'!$H$86=1,INDEX('Scenario Parameters'!$W$36:$AD$43,MATCH(AB146,'Scenario Parameters'!$D$36:$D$43,0),MATCH(B146,'Scenario Parameters'!$W$35:$AD$35,0))*AA146,IF('Scenario Setting'!$F$68=0,Q629,Q1111)) -> 0 | AG146: =IF('Scenario Setting'!$H$86=1,INDEX('Scenario Parameters'!$AF$36:$AM$43,MATCH(AB146,'Scenario Parameters'!$D$36:$D$43,0),MATCH(B146,'Scenario Parameters'!$AF$35:$AM$35,0))*AA146,IF('Scenario Setting'!$F$68=0,Q629,Q1111)) -> 0
B147: 2015 | C147: PCall urban | D147: PrivateCar/Ride-sharing/Car-Sharing | E147: HEV SI | F147: Gasoline | G147: =IF(SUM('Scenario Setting'!$F$68:$H$68)=0,G630,G1112) -> 2.734102 | H147: =IF(SUM('Scenario Setting'!$F$68:$H$68)=0,H630,H1112) -> 0 | I147: =IF(SUM('Scenario Setting'!$F$68:$H$68)=0,I630,I1112) -> 13.25 | J147: 69.3 | K147: =IF(SUM('Scenario Setting'!$F$68:$H$68)=0,K630,K1112) -> 0.01745902 | L147: 0.0477347415 | M147: =IF(SUM('Scenario Setting'!$F$68:$H$68)=0,L630,L1112) -> 0.391 | N147: =IF(SUM('Scenario Setting'!$F$68:$H$68)=0,M630,M1112) -> 0.003 | O147: =IF(SUM('Scenario Setting'!$F$68:$H$68)=0,N630,N1112) -> 0.001 | P147: =IF(SUM('Scenario Setting'!$F$68:$H$68)=0,O630,O1112) -> 1.5 | Q147: =IF(SUM('Scenario Setting'!$F$68:$H$68)=0,P630,P1112) -> 0 | R147: =IF('Scenario Setting'!$H$77=1,INDEX('Scenario Parameters'!$E$36:$L$43,MATCH(AB147,'Scenario Parameters'!$D$36:$D$43,0),MATCH(B147,'Scenario Parameters'!$E$9:$L$9,0))*AA147,IF(SUM('Scenario Setting'!$F$68:$H$68)=0,Q630,Q1112)) -> 0 | S147: 0.031823161 | T147: 0 | U147: =IF(SUM('Scenario Setting'!$F$68:$H$68)=0,J630,J1112) -> 69.3 | V147: 2.734102 | W147: 36.2268515 | X147: 189.4732686 | Y147: 150.4667467 | Z147: =IF(SUM('Scenario Setting'!$F$68:$H$68)=0,Q630,Q1112) -> 2.28e-13 | AA147: =Z147/(Z147+Z152) -> 0.6909090909 | AB147: Gasoline-hybrid | AC147: =Q147*IF('Scenario Setting'!$H$86=1,INDEX('Scenario Parameters'!$W$36:$AD$43,MATCH(AB147,'Scenario Parameters'!$D$36:$D$43,0),MATCH(B147,'Scenario Parameters'!$W$35:$AD$35,0))*AA147,IF('Scenario Setting'!$F$68=0,Q630,Q1112)) -> 0 | AD147: =Q147*IF('Scenario Setting'!$H$86=1,INDEX('Scenario Parameters'!$AF$36:$AM$43,MATCH(AB147,'Scenario Parameters'!$D$36:$D$43,0),MATCH(B147,'Scenario Parameters'!$AF$35:$AM$35,0))*AA147,IF('Scenario Setting'!$F$68=0,Q630,Q1112)) -> 0 | AF147: =IF('Scenario Setting'!$H$86=1,INDEX('Scenario Parameters'!$W$36:$AD$43,MATCH(AB147,'Scenario Parameters'!$D$36:$D$43,0),MATCH(B147,'Scenario Parameters'!$W$35:$AD$35,0))*AA147,IF('Scenario Setting'!$F$68=0,Q630,Q1112)) -> 0 | AG147: =IF('Scenario Setting'!$H$86=1,INDEX('Scenario Parameters'!$AF$36:$AM$43,MATCH(AB147,'Scenario Parameters'!$D$36:$D$43,0),MATCH(B147,'Scenario Parameters'!$AF$35:$AM$35,0))*AA147,IF('Scenario Setting'!$F$68=0,Q630,Q1112)) -> 0
B148: 2015 | C148: PCall urban | D148: PrivateCar/Ride-sharing/Car-Sharing | E148: ICE CI or TUR | F148: Diesel | G148: =IF(SUM('Scenario Setting'!$F$68:$H$68)=0,G631,G1113) -> 2.396463 | H148: =IF(SUM('Scenario Setting'!$F$68:$H$68)=0,H631,H1113) -> 0 | I148: =IF(SUM('Scenario Setting'!$F$68:$H$68)=0,I631,I1113) -> 14.75 | J148: 74.1 | K148: =IF(SUM('Scenario Setting'!$F$68:$H$68)=0,K631,K1113) -> 0.01747297 | L148: 0.04187332611 | M148: =IF(SUM('Scenario Setting'!$F$68:$H$68)=0,L631,L1113) -> 0.864 | N148: =IF(SUM('Scenario Setting'!$F$68:$H$68)=0,M631,M1113) -> 0.096 | O148: =IF(SUM('Scenario Setting'!$F$68:$H$68)=0,N631,N1113) -> 0.019 | P148: =IF(SUM('Scenario Setting'!$F$68:$H$68)=0,O631,O1113) -> 1.5 | Q148: =IF(SUM('Scenario Setting'!$F$68:$H$68)=0,P631,P1113) -> 0 | R148: =IF('Scenario Setting'!$H$77=1,INDEX('Scenario Parameters'!$E$36:$L$43,MATCH(AB148,'Scenario Parameters'!$D$36:$D$43,0),MATCH(B148,'Scenario Parameters'!$E$9:$L$9,0))*AA148,IF(SUM('Scenario Setting'!$F$68:$H$68)=0,Q631,Q1113)) -> 0.01 | S148: 0.02791555074 | T148: 0 | U148: =IF(SUM('Scenario Setting'!$F$68:$H$68)=0,J631,J1113) -> 74.1 | V148: 2.396463 | W148: 35.34782925 | X148: 177.5779083 | Y148: 141.9504917 | Z148: =IF(SUM('Scenario Setting'!$F$68:$H$68)=0,Q631,Q1113) -> 0.036005102 | AA148: 1 | AB148: Diesel | AC148: =Q148*IF('Scenario Setting'!$H$86=1,INDEX('Scenario Parameters'!$W$36:$AD$43,MATCH(AB148,'Scenario Parameters'!$D$36:$D$43,0),MATCH(B148,'Scenario Parameters'!$W$35:$AD$35,0))*AA148,IF('Scenario Setting'!$F$68=0,Q631,Q1113)) -> 0 | AD148: =Q148*IF('Scenario Setting'!$H$86=1,INDEX('Scenario Parameters'!$AF$36:$AM$43,MATCH(AB148,'Scenario Parameters'!$D$36:$D$43,0),MATCH(B148,'Scenario Parameters'!$AF$35:$AM$35,0))*AA148,IF('Scenario Setting'!$F$68=0,Q631,Q1113)) -> 0 | AF148: =IF('Scenario Setting'!$H$86=1,INDEX('Scenario Parameters'!$W$36:$AD$43,MATCH(AB148,'Scenario Parameters'!$D$36:$D$43,0),MATCH(B148,'Scenario Parameters'!$W$35:$AD$35,0))*AA148,IF('Scenario Setting'!$F$68=0,Q631,Q1113)) -> 0.01 | AG148: =IF('Scenario Setting'!$H$86=1,INDEX('Scenario Parameters'!$AF$36:$AM$43,MATCH(AB148,'Scenario Parameters'!$D$36:$D$43,0),MATCH(B148,'Scenario Parameters'!$AF$35:$AM$35,0))*AA148,IF('Scenario Setting'!$F$68=0,Q631,Q1113)) -> 0.01
B149: 2015 | C149: PCall urban | D149: PrivateCar/Ride-sharing/Car-Sharing | E149: ICE SI | F149: Gasoline | G149: =IF(SUM('Scenario Setting'!$F$68:$H$68)=0,G632,G1114) -> 3.013528 | H149: =IF(SUM('Scenario Setting'!$F$68:$H$68)=0,H632,H1114) -> 0 | I149: =IF(SUM('Scenario Setting'!$F$68:$H$68)=0,I632,I1114) -> 13.25 | J149: 69.3 | K149: =IF(SUM('Scenario Setting'!$F$68:$H$68)=0,K632,K1114) -> 0.01745902 | L149: 0.05261324562 | M149: =IF(SUM('Scenario Setting'!$F$68:$H$68)=0,L632,L1114) -> 0.391 | N149: =IF(SUM('Scenario Setting'!$F$68:$H$68)=0,M632,M1114) -> 0.003 | O149: =IF(SUM('Scenario Setting'!$F$68:$H$68)=0,N632,N1114) -> 0.001 | P149: =IF(SUM('Scenario Setting'!$F$68:$H$68)=0,O632,O1114) -> 1.5 | Q149: =IF(SUM('Scenario Setting'!$F$68:$H$68)=0,P632,P1114) -> 0 | R149: =IF('Scenario Setting'!$H$77=1,INDEX('Scenario Parameters'!$E$36:$L$43,MATCH(AB149,'Scenario Parameters'!$D$36:$D$43,0),MATCH(B149,'Scenario Parameters'!$E$9:$L$9,0))*AA149,IF(SUM('Scenario Setting'!$F$68:$H$68)=0,Q632,Q1114)) -> 0.67 | S149: 0.03507549708 | T149: 0 | U149: =IF(SUM('Scenario Setting'!$F$68:$H$68)=0,J632,J1114) -> 69.3 | V149: 3.013528 | W149: 39.929246 | X149: 208.8374904 | Y149: 165.8444909 | Z149: =IF(SUM('Scenario Setting'!$F$68:$H$68)=0,Q632,Q1114) -> 0.887268601 | AA149: 1 | AB149: Gasoline | AC149: =Q149*IF('Scenario Setting'!$H$86=1,INDEX('Scenario Parameters'!$W$36:$AD$43,MATCH(AB149,'Scenario Parameters'!$D$36:$D$43,0),MATCH(B149,'Scenario Parameters'!$W$35:$AD$35,0))*AA149,IF('Scenario Setting'!$F$68=0,Q632,Q1114)) -> 0 | AD149: =Q149*IF('Scenario Setting'!$H$86=1,INDEX('Scenario Parameters'!$AF$36:$AM$43,MATCH(AB149,'Scenario Parameters'!$D$36:$D$43,0),MATCH(B149,'Scenario Parameters'!$AF$35:$AM$35,0))*AA149,IF('Scenario Setting'!$F$68=0,Q632,Q1114)) -> 0 | AF149: =IF('Scenario Setting'!$H$86=1,INDEX('Scenario Parameters'!$W$36:$AD$43,MATCH(AB149,'Scenario Parameters'!$D$36:$D$43,0),MATCH(B149,'Scenario Parameters'!$W$35:$AD$35,0))*AA149,IF('Scenario Setting'!$F$68=0,Q632,Q1114)) -> 0.67 | AG149: =IF('Scenario Setting'!$H$86=1,INDEX('Scenario Parameters'!$AF$36:$AM$43,MATCH(AB149,'Scenario Parameters'!$D$36:$D$43,0),MATCH(B149,'Scenario Parameters'!$AF$35:$AM$35,0))*AA149,IF('Scenario Setting'!$F$68=0,Q632,Q1114)) -> 0.67
B150: 2015 | C150: PCall urban | D150: PrivateCar/Ride-sharing/Car-Sharing | E150: ICE SI | F150: LPG/CNG | G150: =IF(SUM('Scenario Setting'!$F$68:$H$68)=0,G633,G1115) -> 3.185386 | H150: =IF(SUM('Scenario Setting'!$F$68:$H$68)=0,H633,H1115) -> 0 | I150: =IF(SUM('Scenario Setting'!$F$68:$H$68)=0,I633,I1115) -> 17.99 | J150: 56.1 | K150: =IF(SUM('Scenario Setting'!$F$68:$H$68)=0,K633,K1115) -> 0.01870386 | L150: 0.05957901379 | M150: =IF(SUM('Scenario Setting'!$F$68:$H$68)=0,L633,L1115) -> 0.052 | N150: =IF(SUM('Scenario Setting'!$F$68:$H$68)=0,M633,M1115) -> 0.001 | O150: =IF(SUM('Scenario Setting'!$F$68:$H$68)=0,N633,N1115) -> 0 | P150: =IF(SUM('Scenario Setting'!$F$68:$H$68)=0,O633,O1115) -> 1.5 | Q150: =IF(SUM('Scenario Setting'!$F$68:$H$68)=0,P633,P1115) -> 0 | R150: =IF('Scenario Setting'!$H$77=1,INDEX('Scenario Parameters'!$E$36:$L$43,MATCH(AB150,'Scenario Parameters'!$D$36:$D$43,0),MATCH(B150,'Scenario Parameters'!$E$9:$L$9,0))*AA150,IF(SUM('Scenario Setting'!$F$68:$H$68)=0,Q633,Q1115)) -> 0.32 | S150: 0.03971934253 | T150: 0 | U150: =IF(SUM('Scenario Setting'!$F$68:$H$68)=0,J633,J1115) -> 56.1 | V150: 3.185386 | W150: 57.30509414 | X150: 178.7001546 | Y150: 157.3368325 | Z150: =IF(SUM('Scenario Setting'!$F$68:$H$68)=0,Q633,Q1115) -> 0.076725158 | AA150: 1 | AB150: LPG/CNG | AC150: =Q150*IF('Scenario Setting'!$H$86=1,INDEX('Scenario Parameters'!$W$36:$AD$43,MATCH(AB150,'Scenario Parameters'!$D$36:$D$43,0),MATCH(B150,'Scenario Parameters'!$W$35:$AD$35,0))*AA150,IF('Scenario Setting'!$F$68=0,Q633,Q1115)) -> 0 | AD150: =Q150*IF('Scenario Setting'!$H$86=1,INDEX('Scenario Parameters'!$AF$36:$AM$43,MATCH(AB150,'Scenario Parameters'!$D$36:$D$43,0),MATCH(B150,'Scenario Parameters'!$AF$35:$AM$35,0))*AA150,IF('Scenario Setting'!$F$68=0,Q633,Q1115)) -> 0 | AF150: =IF('Scenario Setting'!$H$86=1,INDEX('Scenario Parameters'!$W$36:$AD$43,MATCH(AB150,'Scenario Parameters'!$D$36:$D$43,0),MATCH(B150,'Scenario Parameters'!$W$35:$AD$35,0))*AA150,IF('Scenario Setting'!$F$68=0,Q633,Q1115)) -> 0.32 | AG150: =IF('Scenario Setting'!$H$86=1,INDEX('Scenario Parameters'!$AF$36:$AM$43,MATCH(AB150,'Scenario Parameters'!$D$36:$D$43,0),MATCH(B150,'Scenario Parameters'!$AF$35:$AM$35,0))*AA150,IF('Scenario Setting'!$F$68=0,Q633,Q1115)) -> 0.32
B151: 2015 | C151: PCall urban | D151: PrivateCar/Ride-sharing/Car-Sharing | E151: PHEV SI | F151: Electric | G151: =IF(SUM('Scenario Setting'!$F$68:$H$68)=0,G634,G1116) -> 0 | H151: =IF(SUM('Scenario Setting'!$F$68:$H$68)=0,H634,H1116) -> 0.7680498 | I151: =IF(SUM('Scenario Setting'!$F$68:$H$68)=0,I634,I1116) -> 129.0164 | J151: 0 | K151: =IF(SUM('Scenario Setting'!$F$68:$H$68)=0,K634,K1116) -> 0.03363398 | L151: 0.02583257161 | M151: =IF(SUM('Scenario Setting'!$F$68:$H$68)=0,L634,L1116) -> 0 | N151: =IF(SUM('Scenario Setting'!$F$68:$H$68)=0,M634,M1116) -> 0 | O151: =IF(SUM('Scenario Setting'!$F$68:$H$68)=0,N634,N1116) -> 0 | P151: =IF(SUM('Scenario Setting'!$F$68:$H$68)=0,O634,O1116) -> 1.5 | Q151: =IF(SUM('Scenario Setting'!$F$68:$H$68)=0,P634,P1116) -> 1 | R151: =IF('Scenario Setting'!$H$77=1,INDEX('Scenario Parameters'!$E$36:$L$43,MATCH(AB151,'Scenario Parameters'!$D$36:$D$43,0),MATCH(B151,'Scenario Parameters'!$E$9:$L$9,0))*AA151,IF(SUM('Scenario Setting'!$F$68:$H$68)=0,Q634,Q1116)) -> 0 | S151: 0.01722171441 | T151: 0 | U151: =IF(SUM('Scenario Setting'!$F$68:$H$68)=0,J634,J1116) -> 0 | V151: 0.7680498 | W151: 99.09102022 | X151: 0 | Y151: 66.06068014 | Z151: =IF(SUM('Scenario Setting'!$F$68:$H$68)=0,Q634,Q1116) -> 1.25e-13 | AA151: =Z151/(Z143+Z151) -> 0.4770992366 | AB151: Electric | AC151: =Q151*IF('Scenario Setting'!$H$86=1,INDEX('Scenario Parameters'!$W$36:$AD$43,MATCH(AB151,'Scenario Parameters'!$D$36:$D$43,0),MATCH(B151,'Scenario Parameters'!$W$35:$AD$35,0))*AA151,IF('Scenario Setting'!$F$68=0,Q634,Q1116)) -> 0 | AD151: =Q151*IF('Scenario Setting'!$H$86=1,INDEX('Scenario Parameters'!$AF$36:$AM$43,MATCH(AB151,'Scenario Parameters'!$D$36:$D$43,0),MATCH(B151,'Scenario Parameters'!$AF$35:$AM$35,0))*AA151,IF('Scenario Setting'!$F$68=0,Q634,Q1116)) -> 0 | AF151: =IF('Scenario Setting'!$H$86=1,INDEX('Scenario Parameters'!$W$36:$AD$43,MATCH(AB151,'Scenario Parameters'!$D$36:$D$43,0),MATCH(B151,'Scenario Parameters'!$W$35:$AD$35,0))*AA151,IF('Scenario Setting'!$F$68=0,Q634,Q1116)) -> 0 | AG151: =IF('Scenario Setting'!$H$86=1,INDEX('Scenario Parameters'!$AF$36:$AM$43,MATCH(AB151,'Scenario Parameters'!$D$36:$D$43,0),MATCH(B151,'Scenario Parameters'!$AF$35:$AM$35,0))*AA151,IF('Scenario Setting'!$F$68=0,Q634,Q1116)) -> 0
B152: 2015 | C152: PCall urban | D152: PrivateCar/Ride-sharing/Car-Sharing | E152: PHEV SI | F152: Gasoline | G152: =IF(SUM('Scenario Setting'!$F$68:$H$68)=0,G635,G1117) -> 2.734102 | H152: =IF(SUM('Scenario Setting'!$F$68:$H$68)=0,H635,H1117) -> 0 | I152: =IF(SUM('Scenario Setting'!$F$68:$H$68)=0,I635,I1117) -> 13.25 | J152: 69.3 | K152: =IF(SUM('Scenario Setting'!$F$68:$H$68)=0,K635,K1117) -> 0.01745902 | L152: 0.0477347415 | M152: =IF(SUM('Scenario Setting'!$F$68:$H$68)=0,L635,L1117) -> 0.391 | N152: =IF(SUM('Scenario Setting'!$F$68:$H$68)=0,M635,M1117) -> 0.003 | O152: =IF(SUM('Scenario Setting'!$F$68:$H$68)=0,N635,N1117) -> 0.001 | P152: =IF(SUM('Scenario Setting'!$F$68:$H$68)=0,O635,O1117) -> 1.5 | Q152: =IF(SUM('Scenario Setting'!$F$68:$H$68)=0,P635,P1117) -> 0 | R152: =IF('Scenario Setting'!$H$77=1,INDEX('Scenario Parameters'!$E$36:$L$43,MATCH(AB152,'Scenario Parameters'!$D$36:$D$43,0),MATCH(B152,'Scenario Parameters'!$E$9:$L$9,0))*AA152,IF(SUM('Scenario Setting'!$F$68:$H$68)=0,Q635,Q1117)) -> 0 | S152: 0.031823161 | T152: 0 | U152: =IF(SUM('Scenario Setting'!$F$68:$H$68)=0,J635,J1117) -> 69.3 | V152: 2.734102 | W152: 36.2268515 | X152: 189.4732686 | Y152: 150.4667467 | Z152: =IF(SUM('Scenario Setting'!$F$68:$H$68)=0,Q635,Q1117) -> 1.02e-13 | AA152: =Z152/(Z147+Z152) -> 0.3090909091 | AB152: Gasoline-hybrid | AC152: =Q152*IF('Scenario Setting'!$H$86=1,INDEX('Scenario Parameters'!$W$36:$AD$43,MATCH(AB152,'Scenario Parameters'!$D$36:$D$43,0),MATCH(B152,'Scenario Parameters'!$W$35:$AD$35,0))*AA152,IF('Scenario Setting'!$F$68=0,Q635,Q1117)) -> 0 | AD152: =Q152*IF('Scenario Setting'!$H$86=1,INDEX('Scenario Parameters'!$AF$36:$AM$43,MATCH(AB152,'Scenario Parameters'!$D$36:$D$43,0),MATCH(B152,'Scenario Parameters'!$AF$35:$AM$35,0))*AA152,IF('Scenario Setting'!$F$68=0,Q635,Q1117)) -> 0 | AF152: =IF('Scenario Setting'!$H$86=1,INDEX('Scenario Parameters'!$W$36:$AD$43,MATCH(AB152,'Scenario Parameters'!$D$36:$D$43,0),MATCH(B152,'Scenario Parameters'!$W$35:$AD$35,0))*AA152,IF('Scenario Setting'!$F$68=0,Q635,Q1117)) -> 0 | AG152: =IF('Scenario Setting'!$H$86=1,INDEX('Scenario Parameters'!$AF$36:$AM$43,MATCH(AB152,'Scenario Parameters'!$D$36:$D$43,0),MATCH(B152,'Scenario Parameters'!$AF$35:$AM$35,0))*AA152,IF('Scenario Setting'!$F$68=0,Q635,Q1117)) -> 0
B153: 2020 | C153: PCall urban | D153: PrivateCar/Ride-sharing/Car-Sharing | E153: BEV | F153: Electric | G153: =IF(SUM('Scenario Setting'!$F$68:$H$68)=0,G636,G1118) -> 0 | H153: =IF(SUM('Scenario Setting'!$F$68:$H$68)=0,H636,H1118) -> 0.7672846 | I153: =IF(SUM('Scenario Setting'!$F$68:$H$68)=0,I636,I1118) -> 143.8438 | J153: 0 | K153: =IF(SUM('Scenario Setting'!$F$68:$H$68)=0,K636,K1118) -> 0.01311232 | L153: 0.01006088121 | M153: =IF(SUM('Scenario Setting'!$F$68:$H$68)=0,L636,L1118) -> 0 | N153: =IF(SUM('Scenario Setting'!$F$68:$H$68)=0,M636,M1118) -> 0 | O153: =IF(SUM('Scenario Setting'!$F$68:$H$68)=0,N636,N1118) -> 0 | P153: =IF(SUM('Scenario Setting'!$F$68:$H$68)=0,O636,O1118) -> 1.5 | Q153: =IF(SUM('Scenario Setting'!$F$68:$H$68)=0,P636,P1118) -> 1 | R153: =IF('Scenario Setting'!$H$77=1,INDEX('Scenario Parameters'!$E$36:$L$43,MATCH(AB153,'Scenario Parameters'!$D$36:$D$43,0),MATCH(B153,'Scenario Parameters'!$E$9:$L$9,0))*AA153,IF(SUM('Scenario Setting'!$F$68:$H$68)=0,Q636,Q1118)) -> 0 | S153: 0.006707254138 | T153: 0 | U153: =IF(SUM('Scenario Setting'!$F$68:$H$68)=0,J636,J1118) -> 0 | V153: 0.7672846 | W153: 110.3691325 | X153: 0 | Y153: 73.5794217 | Z153: =IF(SUM('Scenario Setting'!$F$68:$H$68)=0,Q636,Q1118) -> 1.44e-13 | AA153: =Z153/(Z153+Z155+Z161+Z163) -> 0.0600500417 | AB153: Electric | AC153: =Q153*IF('Scenario Setting'!$H$86=1,INDEX('Scenario Parameters'!$W$36:$AD$43,MATCH(AB153,'Scenario Parameters'!$D$36:$D$43,0),MATCH(B153,'Scenario Parameters'!$W$35:$AD$35,0))*AA153,IF('Scenario Setting'!$F$68=0,Q636,Q1118)) -> 0 | AD153: =Q153*IF('Scenario Setting'!$H$86=1,INDEX('Scenario Parameters'!$AF$36:$AM$43,MATCH(AB153,'Scenario Parameters'!$D$36:$D$43,0),MATCH(B153,'Scenario Parameters'!$AF$35:$AM$35,0))*AA153,IF('Scenario Setting'!$F$68=0,Q636,Q1118)) -> 0 | AF153: =IF('Scenario Setting'!$H$86=1,INDEX('Scenario Parameters'!$W$36:$AD$43,MATCH(AB153,'Scenario Parameters'!$D$36:$D$43,0),MATCH(B153,'Scenario Parameters'!$W$35:$AD$35,0))*AA153,IF('Scenario Setting'!$F$68=0,Q636,Q1118)) -> 0 | AG153: =IF('Scenario Setting'!$H$86=1,INDEX('Scenario Parameters'!$AF$36:$AM$43,MATCH(AB153,'Scenario Parameters'!$D$36:$D$43,0),MATCH(B153,'Scenario Parameters'!$AF$35:$AM$35,0))*AA153,IF('Scenario Setting'!$F$68=0,Q636,Q1118)) -> 0
B154: 2020 | C154: PCall urban | D154: PrivateCar/Ride-sharing/Car-Sharing | E154: H2 fuel cell | F154: Hydrogen | G154: =IF(SUM('Scenario Setting'!$F$68:$H$68)=0,G637,G1119) -> 1.667848 | H154: =IF(SUM('Scenario Setting'!$F$68:$H$68)=0,H637,H1119) -> 0 | I154: =IF(SUM('Scenario Setting'!$F$68:$H$68)=0,I637,I1119) -> 100 | J154: 0 | K154: =IF(SUM('Scenario Setting'!$F$68:$H$68)=0,K637,K1119) -> 0.02000349 | L154: 0.03336278079 | M154: =IF(SUM('Scenario Setting'!$F$68:$H$68)=0,L637,L1119) -> 0 | N154: =IF(SUM('Scenario Setting'!$F$68:$H$68)=0,M637,M1119) -> 0 | O154: =IF(SUM('Scenario Setting'!$F$68:$H$68)=0,N637,N1119) -> 0 | P154: =IF(SUM('Scenario Setting'!$F$68:$H$68)=0,O637,O1119) -> 1.5 | Q154: =IF(SUM('Scenario Setting'!$F$68:$H$68)=0,P637,P1119) -> 1 | R154: =IF('Scenario Setting'!$H$77=1,INDEX('Scenario Parameters'!$E$36:$L$43,MATCH(AB154,'Scenario Parameters'!$D$36:$D$43,0),MATCH(B154,'Scenario Parameters'!$E$9:$L$9,0))*AA154,IF(SUM('Scenario Setting'!$F$68:$H$68)=0,Q637,Q1119)) -> 0 | S154: 0.02224185386 | T154: 0 | U154: =IF(SUM('Scenario Setting'!$F$68:$H$68)=0,J637,J1119) -> 0 | V154: 1.667848 | W154: 166.7848 | X154: 0 | Y154: 111.1898667 | Z154: =IF(SUM('Scenario Setting'!$F$68:$H$68)=0,Q637,Q1119) -> 2.39e-13 | AA154: 1 | AB154: Hydrogen | AC154: =Q154*IF('Scenario Setting'!$H$86=1,INDEX('Scenario Parameters'!$W$36:$AD$43,MATCH(AB154,'Scenario Parameters'!$D$36:$D$43,0),MATCH(B154,'Scenario Parameters'!$W$35:$AD$35,0))*AA154,IF('Scenario Setting'!$F$68=0,Q637,Q1119)) -> 0 | AD154: =Q154*IF('Scenario Setting'!$H$86=1,INDEX('Scenario Parameters'!$AF$36:$AM$43,MATCH(AB154,'Scenario Parameters'!$D$36:$D$43,0),MATCH(B154,'Scenario Parameters'!$AF$35:$AM$35,0))*AA154,IF('Scenario Setting'!$F$68=0,Q637,Q1119)) -> 0 | AF154: =IF('Scenario Setting'!$H$86=1,INDEX('Scenario Parameters'!$W$36:$AD$43,MATCH(AB154,'Scenario Parameters'!$D$36:$D$43,0),MATCH(B154,'Scenario Parameters'!$W$35:$AD$35,0))*AA154,IF('Scenario Setting'!$F$68=0,Q637,Q1119)) -> 0 | AG154: =IF('Scenario Setting'!$H$86=1,INDEX('Scenario Parameters'!$AF$36:$AM$43,MATCH(AB154,'Scenario Parameters'!$D$36:$D$43,0),MATCH(B154,'Scenario Parameters'!$AF$35:$AM$35,0))*AA154,IF('Scenario Setting'!$F$68=0,Q637,Q1119)) -> 0
B155: 2020 | C155: PCall urban | D155: PrivateCar/Ride-sharing/Car-Sharing | E155: H2 PHEV | F155: Electric | G155: =IF(SUM('Scenario Setting'!$F$68:$H$68)=0,G638,G1120) -> 0 | H155: =IF(SUM('Scenario Setting'!$F$68:$H$68)=0,H638,H1120) -> 0.7672846 | I155: =IF(SUM('Scenario Setting'!$F$68:$H$68)=0,I638,I1120) -> 143.8438 | J155: 0 | K155: =IF(SUM('Scenario Setting'!$F$68:$H$68)=0,K638,K1120) -> 0.01311232 | L155: 0.01006088121 | M155: =IF(SUM('Scenario Setting'!$F$68:$H$68)=0,L638,L1120) -> 0 | N155: =IF(SUM('Scenario Setting'!$F$68:$H$68)=0,M638,M1120) -> 0 | O155: =IF(SUM('Scenario Setting'!$F$68:$H$68)=0,N638,N1120) -> 0 | P155: =IF(SUM('Scenario Setting'!$F$68:$H$68)=0,O638,O1120) -> 1.5 | Q155: =IF(SUM('Scenario Setting'!$F$68:$H$68)=0,P638,P1120) -> 1 | R155: =IF('Scenario Setting'!$H$77=1,INDEX('Scenario Parameters'!$E$36:$L$43,MATCH(AB155,'Scenario Parameters'!$D$36:$D$43,0),MATCH(B155,'Scenario Parameters'!$E$9:$L$9,0))*AA155,IF(SUM('Scenario Setting'!$F$68:$H$68)=0,Q638,Q1120)) -> 0 | S155: 0.006707254138 | T155: 0 | U155: =IF(SUM('Scenario Setting'!$F$68:$H$68)=0,J638,J1120) -> 0 | V155: 0.7672846 | W155: 110.3691325 | X155: 0 | Y155: 73.5794217 | Z155: =IF(SUM('Scenario Setting'!$F$68:$H$68)=0,Q638,Q1120) -> 1.06e-12 | AA155: =Z155/(Z153+Z155+Z161+Z163) -> 0.4420350292 | AB155: Electric | AC155: =Q155*IF('Scenario Setting'!$H$86=1,INDEX('Scenario Parameters'!$W$36:$AD$43,MATCH(AB155,'Scenario Parameters'!$D$36:$D$43,0),MATCH(B155,'Scenario Parameters'!$W$35:$AD$35,0))*AA155,IF('Scenario Setting'!$F$68=0,Q638,Q1120)) -> 0 | AD155: =Q155*IF('Scenario Setting'!$H$86=1,INDEX('Scenario Parameters'!$AF$36:$AM$43,MATCH(AB155,'Scenario Parameters'!$D$36:$D$43,0),MATCH(B155,'Scenario Parameters'!$AF$35:$AM$35,0))*AA155,IF('Scenario Setting'!$F$68=0,Q638,Q1120)) -> 0 | AF155: =IF('Scenario Setting'!$H$86=1,INDEX('Scenario Parameters'!$W$36:$AD$43,MATCH(AB155,'Scenario Parameters'!$D$36:$D$43,0),MATCH(B155,'Scenario Parameters'!$W$35:$AD$35,0))*AA155,IF('Scenario Setting'!$F$68=0,Q638,Q1120)) -> 0 | AG155: =IF('Scenario Setting'!$H$86=1,INDEX('Scenario Parameters'!$AF$36:$AM$43,MATCH(AB155,'Scenario Parameters'!$D$36:$D$43,0),MATCH(B155,'Scenario Parameters'!$AF$35:$AM$35,0))*AA155,IF('Scenario Setting'!$F$68=0,Q638,Q1120)) -> 0
B156: 2020 | C156: PCall urban | D156: PrivateCar/Ride-sharing/Car-Sharing | E156: H2 PHEV | F156: Hydrogen | G156: =IF(SUM('Scenario Setting'!$F$68:$H$68)=0,G639,G1121) -> 0.5025126 | H156: =IF(SUM('Scenario Setting'!$F$68:$H$68)=0,H639,H1121) -> 0 | I156: =IF(SUM('Scenario Setting'!$F$68:$H$68)=0,I639,I1121) -> 100 | J156: 0 | K156: =IF(SUM('Scenario Setting'!$F$68:$H$68)=0,K639,K1121) -> 0.02000349 | L156: 0.01005200577 | M156: =IF(SUM('Scenario Setting'!$F$68:$H$68)=0,L639,L1121) -> 0 | N156: =IF(SUM('Scenario Setting'!$F$68:$H$68)=0,M639,M1121) -> 0 | O156: =IF(SUM('Scenario Setting'!$F$68:$H$68)=0,N639,N1121) -> 0 | P156: =IF(SUM('Scenario Setting'!$F$68:$H$68)=0,O639,O1121) -> 1.5 | Q156: =IF(SUM('Scenario Setting'!$F$68:$H$68)=0,P639,P1121) -> 1 | R156: =IF('Scenario Setting'!$H$77=1,INDEX('Scenario Parameters'!$E$36:$L$43,MATCH(AB156,'Scenario Parameters'!$D$36:$D$43,0),MATCH(B156,'Scenario Parameters'!$E$9:$L$9,0))*AA156,IF(SUM('Scenario Setting'!$F$68:$H$68)=0,Q639,Q1121)) -> 0 | S156: 0.006701337179 | T156: 0 | U156: =IF(SUM('Scenario Setting'!$F$68:$H$68)=0,J639,J1121) -> 0 | V156: 0.5025126 | W156: 50.25126 | X156: 0 | Y156: 33.50084 | Z156: =IF(SUM('Scenario Setting'!$F$68:$H$68)=0,Q639,Q1121) -> 8.3e-13 | AA156: 1 | AB156: Hydrogen-hybrid | AC156: =Q156*IF('Scenario Setting'!$H$86=1,INDEX('Scenario Parameters'!$W$36:$AD$43,MATCH(AB156,'Scenario Parameters'!$D$36:$D$43,0),MATCH(B156,'Scenario Parameters'!$W$35:$AD$35,0))*AA156,IF('Scenario Setting'!$F$68=0,Q639,Q1121)) -> 0 | AD156: =Q156*IF('Scenario Setting'!$H$86=1,INDEX('Scenario Parameters'!$AF$36:$AM$43,MATCH(AB156,'Scenario Parameters'!$D$36:$D$43,0),MATCH(B156,'Scenario Parameters'!$AF$35:$AM$35,0))*AA156,IF('Scenario Setting'!$F$68=0,Q639,Q1121)) -> 0 | AF156: =IF('Scenario Setting'!$H$86=1,INDEX('Scenario Parameters'!$W$36:$AD$43,MATCH(AB156,'Scenario Parameters'!$D$36:$D$43,0),MATCH(B156,'Scenario Parameters'!$W$35:$AD$35,0))*AA156,IF('Scenario Setting'!$F$68=0,Q639,Q1121)) -> 0 | AG156: =IF('Scenario Setting'!$H$86=1,INDEX('Scenario Parameters'!$AF$36:$AM$43,MATCH(AB156,'Scenario Parameters'!$D$36:$D$43,0),MATCH(B156,'Scenario Parameters'!$AF$35:$AM$35,0))*AA156,IF('Scenario Setting'!$F$68=0,Q639,Q1121)) -> 0
B157: 2020 | C157: PCall urban | D157: PrivateCar/Ride-sharing/Car-Sharing | E157: HEV SI | F157: Gasoline | G157: =IF(SUM('Scenario Setting'!$F$68:$H$68)=0,G640,G1122) -> 2.618841 | H157: =IF(SUM('Scenario Setting'!$F$68:$H$68)=0,H640,H1122) -> 0 | I157: =IF(SUM('Scenario Setting'!$F$68:$H$68)=0,I640,I1122) -> 13.19 | J157: 69.3 | K157: =IF(SUM('Scenario Setting'!$F$68:$H$68)=0,K640,K1122) -> 0.02055079 | L157: 0.05381925143 | M157: =IF(SUM('Scenario Setting'!$F$68:$H$68)=0,L640,L1122) -> 0.205 | N157: =IF(SUM('Scenario Setting'!$F$68:$H$68)=0,M640,M1122) -> 0.002 | O157: =IF(SUM('Scenario Setting'!$F$68:$H$68)=0,N640,N1122) -> 0.001 | P157: =IF(SUM('Scenario Setting'!$F$68:$H$68)=0,O640,O1122) -> 1.5 | Q157: =IF(SUM('Scenario Setting'!$F$68:$H$68)=0,P640,P1122) -> 0 | R157: =IF('Scenario Setting'!$H$77=1,INDEX('Scenario Parameters'!$E$36:$L$43,MATCH(AB157,'Scenario Parameters'!$D$36:$D$43,0),MATCH(B157,'Scenario Parameters'!$E$9:$L$9,0))*AA157,IF(SUM('Scenario Setting'!$F$68:$H$68)=0,Q640,Q1122)) -> 0 | S157: 0.03587950096 | T157: 0 | U157: =IF(SUM('Scenario Setting'!$F$68:$H$68)=0,J640,J1122) -> 69.3 | V157: 2.618841 | W157: 34.54251279 | X157: 181.4856813 | Y157: 144.0187961 | Z157: =IF(SUM('Scenario Setting'!$F$68:$H$68)=0,Q640,Q1122) -> 2.39e-13 | AA157: =Z157/(Z157+Z164) -> 0.6947674419 | AB157: Gasoline-hybrid | AC157: =Q157*IF('Scenario Setting'!$H$86=1,INDEX('Scenario Parameters'!$W$36:$AD$43,MATCH(AB157,'Scenario Parameters'!$D$36:$D$43,0),MATCH(B157,'Scenario Parameters'!$W$35:$AD$35,0))*AA157,IF('Scenario Setting'!$F$68=0,Q640,Q1122)) -> 0 | AD157: =Q157*IF('Scenario Setting'!$H$86=1,INDEX('Scenario Parameters'!$AF$36:$AM$43,MATCH(AB157,'Scenario Parameters'!$D$36:$D$43,0),MATCH(B157,'Scenario Parameters'!$AF$35:$AM$35,0))*AA157,IF('Scenario Setting'!$F$68=0,Q640,Q1122)) -> 0 | AF157: =IF('Scenario Setting'!$H$86=1,INDEX('Scenario Parameters'!$W$36:$AD$43,MATCH(AB157,'Scenario Parameters'!$D$36:$D$43,0),MATCH(B157,'Scenario Parameters'!$W$35:$AD$35,0))*AA157,IF('Scenario Setting'!$F$68=0,Q640,Q1122)) -> 0 | AG157: =IF('Scenario Setting'!$H$86=1,INDEX('Scenario Parameters'!$AF$36:$AM$43,MATCH(AB157,'Scenario Parameters'!$D$36:$D$43,0),MATCH(B157,'Scenario Parameters'!$AF$35:$AM$35,0))*AA157,IF('Scenario Setting'!$F$68=0,Q640,Q1122)) -> 0
B158: 2020 | C158: PCall urban | D158: PrivateCar/Ride-sharing/Car-Sharing | E158: ICE CI or TUR | F158: Diesel | G158: =IF(SUM('Scenario Setting'!$F$68:$H$68)=0,G641,G1123) -> 2.391576 | H158: =IF(SUM('Scenario Setting'!$F$68:$H$68)=0,H641,H1123) -> 0 | I158: =IF(SUM('Scenario Setting'!$F$68:$H$68)=0,I641,I1123) -> 14.73 | J158: 74.1 | K158: =IF(SUM('Scenario Setting'!$F$68:$H$68)=0,K641,K1123) -> 0.0205609 | L158: 0.04917295498 | M158: =IF(SUM('Scenario Setting'!$F$68:$H$68)=0,L641,L1123) -> 0.855 | N158: =IF(SUM('Scenario Setting'!$F$68:$H$68)=0,M641,M1123) -> 0.072 | O158: =IF(SUM('Scenario Setting'!$F$68:$H$68)=0,N641,N1123) -> 0.015 | P158: =IF(SUM('Scenario Setting'!$F$68:$H$68)=0,O641,O1123) -> 1.5 | Q158: =IF(SUM('Scenario Setting'!$F$68:$H$68)=0,P641,P1123) -> 0 | R158: =IF('Scenario Setting'!$H$77=1,INDEX('Scenario Parameters'!$E$36:$L$43,MATCH(AB158,'Scenario Parameters'!$D$36:$D$43,0),MATCH(B158,'Scenario Parameters'!$E$9:$L$9,0))*AA158,IF(SUM('Scenario Setting'!$F$68:$H$68)=0,Q641,Q1123)) -> 0.01 | S158: 0.03278196999 | T158: 0 | U158: =IF(SUM('Scenario Setting'!$F$68:$H$68)=0,J641,J1123) -> 74.1 | V158: 2.391576 | W158: 35.22791448 | X158: 177.2157816 | Y158: 141.6291307 | Z158: =IF(SUM('Scenario Setting'!$F$68:$H$68)=0,Q641,Q1123) -> 0.102297195 | AA158: 1 | AB158: Diesel | AC158: =Q158*IF('Scenario Setting'!$H$86=1,INDEX('Scenario Parameters'!$W$36:$AD$43,MATCH(AB158,'Scenario Parameters'!$D$36:$D$43,0),MATCH(B158,'Scenario Parameters'!$W$35:$AD$35,0))*AA158,IF('Scenario Setting'!$F$68=0,Q641,Q1123)) -> 0 | AD158: =Q158*IF('Scenario Setting'!$H$86=1,INDEX('Scenario Parameters'!$AF$36:$AM$43,MATCH(AB158,'Scenario Parameters'!$D$36:$D$43,0),MATCH(B158,'Scenario Parameters'!$AF$35:$AM$35,0))*AA158,IF('Scenario Setting'!$F$68=0,Q641,Q1123)) -> 0 | AF158: =IF('Scenario Setting'!$H$86=1,INDEX('Scenario Parameters'!$W$36:$AD$43,MATCH(AB158,'Scenario Parameters'!$D$36:$D$43,0),MATCH(B158,'Scenario Parameters'!$W$35:$AD$35,0))*AA158,IF('Scenario Setting'!$F$68=0,Q641,Q1123)) -> 0.01 | AG158: =IF('Scenario Setting'!$H$86=1,INDEX('Scenario Parameters'!$AF$36:$AM$43,MATCH(AB158,'Scenario Parameters'!$D$36:$D$43,0),MATCH(B158,'Scenario Parameters'!$AF$35:$AM$35,0))*AA158,IF('Scenario Setting'!$F$68=0,Q641,Q1123)) -> 0.01
B159: 2020 | C159: PCall urban | D159: PrivateCar/Ride-sharing/Car-Sharing | E159: ICE SI | F159: Gasoline | G159: =IF(SUM('Scenario Setting'!$F$68:$H$68)=0,G642,G1124) -> 2.974806 | H159: =IF(SUM('Scenario Setting'!$F$68:$H$68)=0,H642,H1124) -> 0 | I159: =IF(SUM('Scenario Setting'!$F$68:$H$68)=0,I642,I1124) -> 13.19 | J159: 69.3 | K159: =IF(SUM('Scenario Setting'!$F$68:$H$68)=0,K642,K1124) -> 0.02055079 | L159: 0.0611346134 | M159: =IF(SUM('Scenario Setting'!$F$68:$H$68)=0,L642,L1124) -> 0.205 | N159: =IF(SUM('Scenario Setting'!$F$68:$H$68)=0,M642,M1124) -> 0.002 | O159: =IF(SUM('Scenario Setting'!$F$68:$H$68)=0,N642,N1124) -> 0.001 | P159: =IF(SUM('Scenario Setting'!$F$68:$H$68)=0,O642,O1124) -> 1.5 | Q159: =IF(SUM('Scenario Setting'!$F$68:$H$68)=0,P642,P1124) -> 0 | R159: =IF('Scenario Setting'!$H$77=1,INDEX('Scenario Parameters'!$E$36:$L$43,MATCH(AB159,'Scenario Parameters'!$D$36:$D$43,0),MATCH(B159,'Scenario Parameters'!$E$9:$L$9,0))*AA159,IF(SUM('Scenario Setting'!$F$68:$H$68)=0,Q642,Q1124)) -> 0.67 | S159: 0.04075640893 | T159: 0 | U159: =IF(SUM('Scenario Setting'!$F$68:$H$68)=0,J642,J1124) -> 69.3 | V159: 2.974806 | W159: 39.23769114 | X159: 206.1540558 | Y159: 163.594498 | Z159: =IF(SUM('Scenario Setting'!$F$68:$H$68)=0,Q642,Q1124) -> 0.857860737 | AA159: 1 | AB159: Gasoline | AC159: =Q159*IF('Scenario Setting'!$H$86=1,INDEX('Scenario Parameters'!$W$36:$AD$43,MATCH(AB159,'Scenario Parameters'!$D$36:$D$43,0),MATCH(B159,'Scenario Parameters'!$W$35:$AD$35,0))*AA159,IF('Scenario Setting'!$F$68=0,Q642,Q1124)) -> 0 | AD159: =Q159*IF('Scenario Setting'!$H$86=1,INDEX('Scenario Parameters'!$AF$36:$AM$43,MATCH(AB159,'Scenario Parameters'!$D$36:$D$43,0),MATCH(B159,'Scenario Parameters'!$AF$35:$AM$35,0))*AA159,IF('Scenario Setting'!$F$68=0,Q642,Q1124)) -> 0 | AF159: =IF('Scenario Setting'!$H$86=1,INDEX('Scenario Parameters'!$W$36:$AD$43,MATCH(AB159,'Scenario Parameters'!$D$36:$D$43,0),MATCH(B159,'Scenario Parameters'!$W$35:$AD$35,0))*AA159,IF('Scenario Setting'!$F$68=0,Q642,Q1124)) -> 0.67 | AG159: =IF('Scenario Setting'!$H$86=1,INDEX('Scenario Parameters'!$AF$36:$AM$43,MATCH(AB159,'Scenario Parameters'!$D$36:$D$43,0),MATCH(B159,'Scenario Parameters'!$AF$35:$AM$35,0))*AA159,IF('Scenario Setting'!$F$68=0,Q642,Q1124)) -> 0.67
B160: 2020 | C160: PCall urban | D160: PrivateCar/Ride-sharing/Car-Sharing | E160: ICE SI | F160: LPG/CNG | G160: =IF(SUM('Scenario Setting'!$F$68:$H$68)=0,G643,G1125) -> 3.124886 | H160: =IF(SUM('Scenario Setting'!$F$68:$H$68)=0,H643,H1125) -> 0 | I160: =IF(SUM('Scenario Setting'!$F$68:$H$68)=0,I643,I1125) -> 16.1 | J160: 56.1 | K160: =IF(SUM('Scenario Setting'!$F$68:$H$68)=0,K643,K1125) -> 0.01995532 | L160: 0.06235810009 | M160: =IF(SUM('Scenario Setting'!$F$68:$H$68)=0,L643,L1125) -> 0.052 | N160: =IF(SUM('Scenario Setting'!$F$68:$H$68)=0,M643,M1125) -> 0.001 | O160: =IF(SUM('Scenario Setting'!$F$68:$H$68)=0,N643,N1125) -> 0 | P160: =IF(SUM('Scenario Setting'!$F$68:$H$68)=0,O643,O1125) -> 1.5 | Q160: =IF(SUM('Scenario Setting'!$F$68:$H$68)=0,P643,P1125) -> 0 | R160: =IF('Scenario Setting'!$H$77=1,INDEX('Scenario Parameters'!$E$36:$L$43,MATCH(AB160,'Scenario Parameters'!$D$36:$D$43,0),MATCH(B160,'Scenario Parameters'!$E$9:$L$9,0))*AA160,IF(SUM('Scenario Setting'!$F$68:$H$68)=0,Q643,Q1125)) -> 0.32 | S160: 0.04157206673 | T160: 0 | U160: =IF(SUM('Scenario Setting'!$F$68:$H$68)=0,J643,J1125) -> 56.1 | V160: 3.124886 | W160: 50.3106646 | X160: 175.3061046 | Y160: 150.4111795 | Z160: =IF(SUM('Scenario Setting'!$F$68:$H$68)=0,Q643,Q1125) -> 0.039842067 | AA160: 1 | AB160: LPG/CNG | AC160: =Q160*IF('Scenario Setting'!$H$86=1,INDEX('Scenario Parameters'!$W$36:$AD$43,MATCH(AB160,'Scenario Parameters'!$D$36:$D$43,0),MATCH(B160,'Scenario Parameters'!$W$35:$AD$35,0))*AA160,IF('Scenario Setting'!$F$68=0,Q643,Q1125)) -> 0 | AD160: =Q160*IF('Scenario Setting'!$H$86=1,INDEX('Scenario Parameters'!$AF$36:$AM$43,MATCH(AB160,'Scenario Parameters'!$D$36:$D$43,0),MATCH(B160,'Scenario Parameters'!$AF$35:$AM$35,0))*AA160,IF('Scenario Setting'!$F$68=0,Q643,Q1125)) -> 0 | AF160: =IF('Scenario Setting'!$H$86=1,INDEX('Scenario Parameters'!$W$36:$AD$43,MATCH(AB160,'Scenario Parameters'!$D$36:$D$43,0),MATCH(B160,'Scenario Parameters'!$W$35:$AD$35,0))*AA160,IF('Scenario Setting'!$F$68=0,Q643,Q1125)) -> 0.32 | AG160: =IF('Scenario Setting'!$H$86=1,INDEX('Scenario Parameters'!$AF$36:$AM$43,MATCH(AB160,'Scenario Parameters'!$D$36:$D$43,0),MATCH(B160,'Scenario Parameters'!$AF$35:$AM$35,0))*AA160,IF('Scenario Setting'!$F$68=0,Q643,Q1125)) -> 0.32
B161: 2020 | C161: PCall urban | D161: PrivateCar/Ride-sharing/Car-Sharing | E161: PHEV CI or TUR | F161: Electric | G161: =IF(SUM('Scenario Setting'!$F$68:$H$68)=0,G644,G1126) -> 0 | H161: =IF(SUM('Scenario Setting'!$F$68:$H$68)=0,H644,H1126) -> 0.7672846 | I161: =IF(SUM('Scenario Setting'!$F$68:$H$68)=0,I644,I1126) -> 143.8438 | J161: 0 | K161: =IF(SUM('Scenario Setting'!$F$68:$H$68)=0,K644,K1126) -> 0.01311232 | L161: 0.01006088121 | M161: =IF(SUM('Scenario Setting'!$F$68:$H$68)=0,L644,L1126) -> 0 | N161: =IF(SUM('Scenario Setting'!$F$68:$H$68)=0,M644,M1126) -> 0 | O161: =IF(SUM('Scenario Setting'!$F$68:$H$68)=0,N644,N1126) -> 0 | P161: =IF(SUM('Scenario Setting'!$F$68:$H$68)=0,O644,O1126) -> 1.5 | Q161: =IF(SUM('Scenario Setting'!$F$68:$H$68)=0,P644,P1126) -> 1 | R161: =IF('Scenario Setting'!$H$77=1,INDEX('Scenario Parameters'!$E$36:$L$43,MATCH(AB161,'Scenario Parameters'!$D$36:$D$43,0),MATCH(B161,'Scenario Parameters'!$E$9:$L$9,0))*AA161,IF(SUM('Scenario Setting'!$F$68:$H$68)=0,Q644,Q1126)) -> 0 | S161: 0.006707254138 | T161: 0 | U161: =IF(SUM('Scenario Setting'!$F$68:$H$68)=0,J644,J1126) -> 0 | V161: 0.7672846 | W161: 110.3691325 | X161: 0 | Y161: 73.5794217 | Z161: =IF(SUM('Scenario Setting'!$F$68:$H$68)=0,Q644,Q1126) -> 1.06e-12 | AA161: =Z161/(Z153+Z155+Z161+Z163) -> 0.4420350292 | AB161: Electric | AC161: =Q161*IF('Scenario Setting'!$H$86=1,INDEX('Scenario Parameters'!$W$36:$AD$43,MATCH(AB161,'Scenario Parameters'!$D$36:$D$43,0),MATCH(B161,'Scenario Parameters'!$W$35:$AD$35,0))*AA161,IF('Scenario Setting'!$F$68=0,Q644,Q1126)) -> 0 | AD161: =Q161*IF('Scenario Setting'!$H$86=1,INDEX('Scenario Parameters'!$AF$36:$AM$43,MATCH(AB161,'Scenario Parameters'!$D$36:$D$43,0),MATCH(B161,'Scenario Parameters'!$AF$35:$AM$35,0))*AA161,IF('Scenario Setting'!$F$68=0,Q644,Q1126)) -> 0 | AF161: =IF('Scenario Setting'!$H$86=1,INDEX('Scenario Parameters'!$W$36:$AD$43,MATCH(AB161,'Scenario Parameters'!$D$36:$D$43,0),MATCH(B161,'Scenario Parameters'!$W$35:$AD$35,0))*AA161,IF('Scenario Setting'!$F$68=0,Q644,Q1126)) -> 0 | AG161: =IF('Scenario Setting'!$H$86=1,INDEX('Scenario Parameters'!$AF$36:$AM$43,MATCH(AB161,'Scenario Parameters'!$D$36:$D$43,0),MATCH(B161,'Scenario Parameters'!$AF$35:$AM$35,0))*AA161,IF('Scenario Setting'!$F$68=0,Q644,Q1126)) -> 0
B162: 2020 | C162: PCall urban | D162: PrivateCar/Ride-sharing/Car-Sharing | E162: PHEV CI or TUR | F162: Diesel | G162: =IF(SUM('Scenario Setting'!$F$68:$H$68)=0,G645,G1127) -> 1.641267922 | H162: =IF(SUM('Scenario Setting'!$F$68:$H$68)=0,H645,H1127) -> 0 | I162: =IF(SUM('Scenario Setting'!$F$68:$H$68)=0,I645,I1127) -> 14.9447093 | J162: 74.1 | K162: =IF(SUM('Scenario Setting'!$F$68:$H$68)=0,K645,K1127) -> 0.0205609 | L162: 0.03374594563 | M162: =IF(SUM('Scenario Setting'!$F$68:$H$68)=0,L645,L1127) -> 0.855 | N162: =IF(SUM('Scenario Setting'!$F$68:$H$68)=0,M645,M1127) -> 0.072 | O162: =IF(SUM('Scenario Setting'!$F$68:$H$68)=0,N645,N1127) -> 0.015 | P162: =IF(SUM('Scenario Setting'!$F$68:$H$68)=0,O645,O1127) -> 1.5 | Q162: =IF(SUM('Scenario Setting'!$F$68:$H$68)=0,P645,P1127) -> 0 | R162: =IF('Scenario Setting'!$H$77=1,INDEX('Scenario Parameters'!$E$36:$L$43,MATCH(AB162,'Scenario Parameters'!$D$36:$D$43,0),MATCH(B162,'Scenario Parameters'!$E$9:$L$9,0))*AA162,IF(SUM('Scenario Setting'!$F$68:$H$68)=0,Q645,Q1127)) -> 0 | S162: 0.02249729708 | T162: 0 | U162: =IF(SUM('Scenario Setting'!$F$68:$H$68)=0,J645,J1127) -> 74.1 | V162: 1.641267922 | W162: 24.52827199 | X162: 121.617953 | Y162: 97.43081669 | Z162: =IF(SUM('Scenario Setting'!$F$68:$H$68)=0,Q645,Q1127) -> 8.3e-13 | AA162: 1 | AB162: Diesel-hybrid | AC162: =Q162*IF('Scenario Setting'!$H$86=1,INDEX('Scenario Parameters'!$W$36:$AD$43,MATCH(AB162,'Scenario Parameters'!$D$36:$D$43,0),MATCH(B162,'Scenario Parameters'!$W$35:$AD$35,0))*AA162,IF('Scenario Setting'!$F$68=0,Q645,Q1127)) -> 0 | AD162: =Q162*IF('Scenario Setting'!$H$86=1,INDEX('Scenario Parameters'!$AF$36:$AM$43,MATCH(AB162,'Scenario Parameters'!$D$36:$D$43,0),MATCH(B162,'Scenario Parameters'!$AF$35:$AM$35,0))*AA162,IF('Scenario Setting'!$F$68=0,Q645,Q1127)) -> 0 | AF162: =IF('Scenario Setting'!$H$86=1,INDEX('Scenario Parameters'!$W$36:$AD$43,MATCH(AB162,'Scenario Parameters'!$D$36:$D$43,0),MATCH(B162,'Scenario Parameters'!$W$35:$AD$35,0))*AA162,IF('Scenario Setting'!$F$68=0,Q645,Q1127)) -> 0 | AG162: =IF('Scenario Setting'!$H$86=1,INDEX('Scenario Parameters'!$AF$36:$AM$43,MATCH(AB162,'Scenario Parameters'!$D$36:$D$43,0),MATCH(B162,'Scenario Parameters'!$AF$35:$AM$35,0))*AA162,IF('Scenario Setting'!$F$68=0,Q645,Q1127)) -> 0
B163: 2020 | C163: PCall urban | D163: PrivateCar/Ride-sharing/Car-Sharing | E163: PHEV SI | F163: Electric | G163: =IF(SUM('Scenario Setting'!$F$68:$H$68)=0,G646,G1128) -> 0 | H163: =IF(SUM('Scenario Setting'!$F$68:$H$68)=0,H646,H1128) -> 0.7672846 | I163: =IF(SUM('Scenario Setting'!$F$68:$H$68)=0,I646,I1128) -> 143.8438 | J163: 0 | K163: =IF(SUM('Scenario Setting'!$F$68:$H$68)=0,K646,K1128) -> 0.01311232 | L163: 0.01006088121 | M163: =IF(SUM('Scenario Setting'!$F$68:$H$68)=0,L646,L1128) -> 0 | N163: =IF(SUM('Scenario Setting'!$F$68:$H$68)=0,M646,M1128) -> 0 | O163: =IF(SUM('Scenario Setting'!$F$68:$H$68)=0,N646,N1128) -> 0 | P163: =IF(SUM('Scenario Setting'!$F$68:$H$68)=0,O646,O1128) -> 1.5 | Q163: =IF(SUM('Scenario Setting'!$F$68:$H$68)=0,P646,P1128) -> 1 | R163: =IF('Scenario Setting'!$H$77=1,INDEX('Scenario Parameters'!$E$36:$L$43,MATCH(AB163,'Scenario Parameters'!$D$36:$D$43,0),MATCH(B163,'Scenario Parameters'!$E$9:$L$9,0))*AA163,IF(SUM('Scenario Setting'!$F$68:$H$68)=0,Q646,Q1128)) -> 0 | S163: 0.006707254138 | T163: 0 | U163: =IF(SUM('Scenario Setting'!$F$68:$H$68)=0,J646,J1128) -> 0 | V163: 0.7672846 | W163: 110.3691325 | X163: 0 | Y163: 73.5794217 | Z163: =IF(SUM('Scenario Setting'!$F$68:$H$68)=0,Q646,Q1128) -> 1.34e-13 | AA163: =Z163/(Z153+Z155+Z161+Z163) -> 0.05587989992 | AB163: Electric | AC163: =Q163*IF('Scenario Setting'!$H$86=1,INDEX('Scenario Parameters'!$W$36:$AD$43,MATCH(AB163,'Scenario Parameters'!$D$36:$D$43,0),MATCH(B163,'Scenario Parameters'!$W$35:$AD$35,0))*AA163,IF('Scenario Setting'!$F$68=0,Q646,Q1128)) -> 0 | AD163: =Q163*IF('Scenario Setting'!$H$86=1,INDEX('Scenario Parameters'!$AF$36:$AM$43,MATCH(AB163,'Scenario Parameters'!$D$36:$D$43,0),MATCH(B163,'Scenario Parameters'!$AF$35:$AM$35,0))*AA163,IF('Scenario Setting'!$F$68=0,Q646,Q1128)) -> 0 | AF163: =IF('Scenario Setting'!$H$86=1,INDEX('Scenario Parameters'!$W$36:$AD$43,MATCH(AB163,'Scenario Parameters'!$D$36:$D$43,0),MATCH(B163,'Scenario Parameters'!$W$35:$AD$35,0))*AA163,IF('Scenario Setting'!$F$68=0,Q646,Q1128)) -> 0 | AG163: =IF('Scenario Setting'!$H$86=1,INDEX('Scenario Parameters'!$AF$36:$AM$43,MATCH(AB163,'Scenario Parameters'!$D$36:$D$43,0),MATCH(B163,'Scenario Parameters'!$AF$35:$AM$35,0))*AA163,IF('Scenario Setting'!$F$68=0,Q646,Q1128)) -> 0
B164: 2020 | C164: PCall urban | D164: PrivateCar/Ride-sharing/Car-Sharing | E164: PHEV SI | F164: Gasoline | G164: =IF(SUM('Scenario Setting'!$F$68:$H$68)=0,G647,G1129) -> 2.618841 | H164: =IF(SUM('Scenario Setting'!$F$68:$H$68)=0,H647,H1129) -> 0 | I164: =IF(SUM('Scenario Setting'!$F$68:$H$68)=0,I647,I1129) -> 13.19 | J164: 69.3 | K164: =IF(SUM('Scenario Setting'!$F$68:$H$68)=0,K647,K1129) -> 0.02055079 | L164: 0.05381925143 | M164: =IF(SUM('Scenario Setting'!$F$68:$H$68)=0,L647,L1129) -> 0.205 | N164: =IF(SUM('Scenario Setting'!$F$68:$H$68)=0,M647,M1129) -> 0.002 | O164: =IF(SUM('Scenario Setting'!$F$68:$H$68)=0,N647,N1129) -> 0.001 | P164: =IF(SUM('Scenario Setting'!$F$68:$H$68)=0,O647,O1129) -> 1.5 | Q164: =IF(SUM('Scenario Setting'!$F$68:$H$68)=0,P647,P1129) -> 0 | R164: =IF('Scenario Setting'!$H$77=1,INDEX('Scenario Parameters'!$E$36:$L$43,MATCH(AB164,'Scenario Parameters'!$D$36:$D$43,0),MATCH(B164,'Scenario Parameters'!$E$9:$L$9,0))*AA164,IF(SUM('Scenario Setting'!$F$68:$H$68)=0,Q647,Q1129)) -> 0 | S164: 0.03587950096 | T164: 0 | U164: =IF(SUM('Scenario Setting'!$F$68:$H$68)=0,J647,J1129) -> 69.3 | V164: 2.618841 | W164: 34.54251279 | X164: 181.4856813 | Y164: 144.0187961 | Z164: =IF(SUM('Scenario Setting'!$F$68:$H$68)=0,Q647,Q1129) -> 1.05e-13 | AA164: =Z164/(Z157+Z164) -> 0.3052325581 | AB164: Gasoline-hybrid | AC164: =Q164*IF('Scenario Setting'!$H$86=1,INDEX('Scenario Parameters'!$W$36:$AD$43,MATCH(AB164,'Scenario Parameters'!$D$36:$D$43,0),MATCH(B164,'Scenario Parameters'!$W$35:$AD$35,0))*AA164,IF('Scenario Setting'!$F$68=0,Q647,Q1129)) -> 0 | AD164: =Q164*IF('Scenario Setting'!$H$86=1,INDEX('Scenario Parameters'!$AF$36:$AM$43,MATCH(AB164,'Scenario Parameters'!$D$36:$D$43,0),MATCH(B164,'Scenario Parameters'!$AF$35:$AM$35,0))*AA164,IF('Scenario Setting'!$F$68=0,Q647,Q1129)) -> 0 | AF164: =IF('Scenario Setting'!$H$86=1,INDEX('Scenario Parameters'!$W$36:$AD$43,MATCH(AB164,'Scenario Parameters'!$D$36:$D$43,0),MATCH(B164,'Scenario Parameters'!$W$35:$AD$35,0))*AA164,IF('Scenario Setting'!$F$68=0,Q647,Q1129)) -> 0 | AG164: =IF('Scenario Setting'!$H$86=1,INDEX('Scenario Parameters'!$AF$36:$AM$43,MATCH(AB164,'Scenario Parameters'!$D$36:$D$43,0),MATCH(B164,'Scenario Parameters'!$AF$35:$AM$35,0))*AA164,IF('Scenario Setting'!$F$68=0,Q647,Q1129)) -> 0
B165: 2025 | C165: PCall urban | D165: PrivateCar/Ride-sharing/Car-Sharing | E165: BEV | F165: Electric | G165: =IF(SUM('Scenario Setting'!$F$68:$H$68)=0,G648,G1130) -> 0 | H165: =IF(SUM('Scenario Setting'!$F$68:$H$68)=0,H648,H1130) -> 0.7542242 | I165: =IF(SUM('Scenario Setting'!$F$68:$H$68)=0,I648,I1130) -> 130.2567 | J165: 0 | K165: =IF(SUM('Scenario Setting'!$F$68:$H$68)=0,K648,K1130) -> 0.01355745 | L165: 0.01022535688 | M165: =IF(SUM('Scenario Setting'!$F$68:$H$68)=0,L648,L1130) -> 0 | N165: =IF(SUM('Scenario Setting'!$F$68:$H$68)=0,M648,M1130) -> 0 | O165: =IF(SUM('Scenario Setting'!$F$68:$H$68)=0,N648,N1130) -> 0 | P165: =IF(SUM('Scenario Setting'!$F$68:$H$68)=0,O648,O1130) -> 1.5 | Q165: =IF(SUM('Scenario Setting'!$F$68:$H$68)=0,P648,P1130) -> 1 | R165: =IF('Scenario Setting'!$H$77=1,INDEX('Scenario Parameters'!$E$36:$L$43,MATCH(AB165,'Scenario Parameters'!$D$36:$D$43,0),MATCH(B165,'Scenario Parameters'!$E$9:$L$9,0))*AA165,IF(SUM('Scenario Setting'!$F$68:$H$68)=0,Q648,Q1130)) -> 0 | S165: 0.006816904587 | T165: 0 | U165: =IF(SUM('Scenario Setting'!$F$68:$H$68)=0,J648,J1130) -> 0 | V165: 0.7542242 | W165: 98.24275535 | X165: 0 | Y165: 65.49517023 | Z165: =IF(SUM('Scenario Setting'!$F$68:$H$68)=0,Q648,Q1130) -> 0.000145736 | AA165: =Z165/(Z165+Z168+Z175+Z177) -> 0.6678520328 | AB165: Electric | AC165: =Q165*IF('Scenario Setting'!$H$86=1,INDEX('Scenario Parameters'!$W$36:$AD$43,MATCH(AB165,'Scenario Parameters'!$D$36:$D$43,0),MATCH(B165,'Scenario Parameters'!$W$35:$AD$35,0))*AA165,IF('Scenario Setting'!$F$68=0,Q648,Q1130)) -> 0 | AD165: =Q165*IF('Scenario Setting'!$H$86=1,INDEX('Scenario Parameters'!$AF$36:$AM$43,MATCH(AB165,'Scenario Parameters'!$D$36:$D$43,0),MATCH(B165,'Scenario Parameters'!$AF$35:$AM$35,0))*AA165,IF('Scenario Setting'!$F$68=0,Q648,Q1130)) -> 0 | AF165: =IF('Scenario Setting'!$H$86=1,INDEX('Scenario Parameters'!$W$36:$AD$43,MATCH(AB165,'Scenario Parameters'!$D$36:$D$43,0),MATCH(B165,'Scenario Parameters'!$W$35:$AD$35,0))*AA165,IF('Scenario Setting'!$F$68=0,Q648,Q1130)) -> 0 | AG165: =IF('Scenario Setting'!$H$86=1,INDEX('Scenario Parameters'!$AF$36:$AM$43,MATCH(AB165,'Scenario Parameters'!$D$36:$D$43,0),MATCH(B165,'Scenario Parameters'!$AF$35:$AM$35,0))*AA165,IF('Scenario Setting'!$F$68=0,Q648,Q1130)) -> 0
B166: 2025 | C166: PCall urban | D166: PrivateCar/Ride-sharing/Car-Sharing | E166: H2 fuel cell | F166: Hydrogen | G166: =IF(SUM('Scenario Setting'!$F$68:$H$68)=0,G649,G1131) -> 1.760536 | H166: =IF(SUM('Scenario Setting'!$F$68:$H$68)=0,H649,H1131) -> 0 | I166: =IF(SUM('Scenario Setting'!$F$68:$H$68)=0,I649,I1131) -> 85.22857 | J166: 0 | K166: =IF(SUM('Scenario Setting'!$F$68:$H$68)=0,K649,K1131) -> 0.02068529 | L166: 0.03641719772 | M166: =IF(SUM('Scenario Setting'!$F$68:$H$68)=0,L649,L1131) -> 0 | N166: =IF(SUM('Scenario Setting'!$F$68:$H$68)=0,M649,M1131) -> 0 | O166: =IF(SUM('Scenario Setting'!$F$68:$H$68)=0,N649,N1131) -> 0 | P166: =IF(SUM('Scenario Setting'!$F$68:$H$68)=0,O649,O1131) -> 1.5 | Q166: =IF(SUM('Scenario Setting'!$F$68:$H$68)=0,P649,P1131) -> 1 | R166: =IF('Scenario Setting'!$H$77=1,INDEX('Scenario Parameters'!$E$36:$L$43,MATCH(AB166,'Scenario Parameters'!$D$36:$D$43,0),MATCH(B166,'Scenario Parameters'!$E$9:$L$9,0))*AA166,IF(SUM('Scenario Setting'!$F$68:$H$68)=0,Q649,Q1131)) -> 0 | S166: 0.02427813181 | T166: 0 | U166: =IF(SUM('Scenario Setting'!$F$68:$H$68)=0,J649,J1131) -> 0 | V166: 1.760536 | W166: 150.0479657 | X166: 0 | Y166: 100.0319771 | Z166: =IF(SUM('Scenario Setting'!$F$68:$H$68)=0,Q649,Q1131) -> 1.49e-06 | AA166: 1 | AB166: Hydrogen | AC166: =Q166*IF('Scenario Setting'!$H$86=1,INDEX('Scenario Parameters'!$W$36:$AD$43,MATCH(AB166,'Scenario Parameters'!$D$36:$D$43,0),MATCH(B166,'Scenario Parameters'!$W$35:$AD$35,0))*AA166,IF('Scenario Setting'!$F$68=0,Q649,Q1131)) -> 0 | AD166: =Q166*IF('Scenario Setting'!$H$86=1,INDEX('Scenario Parameters'!$AF$36:$AM$43,MATCH(AB166,'Scenario Parameters'!$D$36:$D$43,0),MATCH(B166,'Scenario Parameters'!$AF$35:$AM$35,0))*AA166,IF('Scenario Setting'!$F$68=0,Q649,Q1131)) -> 0 | AF166: =IF('Scenario Setting'!$H$86=1,INDEX('Scenario Parameters'!$W$36:$AD$43,MATCH(AB166,'Scenario Parameters'!$D$36:$D$43,0),MATCH(B166,'Scenario Parameters'!$W$35:$AD$35,0))*AA166,IF('Scenario Setting'!$F$68=0,Q649,Q1131)) -> 0 | AG166: =IF('Scenario Setting'!$H$86=1,INDEX('Scenario Parameters'!$AF$36:$AM$43,MATCH(AB166,'Scenario Parameters'!$D$36:$D$43,0),MATCH(B166,'Scenario Parameters'!$AF$35:$AM$35,0))*AA166,IF('Scenario Setting'!$F$68=0,Q649,Q1131)) -> 0
B167: 2025 | C167: PCall urban | D167: PrivateCar/Ride-sharing/Car-Sharing | E167: H2 HEV | F167: Hydrogen | G167: =IF(SUM('Scenario Setting'!$F$68:$H$68)=0,G650,G1132) -> 2.415692 | H167: =IF(SUM('Scenario Setting'!$F$68:$H$68)=0,H650,H1132) -> 0 | I167: =IF(SUM('Scenario Setting'!$F$68:$H$68)=0,I650,I1132) -> 85.22857 | J167: 0 | K167: =IF(SUM('Scenario Setting'!$F$68:$H$68)=0,K650,K1132) -> 0.02068529 | L167: 0.04996928957 | M167: =IF(SUM('Scenario Setting'!$F$68:$H$68)=0,L650,L1132) -> 0 | N167: =IF(SUM('Scenario Setting'!$F$68:$H$68)=0,M650,M1132) -> 0 | O167: =IF(SUM('Scenario Setting'!$F$68:$H$68)=0,N650,N1132) -> 0 | P167: =IF(SUM('Scenario Setting'!$F$68:$H$68)=0,O650,O1132) -> 1.5 | Q167: =IF(SUM('Scenario Setting'!$F$68:$H$68)=0,P650,P1132) -> 1 | R167: =IF('Scenario Setting'!$H$77=1,INDEX('Scenario Parameters'!$E$36:$L$43,MATCH(AB167,'Scenario Parameters'!$D$36:$D$43,0),MATCH(B167,'Scenario Parameters'!$E$9:$L$9,0))*AA167,IF(SUM('Scenario Setting'!$F$68:$H$68)=0,Q650,Q1132)) -> 0 | S167: 0.03331285971 | T167: 0 | U167: =IF(SUM('Scenario Setting'!$F$68:$H$68)=0,J650,J1132) -> 0 | V167: 2.415692 | W167: 205.8859747 | X167: 0 | Y167: 137.2573165 | Z167: =IF(SUM('Scenario Setting'!$F$68:$H$68)=0,Q650,Q1132) -> 1.43e-12 | AA167: =Z167/(Z167+Z169) -> 0.7044334975 | AB167: Hydrogen-hybrid | AC167: =Q167*IF('Scenario Setting'!$H$86=1,INDEX('Scenario Parameters'!$W$36:$AD$43,MATCH(AB167,'Scenario Parameters'!$D$36:$D$43,0),MATCH(B167,'Scenario Parameters'!$W$35:$AD$35,0))*AA167,IF('Scenario Setting'!$F$68=0,Q650,Q1132)) -> 0 | AD167: =Q167*IF('Scenario Setting'!$H$86=1,INDEX('Scenario Parameters'!$AF$36:$AM$43,MATCH(AB167,'Scenario Parameters'!$D$36:$D$43,0),MATCH(B167,'Scenario Parameters'!$AF$35:$AM$35,0))*AA167,IF('Scenario Setting'!$F$68=0,Q650,Q1132)) -> 0 | AF167: =IF('Scenario Setting'!$H$86=1,INDEX('Scenario Parameters'!$W$36:$AD$43,MATCH(AB167,'Scenario Parameters'!$D$36:$D$43,0),MATCH(B167,'Scenario Parameters'!$W$35:$AD$35,0))*AA167,IF('Scenario Setting'!$F$68=0,Q650,Q1132)) -> 0 | AG167: =IF('Scenario Setting'!$H$86=1,INDEX('Scenario Parameters'!$AF$36:$AM$43,MATCH(AB167,'Scenario Parameters'!$D$36:$D$43,0),MATCH(B167,'Scenario Parameters'!$AF$35:$AM$35,0))*AA167,IF('Scenario Setting'!$F$68=0,Q650,Q1132)) -> 0
B168: 2025 | C168: PCall urban | D168: PrivateCar/Ride-sharing/Car-Sharing | E168: H2 PHEV | F168: Electric | G168: =IF(SUM('Scenario Setting'!$F$68:$H$68)=0,G651,G1133) -> 0 | H168: =IF(SUM('Scenario Setting'!$F$68:$H$68)=0,H651,H1133) -> 0.7542242 | I168: =IF(SUM('Scenario Setting'!$F$68:$H$68)=0,I651,I1133) -> 124.9004 | J168: 0 | K168: =IF(SUM('Scenario Setting'!$F$68:$H$68)=0,K651,K1133) -> 0.01355745 | L168: 0.01022535688 | M168: =IF(SUM('Scenario Setting'!$F$68:$H$68)=0,L651,L1133) -> 0 | N168: =IF(SUM('Scenario Setting'!$F$68:$H$68)=0,M651,M1133) -> 0 | O168: =IF(SUM('Scenario Setting'!$F$68:$H$68)=0,N651,N1133) -> 0 | P168: =IF(SUM('Scenario Setting'!$F$68:$H$68)=0,O651,O1133) -> 1.5 | Q168: =IF(SUM('Scenario Setting'!$F$68:$H$68)=0,P651,P1133) -> 1 | R168: =IF('Scenario Setting'!$H$77=1,INDEX('Scenario Parameters'!$E$36:$L$43,MATCH(AB168,'Scenario Parameters'!$D$36:$D$43,0),MATCH(B168,'Scenario Parameters'!$E$9:$L$9,0))*AA168,IF(SUM('Scenario Setting'!$F$68:$H$68)=0,Q651,Q1133)) -> 0 | S168: 0.006816904587 | T168: 0 | U168: =IF(SUM('Scenario Setting'!$F$68:$H$68)=0,J651,J1133) -> 0 | V168: 0.7542242 | W168: 94.20290427 | X168: 0 | Y168: 62.80193618 | Z168: =IF(SUM('Scenario Setting'!$F$68:$H$68)=0,Q651,Q1133) -> 1.2e-12 | AA168: =Z168/(Z165+Z168+Z175+Z177) -> 5.499138438e-09 | AB168: Electric | AC168: =Q168*IF('Scenario Setting'!$H$86=1,INDEX('Scenario Parameters'!$W$36:$AD$43,MATCH(AB168,'Scenario Parameters'!$D$36:$D$43,0),MATCH(B168,'Scenario Parameters'!$W$35:$AD$35,0))*AA168,IF('Scenario Setting'!$F$68=0,Q651,Q1133)) -> 0 | AD168: =Q168*IF('Scenario Setting'!$H$86=1,INDEX('Scenario Parameters'!$AF$36:$AM$43,MATCH(AB168,'Scenario Parameters'!$D$36:$D$43,0),MATCH(B168,'Scenario Parameters'!$AF$35:$AM$35,0))*AA168,IF('Scenario Setting'!$F$68=0,Q651,Q1133)) -> 0 | AF168: =IF('Scenario Setting'!$H$86=1,INDEX('Scenario Parameters'!$W$36:$AD$43,MATCH(AB168,'Scenario Parameters'!$D$36:$D$43,0),MATCH(B168,'Scenario Parameters'!$W$35:$AD$35,0))*AA168,IF('Scenario Setting'!$F$68=0,Q651,Q1133)) -> 0 | AG168: =IF('Scenario Setting'!$H$86=1,INDEX('Scenario Parameters'!$AF$36:$AM$43,MATCH(AB168,'Scenario Parameters'!$D$36:$D$43,0),MATCH(B168,'Scenario Parameters'!$AF$35:$AM$35,0))*AA168,IF('Scenario Setting'!$F$68=0,Q651,Q1133)) -> 0
B169: 2025 | C169: PCall urban | D169: PrivateCar/Ride-sharing/Car-Sharing | E169: H2 PHEV | F169: Hydrogen | G169: =IF(SUM('Scenario Setting'!$F$68:$H$68)=0,G652,G1134) -> 2.415692 | H169: =IF(SUM('Scenario Setting'!$F$68:$H$68)=0,H652,H1134) -> 0 | I169: =IF(SUM('Scenario Setting'!$F$68:$H$68)=0,I652,I1134) -> 85.22857 | J169: 0 | K169: =IF(SUM('Scenario Setting'!$F$68:$H$68)=0,K652,K1134) -> 0.02068529 | L169: 0.04996928957 | M169: =IF(SUM('Scenario Setting'!$F$68:$H$68)=0,L652,L1134) -> 0 | N169: =IF(SUM('Scenario Setting'!$F$68:$H$68)=0,M652,M1134) -> 0 | O169: =IF(SUM('Scenario Setting'!$F$68:$H$68)=0,N652,N1134) -> 0 | P169: =IF(SUM('Scenario Setting'!$F$68:$H$68)=0,O652,O1134) -> 1.5 | Q169: =IF(SUM('Scenario Setting'!$F$68:$H$68)=0,P652,P1134) -> 1 | R169: =IF('Scenario Setting'!$H$77=1,INDEX('Scenario Parameters'!$E$36:$L$43,MATCH(AB169,'Scenario Parameters'!$D$36:$D$43,0),MATCH(B169,'Scenario Parameters'!$E$9:$L$9,0))*AA169,IF(SUM('Scenario Setting'!$F$68:$H$68)=0,Q652,Q1134)) -> 0 | S169: 0.03331285971 | T169: 0 | U169: =IF(SUM('Scenario Setting'!$F$68:$H$68)=0,J652,J1134) -> 0 | V169: 2.415692 | W169: 205.8859747 | X169: 0 | Y169: 137.2573165 | Z169: =IF(SUM('Scenario Setting'!$F$68:$H$68)=0,Q652,Q1134) -> 6e-13 | AA169: =Z169/(Z167+Z169) -> 0.2955665025 | AB169: Hydrogen-hybrid | AC169: =Q169*IF('Scenario Setting'!$H$86=1,INDEX('Scenario Parameters'!$W$36:$AD$43,MATCH(AB169,'Scenario Parameters'!$D$36:$D$43,0),MATCH(B169,'Scenario Parameters'!$W$35:$AD$35,0))*AA169,IF('Scenario Setting'!$F$68=0,Q652,Q1134)) -> 0 | AD169: =Q169*IF('Scenario Setting'!$H$86=1,INDEX('Scenario Parameters'!$AF$36:$AM$43,MATCH(AB169,'Scenario Parameters'!$D$36:$D$43,0),MATCH(B169,'Scenario Parameters'!$AF$35:$AM$35,0))*AA169,IF('Scenario Setting'!$F$68=0,Q652,Q1134)) -> 0 | AF169: =IF('Scenario Setting'!$H$86=1,INDEX('Scenario Parameters'!$W$36:$AD$43,MATCH(AB169,'Scenario Parameters'!$D$36:$D$43,0),MATCH(B169,'Scenario Parameters'!$W$35:$AD$35,0))*AA169,IF('Scenario Setting'!$F$68=0,Q652,Q1134)) -> 0 | AG169: =IF('Scenario Setting'!$H$86=1,INDEX('Scenario Parameters'!$AF$36:$AM$43,MATCH(AB169,'Scenario Parameters'!$D$36:$D$43,0),MATCH(B169,'Scenario Parameters'!$AF$35:$AM$35,0))*AA169,IF('Scenario Setting'!$F$68=0,Q652,Q1134)) -> 0
B170: 2025 | C170: PCall urban | D170: PrivateCar/Ride-sharing/Car-Sharing | E170: HEV CI or TUR | F170: Diesel | G170: =IF(SUM('Scenario Setting'!$F$68:$H$68)=0,G653,G1135) -> 1.669187 | H170: =IF(SUM('Scenario Setting'!$F$68:$H$68)=0,H653,H1135) -> 0 | I170: =IF(SUM('Scenario Setting'!$F$68:$H$68)=0,I653,I1135) -> 15.21 | J170: 74.1 | K170: =IF(SUM('Scenario Setting'!$F$68:$H$68)=0,K653,K1135) -> 0.02355561 | L170: 0.03931871799 | M170: =IF(SUM('Scenario Setting'!$F$68:$H$68)=0,L653,L1135) -> 0.849 | N170: =IF(SUM('Scenario Setting'!$F$68:$H$68)=0,M653,M1135) -> 0.061 | O170: =IF(SUM('Scenario Setting'!$F$68:$H$68)=0,N653,N1135) -> 0.013 | P170: =IF(SUM('Scenario Setting'!$F$68:$H$68)=0,O653,O1135) -> 1.5 | Q170: =IF(SUM('Scenario Setting'!$F$68:$H$68)=0,P653,P1135) -> 0 | R170: =IF('Scenario Setting'!$H$77=1,INDEX('Scenario Parameters'!$E$36:$L$43,MATCH(AB170,'Scenario Parameters'!$D$36:$D$43,0),MATCH(B170,'Scenario Parameters'!$E$9:$L$9,0))*AA170,IF(SUM('Scenario Setting'!$F$68:$H$68)=0,Q653,Q1135)) -> 0 | S170: 0.02621247866 | T170: 0 | U170: =IF(SUM('Scenario Setting'!$F$68:$H$68)=0,J653,J1135) -> 74.1 | V170: 1.669187 | W170: 25.38833427 | X170: 123.6867567 | Y170: 99.38339398 | Z170: =IF(SUM('Scenario Setting'!$F$68:$H$68)=0,Q653,Q1135) -> 0.000486946 | AA170: =Z170/(Z170+Z176) -> 0.9953192324 | AB170: Diesel-hybrid | AC170: =Q170*IF('Scenario Setting'!$H$86=1,INDEX('Scenario Parameters'!$W$36:$AD$43,MATCH(AB170,'Scenario Parameters'!$D$36:$D$43,0),MATCH(B170,'Scenario Parameters'!$W$35:$AD$35,0))*AA170,IF('Scenario Setting'!$F$68=0,Q653,Q1135)) -> 0 | AD170: =Q170*IF('Scenario Setting'!$H$86=1,INDEX('Scenario Parameters'!$AF$36:$AM$43,MATCH(AB170,'Scenario Parameters'!$D$36:$D$43,0),MATCH(B170,'Scenario Parameters'!$AF$35:$AM$35,0))*AA170,IF('Scenario Setting'!$F$68=0,Q653,Q1135)) -> 0 | AF170: =IF('Scenario Setting'!$H$86=1,INDEX('Scenario Parameters'!$W$36:$AD$43,MATCH(AB170,'Scenario Parameters'!$D$36:$D$43,0),MATCH(B170,'Scenario Parameters'!$W$35:$AD$35,0))*AA170,IF('Scenario Setting'!$F$68=0,Q653,Q1135)) -> 0 | AG170: =IF('Scenario Setting'!$H$86=1,INDEX('Scenario Parameters'!$AF$36:$AM$43,MATCH(AB170,'Scenario Parameters'!$D$36:$D$43,0),MATCH(B170,'Scenario Parameters'!$AF$35:$AM$35,0))*AA170,IF('Scenario Setting'!$F$68=0,Q653,Q1135)) -> 0
B171: 2025 | C171: PCall urban | D171: PrivateCar/Ride-sharing/Car-Sharing | E171: HEV SI | F171: Gasoline | G171: =IF(SUM('Scenario Setting'!$F$68:$H$68)=0,G654,G1136) -> 1.7527 | H171: =IF(SUM('Scenario Setting'!$F$68:$H$68)=0,H654,H1136) -> 0 | I171: =IF(SUM('Scenario Setting'!$F$68:$H$68)=0,I654,I1136) -> 13.22 | J171: 69.3 | K171: =IF(SUM('Scenario Setting'!$F$68:$H$68)=0,K654,K1136) -> 0.02300138 | L171: 0.04031451873 | M171: =IF(SUM('Scenario Setting'!$F$68:$H$68)=0,L654,L1136) -> 0.126 | N171: =IF(SUM('Scenario Setting'!$F$68:$H$68)=0,M654,M1136) -> 0.002 | O171: =IF(SUM('Scenario Setting'!$F$68:$H$68)=0,N654,N1136) -> 0.001 | P171: =IF(SUM('Scenario Setting'!$F$68:$H$68)=0,O654,O1136) -> 1.5 | Q171: =IF(SUM('Scenario Setting'!$F$68:$H$68)=0,P654,P1136) -> 0 | R171: =IF('Scenario Setting'!$H$77=1,INDEX('Scenario Parameters'!$E$36:$L$43,MATCH(AB171,'Scenario Parameters'!$D$36:$D$43,0),MATCH(B171,'Scenario Parameters'!$E$9:$L$9,0))*AA171,IF(SUM('Scenario Setting'!$F$68:$H$68)=0,Q654,Q1136)) -> 0 | S171: 0.02687634582 | T171: 0 | U171: =IF(SUM('Scenario Setting'!$F$68:$H$68)=0,J654,J1136) -> 69.3 | V171: 1.7527 | W171: 23.170694 | X171: 121.46211 | Y171: 96.42186933 | Z171: =IF(SUM('Scenario Setting'!$F$68:$H$68)=0,Q654,Q1136) -> 0.007224619 | AA171: =Z171/(Z171+Z178) -> 0.9953296258 | AB171: Gasoline-hybrid | AC171: =Q171*IF('Scenario Setting'!$H$86=1,INDEX('Scenario Parameters'!$W$36:$AD$43,MATCH(AB171,'Scenario Parameters'!$D$36:$D$43,0),MATCH(B171,'Scenario Parameters'!$W$35:$AD$35,0))*AA171,IF('Scenario Setting'!$F$68=0,Q654,Q1136)) -> 0 | AD171: =Q171*IF('Scenario Setting'!$H$86=1,INDEX('Scenario Parameters'!$AF$36:$AM$43,MATCH(AB171,'Scenario Parameters'!$D$36:$D$43,0),MATCH(B171,'Scenario Parameters'!$AF$35:$AM$35,0))*AA171,IF('Scenario Setting'!$F$68=0,Q654,Q1136)) -> 0 | AF171: =IF('Scenario Setting'!$H$86=1,INDEX('Scenario Parameters'!$W$36:$AD$43,MATCH(AB171,'Scenario Parameters'!$D$36:$D$43,0),MATCH(B171,'Scenario Parameters'!$W$35:$AD$35,0))*AA171,IF('Scenario Setting'!$F$68=0,Q654,Q1136)) -> 0 | AG171: =IF('Scenario Setting'!$H$86=1,INDEX('Scenario Parameters'!$AF$36:$AM$43,MATCH(AB171,'Scenario Parameters'!$D$36:$D$43,0),MATCH(B171,'Scenario Parameters'!$AF$35:$AM$35,0))*AA171,IF('Scenario Setting'!$F$68=0,Q654,Q1136)) -> 0
B172: 2025 | C172: PCall urban | D172: PrivateCar/Ride-sharing/Car-Sharing | E172: ICE CI or TUR | F172: Diesel | G172: =IF(SUM('Scenario Setting'!$F$68:$H$68)=0,G655,G1137) -> 2.375963 | H172: =IF(SUM('Scenario Setting'!$F$68:$H$68)=0,H655,H1137) -> 0 | I172: =IF(SUM('Scenario Setting'!$F$68:$H$68)=0,I655,I1137) -> 15.21 | J172: 74.1 | K172: =IF(SUM('Scenario Setting'!$F$68:$H$68)=0,K655,K1137) -> 0.02355561 | L172: 0.0559672578 | M172: =IF(SUM('Scenario Setting'!$F$68:$H$68)=0,L655,L1137) -> 0.849 | N172: =IF(SUM('Scenario Setting'!$F$68:$H$68)=0,M655,M1137) -> 0.061 | O172: =IF(SUM('Scenario Setting'!$F$68:$H$68)=0,N655,N1137) -> 0.013 | P172: =IF(SUM('Scenario Setting'!$F$68:$H$68)=0,O655,O1137) -> 1.5 | Q172: =IF(SUM('Scenario Setting'!$F$68:$H$68)=0,P655,P1137) -> 0 | R172: =IF('Scenario Setting'!$H$77=1,INDEX('Scenario Parameters'!$E$36:$L$43,MATCH(AB172,'Scenario Parameters'!$D$36:$D$43,0),MATCH(B172,'Scenario Parameters'!$E$9:$L$9,0))*AA172,IF(SUM('Scenario Setting'!$F$68:$H$68)=0,Q655,Q1137)) -> 0.01 | S172: 0.0373115052 | T172: 0 | U172: =IF(SUM('Scenario Setting'!$F$68:$H$68)=0,J655,J1137) -> 74.1 | V172: 2.375963 | W172: 36.13839723 | X172: 176.0588583 | Y172: 141.464837 | Z172: =IF(SUM('Scenario Setting'!$F$68:$H$68)=0,Q655,Q1137) -> 0.11202934 | AA172: 1 | AB172: Diesel | AC172: =Q172*IF('Scenario Setting'!$H$86=1,INDEX('Scenario Parameters'!$W$36:$AD$43,MATCH(AB172,'Scenario Parameters'!$D$36:$D$43,0),MATCH(B172,'Scenario Parameters'!$W$35:$AD$35,0))*AA172,IF('Scenario Setting'!$F$68=0,Q655,Q1137)) -> 0 | AD172: =Q172*IF('Scenario Setting'!$H$86=1,INDEX('Scenario Parameters'!$AF$36:$AM$43,MATCH(AB172,'Scenario Parameters'!$D$36:$D$43,0),MATCH(B172,'Scenario Parameters'!$AF$35:$AM$35,0))*AA172,IF('Scenario Setting'!$F$68=0,Q655,Q1137)) -> 0 | AF172: =IF('Scenario Setting'!$H$86=1,INDEX('Scenario Parameters'!$W$36:$AD$43,MATCH(AB172,'Scenario Parameters'!$D$36:$D$43,0),MATCH(B172,'Scenario Parameters'!$W$35:$AD$35,0))*AA172,IF('Scenario Setting'!$F$68=0,Q655,Q1137)) -> 0.01 | AG172: =IF('Scenario Setting'!$H$86=1,INDEX('Scenario Parameters'!$AF$36:$AM$43,MATCH(AB172,'Scenario Parameters'!$D$36:$D$43,0),MATCH(B172,'Scenario Parameters'!$AF$35:$AM$35,0))*AA172,IF('Scenario Setting'!$F$68=0,Q655,Q1137)) -> 0.01
B173: 2025 | C173: PCall urban | D173: PrivateCar/Ride-sharing/Car-Sharing | E173: ICE SI | F173: Gasoline | G173: =IF(SUM('Scenario Setting'!$F$68:$H$68)=0,G656,G1138) -> 2.837972 | H173: =IF(SUM('Scenario Setting'!$F$68:$H$68)=0,H656,H1138) -> 0 | I173: =IF(SUM('Scenario Setting'!$F$68:$H$68)=0,I656,I1138) -> 13.22 | J173: 69.3 | K173: =IF(SUM('Scenario Setting'!$F$68:$H$68)=0,K656,K1138) -> 0.02300138 | L173: 0.0652772724 | M173: =IF(SUM('Scenario Setting'!$F$68:$H$68)=0,L656,L1138) -> 0.126 | N173: =IF(SUM('Scenario Setting'!$F$68:$H$68)=0,M656,M1138) -> 0.002 | O173: =IF(SUM('Scenario Setting'!$F$68:$H$68)=0,N656,N1138) -> 0.001 | P173: =IF(SUM('Scenario Setting'!$F$68:$H$68)=0,O656,O1138) -> 1.5 | Q173: =IF(SUM('Scenario Setting'!$F$68:$H$68)=0,P656,P1138) -> 0 | R173: =IF('Scenario Setting'!$H$77=1,INDEX('Scenario Parameters'!$E$36:$L$43,MATCH(AB173,'Scenario Parameters'!$D$36:$D$43,0),MATCH(B173,'Scenario Parameters'!$E$9:$L$9,0))*AA173,IF(SUM('Scenario Setting'!$F$68:$H$68)=0,Q656,Q1138)) -> 0.67 | S173: 0.0435181816 | T173: 0 | U173: =IF(SUM('Scenario Setting'!$F$68:$H$68)=0,J656,J1138) -> 69.3 | V173: 2.837972 | W173: 37.51798984 | X173: 196.6714596 | Y173: 156.1262996 | Z173: =IF(SUM('Scenario Setting'!$F$68:$H$68)=0,Q656,Q1138) -> 0.798845551 | AA173: 1 | AB173: Gasoline | AC173: =Q173*IF('Scenario Setting'!$H$86=1,INDEX('Scenario Parameters'!$W$36:$AD$43,MATCH(AB173,'Scenario Parameters'!$D$36:$D$43,0),MATCH(B173,'Scenario Parameters'!$W$35:$AD$35,0))*AA173,IF('Scenario Setting'!$F$68=0,Q656,Q1138)) -> 0 | AD173: =Q173*IF('Scenario Setting'!$H$86=1,INDEX('Scenario Parameters'!$AF$36:$AM$43,MATCH(AB173,'Scenario Parameters'!$D$36:$D$43,0),MATCH(B173,'Scenario Parameters'!$AF$35:$AM$35,0))*AA173,IF('Scenario Setting'!$F$68=0,Q656,Q1138)) -> 0 | AF173: =IF('Scenario Setting'!$H$86=1,INDEX('Scenario Parameters'!$W$36:$AD$43,MATCH(AB173,'Scenario Parameters'!$D$36:$D$43,0),MATCH(B173,'Scenario Parameters'!$W$35:$AD$35,0))*AA173,IF('Scenario Setting'!$F$68=0,Q656,Q1138)) -> 0.67 | AG173: =IF('Scenario Setting'!$H$86=1,INDEX('Scenario Parameters'!$AF$36:$AM$43,MATCH(AB173,'Scenario Parameters'!$D$36:$D$43,0),MATCH(B173,'Scenario Parameters'!$AF$35:$AM$35,0))*AA173,IF('Scenario Setting'!$F$68=0,Q656,Q1138)) -> 0.67
B174: 2025 | C174: PCall urban | D174: PrivateCar/Ride-sharing/Car-Sharing | E174: ICE SI | F174: LPG/CNG | G174: =IF(SUM('Scenario Setting'!$F$68:$H$68)=0,G657,G1139) -> 2.942382 | H174: =IF(SUM('Scenario Setting'!$F$68:$H$68)=0,H657,H1139) -> 0 | I174: =IF(SUM('Scenario Setting'!$F$68:$H$68)=0,I657,I1139) -> 16.28 | J174: 56.1 | K174: =IF(SUM('Scenario Setting'!$F$68:$H$68)=0,K657,K1139) -> 0.02096578 | L174: 0.06168933369 | M174: =IF(SUM('Scenario Setting'!$F$68:$H$68)=0,L657,L1139) -> 0.052 | N174: =IF(SUM('Scenario Setting'!$F$68:$H$68)=0,M657,M1139) -> 0.001 | O174: =IF(SUM('Scenario Setting'!$F$68:$H$68)=0,N657,N1139) -> 0 | P174: =IF(SUM('Scenario Setting'!$F$68:$H$68)=0,O657,O1139) -> 1.5 | Q174: =IF(SUM('Scenario Setting'!$F$68:$H$68)=0,P657,P1139) -> 0 | R174: =IF('Scenario Setting'!$H$77=1,INDEX('Scenario Parameters'!$E$36:$L$43,MATCH(AB174,'Scenario Parameters'!$D$36:$D$43,0),MATCH(B174,'Scenario Parameters'!$E$9:$L$9,0))*AA174,IF(SUM('Scenario Setting'!$F$68:$H$68)=0,Q657,Q1139)) -> 0.32 | S174: 0.04112622246 | T174: 0 | U174: =IF(SUM('Scenario Setting'!$F$68:$H$68)=0,J657,J1139) -> 56.1 | V174: 2.942382 | W174: 47.90197896 | X174: 165.0676302 | Y174: 141.9797394 | Z174: =IF(SUM('Scenario Setting'!$F$68:$H$68)=0,Q657,Q1139) -> 0.081157622 | AA174: 1 | AB174: LPG/CNG | AC174: =Q174*IF('Scenario Setting'!$H$86=1,INDEX('Scenario Parameters'!$W$36:$AD$43,MATCH(AB174,'Scenario Parameters'!$D$36:$D$43,0),MATCH(B174,'Scenario Parameters'!$W$35:$AD$35,0))*AA174,IF('Scenario Setting'!$F$68=0,Q657,Q1139)) -> 0 | AD174: =Q174*IF('Scenario Setting'!$H$86=1,INDEX('Scenario Parameters'!$AF$36:$AM$43,MATCH(AB174,'Scenario Parameters'!$D$36:$D$43,0),MATCH(B174,'Scenario Parameters'!$AF$35:$AM$35,0))*AA174,IF('Scenario Setting'!$F$68=0,Q657,Q1139)) -> 0 | AF174: =IF('Scenario Setting'!$H$86=1,INDEX('Scenario Parameters'!$W$36:$AD$43,MATCH(AB174,'Scenario Parameters'!$D$36:$D$43,0),MATCH(B174,'Scenario Parameters'!$W$35:$AD$35,0))*AA174,IF('Scenario Setting'!$F$68=0,Q657,Q1139)) -> 0.32 | AG174: =IF('Scenario Setting'!$H$86=1,INDEX('Scenario Parameters'!$AF$36:$AM$43,MATCH(AB174,'Scenario Parameters'!$D$36:$D$43,0),MATCH(B174,'Scenario Parameters'!$AF$35:$AM$35,0))*AA174,IF('Scenario Setting'!$F$68=0,Q657,Q1139)) -> 0.32
B175: 2025 | C175: PCall urban | D175: PrivateCar/Ride-sharing/Car-Sharing | E175: PHEV CI or TUR | F175: Electric | G175: =IF(SUM('Scenario Setting'!$F$68:$H$68)=0,G658,G1140) -> 0 | H175: =IF(SUM('Scenario Setting'!$F$68:$H$68)=0,H658,H1140) -> 0.7542242 | I175: =IF(SUM('Scenario Setting'!$F$68:$H$68)=0,I658,I1140) -> 130.2567 | J175: =U175 -> 0 | K175: =IF(SUM('Scenario Setting'!$F$68:$H$68)=0,K658,K1140) -> 0.01355745 | L175: =IF(G175=0,H175*K175,G175*K175) -> 0.01022535688 | M175: =IF(SUM('Scenario Setting'!$F$68:$H$68)=0,L658,L1140) -> 0 | N175: =IF(SUM('Scenario Setting'!$F$68:$H$68)=0,M658,M1140) -> 0 | O175: =IF(SUM('Scenario Setting'!$F$68:$H$68)=0,N658,N1140) -> 0 | P175: =IF(SUM('Scenario Setting'!$F$68:$H$68)=0,O658,O1140) -> 1.5 | Q175: =IF(SUM('Scenario Setting'!$F$68:$H$68)=0,P658,P1140) -> 1 | R175: =IF('Scenario Setting'!$H$77=1,INDEX('Scenario Parameters'!$E$36:$L$43,MATCH(AB175,'Scenario Parameters'!$D$36:$D$43,0),MATCH(B175,'Scenario Parameters'!$E$9:$L$9,0))*AA175,IF(SUM('Scenario Setting'!$F$68:$H$68)=0,Q658,Q1140)) -> 0 | S175: =L175/P175 -> 0.006816904587 | T175: =Q175*R175 -> 0 | U175: =IF(SUM('Scenario Setting'!$F$68:$H$68)=0,J658,J1140) -> 0 | V175: =G175+H175 -> 0.7542242 | W175: =$V175*I175 -> 98.24275535 | X175: =$V175*J175 -> 0 | Y175: =(W175+X175)/P175 -> 65.49517023 | Z175: =IF(SUM('Scenario Setting'!$F$68:$H$68)=0,Q658,Q1140) -> 4.58e-06 | AA175: =Z175/(Z165+Z168+Z175+Z177) -> 0.02098837837 | AB175: Electric | AC175: =Q175*IF('Scenario Setting'!$H$86=1,INDEX('Scenario Parameters'!$W$36:$AD$43,MATCH(AB175,'Scenario Parameters'!$D$36:$D$43,0),MATCH(B175,'Scenario Parameters'!$W$35:$AD$35,0))*AA175,IF('Scenario Setting'!$F$68=0,Q658,Q1140)) -> 0 | AD175: =Q175*IF('Scenario Setting'!$H$86=1,INDEX('Scenario Parameters'!$AF$36:$AM$43,MATCH(AB175,'Scenario Parameters'!$D$36:$D$43,0),MATCH(B175,'Scenario Parameters'!$AF$35:$AM$35,0))*AA175,IF('Scenario Setting'!$F$68=0,Q658,Q1140)) -> 0 | AF175: =IF('Scenario Setting'!$H$86=1,INDEX('Scenario Parameters'!$W$36:$AD$43,MATCH(AB175,'Scenario Parameters'!$D$36:$D$43,0),MATCH(B175,'Scenario Parameters'!$W$35:$AD$35,0))*AA175,IF('Scenario Setting'!$F$68=0,Q658,Q1140)) -> 0 | AG175: =IF('Scenario Setting'!$H$86=1,INDEX('Scenario Parameters'!$AF$36:$AM$43,MATCH(AB175,'Scenario Parameters'!$D$36:$D$43,0),MATCH(B175,'Scenario Parameters'!$AF$35:$AM$35,0))*AA175,IF('Scenario Setting'!$F$68=0,Q658,Q1140)) -> 0
B176: 2025 | C176: PCall urban | D176: PrivateCar/Ride-sharing/Car-Sharing | E176: PHEV CI or TUR | F176: Diesel | G176: =IF(SUM('Scenario Setting'!$F$68:$H$68)=0,G659,G1141) -> 1.669187 | H176: =IF(SUM('Scenario Setting'!$F$68:$H$68)=0,H659,H1141) -> 0 | I176: =IF(SUM('Scenario Setting'!$F$68:$H$68)=0,I659,I1141) -> 15.21 | J176: 74.1 | K176: =IF(SUM('Scenario Setting'!$F$68:$H$68)=0,K659,K1141) -> 0.02355561 | L176: 0.03931871799 | M176: =IF(SUM('Scenario Setting'!$F$68:$H$68)=0,L659,L1141) -> 0.849 | N176: =IF(SUM('Scenario Setting'!$F$68:$H$68)=0,M659,M1141) -> 0.061 | O176: =IF(SUM('Scenario Setting'!$F$68:$H$68)=0,N659,N1141) -> 0.013 | P176: =IF(SUM('Scenario Setting'!$F$68:$H$68)=0,O659,O1141) -> 1.5 | Q176: =IF(SUM('Scenario Setting'!$F$68:$H$68)=0,P659,P1141) -> 0 | R176: =IF('Scenario Setting'!$H$77=1,INDEX('Scenario Parameters'!$E$36:$L$43,MATCH(AB176,'Scenario Parameters'!$D$36:$D$43,0),MATCH(B176,'Scenario Parameters'!$E$9:$L$9,0))*AA176,IF(SUM('Scenario Setting'!$F$68:$H$68)=0,Q659,Q1141)) -> 0 | S176: 0.02621247866 | T176: 0 | U176: =IF(SUM('Scenario Setting'!$F$68:$H$68)=0,J659,J1141) -> 74.1 | V176: 1.669187 | W176: 25.38833427 | X176: 123.6867567 | Y176: 99.38339398 | Z176: =IF(SUM('Scenario Setting'!$F$68:$H$68)=0,Q659,Q1141) -> 2.29e-06 | AA176: =Z176/(Z170+Z176) -> 0.004680767564 | AB176: Diesel-hybrid | AC176: =Q176*IF('Scenario Setting'!$H$86=1,INDEX('Scenario Parameters'!$W$36:$AD$43,MATCH(AB176,'Scenario Parameters'!$D$36:$D$43,0),MATCH(B176,'Scenario Parameters'!$W$35:$AD$35,0))*AA176,IF('Scenario Setting'!$F$68=0,Q659,Q1141)) -> 0 | AD176: =Q176*IF('Scenario Setting'!$H$86=1,INDEX('Scenario Parameters'!$AF$36:$AM$43,MATCH(AB176,'Scenario Parameters'!$D$36:$D$43,0),MATCH(B176,'Scenario Parameters'!$AF$35:$AM$35,0))*AA176,IF('Scenario Setting'!$F$68=0,Q659,Q1141)) -> 0 | AF176: =IF('Scenario Setting'!$H$86=1,INDEX('Scenario Parameters'!$W$36:$AD$43,MATCH(AB176,'Scenario Parameters'!$D$36:$D$43,0),MATCH(B176,'Scenario Parameters'!$W$35:$AD$35,0))*AA176,IF('Scenario Setting'!$F$68=0,Q659,Q1141)) -> 0 | AG176: =IF('Scenario Setting'!$H$86=1,INDEX('Scenario Parameters'!$AF$36:$AM$43,MATCH(AB176,'Scenario Parameters'!$D$36:$D$43,0),MATCH(B176,'Scenario Parameters'!$AF$35:$AM$35,0))*AA176,IF('Scenario Setting'!$F$68=0,Q659,Q1141)) -> 0
B177: 2025 | C177: PCall urban | D177: PrivateCar/Ride-sharing/Car-Sharing | E177: PHEV SI | F177: Electric | G177: =IF(SUM('Scenario Setting'!$F$68:$H$68)=0,G660,G1142) -> 0 | H177: =IF(SUM('Scenario Setting'!$F$68:$H$68)=0,H660,H1142) -> 0.7542242 | I177: =IF(SUM('Scenario Setting'!$F$68:$H$68)=0,I660,I1142) -> 130.2567 | J177: 0 | K177: =IF(SUM('Scenario Setting'!$F$68:$H$68)=0,K660,K1142) -> 0.01355745 | L177: 0.01022535688 | M177: =IF(SUM('Scenario Setting'!$F$68:$H$68)=0,L660,L1142) -> 0 | N177: =IF(SUM('Scenario Setting'!$F$68:$H$68)=0,M660,M1142) -> 0 | O177: =IF(SUM('Scenario Setting'!$F$68:$H$68)=0,N660,N1142) -> 0 | P177: =IF(SUM('Scenario Setting'!$F$68:$H$68)=0,O660,O1142) -> 1.5 | Q177: =IF(SUM('Scenario Setting'!$F$68:$H$68)=0,P660,P1142) -> 1 | R177: =IF('Scenario Setting'!$H$77=1,INDEX('Scenario Parameters'!$E$36:$L$43,MATCH(AB177,'Scenario Parameters'!$D$36:$D$43,0),MATCH(B177,'Scenario Parameters'!$E$9:$L$9,0))*AA177,IF(SUM('Scenario Setting'!$F$68:$H$68)=0,Q660,Q1142)) -> 0 | S177: 0.006816904587 | T177: 0 | U177: =IF(SUM('Scenario Setting'!$F$68:$H$68)=0,J660,J1142) -> 0 | V177: 0.7542242 | W177: 98.24275535 | X177: 0 | Y177: 65.49517023 | Z177: =IF(SUM('Scenario Setting'!$F$68:$H$68)=0,Q660,Q1142) -> 6.79e-05 | AA177: =Z177/(Z165+Z168+Z175+Z177) -> 0.3111595833 | AB177: Electric | AC177: =Q177*IF('Scenario Setting'!$H$86=1,INDEX('Scenario Parameters'!$W$36:$AD$43,MATCH(AB177,'Scenario Parameters'!$D$36:$D$43,0),MATCH(B177,'Scenario Parameters'!$W$35:$AD$35,0))*AA177,IF('Scenario Setting'!$F$68=0,Q660,Q1142)) -> 0 | AD177: =Q177*IF('Scenario Setting'!$H$86=1,INDEX('Scenario Parameters'!$AF$36:$AM$43,MATCH(AB177,'Scenario Parameters'!$D$36:$D$43,0),MATCH(B177,'Scenario Parameters'!$AF$35:$AM$35,0))*AA177,IF('Scenario Setting'!$F$68=0,Q660,Q1142)) -> 0 | AF177: =IF('Scenario Setting'!$H$86=1,INDEX('Scenario Parameters'!$W$36:$AD$43,MATCH(AB177,'Scenario Parameters'!$D$36:$D$43,0),MATCH(B177,'Scenario Parameters'!$W$35:$AD$35,0))*AA177,IF('Scenario Setting'!$F$68=0,Q660,Q1142)) -> 0 | AG177: =IF('Scenario Setting'!$H$86=1,INDEX('Scenario Parameters'!$AF$36:$AM$43,MATCH(AB177,'Scenario Parameters'!$D$36:$D$43,0),MATCH(B177,'Scenario Parameters'!$AF$35:$AM$35,0))*AA177,IF('Scenario Setting'!$F$68=0,Q660,Q1142)) -> 0
B178: 2025 | C178: PCall urban | D178: PrivateCar/Ride-sharing/Car-Sharing | E178: PHEV SI | F178: Gasoline | G178: =IF(SUM('Scenario Setting'!$F$68:$H$68)=0,G661,G1143) -> 1.7527 | H178: =IF(SUM('Scenario Setting'!$F$68:$H$68)=0,H661,H1143) -> 0 | I178: =IF(SUM('Scenario Setting'!$F$68:$H$68)=0,I661,I1143) -> 13.22 | J178: 69.3 | K178: =IF(SUM('Scenario Setting'!$F$68:$H$68)=0,K661,K1143) -> 0.02300138 | L178: 0.04031451873 | M178: =IF(SUM('Scenario Setting'!$F$68:$H$68)=0,L661,L1143) -> 0.126 | N178: =IF(SUM('Scenario Setting'!$F$68:$H$68)=0,M661,M1143) -> 0.002 | O178: =IF(SUM('Scenario Setting'!$F$68:$H$68)=0,N661,N1143) -> 0.001 | P178: =IF(SUM('Scenario Setting'!$F$68:$H$68)=0,O661,O1143) -> 1.5 | Q178: =IF(SUM('Scenario Setting'!$F$68:$H$68)=0,P661,P1143) -> 0 | R178: =IF('Scenario Setting'!$H$77=1,INDEX('Scenario Parameters'!$E$36:$L$43,MATCH(AB178,'Scenario Parameters'!$D$36:$D$43,0),MATCH(B178,'Scenario Parameters'!$E$9:$L$9,0))*AA178,IF(SUM('Scenario Setting'!$F$68:$H$68)=0,Q661,Q1143)) -> 0 | S178: 0.02687634582 | T178: 0 | U178: =IF(SUM('Scenario Setting'!$F$68:$H$68)=0,J661,J1143) -> 69.3 | V178: 1.7527 | W178: 23.170694 | X178: 121.46211 | Y178: 96.42186933 | Z178: =IF(SUM('Scenario Setting'!$F$68:$H$68)=0,Q661,Q1143) -> 3.39e-05 | AA178: =Z178/(Z171+Z178) -> 0.004670374218 | AB178: Gasoline-hybrid | AC178: =Q178*IF('Scenario Setting'!$H$86=1,INDEX('Scenario Parameters'!$W$36:$AD$43,MATCH(AB178,'Scenario Parameters'!$D$36:$D$43,0),MATCH(B178,'Scenario Parameters'!$W$35:$AD$35,0))*AA178,IF('Scenario Setting'!$F$68=0,Q661,Q1143)) -> 0 | AD178: =Q178*IF('Scenario Setting'!$H$86=1,INDEX('Scenario Parameters'!$AF$36:$AM$43,MATCH(AB178,'Scenario Parameters'!$D$36:$D$43,0),MATCH(B178,'Scenario Parameters'!$AF$35:$AM$35,0))*AA178,IF('Scenario Setting'!$F$68=0,Q661,Q1143)) -> 0 | AF178: =IF('Scenario Setting'!$H$86=1,INDEX('Scenario Parameters'!$W$36:$AD$43,MATCH(AB178,'Scenario Parameters'!$D$36:$D$43,0),MATCH(B178,'Scenario Parameters'!$W$35:$AD$35,0))*AA178,IF('Scenario Setting'!$F$68=0,Q661,Q1143)) -> 0 | AG178: =IF('Scenario Setting'!$H$86=1,INDEX('Scenario Parameters'!$AF$36:$AM$43,MATCH(AB178,'Scenario Parameters'!$D$36:$D$43,0),MATCH(B178,'Scenario Parameters'!$AF$35:$AM$35,0))*AA178,IF('Scenario Setting'!$F$68=0,Q661,Q1143)) -> 0
B179: 2030 | C179: PCall urban | D179: PrivateCar/Ride-sharing/Car-Sharing | E179: BEV | F179: Electric | G179: =IF(SUM('Scenario Setting'!$F$68:$H$68)=0,G662,G1144) -> 0 | H179: =IF(SUM('Scenario Setting'!$F$68:$H$68)=0,H662,H1144) -> 0.7466975 | I179: =IF(SUM('Scenario Setting'!$F$68:$H$68)=0,I662,I1144) -> 123.7533 | J179: 0 | K179: =IF(SUM('Scenario Setting'!$F$68:$H$68)=0,K662,K1144) -> 0.01448755 | L179: 0.01081781737 | M179: =IF(SUM('Scenario Setting'!$F$68:$H$68)=0,L662,L1144) -> 0 | N179: =IF(SUM('Scenario Setting'!$F$68:$H$68)=0,M662,M1144) -> 0 | O179: =IF(SUM('Scenario Setting'!$F$68:$H$68)=0,N662,N1144) -> 0 | P179: =IF(SUM('Scenario Setting'!$F$68:$H$68)=0,O662,O1144) -> 1.5 | Q179: =IF(SUM('Scenario Setting'!$F$68:$H$68)=0,P662,P1144) -> 1 | R179: =IF('Scenario Setting'!$H$77=1,INDEX('Scenario Parameters'!$E$36:$L$43,MATCH(AB179,'Scenario Parameters'!$D$36:$D$43,0),MATCH(B179,'Scenario Parameters'!$E$9:$L$9,0))*AA179,IF(SUM('Scenario Setting'!$F$68:$H$68)=0,Q662,Q1144)) -> 0 | S179: 0.007211878244 | T179: 0 | U179: =IF(SUM('Scenario Setting'!$F$68:$H$68)=0,J662,J1144) -> 0 | V179: 0.7466975 | W179: 92.40627973 | X179: 0 | Y179: 61.60418648 | Z179: =IF(SUM('Scenario Setting'!$F$68:$H$68)=0,Q662,Q1144) -> 0.000625636 | AA179: =Z179/(Z179+Z182+Z189+Z191) -> 0.6411617305 | AB179: Electric | AC179: =Q179*IF('Scenario Setting'!$H$86=1,INDEX('Scenario Parameters'!$W$36:$AD$43,MATCH(AB179,'Scenario Parameters'!$D$36:$D$43,0),MATCH(B179,'Scenario Parameters'!$W$35:$AD$35,0))*AA179,IF('Scenario Setting'!$F$68=0,Q662,Q1144)) -> 0 | AD179: =Q179*IF('Scenario Setting'!$H$86=1,INDEX('Scenario Parameters'!$AF$36:$AM$43,MATCH(AB179,'Scenario Parameters'!$D$36:$D$43,0),MATCH(B179,'Scenario Parameters'!$AF$35:$AM$35,0))*AA179,IF('Scenario Setting'!$F$68=0,Q662,Q1144)) -> 0 | AF179: =IF('Scenario Setting'!$H$86=1,INDEX('Scenario Parameters'!$W$36:$AD$43,MATCH(AB179,'Scenario Parameters'!$D$36:$D$43,0),MATCH(B179,'Scenario Parameters'!$W$35:$AD$35,0))*AA179,IF('Scenario Setting'!$F$68=0,Q662,Q1144)) -> 0 | AG179: =IF('Scenario Setting'!$H$86=1,INDEX('Scenario Parameters'!$AF$36:$AM$43,MATCH(AB179,'Scenario Parameters'!$D$36:$D$43,0),MATCH(B179,'Scenario Parameters'!$AF$35:$AM$35,0))*AA179,IF('Scenario Setting'!$F$68=0,Q662,Q1144)) -> 0
B180: 2030 | C180: PCall urban | D180: PrivateCar/Ride-sharing/Car-Sharing | E180: H2 fuel cell | F180: Hydrogen | G180: =IF(SUM('Scenario Setting'!$F$68:$H$68)=0,G663,G1145) -> 1.498437 | H180: =IF(SUM('Scenario Setting'!$F$68:$H$68)=0,H663,H1145) -> 0 | I180: =IF(SUM('Scenario Setting'!$F$68:$H$68)=0,I663,I1145) -> 69.84286 | J180: 0 | K180: =IF(SUM('Scenario Setting'!$F$68:$H$68)=0,K663,K1145) -> 0.02203371 | L180: 0.03301612631 | M180: =IF(SUM('Scenario Setting'!$F$68:$H$68)=0,L663,L1145) -> 0 | N180: =IF(SUM('Scenario Setting'!$F$68:$H$68)=0,M663,M1145) -> 0 | O180: =IF(SUM('Scenario Setting'!$F$68:$H$68)=0,N663,N1145) -> 0 | P180: =IF(SUM('Scenario Setting'!$F$68:$H$68)=0,O663,O1145) -> 1.5 | Q180: =IF(SUM('Scenario Setting'!$F$68:$H$68)=0,P663,P1145) -> 1 | R180: =IF('Scenario Setting'!$H$77=1,INDEX('Scenario Parameters'!$E$36:$L$43,MATCH(AB180,'Scenario Parameters'!$D$36:$D$43,0),MATCH(B180,'Scenario Parameters'!$E$9:$L$9,0))*AA180,IF(SUM('Scenario Setting'!$F$68:$H$68)=0,Q663,Q1145)) -> 0 | S180: 0.02201075087 | T180: 0 | U180: =IF(SUM('Scenario Setting'!$F$68:$H$68)=0,J663,J1145) -> 0 | V180: 1.498437 | W180: 104.6551256 | X180: 0 | Y180: 69.77008374 | Z180: =IF(SUM('Scenario Setting'!$F$68:$H$68)=0,Q663,Q1145) -> 1.03e-05 | AA180: 1 | AB180: Hydrogen | AC180: =Q180*IF('Scenario Setting'!$H$86=1,INDEX('Scenario Parameters'!$W$36:$AD$43,MATCH(AB180,'Scenario Parameters'!$D$36:$D$43,0),MATCH(B180,'Scenario Parameters'!$W$35:$AD$35,0))*AA180,IF('Scenario Setting'!$F$68=0,Q663,Q1145)) -> 0 | AD180: =Q180*IF('Scenario Setting'!$H$86=1,INDEX('Scenario Parameters'!$AF$36:$AM$43,MATCH(AB180,'Scenario Parameters'!$D$36:$D$43,0),MATCH(B180,'Scenario Parameters'!$AF$35:$AM$35,0))*AA180,IF('Scenario Setting'!$F$68=0,Q663,Q1145)) -> 0 | AF180: =IF('Scenario Setting'!$H$86=1,INDEX('Scenario Parameters'!$W$36:$AD$43,MATCH(AB180,'Scenario Parameters'!$D$36:$D$43,0),MATCH(B180,'Scenario Parameters'!$W$35:$AD$35,0))*AA180,IF('Scenario Setting'!$F$68=0,Q663,Q1145)) -> 0 | AG180: =IF('Scenario Setting'!$H$86=1,INDEX('Scenario Parameters'!$AF$36:$AM$43,MATCH(AB180,'Scenario Parameters'!$D$36:$D$43,0),MATCH(B180,'Scenario Parameters'!$AF$35:$AM$35,0))*AA180,IF('Scenario Setting'!$F$68=0,Q663,Q1145)) -> 0
B181: 2030 | C181: PCall urban | D181: PrivateCar/Ride-sharing/Car-Sharing | E181: H2 HEV | F181: Hydrogen | G181: =IF(SUM('Scenario Setting'!$F$68:$H$68)=0,G664,G1146) -> 2.073554 | H181: =IF(SUM('Scenario Setting'!$F$68:$H$68)=0,H664,H1146) -> 0 | I181: =IF(SUM('Scenario Setting'!$F$68:$H$68)=0,I664,I1146) -> 69.84286 | J181: 0 | K181: =IF(SUM('Scenario Setting'!$F$68:$H$68)=0,K664,K1146) -> 0.02203371 | L181: 0.04568808751 | M181: =IF(SUM('Scenario Setting'!$F$68:$H$68)=0,L664,L1146) -> 0 | N181: =IF(SUM('Scenario Setting'!$F$68:$H$68)=0,M664,M1146) -> 0 | O181: =IF(SUM('Scenario Setting'!$F$68:$H$68)=0,N664,N1146) -> 0 | P181: =IF(SUM('Scenario Setting'!$F$68:$H$68)=0,O664,O1146) -> 1.5 | Q181: =IF(SUM('Scenario Setting'!$F$68:$H$68)=0,P664,P1146) -> 1 | R181: =IF('Scenario Setting'!$H$77=1,INDEX('Scenario Parameters'!$E$36:$L$43,MATCH(AB181,'Scenario Parameters'!$D$36:$D$43,0),MATCH(B181,'Scenario Parameters'!$E$9:$L$9,0))*AA181,IF(SUM('Scenario Setting'!$F$68:$H$68)=0,Q664,Q1146)) -> 0 | S181: 0.030458725 | T181: 0 | U181: =IF(SUM('Scenario Setting'!$F$68:$H$68)=0,J664,J1146) -> 0 | V181: 2.073554 | W181: 144.8229417 | X181: 0 | Y181: 96.54862782 | Z181: =IF(SUM('Scenario Setting'!$F$68:$H$68)=0,Q664,Q1146) -> 8.4e-13 | AA181: =Z181/(Z181+Z183) -> 0.6113537118 | AB181: Hydrogen-hybrid | AC181: =Q181*IF('Scenario Setting'!$H$86=1,INDEX('Scenario Parameters'!$W$36:$AD$43,MATCH(AB181,'Scenario Parameters'!$D$36:$D$43,0),MATCH(B181,'Scenario Parameters'!$W$35:$AD$35,0))*AA181,IF('Scenario Setting'!$F$68=0,Q664,Q1146)) -> 0 | AD181: =Q181*IF('Scenario Setting'!$H$86=1,INDEX('Scenario Parameters'!$AF$36:$AM$43,MATCH(AB181,'Scenario Parameters'!$D$36:$D$43,0),MATCH(B181,'Scenario Parameters'!$AF$35:$AM$35,0))*AA181,IF('Scenario Setting'!$F$68=0,Q664,Q1146)) -> 0 | AF181: =IF('Scenario Setting'!$H$86=1,INDEX('Scenario Parameters'!$W$36:$AD$43,MATCH(AB181,'Scenario Parameters'!$D$36:$D$43,0),MATCH(B181,'Scenario Parameters'!$W$35:$AD$35,0))*AA181,IF('Scenario Setting'!$F$68=0,Q664,Q1146)) -> 0 | AG181: =IF('Scenario Setting'!$H$86=1,INDEX('Scenario Parameters'!$AF$36:$AM$43,MATCH(AB181,'Scenario Parameters'!$D$36:$D$43,0),MATCH(B181,'Scenario Parameters'!$AF$35:$AM$35,0))*AA181,IF('Scenario Setting'!$F$68=0,Q664,Q1146)) -> 0
B182: 2030 | C182: PCall urban | D182: PrivateCar/Ride-sharing/Car-Sharing | E182: H2 PHEV | F182: Electric | G182: =IF(SUM('Scenario Setting'!$F$68:$H$68)=0,G665,G1147) -> 0 | H182: =IF(SUM('Scenario Setting'!$F$68:$H$68)=0,H665,H1147) -> 0.7466975 | I182: =IF(SUM('Scenario Setting'!$F$68:$H$68)=0,I665,I1147) -> 118.2525 | J182: 0 | K182: =IF(SUM('Scenario Setting'!$F$68:$H$68)=0,K665,K1147) -> 0.01448755 | L182: 0.01081781737 | M182: =IF(SUM('Scenario Setting'!$F$68:$H$68)=0,L665,L1147) -> 0 | N182: =IF(SUM('Scenario Setting'!$F$68:$H$68)=0,M665,M1147) -> 0 | O182: =IF(SUM('Scenario Setting'!$F$68:$H$68)=0,N665,N1147) -> 0 | P182: =IF(SUM('Scenario Setting'!$F$68:$H$68)=0,O665,O1147) -> 1.5 | Q182: =IF(SUM('Scenario Setting'!$F$68:$H$68)=0,P665,P1147) -> 1 | R182: =IF('Scenario Setting'!$H$77=1,INDEX('Scenario Parameters'!$E$36:$L$43,MATCH(AB182,'Scenario Parameters'!$D$36:$D$43,0),MATCH(B182,'Scenario Parameters'!$E$9:$L$9,0))*AA182,IF(SUM('Scenario Setting'!$F$68:$H$68)=0,Q665,Q1147)) -> 0 | S182: 0.007211878244 | T182: 0 | U182: =IF(SUM('Scenario Setting'!$F$68:$H$68)=0,J665,J1147) -> 0 | V182: 0.7466975 | W182: 88.29884612 | X182: 0 | Y182: 58.86589741 | Z182: =IF(SUM('Scenario Setting'!$F$68:$H$68)=0,Q665,Q1147) -> 1.25e-12 | AA182: =Z182/(Z179+Z182+Z189+Z191) -> 1.281019895e-09 | AB182: Electric | AC182: =Q182*IF('Scenario Setting'!$H$86=1,INDEX('Scenario Parameters'!$W$36:$AD$43,MATCH(AB182,'Scenario Parameters'!$D$36:$D$43,0),MATCH(B182,'Scenario Parameters'!$W$35:$AD$35,0))*AA182,IF('Scenario Setting'!$F$68=0,Q665,Q1147)) -> 0 | AD182: =Q182*IF('Scenario Setting'!$H$86=1,INDEX('Scenario Parameters'!$AF$36:$AM$43,MATCH(AB182,'Scenario Parameters'!$D$36:$D$43,0),MATCH(B182,'Scenario Parameters'!$AF$35:$AM$35,0))*AA182,IF('Scenario Setting'!$F$68=0,Q665,Q1147)) -> 0 | AF182: =IF('Scenario Setting'!$H$86=1,INDEX('Scenario Parameters'!$W$36:$AD$43,MATCH(AB182,'Scenario Parameters'!$D$36:$D$43,0),MATCH(B182,'Scenario Parameters'!$W$35:$AD$35,0))*AA182,IF('Scenario Setting'!$F$68=0,Q665,Q1147)) -> 0 | AG182: =IF('Scenario Setting'!$H$86=1,INDEX('Scenario Parameters'!$AF$36:$AM$43,MATCH(AB182,'Scenario Parameters'!$D$36:$D$43,0),MATCH(B182,'Scenario Parameters'!$AF$35:$AM$35,0))*AA182,IF('Scenario Setting'!$F$68=0,Q665,Q1147)) -> 0
B183: 2030 | C183: PCall urban | D183: PrivateCar/Ride-sharing/Car-Sharing | E183: H2 PHEV | F183: Hydrogen | G183: =IF(SUM('Scenario Setting'!$F$68:$H$68)=0,G666,G1148) -> 2.073554 | H183: =IF(SUM('Scenario Setting'!$F$68:$H$68)=0,H666,H1148) -> 0 | I183: =IF(SUM('Scenario Setting'!$F$68:$H$68)=0,I666,I1148) -> 69.84286 | J183: 0 | K183: =IF(SUM('Scenario Setting'!$F$68:$H$68)=0,K666,K1148) -> 0.02203371 | L183: 0.04568808751 | M183: =IF(SUM('Scenario Setting'!$F$68:$H$68)=0,L666,L1148) -> 0 | N183: =IF(SUM('Scenario Setting'!$F$68:$H$68)=0,M666,M1148) -> 0 | O183: =IF(SUM('Scenario Setting'!$F$68:$H$68)=0,N666,N1148) -> 0 | P183: =IF(SUM('Scenario Setting'!$F$68:$H$68)=0,O666,O1148) -> 1.5 | Q183: =IF(SUM('Scenario Setting'!$F$68:$H$68)=0,P666,P1148) -> 1 | R183: =IF('Scenario Setting'!$H$77=1,INDEX('Scenario Parameters'!$E$36:$L$43,MATCH(AB183,'Scenario Parameters'!$D$36:$D$43,0),MATCH(B183,'Scenario Parameters'!$E$9:$L$9,0))*AA183,IF(SUM('Scenario Setting'!$F$68:$H$68)=0,Q666,Q1148)) -> 0 | S183: 0.030458725 | T183: 0 | U183: =IF(SUM('Scenario Setting'!$F$68:$H$68)=0,J666,J1148) -> 0 | V183: 2.073554 | W183: 144.8229417 | X183: 0 | Y183: 96.54862782 | Z183: =IF(SUM('Scenario Setting'!$F$68:$H$68)=0,Q666,Q1148) -> 5.34e-13 | AA183: =Z183/(Z181+Z183) -> 0.3886462882 | AB183: Hydrogen-hybrid | AC183: =Q183*IF('Scenario Setting'!$H$86=1,INDEX('Scenario Parameters'!$W$36:$AD$43,MATCH(AB183,'Scenario Parameters'!$D$36:$D$43,0),MATCH(B183,'Scenario Parameters'!$W$35:$AD$35,0))*AA183,IF('Scenario Setting'!$F$68=0,Q666,Q1148)) -> 0 | AD183: =Q183*IF('Scenario Setting'!$H$86=1,INDEX('Scenario Parameters'!$AF$36:$AM$43,MATCH(AB183,'Scenario Parameters'!$D$36:$D$43,0),MATCH(B183,'Scenario Parameters'!$AF$35:$AM$35,0))*AA183,IF('Scenario Setting'!$F$68=0,Q666,Q1148)) -> 0 | AF183: =IF('Scenario Setting'!$H$86=1,INDEX('Scenario Parameters'!$W$36:$AD$43,MATCH(AB183,'Scenario Parameters'!$D$36:$D$43,0),MATCH(B183,'Scenario Parameters'!$W$35:$AD$35,0))*AA183,IF('Scenario Setting'!$F$68=0,Q666,Q1148)) -> 0 | AG183: =IF('Scenario Setting'!$H$86=1,INDEX('Scenario Parameters'!$AF$36:$AM$43,MATCH(AB183,'Scenario Parameters'!$D$36:$D$43,0),MATCH(B183,'Scenario Parameters'!$AF$35:$AM$35,0))*AA183,IF('Scenario Setting'!$F$68=0,Q666,Q1148)) -> 0
B184: 2030 | C184: PCall urban | D184: PrivateCar/Ride-sharing/Car-Sharing | E184: HEV CI or TUR | F184: Diesel | G184: =IF(SUM('Scenario Setting'!$F$68:$H$68)=0,G667,G1149) -> 1.697581 | H184: =IF(SUM('Scenario Setting'!$F$68:$H$68)=0,H667,H1149) -> 0 | I184: =IF(SUM('Scenario Setting'!$F$68:$H$68)=0,I667,I1149) -> 15.48 | J184: 74.1 | K184: =IF(SUM('Scenario Setting'!$F$68:$H$68)=0,K667,K1149) -> 0.02564941 | L184: 0.04354195108 | M184: =IF(SUM('Scenario Setting'!$F$68:$H$68)=0,L667,L1149) -> 0.847 | N184: =IF(SUM('Scenario Setting'!$F$68:$H$68)=0,M667,M1149) -> 0.056 | O184: =IF(SUM('Scenario Setting'!$F$68:$H$68)=0,N667,N1149) -> 0.012 | P184: =IF(SUM('Scenario Setting'!$F$68:$H$68)=0,O667,O1149) -> 1.5 | Q184: =IF(SUM('Scenario Setting'!$F$68:$H$68)=0,P667,P1149) -> 0 | R184: =IF('Scenario Setting'!$H$77=1,INDEX('Scenario Parameters'!$E$36:$L$43,MATCH(AB184,'Scenario Parameters'!$D$36:$D$43,0),MATCH(B184,'Scenario Parameters'!$E$9:$L$9,0))*AA184,IF(SUM('Scenario Setting'!$F$68:$H$68)=0,Q667,Q1149)) -> 0 | S184: 0.02902796738 | T184: 0 | U184: =IF(SUM('Scenario Setting'!$F$68:$H$68)=0,J667,J1149) -> 74.1 | V184: 1.697581 | W184: 26.27855388 | X184: 125.7907521 | Y184: 101.3795373 | Z184: =IF(SUM('Scenario Setting'!$F$68:$H$68)=0,Q667,Q1149) -> 0.001478563 | AA184: =Z184/(Z184+Z190) -> 0.9936425714 | AB184: Diesel-hybrid | AC184: =Q184*IF('Scenario Setting'!$H$86=1,INDEX('Scenario Parameters'!$W$36:$AD$43,MATCH(AB184,'Scenario Parameters'!$D$36:$D$43,0),MATCH(B184,'Scenario Parameters'!$W$35:$AD$35,0))*AA184,IF('Scenario Setting'!$F$68=0,Q667,Q1149)) -> 0 | AD184: =Q184*IF('Scenario Setting'!$H$86=1,INDEX('Scenario Parameters'!$AF$36:$AM$43,MATCH(AB184,'Scenario Parameters'!$D$36:$D$43,0),MATCH(B184,'Scenario Parameters'!$AF$35:$AM$35,0))*AA184,IF('Scenario Setting'!$F$68=0,Q667,Q1149)) -> 0 | AF184: =IF('Scenario Setting'!$H$86=1,INDEX('Scenario Parameters'!$W$36:$AD$43,MATCH(AB184,'Scenario Parameters'!$D$36:$D$43,0),MATCH(B184,'Scenario Parameters'!$W$35:$AD$35,0))*AA184,IF('Scenario Setting'!$F$68=0,Q667,Q1149)) -> 0 | AG184: =IF('Scenario Setting'!$H$86=1,INDEX('Scenario Parameters'!$AF$36:$AM$43,MATCH(AB184,'Scenario Parameters'!$D$36:$D$43,0),MATCH(B184,'Scenario Parameters'!$AF$35:$AM$35,0))*AA184,IF('Scenario Setting'!$F$68=0,Q667,Q1149)) -> 0
B185: 2030 | C185: PCall urban | D185: PrivateCar/Ride-sharing/Car-Sharing | E185: HEV SI | F185: Gasoline | G185: =IF(SUM('Scenario Setting'!$F$68:$H$68)=0,G668,G1150) -> 1.834309 | H185: =IF(SUM('Scenario Setting'!$F$68:$H$68)=0,H668,H1150) -> 0 | I185: =IF(SUM('Scenario Setting'!$F$68:$H$68)=0,I668,I1150) -> 13.17 | J185: 69.3 | K185: =IF(SUM('Scenario Setting'!$F$68:$H$68)=0,K668,K1150) -> 0.02459151 | L185: 0.04510842812 | M185: =IF(SUM('Scenario Setting'!$F$68:$H$68)=0,L668,L1150) -> 0.095 | N185: =IF(SUM('Scenario Setting'!$F$68:$H$68)=0,M668,M1150) -> 0.001 | O185: =IF(SUM('Scenario Setting'!$F$68:$H$68)=0,N668,N1150) -> 0.001 | P185: =IF(SUM('Scenario Setting'!$F$68:$H$68)=0,O668,O1150) -> 1.5 | Q185: =IF(SUM('Scenario Setting'!$F$68:$H$68)=0,P668,P1150) -> 0 | R185: =IF('Scenario Setting'!$H$77=1,INDEX('Scenario Parameters'!$E$36:$L$43,MATCH(AB185,'Scenario Parameters'!$D$36:$D$43,0),MATCH(B185,'Scenario Parameters'!$E$9:$L$9,0))*AA185,IF(SUM('Scenario Setting'!$F$68:$H$68)=0,Q668,Q1150)) -> 0 | S185: 0.03007228541 | T185: 0 | U185: =IF(SUM('Scenario Setting'!$F$68:$H$68)=0,J668,J1150) -> 69.3 | V185: 1.834309 | W185: 24.15784953 | X185: 127.1176137 | Y185: 100.8503088 | Z185: =IF(SUM('Scenario Setting'!$F$68:$H$68)=0,Q668,Q1150) -> 0.021908979 | AA185: =Z185/(Z185+Z192) -> 0.9936439652 | AB185: Gasoline-hybrid | AC185: =Q185*IF('Scenario Setting'!$H$86=1,INDEX('Scenario Parameters'!$W$36:$AD$43,MATCH(AB185,'Scenario Parameters'!$D$36:$D$43,0),MATCH(B185,'Scenario Parameters'!$W$35:$AD$35,0))*AA185,IF('Scenario Setting'!$F$68=0,Q668,Q1150)) -> 0 | AD185: =Q185*IF('Scenario Setting'!$H$86=1,INDEX('Scenario Parameters'!$AF$36:$AM$43,MATCH(AB185,'Scenario Parameters'!$D$36:$D$43,0),MATCH(B185,'Scenario Parameters'!$AF$35:$AM$35,0))*AA185,IF('Scenario Setting'!$F$68=0,Q668,Q1150)) -> 0 | AF185: =IF('Scenario Setting'!$H$86=1,INDEX('Scenario Parameters'!$W$36:$AD$43,MATCH(AB185,'Scenario Parameters'!$D$36:$D$43,0),MATCH(B185,'Scenario Parameters'!$W$35:$AD$35,0))*AA185,IF('Scenario Setting'!$F$68=0,Q668,Q1150)) -> 0 | AG185: =IF('Scenario Setting'!$H$86=1,INDEX('Scenario Parameters'!$AF$36:$AM$43,MATCH(AB185,'Scenario Parameters'!$D$36:$D$43,0),MATCH(B185,'Scenario Parameters'!$AF$35:$AM$35,0))*AA185,IF('Scenario Setting'!$F$68=0,Q668,Q1150)) -> 0
B186: 2030 | C186: PCall urban | D186: PrivateCar/Ride-sharing/Car-Sharing | E186: ICE CI or TUR | F186: Diesel | G186: =IF(SUM('Scenario Setting'!$F$68:$H$68)=0,G669,G1151) -> 2.275992 | H186: =IF(SUM('Scenario Setting'!$F$68:$H$68)=0,H669,H1151) -> 0 | I186: =IF(SUM('Scenario Setting'!$F$68:$H$68)=0,I669,I1151) -> 15.48 | J186: 74.1 | K186: =IF(SUM('Scenario Setting'!$F$68:$H$68)=0,K669,K1151) -> 0.02564941 | L186: 0.05837785196 | M186: =IF(SUM('Scenario Setting'!$F$68:$H$68)=0,L669,L1151) -> 0.847 | N186: =IF(SUM('Scenario Setting'!$F$68:$H$68)=0,M669,M1151) -> 0.056 | O186: =IF(SUM('Scenario Setting'!$F$68:$H$68)=0,N669,N1151) -> 0.012 | P186: =IF(SUM('Scenario Setting'!$F$68:$H$68)=0,O669,O1151) -> 1.5 | Q186: =IF(SUM('Scenario Setting'!$F$68:$H$68)=0,P669,P1151) -> 0 | R186: =IF('Scenario Setting'!$H$77=1,INDEX('Scenario Parameters'!$E$36:$L$43,MATCH(AB186,'Scenario Parameters'!$D$36:$D$43,0),MATCH(B186,'Scenario Parameters'!$E$9:$L$9,0))*AA186,IF(SUM('Scenario Setting'!$F$68:$H$68)=0,Q669,Q1151)) -> 0.01 | S186: 0.03891856798 | T186: 0 | U186: =IF(SUM('Scenario Setting'!$F$68:$H$68)=0,J669,J1151) -> 74.1 | V186: 2.275992 | W186: 35.23235616 | X186: 168.6510072 | Y186: 135.9222422 | Z186: =IF(SUM('Scenario Setting'!$F$68:$H$68)=0,Q669,Q1151) -> 0.113176867 | AA186: 1 | AB186: Diesel | AC186: =Q186*IF('Scenario Setting'!$H$86=1,INDEX('Scenario Parameters'!$W$36:$AD$43,MATCH(AB186,'Scenario Parameters'!$D$36:$D$43,0),MATCH(B186,'Scenario Parameters'!$W$35:$AD$35,0))*AA186,IF('Scenario Setting'!$F$68=0,Q669,Q1151)) -> 0 | AD186: =Q186*IF('Scenario Setting'!$H$86=1,INDEX('Scenario Parameters'!$AF$36:$AM$43,MATCH(AB186,'Scenario Parameters'!$D$36:$D$43,0),MATCH(B186,'Scenario Parameters'!$AF$35:$AM$35,0))*AA186,IF('Scenario Setting'!$F$68=0,Q669,Q1151)) -> 0 | AF186: =IF('Scenario Setting'!$H$86=1,INDEX('Scenario Parameters'!$W$36:$AD$43,MATCH(AB186,'Scenario Parameters'!$D$36:$D$43,0),MATCH(B186,'Scenario Parameters'!$W$35:$AD$35,0))*AA186,IF('Scenario Setting'!$F$68=0,Q669,Q1151)) -> 0.01 | AG186: =IF('Scenario Setting'!$H$86=1,INDEX('Scenario Parameters'!$AF$36:$AM$43,MATCH(AB186,'Scenario Parameters'!$D$36:$D$43,0),MATCH(B186,'Scenario Parameters'!$AF$35:$AM$35,0))*AA186,IF('Scenario Setting'!$F$68=0,Q669,Q1151)) -> 0.01
B187: 2030 | C187: PCall urban | D187: PrivateCar/Ride-sharing/Car-Sharing | E187: ICE SI | F187: Gasoline | G187: =IF(SUM('Scenario Setting'!$F$68:$H$68)=0,G670,G1152) -> 2.588136 | H187: =IF(SUM('Scenario Setting'!$F$68:$H$68)=0,H670,H1152) -> 0 | I187: =IF(SUM('Scenario Setting'!$F$68:$H$68)=0,I670,I1152) -> 13.17 | J187: 69.3 | K187: =IF(SUM('Scenario Setting'!$F$68:$H$68)=0,K670,K1152) -> 0.02459151 | L187: 0.06364617233 | M187: =IF(SUM('Scenario Setting'!$F$68:$H$68)=0,L670,L1152) -> 0.095 | N187: =IF(SUM('Scenario Setting'!$F$68:$H$68)=0,M670,M1152) -> 0.001 | O187: =IF(SUM('Scenario Setting'!$F$68:$H$68)=0,N670,N1152) -> 0.001 | P187: =IF(SUM('Scenario Setting'!$F$68:$H$68)=0,O670,O1152) -> 1.5 | Q187: =IF(SUM('Scenario Setting'!$F$68:$H$68)=0,P670,P1152) -> 0 | R187: =IF('Scenario Setting'!$H$77=1,INDEX('Scenario Parameters'!$E$36:$L$43,MATCH(AB187,'Scenario Parameters'!$D$36:$D$43,0),MATCH(B187,'Scenario Parameters'!$E$9:$L$9,0))*AA187,IF(SUM('Scenario Setting'!$F$68:$H$68)=0,Q670,Q1152)) -> 0.67 | S187: 0.04243078155 | T187: 0 | U187: =IF(SUM('Scenario Setting'!$F$68:$H$68)=0,J670,J1152) -> 69.3 | V187: 2.588136 | W187: 34.08575112 | X187: 179.3578248 | Y187: 142.2957173 | Z187: =IF(SUM('Scenario Setting'!$F$68:$H$68)=0,Q670,Q1152) -> 0.780287714 | AA187: 1 | AB187: Gasoline | AC187: =Q187*IF('Scenario Setting'!$H$86=1,INDEX('Scenario Parameters'!$W$36:$AD$43,MATCH(AB187,'Scenario Parameters'!$D$36:$D$43,0),MATCH(B187,'Scenario Parameters'!$W$35:$AD$35,0))*AA187,IF('Scenario Setting'!$F$68=0,Q670,Q1152)) -> 0 | AD187: =Q187*IF('Scenario Setting'!$H$86=1,INDEX('Scenario Parameters'!$AF$36:$AM$43,MATCH(AB187,'Scenario Parameters'!$D$36:$D$43,0),MATCH(B187,'Scenario Parameters'!$AF$35:$AM$35,0))*AA187,IF('Scenario Setting'!$F$68=0,Q670,Q1152)) -> 0 | AF187: =IF('Scenario Setting'!$H$86=1,INDEX('Scenario Parameters'!$W$36:$AD$43,MATCH(AB187,'Scenario Parameters'!$D$36:$D$43,0),MATCH(B187,'Scenario Parameters'!$W$35:$AD$35,0))*AA187,IF('Scenario Setting'!$F$68=0,Q670,Q1152)) -> 0.67 | AG187: =IF('Scenario Setting'!$H$86=1,INDEX('Scenario Parameters'!$AF$36:$AM$43,MATCH(AB187,'Scenario Parameters'!$D$36:$D$43,0),MATCH(B187,'Scenario Parameters'!$AF$35:$AM$35,0))*AA187,IF('Scenario Setting'!$F$68=0,Q670,Q1152)) -> 0.67
B188: 2030 | C188: PCall urban | D188: PrivateCar/Ride-sharing/Car-Sharing | E188: ICE SI | F188: LPG/CNG | G188: =IF(SUM('Scenario Setting'!$F$68:$H$68)=0,G671,G1153) -> 2.665212 | H188: =IF(SUM('Scenario Setting'!$F$68:$H$68)=0,H671,H1153) -> 0 | I188: =IF(SUM('Scenario Setting'!$F$68:$H$68)=0,I671,I1153) -> 16.55 | J188: 56.1 | K188: =IF(SUM('Scenario Setting'!$F$68:$H$68)=0,K671,K1153) -> 0.02162845 | L188: 0.05764440448 | M188: =IF(SUM('Scenario Setting'!$F$68:$H$68)=0,L671,L1153) -> 0.052 | N188: =IF(SUM('Scenario Setting'!$F$68:$H$68)=0,M671,M1153) -> 0.001 | O188: =IF(SUM('Scenario Setting'!$F$68:$H$68)=0,N671,N1153) -> 0 | P188: =IF(SUM('Scenario Setting'!$F$68:$H$68)=0,O671,O1153) -> 1.5 | Q188: =IF(SUM('Scenario Setting'!$F$68:$H$68)=0,P671,P1153) -> 0 | R188: =IF('Scenario Setting'!$H$77=1,INDEX('Scenario Parameters'!$E$36:$L$43,MATCH(AB188,'Scenario Parameters'!$D$36:$D$43,0),MATCH(B188,'Scenario Parameters'!$E$9:$L$9,0))*AA188,IF(SUM('Scenario Setting'!$F$68:$H$68)=0,Q671,Q1153)) -> 0.32 | S188: 0.03842960299 | T188: 0 | U188: =IF(SUM('Scenario Setting'!$F$68:$H$68)=0,J671,J1153) -> 56.1 | V188: 2.665212 | W188: 44.1092586 | X188: 149.5183932 | Y188: 129.0851012 | Z188: =IF(SUM('Scenario Setting'!$F$68:$H$68)=0,Q671,Q1153) -> 0.08201222 | AA188: 1 | AB188: LPG/CNG | AC188: =Q188*IF('Scenario Setting'!$H$86=1,INDEX('Scenario Parameters'!$W$36:$AD$43,MATCH(AB188,'Scenario Parameters'!$D$36:$D$43,0),MATCH(B188,'Scenario Parameters'!$W$35:$AD$35,0))*AA188,IF('Scenario Setting'!$F$68=0,Q671,Q1153)) -> 0 | AD188: =Q188*IF('Scenario Setting'!$H$86=1,INDEX('Scenario Parameters'!$AF$36:$AM$43,MATCH(AB188,'Scenario Parameters'!$D$36:$D$43,0),MATCH(B188,'Scenario Parameters'!$AF$35:$AM$35,0))*AA188,IF('Scenario Setting'!$F$68=0,Q671,Q1153)) -> 0 | AF188: =IF('Scenario Setting'!$H$86=1,INDEX('Scenario Parameters'!$W$36:$AD$43,MATCH(AB188,'Scenario Parameters'!$D$36:$D$43,0),MATCH(B188,'Scenario Parameters'!$W$35:$AD$35,0))*AA188,IF('Scenario Setting'!$F$68=0,Q671,Q1153)) -> 0.32 | AG188: =IF('Scenario Setting'!$H$86=1,INDEX('Scenario Parameters'!$AF$36:$AM$43,MATCH(AB188,'Scenario Parameters'!$D$36:$D$43,0),MATCH(B188,'Scenario Parameters'!$AF$35:$AM$35,0))*AA188,IF('Scenario Setting'!$F$68=0,Q671,Q1153)) -> 0.32
B189: 2030 | C189: PCall urban | D189: PrivateCar/Ride-sharing/Car-Sharing | E189: PHEV CI or TUR | F189: Electric | G189: =IF(SUM('Scenario Setting'!$F$68:$H$68)=0,G672,G1154) -> 0 | H189: =IF(SUM('Scenario Setting'!$F$68:$H$68)=0,H672,H1154) -> 0.7466975 | I189: =IF(SUM('Scenario Setting'!$F$68:$H$68)=0,I672,I1154) -> 123.7533 | J189: 0 | K189: =IF(SUM('Scenario Setting'!$F$68:$H$68)=0,K672,K1154) -> 0.01448755 | L189: 0.01081781737 | M189: =IF(SUM('Scenario Setting'!$F$68:$H$68)=0,L672,L1154) -> 0 | N189: =IF(SUM('Scenario Setting'!$F$68:$H$68)=0,M672,M1154) -> 0 | O189: =IF(SUM('Scenario Setting'!$F$68:$H$68)=0,N672,N1154) -> 0 | P189: =IF(SUM('Scenario Setting'!$F$68:$H$68)=0,O672,O1154) -> 1.5 | Q189: =IF(SUM('Scenario Setting'!$F$68:$H$68)=0,P672,P1154) -> 1 | R189: =IF('Scenario Setting'!$H$77=1,INDEX('Scenario Parameters'!$E$36:$L$43,MATCH(AB189,'Scenario Parameters'!$D$36:$D$43,0),MATCH(B189,'Scenario Parameters'!$E$9:$L$9,0))*AA189,IF(SUM('Scenario Setting'!$F$68:$H$68)=0,Q672,Q1154)) -> 0 | S189: 0.007211878244 | T189: 0 | U189: =IF(SUM('Scenario Setting'!$F$68:$H$68)=0,J672,J1154) -> 0 | V189: 0.7466975 | W189: 92.40627973 | X189: 0 | Y189: 61.60418648 | Z189: =IF(SUM('Scenario Setting'!$F$68:$H$68)=0,Q672,Q1154) -> 2.21e-05 | AA189: =Z189/(Z179+Z182+Z189+Z191) -> 0.02264843175 | AB189: Electric | AC189: =Q189*IF('Scenario Setting'!$H$86=1,INDEX('Scenario Parameters'!$W$36:$AD$43,MATCH(AB189,'Scenario Parameters'!$D$36:$D$43,0),MATCH(B189,'Scenario Parameters'!$W$35:$AD$35,0))*AA189,IF('Scenario Setting'!$F$68=0,Q672,Q1154)) -> 0 | AD189: =Q189*IF('Scenario Setting'!$H$86=1,INDEX('Scenario Parameters'!$AF$36:$AM$43,MATCH(AB189,'Scenario Parameters'!$D$36:$D$43,0),MATCH(B189,'Scenario Parameters'!$AF$35:$AM$35,0))*AA189,IF('Scenario Setting'!$F$68=0,Q672,Q1154)) -> 0 | AF189: =IF('Scenario Setting'!$H$86=1,INDEX('Scenario Parameters'!$W$36:$AD$43,MATCH(AB189,'Scenario Parameters'!$D$36:$D$43,0),MATCH(B189,'Scenario Parameters'!$W$35:$AD$35,0))*AA189,IF('Scenario Setting'!$F$68=0,Q672,Q1154)) -> 0 | AG189: =IF('Scenario Setting'!$H$86=1,INDEX('Scenario Parameters'!$AF$36:$AM$43,MATCH(AB189,'Scenario Parameters'!$D$36:$D$43,0),MATCH(B189,'Scenario Parameters'!$AF$35:$AM$35,0))*AA189,IF('Scenario Setting'!$F$68=0,Q672,Q1154)) -> 0
B190: 2030 | C190: PCall urban | D190: PrivateCar/Ride-sharing/Car-Sharing | E190: PHEV CI or TUR | F190: Diesel | G190: =IF(SUM('Scenario Setting'!$F$68:$H$68)=0,G673,G1155) -> 1.697581 | H190: =IF(SUM('Scenario Setting'!$F$68:$H$68)=0,H673,H1155) -> 0 | I190: =IF(SUM('Scenario Setting'!$F$68:$H$68)=0,I673,I1155) -> 15.48 | J190: 74.1 | K190: =IF(SUM('Scenario Setting'!$F$68:$H$68)=0,K673,K1155) -> 0.02564941 | L190: 0.04354195108 | M190: =IF(SUM('Scenario Setting'!$F$68:$H$68)=0,L673,L1155) -> 0.847 | N190: =IF(SUM('Scenario Setting'!$F$68:$H$68)=0,M673,M1155) -> 0.056 | O190: =IF(SUM('Scenario Setting'!$F$68:$H$68)=0,N673,N1155) -> 0.012 | P190: =IF(SUM('Scenario Setting'!$F$68:$H$68)=0,O673,O1155) -> 1.5 | Q190: =IF(SUM('Scenario Setting'!$F$68:$H$68)=0,P673,P1155) -> 0 | R190: =IF('Scenario Setting'!$H$77=1,INDEX('Scenario Parameters'!$E$36:$L$43,MATCH(AB190,'Scenario Parameters'!$D$36:$D$43,0),MATCH(B190,'Scenario Parameters'!$E$9:$L$9,0))*AA190,IF(SUM('Scenario Setting'!$F$68:$H$68)=0,Q673,Q1155)) -> 0 | S190: 0.02902796738 | T190: 0 | U190: =IF(SUM('Scenario Setting'!$F$68:$H$68)=0,J673,J1155) -> 74.1 | V190: 1.697581 | W190: 26.27855388 | X190: 125.7907521 | Y190: 101.3795373 | Z190: =IF(SUM('Scenario Setting'!$F$68:$H$68)=0,Q673,Q1155) -> 9.46e-06 | AA190: =Z190/(Z184+Z190) -> 0.006357428615 | AB190: Diesel-hybrid | AC190: =Q190*IF('Scenario Setting'!$H$86=1,INDEX('Scenario Parameters'!$W$36:$AD$43,MATCH(AB190,'Scenario Parameters'!$D$36:$D$43,0),MATCH(B190,'Scenario Parameters'!$W$35:$AD$35,0))*AA190,IF('Scenario Setting'!$F$68=0,Q673,Q1155)) -> 0 | AD190: =Q190*IF('Scenario Setting'!$H$86=1,INDEX('Scenario Parameters'!$AF$36:$AM$43,MATCH(AB190,'Scenario Parameters'!$D$36:$D$43,0),MATCH(B190,'Scenario Parameters'!$AF$35:$AM$35,0))*AA190,IF('Scenario Setting'!$F$68=0,Q673,Q1155)) -> 0 | AF190: =IF('Scenario Setting'!$H$86=1,INDEX('Scenario Parameters'!$W$36:$AD$43,MATCH(AB190,'Scenario Parameters'!$D$36:$D$43,0),MATCH(B190,'Scenario Parameters'!$W$35:$AD$35,0))*AA190,IF('Scenario Setting'!$F$68=0,Q673,Q1155)) -> 0 | AG190: =IF('Scenario Setting'!$H$86=1,INDEX('Scenario Parameters'!$AF$36:$AM$43,MATCH(AB190,'Scenario Parameters'!$D$36:$D$43,0),MATCH(B190,'Scenario Parameters'!$AF$35:$AM$35,0))*AA190,IF('Scenario Setting'!$F$68=0,Q673,Q1155)) -> 0
B191: 2030 | C191: PCall urban | D191: PrivateCar/Ride-sharing/Car-Sharing | E191: PHEV SI | F191: Electric | G191: =IF(SUM('Scenario Setting'!$F$68:$H$68)=0,G674,G1156) -> 0 | H191: =IF(SUM('Scenario Setting'!$F$68:$H$68)=0,H674,H1156) -> 0.7466975 | I191: =IF(SUM('Scenario Setting'!$F$68:$H$68)=0,I674,I1156) -> 123.7533 | J191: 0 | K191: =IF(SUM('Scenario Setting'!$F$68:$H$68)=0,K674,K1156) -> 0.01448755 | L191: 0.01081781737 | M191: =IF(SUM('Scenario Setting'!$F$68:$H$68)=0,L674,L1156) -> 0 | N191: =IF(SUM('Scenario Setting'!$F$68:$H$68)=0,M674,M1156) -> 0 | O191: =IF(SUM('Scenario Setting'!$F$68:$H$68)=0,N674,N1156) -> 0 | P191: =IF(SUM('Scenario Setting'!$F$68:$H$68)=0,O674,O1156) -> 1.5 | Q191: =IF(SUM('Scenario Setting'!$F$68:$H$68)=0,P674,P1156) -> 1 | R191: =IF('Scenario Setting'!$H$77=1,INDEX('Scenario Parameters'!$E$36:$L$43,MATCH(AB191,'Scenario Parameters'!$D$36:$D$43,0),MATCH(B191,'Scenario Parameters'!$E$9:$L$9,0))*AA191,IF(SUM('Scenario Setting'!$F$68:$H$68)=0,Q674,Q1156)) -> 0 | S191: 0.007211878244 | T191: 0 | U191: =IF(SUM('Scenario Setting'!$F$68:$H$68)=0,J674,J1156) -> 0 | V191: 0.7466975 | W191: 92.40627973 | X191: 0 | Y191: 61.60418648 | Z191: =IF(SUM('Scenario Setting'!$F$68:$H$68)=0,Q674,Q1156) -> 0.000328049 | AA191: =Z191/(Z179+Z182+Z189+Z191) -> 0.3361898365 | AB191: Electric | AC191: =Q191*IF('Scenario Setting'!$H$86=1,INDEX('Scenario Parameters'!$W$36:$AD$43,MATCH(AB191,'Scenario Parameters'!$D$36:$D$43,0),MATCH(B191,'Scenario Parameters'!$W$35:$AD$35,0))*AA191,IF('Scenario Setting'!$F$68=0,Q674,Q1156)) -> 0 | AD191: =Q191*IF('Scenario Setting'!$H$86=1,INDEX('Scenario Parameters'!$AF$36:$AM$43,MATCH(AB191,'Scenario Parameters'!$D$36:$D$43,0),MATCH(B191,'Scenario Parameters'!$AF$35:$AM$35,0))*AA191,IF('Scenario Setting'!$F$68=0,Q674,Q1156)) -> 0 | AF191: =IF('Scenario Setting'!$H$86=1,INDEX('Scenario Parameters'!$W$36:$AD$43,MATCH(AB191,'Scenario Parameters'!$D$36:$D$43,0),MATCH(B191,'Scenario Parameters'!$W$35:$AD$35,0))*AA191,IF('Scenario Setting'!$F$68=0,Q674,Q1156)) -> 0 | AG191: =IF('Scenario Setting'!$H$86=1,INDEX('Scenario Parameters'!$AF$36:$AM$43,MATCH(AB191,'Scenario Parameters'!$D$36:$D$43,0),MATCH(B191,'Scenario Parameters'!$AF$35:$AM$35,0))*AA191,IF('Scenario Setting'!$F$68=0,Q674,Q1156)) -> 0
B192: 2030 | C192: PCall urban | D192: PrivateCar/Ride-sharing/Car-Sharing | E192: PHEV SI | F192: Gasoline | G192: =IF(SUM('Scenario Setting'!$F$68:$H$68)=0,G675,G1157) -> 1.834309 | H192: =IF(SUM('Scenario Setting'!$F$68:$H$68)=0,H675,H1157) -> 0 | I192: =IF(SUM('Scenario Setting'!$F$68:$H$68)=0,I675,I1157) -> 13.17 | J192: 69.3 | K192: =IF(SUM('Scenario Setting'!$F$68:$H$68)=0,K675,K1157) -> 0.02459151 | L192: 0.04510842812 | M192: =IF(SUM('Scenario Setting'!$F$68:$H$68)=0,L675,L1157) -> 0.095 | N192: =IF(SUM('Scenario Setting'!$F$68:$H$68)=0,M675,M1157) -> 0.001 | O192: =IF(SUM('Scenario Setting'!$F$68:$H$68)=0,N675,N1157) -> 0.001 | P192: =IF(SUM('Scenario Setting'!$F$68:$H$68)=0,O675,O1157) -> 1.5 | Q192: =IF(SUM('Scenario Setting'!$F$68:$H$68)=0,P675,P1157) -> 0 | R192: =IF('Scenario Setting'!$H$77=1,INDEX('Scenario Parameters'!$E$36:$L$43,MATCH(AB192,'Scenario Parameters'!$D$36:$D$43,0),MATCH(B192,'Scenario Parameters'!$E$9:$L$9,0))*AA192,IF(SUM('Scenario Setting'!$F$68:$H$68)=0,Q675,Q1157)) -> 0 | S192: 0.03007228541 | T192: 0 | U192: =IF(SUM('Scenario Setting'!$F$68:$H$68)=0,J675,J1157) -> 69.3 | V192: 1.834309 | W192: 24.15784953 | X192: 127.1176137 | Y192: 100.8503088 | Z192: =IF(SUM('Scenario Setting'!$F$68:$H$68)=0,Q675,Q1157) -> 0.000140145 | AA192: =Z192/(Z185+Z192) -> 0.006356034825 | AB192: Gasoline-hybrid | AC192: =Q192*IF('Scenario Setting'!$H$86=1,INDEX('Scenario Parameters'!$W$36:$AD$43,MATCH(AB192,'Scenario Parameters'!$D$36:$D$43,0),MATCH(B192,'Scenario Parameters'!$W$35:$AD$35,0))*AA192,IF('Scenario Setting'!$F$68=0,Q675,Q1157)) -> 0 | AD192: =Q192*IF('Scenario Setting'!$H$86=1,INDEX('Scenario Parameters'!$AF$36:$AM$43,MATCH(AB192,'Scenario Parameters'!$D$36:$D$43,0),MATCH(B192,'Scenario Parameters'!$AF$35:$AM$35,0))*AA192,IF('Scenario Setting'!$F$68=0,Q675,Q1157)) -> 0 | AF192: =IF('Scenario Setting'!$H$86=1,INDEX('Scenario Parameters'!$W$36:$AD$43,MATCH(AB192,'Scenario Parameters'!$D$36:$D$43,0),MATCH(B192,'Scenario Parameters'!$W$35:$AD$35,0))*AA192,IF('Scenario Setting'!$F$68=0,Q675,Q1157)) -> 0 | AG192: =IF('Scenario Setting'!$H$86=1,INDEX('Scenario Parameters'!$AF$36:$AM$43,MATCH(AB192,'Scenario Parameters'!$D$36:$D$43,0),MATCH(B192,'Scenario Parameters'!$AF$35:$AM$35,0))*AA192,IF('Scenario Setting'!$F$68=0,Q675,Q1157)) -> 0
B193: 2035 | C193: PCall urban | D193: PrivateCar/Ride-sharing/Car-Sharing | E193: BEV | F193: Electric | G193: =IF(SUM('Scenario Setting'!$F$68:$H$68)=0,G676,G1158) -> 0 | H193: =IF(SUM('Scenario Setting'!$F$68:$H$68)=0,H676,H1158) -> 0.7416006 | I193: =IF(SUM('Scenario Setting'!$F$68:$H$68)=0,I676,I1158) -> 121.1726 | J193: 0 | K193: =IF(SUM('Scenario Setting'!$F$68:$H$68)=0,K676,K1158) -> 0.01634846 | L193: 0.01212402775 | M193: =IF(SUM('Scenario Setting'!$F$68:$H$68)=0,L676,L1158) -> 0 | N193: =IF(SUM('Scenario Setting'!$F$68:$H$68)=0,M676,M1158) -> 0 | O193: =IF(SUM('Scenario Setting'!$F$68:$H$68)=0,N676,N1158) -> 0 | P193: =IF(SUM('Scenario Setting'!$F$68:$H$68)=0,O676,O1158) -> 1.5 | Q193: =IF(SUM('Scenario Setting'!$F$68:$H$68)=0,P676,P1158) -> 1 | R193: =IF('Scenario Setting'!$H$77=1,INDEX('Scenario Parameters'!$E$36:$L$43,MATCH(AB193,'Scenario Parameters'!$D$36:$D$43,0),MATCH(B193,'Scenario Parameters'!$E$9:$L$9,0))*AA193,IF(SUM('Scenario Setting'!$F$68:$H$68)=0,Q676,Q1158)) -> 0 | S193: 0.008082685163 | T193: 0 | U193: =IF(SUM('Scenario Setting'!$F$68:$H$68)=0,J676,J1158) -> 0 | V193: 0.7416006 | W193: 89.86167286 | X193: 0 | Y193: 59.90778191 | Z193: =IF(SUM('Scenario Setting'!$F$68:$H$68)=0,Q676,Q1158) -> 0.001305369 | AA193: =Z193/(Z193+Z196+Z203+Z205) -> 0.6335297283 | AB193: Electric | AC193: =Q193*IF('Scenario Setting'!$H$86=1,INDEX('Scenario Parameters'!$W$36:$AD$43,MATCH(AB193,'Scenario Parameters'!$D$36:$D$43,0),MATCH(B193,'Scenario Parameters'!$W$35:$AD$35,0))*AA193,IF('Scenario Setting'!$F$68=0,Q676,Q1158)) -> 0 | AD193: =Q193*IF('Scenario Setting'!$H$86=1,INDEX('Scenario Parameters'!$AF$36:$AM$43,MATCH(AB193,'Scenario Parameters'!$D$36:$D$43,0),MATCH(B193,'Scenario Parameters'!$AF$35:$AM$35,0))*AA193,IF('Scenario Setting'!$F$68=0,Q676,Q1158)) -> 0 | AF193: =IF('Scenario Setting'!$H$86=1,INDEX('Scenario Parameters'!$W$36:$AD$43,MATCH(AB193,'Scenario Parameters'!$D$36:$D$43,0),MATCH(B193,'Scenario Parameters'!$W$35:$AD$35,0))*AA193,IF('Scenario Setting'!$F$68=0,Q676,Q1158)) -> 0 | AG193: =IF('Scenario Setting'!$H$86=1,INDEX('Scenario Parameters'!$AF$36:$AM$43,MATCH(AB193,'Scenario Parameters'!$D$36:$D$43,0),MATCH(B193,'Scenario Parameters'!$AF$35:$AM$35,0))*AA193,IF('Scenario Setting'!$F$68=0,Q676,Q1158)) -> 0
B194: 2035 | C194: PCall urban | D194: PrivateCar/Ride-sharing/Car-Sharing | E194: H2 fuel cell | F194: Hydrogen | G194: =IF(SUM('Scenario Setting'!$F$68:$H$68)=0,G677,G1159) -> 1.426267 | H194: =IF(SUM('Scenario Setting'!$F$68:$H$68)=0,H677,H1159) -> 0 | I194: =IF(SUM('Scenario Setting'!$F$68:$H$68)=0,I677,I1159) -> 54.45714 | J194: 0 | K194: =IF(SUM('Scenario Setting'!$F$68:$H$68)=0,K677,K1159) -> 0.02485342 | L194: 0.03544761278 | M194: =IF(SUM('Scenario Setting'!$F$68:$H$68)=0,L677,L1159) -> 0 | N194: =IF(SUM('Scenario Setting'!$F$68:$H$68)=0,M677,M1159) -> 0 | O194: =IF(SUM('Scenario Setting'!$F$68:$H$68)=0,N677,N1159) -> 0 | P194: =IF(SUM('Scenario Setting'!$F$68:$H$68)=0,O677,O1159) -> 1.5 | Q194: =IF(SUM('Scenario Setting'!$F$68:$H$68)=0,P677,P1159) -> 1 | R194: =IF('Scenario Setting'!$H$77=1,INDEX('Scenario Parameters'!$E$36:$L$43,MATCH(AB194,'Scenario Parameters'!$D$36:$D$43,0),MATCH(B194,'Scenario Parameters'!$E$9:$L$9,0))*AA194,IF(SUM('Scenario Setting'!$F$68:$H$68)=0,Q677,Q1159)) -> 0 | S194: 0.02363174186 | T194: 0 | U194: =IF(SUM('Scenario Setting'!$F$68:$H$68)=0,J677,J1159) -> 0 | V194: 1.426267 | W194: 77.6704217 | X194: 0 | Y194: 51.78028113 | Z194: =IF(SUM('Scenario Setting'!$F$68:$H$68)=0,Q677,Q1159) -> 2.49e-05 | AA194: 1 | AB194: Hydrogen | AC194: =Q194*IF('Scenario Setting'!$H$86=1,INDEX('Scenario Parameters'!$W$36:$AD$43,MATCH(AB194,'Scenario Parameters'!$D$36:$D$43,0),MATCH(B194,'Scenario Parameters'!$W$35:$AD$35,0))*AA194,IF('Scenario Setting'!$F$68=0,Q677,Q1159)) -> 0 | AD194: =Q194*IF('Scenario Setting'!$H$86=1,INDEX('Scenario Parameters'!$AF$36:$AM$43,MATCH(AB194,'Scenario Parameters'!$D$36:$D$43,0),MATCH(B194,'Scenario Parameters'!$AF$35:$AM$35,0))*AA194,IF('Scenario Setting'!$F$68=0,Q677,Q1159)) -> 0 | AF194: =IF('Scenario Setting'!$H$86=1,INDEX('Scenario Parameters'!$W$36:$AD$43,MATCH(AB194,'Scenario Parameters'!$D$36:$D$43,0),MATCH(B194,'Scenario Parameters'!$W$35:$AD$35,0))*AA194,IF('Scenario Setting'!$F$68=0,Q677,Q1159)) -> 0 | AG194: =IF('Scenario Setting'!$H$86=1,INDEX('Scenario Parameters'!$AF$36:$AM$43,MATCH(AB194,'Scenario Parameters'!$D$36:$D$43,0),MATCH(B194,'Scenario Parameters'!$AF$35:$AM$35,0))*AA194,IF('Scenario Setting'!$F$68=0,Q677,Q1159)) -> 0
B195: 2035 | C195: PCall urban | D195: PrivateCar/Ride-sharing/Car-Sharing | E195: H2 HEV | F195: Hydrogen | G195: =IF(SUM('Scenario Setting'!$F$68:$H$68)=0,G678,G1160) -> 1.786039 | H195: =IF(SUM('Scenario Setting'!$F$68:$H$68)=0,H678,H1160) -> 0 | I195: =IF(SUM('Scenario Setting'!$F$68:$H$68)=0,I678,I1160) -> 54.45714 | J195: 0 | K195: =IF(SUM('Scenario Setting'!$F$68:$H$68)=0,K678,K1160) -> 0.02485342 | L195: 0.0443891774 | M195: =IF(SUM('Scenario Setting'!$F$68:$H$68)=0,L678,L1160) -> 0 | N195: =IF(SUM('Scenario Setting'!$F$68:$H$68)=0,M678,M1160) -> 0 | O195: =IF(SUM('Scenario Setting'!$F$68:$H$68)=0,N678,N1160) -> 0 | P195: =IF(SUM('Scenario Setting'!$F$68:$H$68)=0,O678,O1160) -> 1.5 | Q195: =IF(SUM('Scenario Setting'!$F$68:$H$68)=0,P678,P1160) -> 1 | R195: =IF('Scenario Setting'!$H$77=1,INDEX('Scenario Parameters'!$E$36:$L$43,MATCH(AB195,'Scenario Parameters'!$D$36:$D$43,0),MATCH(B195,'Scenario Parameters'!$E$9:$L$9,0))*AA195,IF(SUM('Scenario Setting'!$F$68:$H$68)=0,Q678,Q1160)) -> 0 | S195: 0.02959278494 | T195: 0 | U195: =IF(SUM('Scenario Setting'!$F$68:$H$68)=0,J678,J1160) -> 0 | V195: 1.786039 | W195: 97.26257587 | X195: 0 | Y195: 64.84171725 | Z195: =IF(SUM('Scenario Setting'!$F$68:$H$68)=0,Q678,Q1160) -> 5.02e-13 | AA195: =Z195/(Z195+Z197) -> 0.4864341085 | AB195: Hydrogen-hybrid | AC195: =Q195*IF('Scenario Setting'!$H$86=1,INDEX('Scenario Parameters'!$W$36:$AD$43,MATCH(AB195,'Scenario Parameters'!$D$36:$D$43,0),MATCH(B195,'Scenario Parameters'!$W$35:$AD$35,0))*AA195,IF('Scenario Setting'!$F$68=0,Q678,Q1160)) -> 0 | AD195: =Q195*IF('Scenario Setting'!$H$86=1,INDEX('Scenario Parameters'!$AF$36:$AM$43,MATCH(AB195,'Scenario Parameters'!$D$36:$D$43,0),MATCH(B195,'Scenario Parameters'!$AF$35:$AM$35,0))*AA195,IF('Scenario Setting'!$F$68=0,Q678,Q1160)) -> 0 | AF195: =IF('Scenario Setting'!$H$86=1,INDEX('Scenario Parameters'!$W$36:$AD$43,MATCH(AB195,'Scenario Parameters'!$D$36:$D$43,0),MATCH(B195,'Scenario Parameters'!$W$35:$AD$35,0))*AA195,IF('Scenario Setting'!$F$68=0,Q678,Q1160)) -> 0 | AG195: =IF('Scenario Setting'!$H$86=1,INDEX('Scenario Parameters'!$AF$36:$AM$43,MATCH(AB195,'Scenario Parameters'!$D$36:$D$43,0),MATCH(B195,'Scenario Parameters'!$AF$35:$AM$35,0))*AA195,IF('Scenario Setting'!$F$68=0,Q678,Q1160)) -> 0
B196: 2035 | C196: PCall urban | D196: PrivateCar/Ride-sharing/Car-Sharing | E196: H2 PHEV | F196: Electric | G196: =IF(SUM('Scenario Setting'!$F$68:$H$68)=0,G679,G1161) -> 0 | H196: =IF(SUM('Scenario Setting'!$F$68:$H$68)=0,H679,H1161) -> 0.7416006 | I196: =IF(SUM('Scenario Setting'!$F$68:$H$68)=0,I679,I1161) -> 115.597 | J196: 0 | K196: =IF(SUM('Scenario Setting'!$F$68:$H$68)=0,K679,K1161) -> 0.01634846 | L196: 0.01212402775 | M196: =IF(SUM('Scenario Setting'!$F$68:$H$68)=0,L679,L1161) -> 0 | N196: =IF(SUM('Scenario Setting'!$F$68:$H$68)=0,M679,M1161) -> 0 | O196: =IF(SUM('Scenario Setting'!$F$68:$H$68)=0,N679,N1161) -> 0 | P196: =IF(SUM('Scenario Setting'!$F$68:$H$68)=0,O679,O1161) -> 1.5 | Q196: =IF(SUM('Scenario Setting'!$F$68:$H$68)=0,P679,P1161) -> 1 | R196: =IF('Scenario Setting'!$H$77=1,INDEX('Scenario Parameters'!$E$36:$L$43,MATCH(AB196,'Scenario Parameters'!$D$36:$D$43,0),MATCH(B196,'Scenario Parameters'!$E$9:$L$9,0))*AA196,IF(SUM('Scenario Setting'!$F$68:$H$68)=0,Q679,Q1161)) -> 0 | S196: 0.008082685163 | T196: 0 | U196: =IF(SUM('Scenario Setting'!$F$68:$H$68)=0,J679,J1161) -> 0 | V196: 0.7416006 | W196: 85.72680456 | X196: 0 | Y196: 57.15120304 | Z196: =IF(SUM('Scenario Setting'!$F$68:$H$68)=0,Q679,Q1161) -> 1.24e-12 | AA196: =Z196/(Z193+Z196+Z203+Z205) -> 6.018044423e-10 | AB196: Electric | AC196: =Q196*IF('Scenario Setting'!$H$86=1,INDEX('Scenario Parameters'!$W$36:$AD$43,MATCH(AB196,'Scenario Parameters'!$D$36:$D$43,0),MATCH(B196,'Scenario Parameters'!$W$35:$AD$35,0))*AA196,IF('Scenario Setting'!$F$68=0,Q679,Q1161)) -> 0 | AD196: =Q196*IF('Scenario Setting'!$H$86=1,INDEX('Scenario Parameters'!$AF$36:$AM$43,MATCH(AB196,'Scenario Parameters'!$D$36:$D$43,0),MATCH(B196,'Scenario Parameters'!$AF$35:$AM$35,0))*AA196,IF('Scenario Setting'!$F$68=0,Q679,Q1161)) -> 0 | AF196: =IF('Scenario Setting'!$H$86=1,INDEX('Scenario Parameters'!$W$36:$AD$43,MATCH(AB196,'Scenario Parameters'!$D$36:$D$43,0),MATCH(B196,'Scenario Parameters'!$W$35:$AD$35,0))*AA196,IF('Scenario Setting'!$F$68=0,Q679,Q1161)) -> 0 | AG196: =IF('Scenario Setting'!$H$86=1,INDEX('Scenario Parameters'!$AF$36:$AM$43,MATCH(AB196,'Scenario Parameters'!$D$36:$D$43,0),MATCH(B196,'Scenario Parameters'!$AF$35:$AM$35,0))*AA196,IF('Scenario Setting'!$F$68=0,Q679,Q1161)) -> 0
B197: 2035 | C197: PCall urban | D197: PrivateCar/Ride-sharing/Car-Sharing | E197: H2 PHEV | F197: Hydrogen | G197: =IF(SUM('Scenario Setting'!$F$68:$H$68)=0,G680,G1162) -> 1.786039 | H197: =IF(SUM('Scenario Setting'!$F$68:$H$68)=0,H680,H1162) -> 0 | I197: =IF(SUM('Scenario Setting'!$F$68:$H$68)=0,I680,I1162) -> 54.45714 | J197: 0 | K197: =IF(SUM('Scenario Setting'!$F$68:$H$68)=0,K680,K1162) -> 0.02485342 | L197: 0.0443891774 | M197: =IF(SUM('Scenario Setting'!$F$68:$H$68)=0,L680,L1162) -> 0 | N197: =IF(SUM('Scenario Setting'!$F$68:$H$68)=0,M680,M1162) -> 0 | O197: =IF(SUM('Scenario Setting'!$F$68:$H$68)=0,N680,N1162) -> 0 | P197: =IF(SUM('Scenario Setting'!$F$68:$H$68)=0,O680,O1162) -> 1.5 | Q197: =IF(SUM('Scenario Setting'!$F$68:$H$68)=0,P680,P1162) -> 1 | R197: =IF('Scenario Setting'!$H$77=1,INDEX('Scenario Parameters'!$E$36:$L$43,MATCH(AB197,'Scenario Parameters'!$D$36:$D$43,0),MATCH(B197,'Scenario Parameters'!$E$9:$L$9,0))*AA197,IF(SUM('Scenario Setting'!$F$68:$H$68)=0,Q680,Q1162)) -> 0 | S197: 0.02959278494 | T197: 0 | U197: =IF(SUM('Scenario Setting'!$F$68:$H$68)=0,J680,J1162) -> 0 | V197: 1.786039 | W197: 97.26257587 | X197: 0 | Y197: 64.84171725 | Z197: =IF(SUM('Scenario Setting'!$F$68:$H$68)=0,Q680,Q1162) -> 5.3e-13 | AA197: =Z197/(Z195+Z197) -> 0.5135658915 | AB197: Hydrogen-hybrid | AC197: =Q197*IF('Scenario Setting'!$H$86=1,INDEX('Scenario Parameters'!$W$36:$AD$43,MATCH(AB197,'Scenario Parameters'!$D$36:$D$43,0),MATCH(B197,'Scenario Parameters'!$W$35:$AD$35,0))*AA197,IF('Scenario Setting'!$F$68=0,Q680,Q1162)) -> 0 | AD197: =Q197*IF('Scenario Setting'!$H$86=1,INDEX('Scenario Parameters'!$AF$36:$AM$43,MATCH(AB197,'Scenario Parameters'!$D$36:$D$43,0),MATCH(B197,'Scenario Parameters'!$AF$35:$AM$35,0))*AA197,IF('Scenario Setting'!$F$68=0,Q680,Q1162)) -> 0 | AF197: =IF('Scenario Setting'!$H$86=1,INDEX('Scenario Parameters'!$W$36:$AD$43,MATCH(AB197,'Scenario Parameters'!$D$36:$D$43,0),MATCH(B197,'Scenario Parameters'!$W$35:$AD$35,0))*AA197,IF('Scenario Setting'!$F$68=0,Q680,Q1162)) -> 0 | AG197: =IF('Scenario Setting'!$H$86=1,INDEX('Scenario Parameters'!$AF$36:$AM$43,MATCH(AB197,'Scenario Parameters'!$D$36:$D$43,0),MATCH(B197,'Scenario Parameters'!$AF$35:$AM$35,0))*AA197,IF('Scenario Setting'!$F$68=0,Q680,Q1162)) -> 0
B198: 2035 | C198: PCall urban | D198: PrivateCar/Ride-sharing/Car-Sharing | E198: HEV CI or TUR | F198: Diesel | G198: =IF(SUM('Scenario Setting'!$F$68:$H$68)=0,G681,G1163) -> 1.700402 | H198: =IF(SUM('Scenario Setting'!$F$68:$H$68)=0,H681,H1163) -> 0 | I198: =IF(SUM('Scenario Setting'!$F$68:$H$68)=0,I681,I1163) -> 16.08 | J198: 74.1 | K198: =IF(SUM('Scenario Setting'!$F$68:$H$68)=0,K681,K1163) -> 0.02746328 | L198: 0.04669861624 | M198: =IF(SUM('Scenario Setting'!$F$68:$H$68)=0,L681,L1163) -> 0.846 | N198: =IF(SUM('Scenario Setting'!$F$68:$H$68)=0,M681,M1163) -> 0.054 | O198: =IF(SUM('Scenario Setting'!$F$68:$H$68)=0,N681,N1163) -> 0.012 | P198: =IF(SUM('Scenario Setting'!$F$68:$H$68)=0,O681,O1163) -> 1.5 | Q198: =IF(SUM('Scenario Setting'!$F$68:$H$68)=0,P681,P1163) -> 0 | R198: =IF('Scenario Setting'!$H$77=1,INDEX('Scenario Parameters'!$E$36:$L$43,MATCH(AB198,'Scenario Parameters'!$D$36:$D$43,0),MATCH(B198,'Scenario Parameters'!$E$9:$L$9,0))*AA198,IF(SUM('Scenario Setting'!$F$68:$H$68)=0,Q681,Q1163)) -> 0 | S198: 0.03113241083 | T198: 0 | U198: =IF(SUM('Scenario Setting'!$F$68:$H$68)=0,J681,J1163) -> 74.1 | V198: 1.700402 | W198: 27.34246416 | X198: 125.9997882 | Y198: 102.2281682 | Z198: =IF(SUM('Scenario Setting'!$F$68:$H$68)=0,Q681,Q1163) -> 0.002344975 | AA198: =Z198/(Z198+Z204) -> 0.9913755747 | AB198: Diesel-hybrid | AC198: =Q198*IF('Scenario Setting'!$H$86=1,INDEX('Scenario Parameters'!$W$36:$AD$43,MATCH(AB198,'Scenario Parameters'!$D$36:$D$43,0),MATCH(B198,'Scenario Parameters'!$W$35:$AD$35,0))*AA198,IF('Scenario Setting'!$F$68=0,Q681,Q1163)) -> 0 | AD198: =Q198*IF('Scenario Setting'!$H$86=1,INDEX('Scenario Parameters'!$AF$36:$AM$43,MATCH(AB198,'Scenario Parameters'!$D$36:$D$43,0),MATCH(B198,'Scenario Parameters'!$AF$35:$AM$35,0))*AA198,IF('Scenario Setting'!$F$68=0,Q681,Q1163)) -> 0 | AF198: =IF('Scenario Setting'!$H$86=1,INDEX('Scenario Parameters'!$W$36:$AD$43,MATCH(AB198,'Scenario Parameters'!$D$36:$D$43,0),MATCH(B198,'Scenario Parameters'!$W$35:$AD$35,0))*AA198,IF('Scenario Setting'!$F$68=0,Q681,Q1163)) -> 0 | AG198: =IF('Scenario Setting'!$H$86=1,INDEX('Scenario Parameters'!$AF$36:$AM$43,MATCH(AB198,'Scenario Parameters'!$D$36:$D$43,0),MATCH(B198,'Scenario Parameters'!$AF$35:$AM$35,0))*AA198,IF('Scenario Setting'!$F$68=0,Q681,Q1163)) -> 0
